Workbook

Sheet START
A1: Choose name from list

Sheet Instructions
D2: 2020
X4: Yes
X5: No
W7: Type of Entities Range: | X7: Parent Municipality
X8: Consolidated Information
W10: Date linked | X10: 4
W11: Date | X11: =VLOOKUP(X10,W39:X55,2) -> M04 October | Y11: 2013-08-01
W19: MTREF Range: | X19: 2014
X20: 2015
X21: 2016
X22: 2017
X23: 2018
X24: 2019
X25: 2020
X26: 2021
X27: 2022
X28: 2023
X29: 2024
X30: 2025
X31: 2026
X32: 2027
X33: 2028
W34: MTREF Linked:
W35: MTREF: | X35: 10
X36: =INDEX(X19:X32,X35,1) -> 2023
W37: Fin Year:
X38: =MTREF&"/"&RIGHT(MTREF,2)+1 -> 2023/24
V39: Date/type of report | W39: 1 | X39: M01 July
W40: 2 | X40: M02 August
W41: 3 | X41: M03 September
W42: 4 | X42: M04 October
W43: 5 | X43: M05 November
W44: 6 | X44: M06 December
W45: 7 | X45: M07 January
W46: 8 | X46: M08 February
W47: 9 | X47: M09 March
W48: 10 | X48: M10 April
W49: 11 | X49: M11 May
W50: 12 | X50: M12 June
W51: 13 | X51: Q1 First Quarter
W52: 14 | X52: Q2 Second Quarter
W53: 15 | X53: Q3 Third Quarter
W54: 16 | X54: Q4 Fourth Quarter
W55: 17 | X55: Mid-Year Assessment

Sheet Template names (hidden)
A1: Common sheet headings
A2: Head1 | B2: =HLOOKUP(MTREF,Headings,2) -> 2022/23 | C2: Prior year -1
A3: Head2 | B3: =HLOOKUP(MTREF,Headings,5) -> Budget Year 2023/24 | C3: Year of approved budget
A4: Head2A | B4: =HLOOKUP(MTREF,Headings,4) -> 2023/24 | C4: Approved budget year
A5: Head3 | B5: =HLOOKUP(MTREF,Headings,3) -> 2023/24 Medium Term Revenue & Expenditure Framework | C5: MTREF header name
A6: Head5 | B6: Audited Outcome
A7: Head5A | B7: Outcome
A8: Head5B | B8: Pre-audit outcome
A9: Head6 | B9: Original Budget
A10: Head7 | B10: Adjusted Budget
A11: Head8 | B11: Full Year Forecast
A12: Head9 | B12: =HLOOKUP(MTREF,Headings,5) -> Budget Year 2023/24 | C12: 1st year of MTREF | D12: Year1
A13: Head10 | B13: =HLOOKUP(MTREF,Headings,6) -> Budget Year +1 2024/25 | C13: 2nd year of MTREF | D13: Year2
A14: Head11 | B14: =HLOOKUP(MTREF,Headings,7) -> Budget Year +2 2025/26 | C14: 3rd year of MTREF | D14: Year3
A15: Head12 | B15: Forecast 2010/11 | D15: Year4
A16: Head13 | B16: Forecast 2011/12 | D16: Year5
A17: Head14 | B17: Forecast 2012/13 | D17: Year6
A18: Head15 | B18: Forecast 2013/14 | D18: Year7
A19: Head16 | B19: Forecast 2014/15 | D19: Year8
A20: Head17 | B20: Forecast 2015/16 | D20: Year9
A21: Head18 | B21: Forecast 2016/17 | D21: Year10
A22: Head19 | B22: Forecast 2017/18 | D22: Year11
A23: Head20 | B23: Forecast 2018/19 | D23: Year12
A24: Head21 | B24: Forecast 2019/20 | D24: Year13
A25: Head22 | B25: Forecast 2020/21 | D25: Year14
A26: Head23 | B26: Forecast 2021/22 | D26: Year15
A27: Head24 | B27: Description | D27: Desc
A28: Head25 | B28: Schedule of funding diligence | D28: fdil
A29: Head26 | B29: Vote Description | D29: VDesc
A30: Head27 | B30: Ref
A31: Head27a | B31: References
A32: Head28 | B32: Surplus/ (Deficit) for the year | D32: Result
A33: Head29 | B33: Annual target 2007/08
A34: Head30 | B34: Revised target 2007/08
A35: Head31 | B35: Quarter ended 30 September
A36: Head32 | B36: Quarter ended 31 December
A37: Head33 | B37: Quarter ended 31 March
A38: Head34 | B38: Quarter ended 30 June
A39: Head35 | B39: Variance explanation
A40: Head36 | B40: YTD Actual 31 Dec
A41: Head37 | B41: YTD Budget 31 Dec
A42: Head38 | B42: Monthly actual
A43: Head39 | B43: YearTD actual
A44: Head40 | B44: YearTD budget
A45: Head41 | B45: YTD variance
A46: Head42 | B46: Surplus/ (Deficit) for the yr/period
A47: Head43 | B47: =Head3&" Summary" -> 2023/24 Medium Term Revenue & Expenditure Framework Summary
A48: Head44 | B48: 1996 Census
A49: Head45 | B49: 2001 Census
A50: Head46 | B50: - Adjustments Budget - Month YYYY
A51: Head47 | B51: Previous target year to complete
A52: Head48 | B52: Present value
A53: Head49 | B53: Virement
A54: Head50 | B54: Other Adjusts.
A55: Head51 | B55: Accum. Funds
A56: Head52 | B56: Multi-year capital
A57: Head53 | B57: Unfore. Unavoid.
A58: Head54 | B58: Prior Adjusted
A59: Head55 | B59: Nat. or Prov. Govt
A60: Head56 | B60: Total Adjusts.
A61: Head57 | B61: =date -> M04 October
A62: Head58 | B62: Parent muni.
A63: Head59 | B63: Downward adjusts
A64: Head60 | B64: Month | C64: Report header part name | D64: =date -> M04 October
A65: SFPerf1 | B65: Budgeted Financial Performance
A66: SFPerf2 | B66: Forecast Financial Performance
A67: SFPos1 | B67: Budgeted Financial Position
A68: SFPos2 | B68: Forecast Financial Position
A69: Cash1 | B69: Budget Cash Flow
A70: Cash2 | B70: Forecast Cash Flow
A71: RandM | B71: Expenditure includes repairs & maintenance of R'000
A72: Standard nomenclature
A73: Muni | B73: ='Lookup and lists'!B27 -> LIM355 Lepelle-Nkumpi
A74: Municipal Entities | B74: 2 | C74: Type of report: | D74: 1
A75: =IF((MuniEntities=1)*(MuniType=2),"YES","NO") -> NO | B75: Does this municipality have entities (consolidated budget and entity budgets required)? YES/NO
A76: s71 (Monthly Mayor report) schedules and charts
A77: S71sum | B77: =IF(Consolques="YES",E77,F77) -> Table C1 Monthly Budget Statement Summary | D77: Table C1 | E77: =D77&"Consolidated Monthly Budget Statement Summary" -> Table C1 Consolidated Monthly Budget Statement Summary | F77: =D77&"Monthly Budget Statement Summary" -> Table C1 Monthly Budget Statement Summary
A78: S71C | B78: Table C3 Monthly Budget Statement - Financial Performance (revenue and expenditure by municipal vote) | D78: Table C3 | E78: =D78&"Consolidated Monthly Budget Statement - Financial Performance (revenue and expenditure by municipal vote) " -> Table C3 Consolidated Monthly Budget Statement - Financial Performance (revenue and expenditure by municipal vote) | F78: =D78&"Monthly Budget Statement - Financial Performance (revenue and expenditure by municipal vote)" -> Table C3 Monthly Budget Statement - Financial Performance (revenue and expenditure by municipal vote)
A79: S71A | B79: =IF(Consolques="YES",E79,F79) -> Table C2 Monthly Budget Statement - Financial Performance (functional classification) | D79: Table C2 | E79: =D79&"Consolidated Monthly Budget Statement - Financial Performance (functional classification) " -> Table C2 Consolidated Monthly Budget Statement - Financial Performance (functional classification) | F79: =D79&"Monthly Budget Statement - Financial Performance (functional classification)" -> Table C2 Monthly Budget Statement - Financial Performance (functional classification)
A80: S71B | B80: =IF(Consolques="YES",E80,F80) -> Table C4 Monthly Budget Statement - Financial Performance (revenue and expenditure) | D80: Table C4 | E80: =D80&"Consolidated Monthly Budget Statement - Financial Performance (revenue and expenditure) " -> Table C4 Consolidated Monthly Budget Statement - Financial Performance (revenue and expenditure) | F80: =D80&"Monthly Budget Statement - Financial Performance (revenue and expenditure)" -> Table C4 Monthly Budget Statement - Financial Performance (revenue and expenditure)
A81: S71D | B81: =IF(Consolques="YES",E81,F81) -> Table C5 Monthly Budget Statement - Capital Expenditure (municipal vote, functional classification and funding) | D81: Table C5 | E81: =D81&"Consolidated Monthly Budget Statement - Capital Expenditure (municipal vote, functional classification and funding " -> Table C5 Consolidated Monthly Budget Statement - Capital Expenditure (municipal vote, functional classification and funding | F81: =D81&"Monthly Budget Statement - Capital Expenditure (municipal vote, functional classification and funding)" -> Table C5 Monthly Budget Statement - Capital Expenditure (municipal vote, functional classification and funding)
A82: S71E | B82: Table C6 Monthly Budget Statement - Financial Position | D82: Table C6 | E82: =D82&"Consolidated Monthly Budget Statement - Financial Position " -> Table C6 Consolidated Monthly Budget Statement - Financial Position | F82: =D82&"Monthly Budget Statement - Financial Position" -> Table C6 Monthly Budget Statement - Financial Position
A83: S71F | B83: Table C7 Monthly Budget Statement - Cash Flow | D83: Table C7 | E83: =D83&"Consolidated Monthly Budget Statement - Cash Flow " -> Table C7 Consolidated Monthly Budget Statement - Cash Flow | F83: =D83&"Monthly Budget Statement - Cash Flow " -> Table C7 Monthly Budget Statement - Cash Flow
A84: S71G | B84: =D84&"Material variance explanations " -> Supporting Table SC1 Material variance explanations | D84: Supporting Table SC1
A85: S71H | B85: =D85&"Monthly Budget Statement - performance indicators " -> Supporting Table SC2 Monthly Budget Statement - performance indicators | D85: Supporting Table SC2
A86: S71I | B86: =D86&"Monthly Budget Statement - aged debtors" -> Supporting Table SC3 Monthly Budget Statement - aged debtors | D86: Supporting Table SC3
A87: S71J | B87: =D87&"Monthly Budget Statement - aged creditors " -> Supporting Table SC4 Monthly Budget Statement - aged creditors | D87: Supporting Table SC4
A88: S71K | B88: =D88&"Monthly Budget Statement - investment portfolio " -> Supporting Table SC5 Monthly Budget Statement - investment portfolio | D88: Supporting Table SC5
A89: S71L | B89: =D89&"Monthly Budget Statement - transfers and grant receipts " -> Supporting Table SC6 Monthly Budget Statement - transfers and grant receipts | D89: Supporting Table SC6
A90: S71M | B90: =D90&" Monthly Budget Statement - transfers and grant expenditure " -> Supporting Table SC7(1) Monthly Budget Statement - transfers and grant expenditure | D90: Supporting Table SC7(1)
A91: S71N | B91: =D91&"Monthly Budget Statement - councillor and staff benefits " -> Supporting Table SC8 Monthly Budget Statement - councillor and staff benefits | D91: Supporting Table SC8
A92: S71O | B92: =D92&"Monthly Budget Statement - actuals and revised targets for cash receipts" -> Supporting Table SC9 Monthly Budget Statement - actuals and revised targets for cash receipts | D92: Supporting Table SC9
A93: S71P | B93: =IF(Consolques="YES",E93,F93) -> NOT REQUIRED - municipality does not have entities or this is the parent municipality's budget | D93: Supporting Table SC10 | E93: =D93&"Monthly Budget Statement - Parent Municipality Financial Performance (revenue and expenditure) " -> Supporting Table SC10 Monthly Budget Statement - Parent Municipality Financial Performance (revenue and expenditure) | F93: NOT REQUIRED - municipality does not have entities or this is the parent municipality's budget
A94: S71Q | B94: NOT REQUIRED - municipality does not have entities or this is the parent municipality's budget | D94: Supporting Table SC11 | E94: =D94&"Monthly Budget Statement - summary of municipal entities" -> Supporting Table SC11 Monthly Budget Statement - summary of municipal entities | F94: NOT REQUIRED - municipality does not have entities or this is the parent municipality's budget
A95: S71R | B95: Supporting Table SC12 Monthly Budget Statement - capital expenditure trend | D95: Supporting Table SC12 | E95: =D95&"Consolidated Monthly Budget Statement - capital expenditure trend " -> Supporting Table SC12 Consolidated Monthly Budget Statement - capital expenditure trend | F95: =D95&"Monthly Budget Statement - capital expenditure trend" -> Supporting Table SC12 Monthly Budget Statement - capital expenditure trend
A96: S71Sa | B96: Supporting Table SC13a Monthly Budget Statement - capital expenditure on new assets by asset class | D96: Supporting Table SC13a | E96: =D96&"Consolidated Monthly Budget Statement - capital expenditure on new assets by asset class" -> Supporting Table SC13a Consolidated Monthly Budget Statement - capital expenditure on new assets by asset class | F96: =D96&"Monthly Budget Statement - capital expenditure on new assets by asset class" -> Supporting Table SC13a Monthly Budget Statement - capital expenditure on new assets by asset class
A97: S71Sb | B97: Supporting Table SC13b Monthly Budget Statement - capital expenditure on renewal of existing assets by asset class | D97: Supporting Table SC13b | E97: =D97&"Consolidated Monthly Budget Statement - capital expenditure on renewal of existing assets by asset class" -> Supporting Table SC13b Consolidated Monthly Budget Statement - capital expenditure on renewal of existing assets by asset class | F97: =D97&"Monthly Budget Statement - capital expenditure on renewal of existing assets by asset class" -> Supporting Table SC13b Monthly Budget Statement - capital expenditure on renewal of existing assets by asset class
A98: S71Sc | B98: Supporting Table SC13c Monthly Budget Statement - expenditure on repairs and maintenance by asset class | D98: Supporting Table SC13c | E98: =D98&"Consolidated Monthly Budget Statement - expenditure on repairs and maintenance by asset class" -> Supporting Table SC13c Consolidated Monthly Budget Statement - expenditure on repairs and maintenance by asset class | F98: =D98&"Monthly Budget Statement - expenditure on repairs and maintenance by asset class" -> Supporting Table SC13c Monthly Budget Statement - expenditure on repairs and maintenance by asset class
A99: S71Sd | B99: Supporting Table SC13d Monthly Budget Statement - depreciation by asset class | D99: Supporting Table SC13d | E99: =D99&"Consolidated Monthly Budget Statement - depreciation by asset class" -> Supporting Table SC13d Consolidated Monthly Budget Statement - depreciation by asset class | F99: =D99&"Monthly Budget Statement - depreciation by asset class" -> Supporting Table SC13d Monthly Budget Statement - depreciation by asset class
A100: S71Se | B100: =IF(Consolques="YES",E100,F100) -> Supporting Table SC13e Monthly Budget Statement - capital expenditure on upgrading of existing assets by asset class | D100: Supporting Table SC13e | E100: =D100&"Consolidated Monthly Budget Statement - capital expenditure on upgrading of existing assets by asset class" -> Supporting Table SC13e Consolidated Monthly Budget Statement - capital expenditure on upgrading of existing assets by asset class | F100: =D100&"Monthly Budget Statement - capital expenditure on upgrading of existing assets by asset class" -> Supporting Table SC13e Monthly Budget Statement - capital expenditure on upgrading of existing assets by asset class
B101: s71 charts listing
B102: =D102&Head2A&" Capital Expenditure Monthly Trend: actual v target" -> Chart C1 2023/24 Capital Expenditure Monthly Trend: actual v target | D102: Chart C1
B103: =D103&Head2A&" Capital Expenditure: YTD actual v YTD target" -> Chart C2 2023/24 Capital Expenditure: YTD actual v YTD target | D103: Chart C2
B104: =D104&"Aged Consumer Debtors Analysis" -> Chart C3 Aged Consumer Debtors Analysis | D104: Chart C3
B105: =D105&"Consumer Debtors (total by Debtor Customer Category)" -> Chart C4 Consumer Debtors (total by Debtor Customer Category) | D105: Chart C4
B106: =D106&"Aged Creditors Analysis" -> Chart C5 Aged Creditors Analysis | D106: Chart C5
A107: S71T | B107: =D107&" Monthly Budget Statement - Expenditure against approved rollovers" -> Supporting Table SC7(2) Monthly Budget Statement - Expenditure against approved rollovers | D107: Supporting Table SC7(2)

Sheet Lookup and lists (hidden)
A1: Description | B1: 2013 | C1: 2014 | D1: 2015 | E1: 2016 | F1: 2017 | G1: 2018 | H1: 2019 | I1: 2020 | J1: 2021 | K1: 2022 | L1: 2023 | M1: 2024 | N1: 2025 | O1: 2026 | Q1: Grants: | R1: National - opex | S1: Provincial - opex | T1: National - capex | U1: Provincial - capex | V1: YESNO
A2: ='Template names'!C2 -> Prior year -1 | B2: =B1-1&"/"&RIGHT(B1,2)-0 -> 2012/13 | C2: =C1-1&"/"&RIGHT(C1,2)-0 -> 2013/14 | D2: =D1-1&"/"&RIGHT(D1,2)-0 -> 2014/15 | E2: =E1-1&"/"&RIGHT(E1,2)-0 -> 2015/16 | F2: =F1-1&"/"&RIGHT(F1,2)-0 -> 2016/17 | G2: 2017/18 | H2: 2018/19 | I2: 2019/20 | J2: 2020/21 | K2: 2021/22 | L2: 2022/23 | M2: 2023/24 | N2: 2024/25 | O2: 2025/26 | R2: Local Government Equitable Share | S2: Health subsidy | T2: Municipal Infrastructure Grant (MIG) | U2: Agriculture | V2: Yes
A3: ='Template names'!C5 -> MTREF header name | B3: =B1&"/"&RIGHT(B1,2)+1&" Medium Term Revenue & Expenditure Framework" -> 2013/14 Medium Term Revenue & Expenditure Framework | C3: =C1&"/"&RIGHT(C1,2)+1&" Medium Term Revenue & Expenditure Framework" -> 2014/15 Medium Term Revenue & Expenditure Framework | D3: =D1&"/"&RIGHT(D1,2)+1&" Medium Term Revenue & Expenditure Framework" -> 2015/16 Medium Term Revenue & Expenditure Framework | E3: =E1&"/"&RIGHT(E1,2)+1&" Medium Term Revenue & Expenditure Framework" -> 2016/17 Medium Term Revenue & Expenditure Framework | F3: =F1&"/"&RIGHT(F1,2)+1&" Medium Term Revenue & Expenditure Framework" -> 2017/18 Medium Term Revenue & Expenditure Framework | G3: 2018/19 Medium Term Revenue & Expenditure Framework | H3: 2019/20 Medium Term Revenue & Expenditure Framework | I3: 2020/21 Medium Term Revenue & Expenditure Framework | J3: 2021/22 Medium Term Revenue & Expenditure Framework | K3: 2022/23 Medium Term Revenue & Expenditure Framework | L3: 2023/24 Medium Term Revenue & Expenditure Framework | M3: 2024/25 Medium Term Revenue & Expenditure Framework | N3: 2025/26 Medium Term Revenue & Expenditure Framework | O3: 2026/27 Medium Term Revenue & Expenditure Framework | R3: RSC Levy Replacement | S3: Ambulance subsidy | T3: Public Transport and Systems | U3: Education | V3: No
A4: ='Template names'!C4 -> Approved budget year | B4: =B1&"/"&RIGHT(B1,2)+1 -> 2013/14 | C4: =C1&"/"&RIGHT(C1,2)+1 -> 2014/15 | D4: =D1&"/"&RIGHT(D1,2)+1 -> 2015/16 | E4: =E1&"/"&RIGHT(E1,2)+1 -> 2016/17 | F4: =F1&"/"&RIGHT(F1,2)+1 -> 2017/18 | G4: 2018/19 | H4: 2019/20 | I4: 2020/21 | J4: 2021/22 | K4: 2022/23 | L4: 2023/24 | M4: 2024/25 | N4: 2025/26 | O4: 2026/27 | R4: Finance Management | S4: Housing | T4: Rural Transport Services and Infrastructure | U4: Health
A5: ='Template names'!C12 -> 1st year of MTREF | B5: ="Budget Year "&B1&"/"&RIGHT(B1,2)+1 -> Budget Year 2013/14 | C5: ="Budget Year "&C1&"/"&RIGHT(C1,2)+1 -> Budget Year 2014/15 | D5: ="Budget Year "&D1&"/"&RIGHT(D1,2)+1 -> Budget Year 2015/16 | E5: ="Budget Year "&E1&"/"&RIGHT(E1,2)+1 -> Budget Year 2016/17 | F5: ="Budget Year "&F1&"/"&RIGHT(F1,2)+1 -> Budget Year 2017/18 | G5: Budget Year 2018/19 | H5: Budget Year 2019/20 | I5: Budget Year 2020/21 | J5: Budget Year 2021/22 | K5: Budget Year 2022/23 | L5: Budget Year 2023/24 | M5: Budget Year 2024/25 | N5: Budget Year 2025/26 | O5: Budget Year 2026/27 | R5: Municipal Systems Improvement | S5: Sport and Recreation | T5: Regional Bulk Infrastructure | U5: Housing and Local Government
A6: ='Template names'!C13 -> 2nd year of MTREF | B6: ="Budget Year +1 "&B1+1&"/"&RIGHT(B1,2)+2 -> Budget Year +1 2014/15 | C6: ="Budget Year +1 "&C1+1&"/"&RIGHT(C1,2)+2 -> Budget Year +1 2015/16 | D6: ="Budget Year +1 "&D1+1&"/"&RIGHT(D1,2)+2 -> Budget Year +1 2016/17 | E6: ="Budget Year +1 "&E1+1&"/"&RIGHT(E1,2)+2 -> Budget Year +1 2017/18 | F6: ="Budget Year +1 "&F1+1&"/"&RIGHT(F1,2)+2 -> Budget Year +1 2018/19 | G6: Budget Year +1 2019/20 | H6: Budget Year +1 2020/21 | I6: Budget Year +1 2021/22 | J6: Budget Year +1 2022/23 | K6: Budget Year +1 2023/24 | L6: Budget Year +1 2024/25 | M6: Budget Year +1 2025/26 | N6: Budget Year +1 2026/27 | O6: Budget Year +1 2027/28 | R6: Water Services Operating Subsidy | T6: Rural Households Infrastructure | U6: Other Departments
A7: ='Template names'!C14 -> 3rd year of MTREF | B7: ="Budget Year +2 "&B1+2&"/"&RIGHT(B1,2)+3 -> Budget Year +2 2015/16 | C7: ="Budget Year +2 "&C1+2&"/"&RIGHT(C1,2)+3 -> Budget Year +2 2016/17 | D7: ="Budget Year +2 "&D1+2&"/"&RIGHT(D1,2)+3 -> Budget Year +2 2017/18 | E7: ="Budget Year +2 "&E1+2&"/"&RIGHT(E1,2)+3 -> Budget Year +2 2018/19 | F7: ="Budget Year +2 "&F1+2&"/"&RIGHT(F1,2)+3 -> Budget Year +2 2019/20 | G7: Budget Year +2 2020/21 | H7: Budget Year +2 2021/22 | I7: Budget Year +2 2022/23 | J7: Budget Year +2 2023/24 | K7: Budget Year +2 2024/25 | L7: Budget Year +2 2025/26 | M7: Budget Year +2 2026/27 | N7: Budget Year +2 2027/28 | O7: Budget Year +2 2028/29 | R7: Energy Efficiency and Demand Management | T7: Neighbourhood Development Partnership | U7: Public Works, Roads, Transport
A8: NOTE: This sheet should not be directly amended - select headings from sheet 'S' | R8: Integrated National Electrification Programme | T8: 2010 FIFA World Cup Stadiums Development | U8: Sport and Recreation
R9: Municipal Drought Relief
R10: 2010 FIFA World Cup Operating
R11: Electricity Demand Side Management
R12: EPWP Incentive
A26: Name link | B26: 143
A27: Name of Muni | B27: =INDEX(B28:B311,B26,1) -> LIM355 Lepelle-Nkumpi
B28: Choose name from list | C28: Set name on 'Instructions' sheet
B29: BUF Buffalo City | C29: EC EASTERN CAPE
B30: NMA Nelson Mandela Bay | C30: EC EASTERN CAPE
B31: EC101 Dr Beyers Naude | C31: EC EASTERN CAPE
B32: EC102 Blue Crane Route | C32: EC EASTERN CAPE
B33: EC104 Makana | C33: EC EASTERN CAPE
B34: EC105 Ndlambe | C34: EC EASTERN CAPE
B35: EC106 Sundays River Valley | C35: EC EASTERN CAPE
B36: EC108 Kouga | C36: EC EASTERN CAPE
B37: EC109 Kou-Kamma | C37: EC EASTERN CAPE
B38: DC10 Sarah Baartman | C38: EC EASTERN CAPE
B39: EC121 Mbhashe | C39: EC EASTERN CAPE
B40: EC122 Mnquma | C40: EC EASTERN CAPE
B41: EC123 Great Kei | C41: EC EASTERN CAPE
B42: EC124 Amahlathi | C42: EC EASTERN CAPE
B43: EC126 Ngqushwa | C43: EC EASTERN CAPE
B44: EC129 Raymond Mhlaba | C44: EC EASTERN CAPE
B45: DC12 Amathole | C45: EC EASTERN CAPE
B46: EC131 Inxuba Yethemba | C46: EC EASTERN CAPE
B47: EC135 Intsika Yethu | C47: EC EASTERN CAPE
B48: EC136 Emalahleni (Ec) | C48: EC EASTERN CAPE
B49: EC137 Engcobo | C49: EC EASTERN CAPE
B50: EC138 Sakhisizwe | C50: EC EASTERN CAPE
B51: EC139 Enoch Mgijima | C51: EC EASTERN CAPE
B52: DC13 Chris Hani | C52: EC EASTERN CAPE
B53: EC141 Elundini | C53: EC EASTERN CAPE
B54: EC142 Senqu | C54: EC EASTERN CAPE
B55: EC145 Walter Sisulu | C55: EC EASTERN CAPE
B56: DC14 Joe Gqabi | C56: EC EASTERN CAPE
B57: EC153 Ngquza Hills | C57: EC EASTERN CAPE
B58: EC154 Port St Johns | C58: EC EASTERN CAPE
B59: EC155 Nyandeni | C59: EC EASTERN CAPE
B60: EC156 Mhlontlo | C60: EC EASTERN CAPE
B61: EC157 King Sabata Dalindyebo | C61: EC EASTERN CAPE
B62: DC15 O .R. Tambo | C62: EC EASTERN CAPE
B63: EC441 Matatiele | C63: EC EASTERN CAPE
B64: EC442 Umzimvubu | C64: EC EASTERN CAPE
B65: EC443 Winnie Madikizela Mandela | C65: EC EASTERN CAPE
B66: EC444 Ntabankulu | C66: EC EASTERN CAPE
B67: DC44 Alfred Nzo | C67: EC EASTERN CAPE
B68: MAN Mangaung | C68: FS FREE STATE
B69: FS161 Letsemeng | C69: FS FREE STATE
B70: FS162 Kopanong | C70: FS FREE STATE
B71: FS163 Mohokare | C71: FS FREE STATE
B72: DC16 Xhariep | C72: FS FREE STATE
B73: FS181 Masilonyana | C73: FS FREE STATE
B74: FS182 Tokologo | C74: FS FREE STATE
B75: FS183 Tswelopele | C75: FS FREE STATE
B76: FS184 Matjhabeng | C76: FS FREE STATE
B77: FS185 Nala | C77: FS FREE STATE
B78: DC18 Lejweleputswa | C78: FS FREE STATE
B79: FS191 Setsoto | C79: FS FREE STATE
B80: FS192 Dihlabeng | C80: FS FREE STATE
B81: FS193 Nketoana | C81: FS FREE STATE
B82: FS194 Maluti-a-Phofung | C82: FS FREE STATE
B83: FS195 Phumelela | C83: FS FREE STATE
B84: FS196 Mantsopa | C84: FS FREE STATE
B85: DC19 Thabo Mofutsanyana | C85: FS FREE STATE
B86: FS201 Moqhaka | C86: FS FREE STATE
B87: FS203 Ngwathe | C87: FS FREE STATE
B88: FS204 Metsimaholo | C88: FS FREE STATE
B89: FS205 Mafube | C89: FS FREE STATE
B90: DC20 Fezile Dabi | C90: FS FREE STATE
B91: EKU City of Ekurhuleni | C91: GT GAUTENG
B92: JHB City Of Johannesburg | C92: GT GAUTENG
B93: TSH City Of Tshwane | C93: GT GAUTENG
B94: GT421 Emfuleni | C94: GT GAUTENG
B95: GT422 Midvaal | C95: GT GAUTENG
B96: GT423 Lesedi | C96: GT GAUTENG
B97: DC42 Sedibeng | C97: GT GAUTENG
B98: GT481 Mogale City | C98: GT GAUTENG
B99: GT484 Merafong City | C99: GT GAUTENG
B100: GT485 Rand West City | C100: GT GAUTENG
B101: DC48 West Rand | C101: GT GAUTENG
B102: ETH eThekwini | C102: KZN KWAZULU-NATAL
B103: KZN212 Umdoni | C103: KZN KWAZULU-NATAL
B104: KZN213 Umzumbe | C104: KZN KWAZULU-NATAL
B105: KZN214 uMuziwabantu | C105: KZN KWAZULU-NATAL
B106: KZN216 Ray Nkonyeni | C106: KZN KWAZULU-NATAL
B107: DC21 Ugu | C107: KZN KWAZULU-NATAL
B108: KZN221 uMshwathi | C108: KZN KWAZULU-NATAL
B109: KZN222 uMngeni | C109: KZN KWAZULU-NATAL
B110: KZN223 Mpofana | C110: KZN KWAZULU-NATAL
B111: KZN224 Impendle | C111: KZN KWAZULU-NATAL
B112: KZN225 Msunduzi | C112: KZN KWAZULU-NATAL
B113: KZN226 Mkhambathini | C113: KZN KWAZULU-NATAL
B114: KZN227 Richmond | C114: KZN KWAZULU-NATAL
B115: DC22 uMgungundlovu | C115: KZN KWAZULU-NATAL
B116: KZN235 Okhahlamba | C116: KZN KWAZULU-NATAL
B117: KZN237 Inkosi Langalibalele | C117: KZN KWAZULU-NATAL
B118: KZN238 Alfred Duma | C118: KZN KWAZULU-NATAL
B119: DC23 Uthukela | C119: KZN KWAZULU-NATAL
B120: KZN241 Endumeni | C120: KZN KWAZULU-NATAL
B121: KZN242 Nquthu | C121: KZN KWAZULU-NATAL
B122: KZN244 Msinga | C122: KZN KWAZULU-NATAL
B123: KZN245 Umvoti | C123: KZN KWAZULU-NATAL
B124: DC24 Umzinyathi | C124: KZN KWAZULU-NATAL
B125: KZN252 Newcastle | C125: KZN KWAZULU-NATAL
B126: KZN253 Emadlangeni | C126: KZN KWAZULU-NATAL
B127: KZN254 Dannhauser | C127: KZN KWAZULU-NATAL
B128: DC25 Amajuba | C128: KZN KWAZULU-NATAL
B129: KZN261 eDumbe | C129: KZN KWAZULU-NATAL
B130: KZN262 uPhongolo | C130: KZN KWAZULU-NATAL
B131: KZN263 Abaqulusi | C131: KZN KWAZULU-NATAL
B132: KZN265 Nongoma | C132: KZN KWAZULU-NATAL
B133: KZN266 Ulundi | C133: KZN KWAZULU-NATAL
B134: DC26 Zululand | C134: KZN KWAZULU-NATAL
B135: KZN271 Umhlabuyalingana | C135: KZN KWAZULU-NATAL
B136: KZN272 Jozini | C136: KZN KWAZULU-NATAL
B137: KZN275 Mtubatuba | C137: KZN KWAZULU-NATAL
B138: KZN276 Hlabisa Big Five | C138: KZN KWAZULU-NATAL
B139: DC27 Umkhanyakude | C139: KZN KWAZULU-NATAL
B140: KZN281 Mfolozi | C140: KZN KWAZULU-NATAL
B141: KZN282 uMhlathuze | C141: KZN KWAZULU-NATAL
B142: KZN284 uMlalazi | C142: KZN KWAZULU-NATAL
B143: KZN285 Mthonjaneni | C143: KZN KWAZULU-NATAL
B144: KZN286 Nkandla | C144: KZN KWAZULU-NATAL
B145: DC28 King Cetshwayo | C145: KZN KWAZULU-NATAL
B146: KZN291 Mandeni | C146: KZN KWAZULU-NATAL
B147: KZN292 KwaDukuza | C147: KZN KWAZULU-NATAL
B148: KZN293 Ndwedwe | C148: KZN KWAZULU-NATAL
B149: KZN294 Maphumulo | C149: KZN KWAZULU-NATAL
B150: DC29 iLembe | C150: KZN KWAZULU-NATAL
B151: KZN433 Greater Kokstad | C151: KZN KWAZULU-NATAL
B152: KZN434 Ubuhlebezwe | C152: KZN KWAZULU-NATAL
B153: KZN435 Umzimkhulu | C153: KZN KWAZULU-NATAL
B154: KZN436 Dr Nkosazana Dlamini Zuma | C154: KZN KWAZULU-NATAL
B155: DC43 Harry Gwala | C155: KZN KWAZULU-NATAL
B156: LIM331 Greater Giyani | C156: LIM LIMPOPO
B157: LIM332 Greater Letaba | C157: LIM LIMPOPO
B158: LIM333 Greater Tzaneen | C158: LIM LIMPOPO
B159: LIM334 Ba-Phalaborwa | C159: LIM LIMPOPO
B160: LIM335 Maruleng | C160: LIM LIMPOPO
B161: DC33 Mopani | C161: LIM LIMPOPO
B162: LIM341 Musina | C162: LIM LIMPOPO
B163: LIM343 Thulamela | C163: LIM LIMPOPO
B164: LIM344 Makhado | C164: LIM LIMPOPO
B165: LIM345 Collins Chabane | C165: LIM LIMPOPO
B166: DC34 Vhembe | C166: LIM LIMPOPO
B167: LIM351 Blouberg | C167: LIM LIMPOPO
B168: LIM353 Molemole | C168: LIM LIMPOPO
B169: LIM354 Polokwane | C169: LIM LIMPOPO
B170: LIM355 Lepelle-Nkumpi | C170: LIM LIMPOPO
B171: DC35 Capricorn | C171: LIM LIMPOPO
B172: LIM361 Thabazimbi | C172: LIM LIMPOPO
B173: LIM362 Lephalale | C173: LIM LIMPOPO
B174: LIM366 Bela Bela | C174: LIM LIMPOPO
B175: LIM367 Mogalakwena | C175: LIM LIMPOPO
B176: LIM368 Modimolle-Mookgopong | C176: LIM LIMPOPO
B177: DC36 Waterberg | C177: LIM LIMPOPO
B178: LIM471 Ephraim Mogale | C178: LIM LIMPOPO
B179: LIM472 Elias Motsoaledi | C179: LIM LIMPOPO
B180: LIM473 Makhuduthamaga | C180: LIM LIMPOPO
B181: LIM476 Tubatse Fetakgomo | C181: LIM LIMPOPO
B182: DC47 Sekhukhune | C182: LIM LIMPOPO
B183: MP301 Albert Luthuli | C183: MP MPUMALANGA
B184: MP302 Msukaligwa | C184: MP MPUMALANGA
B185: MP303 Mkhondo | C185: MP MPUMALANGA
B186: MP304 Pixley Ka Seme (MP) | C186: MP MPUMALANGA
B187: MP305 Lekwa | C187: MP MPUMALANGA
B188: MP306 Dipaleseng | C188: MP MPUMALANGA
B189: MP307 Govan Mbeki | C189: MP MPUMALANGA
B190: DC30 Gert Sibande | C190: MP MPUMALANGA
B191: MP311 Victor Khanye | C191: MP MPUMALANGA
B192: MP312 Emalahleni (Mp) | C192: MP MPUMALANGA
B193: MP313 Steve Tshwete | C193: MP MPUMALANGA
B194: MP314 Emakhazeni | C194: MP MPUMALANGA
B195: MP315 Thembisile Hani | C195: MP MPUMALANGA
B196: MP316 Dr J.S. Moroka | C196: MP MPUMALANGA
B197: DC31 Nkangala | C197: MP MPUMALANGA
B198: MP321 Thaba Chweu | C198: MP MPUMALANGA
B199: MP324 Nkomazi | C199: MP MPUMALANGA
B200: MP325 Bushbuckridge | C200: MP MPUMALANGA
B201: MP326 City of Mbombela | C201: MP MPUMALANGA
B202: DC32 Ehlanzeni | C202: MP MPUMALANGA
B203: NC451 Joe Morolong | C203: NC NORTHERN CAPE
B204: NC452 Ga-Segonyana | C204: NC NORTHERN CAPE
B205: NC453 Gamagara | C205: NC NORTHERN CAPE
B206: DC45 John Taolo Gaetsewe | C206: NC NORTHERN CAPE
B207: NC061 Richtersveld | C207: NC NORTHERN CAPE
B208: NC062 Nama Khoi | C208: NC NORTHERN CAPE
B209: NC064 Kamiesberg | C209: NC NORTHERN CAPE
B210: NC065 Hantam | C210: NC NORTHERN CAPE
B211: NC066 Karoo Hoogland | C211: NC NORTHERN CAPE
B212: NC067 Khai-Ma | C212: NC NORTHERN CAPE
B213: DC6 Namakwa | C213: NC NORTHERN CAPE
... 73 more rows

Sheet Org structure
A1: Organisational Structure Votes | C1: Organisational Structure Sub-Votes | E1: Display Sub-Votes
A2: =B2&" - "&C2 -> Vote 01 - Executive And Council | B2: Vote 01 | C2: Executive And Council
A3: =B7&" - "&C7 -> Vote 02 - Municipal Manager | B3: 01.1 | C3: Mayor & Councillors | D3: =CONCATENATE(B3, " - ", C3) -> 01.1 - Mayor & Councillors | E3: 01.1 - Mayor & Councillors
A4: =B14&" - "&C14 -> Vote 03 - Corporate Services | B4: 01.2 | C4: Board General Mayor | D4: =CONCATENATE(B4, " - ", C4) -> 01.2 - Board General Mayor | E4: 01.2 - Board General Mayor
A5: =B22&" - "&C22 -> Vote 04 - Budget And Treasury | B5: 01.3 | C5: Mayor & Council Support | D5: =CONCATENATE(B5, " - ", C5) -> 01.3 - Mayor & Council Support | E5: 01.3 - Mayor & Council Support
A6: =B29&" - "&C29 -> Vote 05 - Community Services | B6: 01.4 | C6: Board General Speaker | D6: =CONCATENATE(B6, " - ", C6) -> 01.4 - Board General Speaker | E6: 01.4 - Board General Speaker
A7: =B40&" - "&C40 -> Vote 06 - Planning And Development | B7: Vote 02 | C7: Municipal Manager
A8: =B48&" - "&C48 -> Vote 07 - Infrastructure Development | B8: 02.1 | C8: Municipal Manager Administration | D8: =CONCATENATE(B8, " - ", C8) -> 02.1 - Municipal Manager Administration | E8: 02.1 - Municipal Manager Administration
A9: =B59&" - "&C59 -> Vote 08 - | B9: 02.2 | C9: Municipal Manager | D9: 02.2 - Municipal Manager | E9: 02.2 - Municipal Manager
A10: Vote 09 - | B10: 02.3 | C10: Municipal Manager Support | D10: 02.3 - Municipal Manager Support | E10: 02.3 - Municipal Manager Support
A11: Vote 10 - | B11: 02.4 | C11: Internal Audit | D11: 02.4 - Internal Audit | E11: 02.4 - Internal Audit
A12: Vote 11 - | B12: 02.5 | C12: Communications | D12: 02.5 - Communications | E12: 02.5 - Communications
A13: Vote 12 - | B13: 02.6 | C13: Risk Management | D13: 02.6 - Risk Management | E13: 02.6 - Risk Management
A14: Vote 13 - | B14: Vote 03 | C14: Corporate Services
A15: Vote 14 - | B15: 03.1 | C15: Executive Manager: Corporate Services | D15: =CONCATENATE(B15, " - ", C15) -> 03.1 - Executive Manager: Corporate Services | E15: 03.1 - Executive Manager: Corporate Services
A16: Vote 15 - Other | B16: 03.2 | C16: Human Resource Management & Development | D16: 03.2 - Human Resource Management & Development | E16: 03.2 - Human Resource Management & Development
B17: 03.3 | C17: Information Technology | D17: 03.3 - Information Technology | E17: 03.3 - Information Technology
B18: 03.4 | C18: Legal Services | D18: 03.4 - Legal Services | E18: 03.4 - Legal Services
B19: 03.5 | C19: Gen Adm_Sec_Fleet: General Administrat | D19: 03.5 - Gen Adm_Sec_Fleet: General Administrat | E19: 03.5 - Gen Adm_Sec_Fleet: General Administrat
B20: 03.6 | C20: Gen Adm_Sec_Fleet: Security Services | D20: 03.6 - Gen Adm_Sec_Fleet: Security Services | E20: 03.6 - Gen Adm_Sec_Fleet: Security Services
B21: 03.7 | C21: Gen Adm_Sec_Fleet: Fleet Management | D21: 03.7 - Gen Adm_Sec_Fleet: Fleet Management | E21: 03.7 - Gen Adm_Sec_Fleet: Fleet Management
B22: Vote 04 | C22: Budget And Treasury
B23: 04.1 | C23: Chief Financial Officer | D23: =CONCATENATE(B23, " - ", C23) -> 04.1 - Chief Financial Officer | E23: 04.1 - Chief Financial Officer
B24: 04.2 | C24: Budget Planning & Management | D24: 04.2 - Budget Planning & Management | E24: 04.2 - Budget Planning & Management
B25: 04.3 | C25: Expenditure Management | D25: 04.3 - Expenditure Management | E25: 04.3 - Expenditure Management
B26: 04.4 | C26: Revenue Management | D26: 04.4 - Revenue Management | E26: 04.4 - Revenue Management
B27: 04.5 | C27: Asset Management | D27: 04.5 - Asset Management | E27: 04.5 - Asset Management
B28: 04.6 | C28: Supply Chain Management | D28: 04.6 - Supply Chain Management | E28: 04.6 - Supply Chain Management
B29: Vote 05 | C29: Community Services
B30: 05.1 | C30: Executive Manager: Community Services | D30: =CONCATENATE(B30, " - ", C30) -> 05.1 - Executive Manager: Community Services | E30: 05.1 - Executive Manager: Community Services
B31: 05.2 | C31: Waste Management Services | D31: 05.2 - Waste Management Services | E31: 05.2 - Waste Management Services
B32: 05.3 | C32: Environmental Management Services | D32: 05.3 - Environmental Management Services | E32: 05.3 - Environmental Management Services
B33: 05.4 | C33: Road Traffic & Law Enforce: Traffic Serv | D33: 05.4 - Road Traffic & Law Enforce: Traffic Serv | E33: 05.4 - Road Traffic & Law Enforce: Traffic Serv
B34: 05.5 | C34: Road Traffic&Law Enforce: Licencing Serv | D34: 05.5 - Road Traffic&Law Enforce: Licencing Serv | E34: 05.5 - Road Traffic&Law Enforce: Licencing Serv
B35: 05.6 | C35: Road Traffic&Law Enforce: Pound | D35: 05.6 - Road Traffic&Law Enforce: Pound | E35: 05.6 - Road Traffic&Law Enforce: Pound
B36: 05.7 | C36: Institutional & Social Dev Management | D36: 05.7 - Institutional & Social Dev Management | E36: 05.7 - Institutional & Social Dev Management
B37: 05.8 | C37: Libraries And Archives | D37: 05.8 - Libraries And Archives | E37: 05.8 - Libraries And Archives
B38: 05.9 | C38: Community Halls And Facilities | D38: 05.9 - Community Halls And Facilities | E38: 05.9 - Community Halls And Facilities
B39: 05.10 | C39: Disaster Management | D39: 05.10 - Disaster Management | E39: 05.10 - Disaster Management
B40: Vote 06 | C40: Planning And Development
B41: 06.1 | C41: Executive Manager:Planning & Development | D41: =CONCATENATE(B41, " - ", C41) -> 06.1 - Executive Manager:Planning & Development | E41: 06.1 - Executive Manager:Planning & Development
B42: 06.2 | C42: Economic Development & Planning | D42: 06.2 - Economic Development & Planning | E42: 06.2 - Economic Development & Planning
B43: 06.3 | C43: Development & Town Planning | D43: 06.3 - Development & Town Planning | E43: 06.3 - Development & Town Planning
B44: 06.4 | C44: Property Management & Housing | D44: 06.4 - Property Management & Housing | E44: 06.4 - Property Management & Housing
B45: 06.5 | C45: Integrated Development Planning | D45: 06.5 - Integrated Development Planning | E45: 06.5 - Integrated Development Planning
B46: 06.6 | C46: Performance Management | D46: 06.6 - Performance Management | E46: 06.6 - Performance Management
B47: 06.7 | C47: Local Economic Development | D47: 06.7 - Local Economic Development | E47: 06.7 - Local Economic Development
B48: Vote 07 | C48: Infrastructure Development
B49: 07.1 | C49: Technical Services Administration | D49: =CONCATENATE(B49, " - ", C49) -> 07.1 - Technical Services Administration | E49: 07.1 - Technical Services Administration
B50: 07.2 | C50: Roads | D50: 07.2 - Roads | E50: 07.2 - Roads
B51: 07.3 | C51: Workshop | D51: 07.3 - Workshop | E51: 07.3 - Workshop
B52: 07.4 | C52: Sewerage Network | D52: 07.4 - Sewerage Network | E52: 07.4 - Sewerage Network
B53: 07.5 | C53: Sewerage Purification | D53: 07.5 - Sewerage Purification | E53: 07.5 - Sewerage Purification
B54: 07.6 | C54: Irrigation | D54: 07.6 - Irrigation | E54: 07.6 - Irrigation
B55: 07.7 | C55: Executive Manager: Infrastructure Dev | D55: 07.7 - Executive Manager: Infrastructure Dev | E55: 07.7 - Executive Manager: Infrastructure Dev
B56: 07.8 | C56: Road Construction & Maintenance | D56: 07.8 - Road Construction & Maintenance | E56: 07.8 - Road Construction & Maintenance
B57: 07.9 | C57: Electrical & Mechanical Works | D57: 07.9 - Electrical & Mechanical Works | E57: 07.9 - Electrical & Mechanical Works
B58: 07.10 | C58: Project Management | D58: 07.10 - Project Management | E58: 07.10 - Project Management
B59: Vote 08
B60: Vote 09
B61: Vote 10
B62: Vote 11
B63: Vote 12
B64: Vote 13
B65: Vote 14
B66: Vote 15 | C66: Other

Sheet Contacts
A1: =muni&" - "&" Contact Information" -> LIM355 Lepelle-Nkumpi - Contact Information
A3: A. GENERAL INFORMATION
A4: Municipality | B4: =muni -> LIM355 Lepelle-Nkumpi | C4: Set name on 'Instructions' sheet
A6: Grade | B6: 5 | C6: 1 Grade in terms of the Remuneration of Public Office Bearers Act.
A8: Province | B8: =IF(B4>" ",VLOOKUP(B4,'Lookup and lists'!B28:C311,2, FALSE)," ") -> LIM LIMPOPO
A10: Web Address | B10: www.lepelle-nkumpi.gov.za
A12: e-mail Address
A14: B. CONTACT INFORMATION
A15: Postal address:
A16: P.O. Box | B16: P/B X07
A17: City / Town | B17: Chuenespoort
A18: Postal Code | B18: 0745
A20: Street address
A21: Building | B21: 170 BA
A22: Street No. & Name | B22: civic center
A23: City / Town | B23: lebowakgomo
A24: Postal Code | B24: 0737
A26: General Contacts
A27: Telephone number | B27: 015 633 4500
A28: Fax number | B28: 015 633 6896
A30: C. POLITICAL LEADERSHIP
A31: Speaker: | C31: Secretary/PA to the Speaker:
A32: ID Number | B32: 7311190526081 | C32: ID Number | D32: 8809211020082
A33: Title | B33: Ms | C33: Title | D33: Ms
A34: Name | B34: Nkoabela N J | C34: Name | D34: Lebogang Kekana
A35: Telephone number | B35: 015 633 4525 | C35: Telephone number | D35: 015 633 4525
A36: Cell number | C36: Cell number | D36: 071 480 0336
A37: Fax number | B37: 015 633 6896 | C37: Fax number | D37: 015 633 6896
A38: E-mail address | B38: nkoabela.j@lepelle-nkumpi.onmicrosoft.com | C38: E-mail address | D38: lebogang.kekana@lepelle-nkumpi.gov.za
A40: Mayor/Executive Mayor: | C40: Secretary/PA to the Mayor/Executive Mayor:
A41: ID Number | B41: 6806060319088 | C41: ID Number | D41: 8510065530081
A42: Title | B42: Ms | C42: Title | D42: Ms
A43: Name | B43: MM Molala | C43: Name | D43: Thobejane T A
A44: Telephone number | B44: 015 633 4500 | C44: Telephone number | D44: 015 633 4525
A45: Cell number | B45: 0711042289 | C45: Cell number | D45: 082 660 0761
A46: Fax number | B46: 015 633 6896 | C46: Fax number | D46: 015 633 6896
A47: E-mail address | B47: merriam.molala@lepelle-nkumpi.gov.za | C47: E-mail address | D47: tswaledi.thobejane@lepelle-nkumpi.gov.za
A49: Deputy Mayor/Executive Mayor: | C49: Secretary/PA to the Deputy Mayor/Executive Mayor:
A50: ID Number | B50: 6806060319088 | C50: ID Number
A51: Title | B51: Ms | C51: Title
A52: Name | B52: MM Molala | C52: Name
A53: Telephone number | B53: 015 633 4520 | C53: Telephone number
A54: Cell number | B54: 0711042289 | C54: Cell number
A55: Fax number | B55: 015 633 6896 | C55: Fax number
A56: E-mail address | B56: merriam.molala@lepelle-nkumpi.gov.za | C56: E-mail address
A58: D. MANAGEMENT LEADERSHIP
A59: Municipal Manager: | C59: Secretary/PA to the Municipal Manager:
A60: ID Number | B60: 7109150418087 | C60: ID Number | D60: 8110230738089
A61: Title | B61: Ms | C61: Title | D61: Ms
A62: Name | B62: Monyepao Morongwe Adelaide | C62: Name | D62: Lekgau Theresho
A63: Telephone number | B63: 015 633 4539 | C63: Telephone number | D63: 015 633 4508
A64: Cell number | B64: 082 578 0095 | C64: Cell number | D64: 082 371 9768
A65: Fax number | B65: 015 633 6896 | C65: Fax number | D65: 015 633 6896
A66: E-mail address | B66: morongwe.monyepao@lepelle-nkumpi.gov.za | C66: E-mail address | D66: theresho.lekgau@lepelle-nkumpi.gov.za
A68: Chief Financial Officer | C68: Secretary/PA to the Chief Financial Officer
A69: ID Number | B69: 8902110838082 | C69: ID Number | D69: 8706271296083
A70: Title | B70: Ms | C70: Title | D70: Ms
A71: Name | B71: Khomotjo Mankga | C71: Name | D71: Agnes Lehomo
A72: Telephone number | B72: 015 633 4520 | C72: Telephone number | D72: 0156334537
A73: Cell number | C73: Cell number | D73: 071 371 9977
A74: Fax number | B74: 015 633 6896 | C74: Fax number | D74: 015 633 6896
A75: E-mail address | B75: khomotjo.mankga@lepelle-nkumpi.gov.za | C75: E-mail address | D75: agnes.lehomo@lepelle-nkumpi.gov.za
A77: Official responsible for submitting financial information | C77: Official responsible for submitting financial information
A78: ID Number | B78: 7809210399082 | C78: ID Number
A79: Title | B79: Ms | C79: Title
A80: Name | B80: DAPHNEY MOEMA | C80: Name
A81: Telephone number | B81: 015 633 4503 | C81: Telephone number
A82: Cell number | B82: 071 416 1345 | C82: Cell number
A83: Fax number | B83: 015 633 6896 | C83: Fax number
A84: E-mail address | B84: daphney.moroaswi@lepelle-nkumpi.gov.za | C84: E-mail address
A85: Official responsible for submitting financial information | C85: Official responsible for submitting financial information
A86: ID Number | C86: ID Number
A87: Title | C87: Title
A88: Name | C88: Name
A89: Telephone number | C89: Telephone number
A90: Cell number | C90: Cell number
A91: Fax number | C91: Fax number
A92: E-mail address | C92: E-mail address
A93: Official responsible for submitting financial information | C93: Official responsible for submitting financial information
A94: ID Number | C94: ID Number
A95: Title | C95: Title
A96: Name | C96: Name
A97: Telephone number | C97: Telephone number
A98: Cell number | C98: Cell number
A99: Fax number | C99: Fax number
A100: E-mail address | C100: E-mail address
A101: Official responsible for submitting financial information | C101: Official responsible for submitting financial information
A102: ID Number | C102: ID Number
A103: Title | C103: Title
A104: Name | C104: Name
A105: Telephone number | C105: Telephone number
A106: Cell number | C106: Cell number
A107: Fax number | C107: Fax number
A108: E-mail address | C108: E-mail address
A109: Official responsible for submitting financial information | C109: Official responsible for submitting financial information
A110: ID Number | C110: ID Number
A111: Title | C111: Title
A112: Name | C112: Name
A113: Telephone number | C113: Telephone number
A114: Cell number | C114: Cell number
A115: Fax number | C115: Fax number
A116: E-mail address | C116: E-mail address
A117: Official responsible for submitting financial information | C117: Official responsible for submitting financial information
A118: ID Number | C118: ID Number
A119: Title | C119: Title
A120: Name | C120: Name
A121: Telephone number | C121: Telephone number
A122: Cell number | C122: Cell number
A123: Fax number | C123: Fax number
A124: E-mail address | C124: E-mail address
A125: Official responsible for submitting financial information | C125: Official responsible for submitting financial information
A126: ID Number | C126: ID Number
A127: Title | C127: Title
A128: Name | C128: Name
A129: Telephone number | C129: Telephone number
A130: Cell number | C130: Cell number
A131: Fax number | C131: Fax number
A132: E-mail address | C132: E-mail address
A133: Official responsible for submitting financial information
A134: ID Number
A135: Title
A136: Name
A137: Telephone number
A138: Cell number
A139: Fax number
A140: E-mail address

Sheet C1-Sum
A1: =muni& " - "&s71sum& " - "&date -> LIM355 Lepelle-Nkumpi - Table C1 Monthly Budget Statement Summary - M04 October
A2: =desc -> Description | B2: =Head1 -> 2022/23 | C2: =Head2 -> Budget Year 2023/24
B3: =Head5 -> Audited Outcome | C3: =Head6 -> Original Budget | D3: =Head7 -> Adjusted Budget | E3: =Head38 -> Monthly actual | F3: =Head39 -> YearTD actual | G3: =Head40 -> YearTD budget | H3: =Head41 -> YTD variance | I3: =Head41 -> YTD variance | J3: =Head8 -> Full Year Forecast
A4: R thousands | I4: %
A5: Financial Performance
A6: Property rates | B6: =SUM('C4-FinPerf RE'!C22) -> 38965081.3 | C6: =SUM('C4-FinPerf RE'!D22) -> 39459996 | D6: =SUM('C4-FinPerf RE'!E22) -> 39459996 | E6: =SUM('C4-FinPerf RE'!F22) -> 3603666.69 | F6: =SUM('C4-FinPerf RE'!G22) -> 14382008.86 | G6: =SUM('C4-FinPerf RE'!H22) -> 13153320 | H6: =F6-G6 -> 1228688.86 | I6: =IF(H6=0,"",H6/G6) -> 0.09341283113 | J6: =SUM('C4-FinPerf RE'!K22) -> 39459996
A7: Service charges | B7: =SUM('C4-FinPerf RE'!C7:C10) -> 6803042.19 | C7: =SUM('C4-FinPerf RE'!D7:D10) -> 7500107 | D7: =SUM('C4-FinPerf RE'!E7:E10) -> 7500107 | E7: =SUM('C4-FinPerf RE'!F7:F10) -> 616282.36 | F7: =SUM('C4-FinPerf RE'!G7:G10) -> 2462671.21 | G7: =SUM('C4-FinPerf RE'!H7:H10) -> 2500032 | H7: =F7-G7 -> -37360.79 | I7: =IF(H7=0,"",H7/G7) -> -0.01494412472 | J7: =SUM('C4-FinPerf RE'!K7:K10) -> 7500107
A8: Investment revenue | B8: ='C4-FinPerf RE'!C15 -> 25809993.18 | C8: ='C4-FinPerf RE'!D13 -> 0 | D8: ='C4-FinPerf RE'!E13 -> 0 | E8: ='C4-FinPerf RE'!F13 -> 0 | F8: ='C4-FinPerf RE'!G13 -> 0 | G8: ='C4-FinPerf RE'!H13 -> 0 | H8: =F8-G8 -> 0 | I8: =IF(H8=0,"",H8/G8) ->  | J8: ='C4-FinPerf RE'!K13 -> 0
A9: Transfers and subsidies - Operational | B9: ='C4-FinPerf RE'!C15 -> 25809993.18 | C9: ='C4-FinPerf RE'!D15 -> 27556714 | D9: ='C4-FinPerf RE'!E15 -> 27556714 | E9: ='C4-FinPerf RE'!F15 -> 5176175.35 | F9: ='C4-FinPerf RE'!G15 -> 10580351.91 | G9: ='C4-FinPerf RE'!H15 -> 9185568 | H9: =F9-G9 -> 1394783.91 | I9: =IF(H9=0,"",H9/G9) -> 0.1518451456 | J9: ='C4-FinPerf RE'!K15 -> 27556714
A10: Other own revenue | B10: =+B11-SUM(B6:B9) -> 348963381.5 | C10: =+C11-SUM(C6:C9) -> 639209024 | D10: 639209024 | E10: 3243848.09 | F10: 146467349.7 | G10: 213069600 | H10: =F10-G10 -> -66602250.34 | I10: =IF(H10=0,"",H10/G10) -> -0.312584481 | J10: 0
A11: Total Revenue (excluding capital transfers and contributions) | B11: =+'C4-FinPerf RE'!C33 -> 446351491.4 | C11: =+'C4-FinPerf RE'!D33 -> 713725841 | D11: =+'C4-FinPerf RE'!E33 -> 713725841 | E11: =+'C4-FinPerf RE'!F33 -> 12639972.49 | F11: =+'C4-FinPerf RE'!G33 -> 173892381.6 | G11: =+'C4-FinPerf RE'!H33 -> 237908520 | H11: =F11-G11 -> -64016138.36 | I11: =IF(H11=0,"",H11/G11) -> -0.269078797 | J11: =+'C4-FinPerf RE'!K33 -> 713725841
A12: Employee costs | B12: ='C4-FinPerf RE'!C35 -> 99656346.07 | C12: ='C4-FinPerf RE'!D35 -> 142196313 | D12: ='C4-FinPerf RE'!E35 -> 142196313 | E12: ='C4-FinPerf RE'!F35 -> 8226855.21 | F12: ='C4-FinPerf RE'!G35 -> 31897307 | G12: ='C4-FinPerf RE'!H35 -> 47399336 | H12: -15502029 | J12: ='C4-FinPerf RE'!K35 -> 142196313
A13: Remuneration of Councillors | B13: ='C4-FinPerf RE'!C36 -> 23103442.24 | C13: ='C4-FinPerf RE'!D36 -> 23603450 | D13: ='C4-FinPerf RE'!E36 -> 23603450 | E13: ='C4-FinPerf RE'!F36 -> 2267278.48 | F13: ='C4-FinPerf RE'!G36 -> 8057248.09 | G13: ='C4-FinPerf RE'!H36 -> 7867844 | H13: 189404.09 | J13: ='C4-FinPerf RE'!K36 -> 23603450
A14: Depreciation and amortisation | B14: ='C4-FinPerf RE'!C40 -> 30575537.34 | C14: ='C4-FinPerf RE'!D40 -> 39698037 | D14: ='C4-FinPerf RE'!E40 -> 39698037 | E14: ='C4-FinPerf RE'!F40 -> 2607895.44 | F14: ='C4-FinPerf RE'!G40 -> 9438808.4 | G14: ='C4-FinPerf RE'!H40 -> 13232716 | H14: -3793907.6 | J14: ='C4-FinPerf RE'!K40 -> 39698037
A15: Interest | B15: ='C4-FinPerf RE'!C41 -> 0 | C15: ='C4-FinPerf RE'!D41 -> 52650 | D15: ='C4-FinPerf RE'!E41 -> 52650 | E15: ='C4-FinPerf RE'!F41 -> 0 | F15: ='C4-FinPerf RE'!G41 -> 0 | G15: ='C4-FinPerf RE'!H41 -> 17552 | H15: -17552 | J15: ='C4-FinPerf RE'!K41 -> 52650
A16: Inventory consumed and bulk purchases | B16: =SUM('C4-FinPerf RE'!C37+'C4-FinPerf RE'!C38) -> 1892655.88 | C16: =SUM('C4-FinPerf RE'!D37+'C4-FinPerf RE'!D38) -> 9346042 | D16: =SUM('C4-FinPerf RE'!E37+'C4-FinPerf RE'!E38) -> 9346042 | E16: =SUM('C4-FinPerf RE'!F37+'C4-FinPerf RE'!F38) -> 280581.76 | F16: =SUM('C4-FinPerf RE'!G37+'C4-FinPerf RE'!G38) -> 681761.77 | G16: =SUM('C4-FinPerf RE'!H37+'C4-FinPerf RE'!H38) -> 3115372 | H16: -2433610.23 | J16: =SUM('C4-FinPerf RE'!K37+'C4-FinPerf RE'!K38) -> 9346042
A17: Transfers and subsidies | B17: ='C4-FinPerf RE'!C43 -> 0 | C17: ='C4-FinPerf RE'!D43 -> 0 | D17: ='C4-FinPerf RE'!E43 -> 0 | E17: ='C4-FinPerf RE'!F43 -> 0 | F17: ='C4-FinPerf RE'!G43 -> 0 | G17: ='C4-FinPerf RE'!H43 -> 0 | H17: 0 | J17: ='C4-FinPerf RE'!K43 -> 0
A18: Other expenditure | B18: ='C4-FinPerf RE'!C48-SUM('C1-Sum'!B12:B17) -> 217138418.9 | C18: ='C4-FinPerf RE'!D48-SUM('C1-Sum'!C12:C17) -> 263282120 | D18: ='C4-FinPerf RE'!E48-SUM('C1-Sum'!D12:D17) -> 263282120 | E18: ='C4-FinPerf RE'!F48-SUM('C1-Sum'!E12:E17) -> 10284676.33 | F18: ='C4-FinPerf RE'!G48-SUM('C1-Sum'!F12:F17) -> 43581523.37 | G18: ='C4-FinPerf RE'!H48-SUM('C1-Sum'!G12:G17) -> 87761028 | H18: -44179504.63 | I18: -0.5034068725 | J18: ='C4-FinPerf RE'!K48-SUM('C1-Sum'!J12:J17) -> 263282120
A19: Total Expenditure | B19: =SUM(B12:B18) -> 372366400.4 | C19: 478178612 | D19: 478178612 | E19: 23667287.22 | F19: 93656648.63 | G19: 159393848 | H19: -65737199.37 | I19: -0.4124199283 | J19: =SUM(J12:J18) -> 478178612
A20: Surplus/(Deficit) | B20: =B11-B19 -> 73985090.94 | C20: 235547229 | D20: 235547229 | E20: -11027314.73 | F20: 80235733.01 | G20: 78514672 | H20: 1721061.01 | I20: 0.02192024708 | J20: =J11-J19 -> 235547229
A21: Transfers and subsidies - capital (monetary allocations) | B21: ='C4-FinPerf RE'!C50 -> 39683923.74 | C21: ='C4-FinPerf RE'!D50 -> 64332000 | D21: ='C4-FinPerf RE'!E50 -> 64332000 | E21: ='C4-FinPerf RE'!F50 -> 109994.8 | F21: ='C4-FinPerf RE'!G50 -> 16752191.83 | G21: ='C4-FinPerf RE'!H50 -> 21444000 | H21: -4691808.17 | I21: -0.2187935166 | J21: ='C4-FinPerf RE'!K50 -> 64332000
A22: Transfers and subsidies - capital (in-kind) | B22: =SUM('C4-FinPerf RE'!C51:C51) -> 0 | C22: =SUM('C4-FinPerf RE'!D51:D51) -> 0 | D22: =SUM('C4-FinPerf RE'!E51:E51) -> 0 | E22: =SUM('C4-FinPerf RE'!F51:F51) -> 0 | F22: =SUM('C4-FinPerf RE'!G51:G51) -> 0 | G22: =SUM('C4-FinPerf RE'!H51:H51) -> 0 | H22: 0 | J22: =SUM('C4-FinPerf RE'!K51:K51) -> 0
A23: Surplus/(Deficit) after capital transfers & contributions | B23: =B20+B21+B22 -> 113669014.7 | C23: 299879229 | D23: 299879229 | E23: -10917319.93 | F23: 96987924.84 | G23: 99958672 | H23: -2970747.16 | I23: -0.02971975418 | J23: =J20+J21+J22 -> 299879229
A24: Share of surplus/ (deficit) of associate | B24: ='C4-FinPerf RE'!C59 -> 0 | C24: ='C4-FinPerf RE'!D59 -> 0 | D24: ='C4-FinPerf RE'!E59 -> 0 | E24: ='C4-FinPerf RE'!F59 -> 0 | F24: ='C4-FinPerf RE'!G59 -> 0 | G24: ='C4-FinPerf RE'!H59 -> 0 | H24: 0 | J24: ='C4-FinPerf RE'!K59 -> 0
A25: Surplus/ (Deficit) for the year | B25: =B23+B24 -> 113669014.7 | C25: 299879229 | D25: 299879229 | E25: -10917319.93 | F25: 96987924.84 | G25: 99958672 | H25: -2970747.16 | I25: -0.02971975418 | J25: =J23+J24 -> 299879229
A27: Capital expenditure & funds sources
A28: Capital expenditure | B28: ='C5-Capex'!C40 -> 276.9 | C28: ='C5-Capex'!D40 -> 299562774 | D28: ='C5-Capex'!E40 -> 299562774 | E28: ='C5-Capex'!F40 -> 25961306.71 | F28: ='C5-Capex'!G40 -> 40304226.2 | G28: ='C5-Capex'!H40 -> 99854332 | H28: =F28-G28 -> -59550105.8 | I28: =IF(H28=0,"",H28/G28) -> -0.5963697779 | J28: ='C5-Capex'!K40 -> 299562774
A29: Capital transfers recognised | B29: ='C5-Capex'!C70 -> 0 | C29: ='C5-Capex'!D70 -> 76015400 | D29: ='C5-Capex'!E70 -> 76015400 | E29: ='C5-Capex'!F70 -> 19202180.05 | F29: ='C5-Capex'!G70 -> 33466099.54 | G29: ='C5-Capex'!H70 -> 25338488 | H29: 8127611.54 | I29: 0.3207615048 | J29: ='C5-Capex'!K70 -> 76015400
A31: Borrowing | B31: ='C5-Capex'!C72 -> 0 | C31: ='C5-Capex'!D72 -> 0 | D31: ='C5-Capex'!E72 -> 0 | E31: ='C5-Capex'!F72 -> 0 | F31: ='C5-Capex'!G72 -> 0 | G31: ='C5-Capex'!H72 -> 0 | H31: 0 | J31: ='C5-Capex'!K72 -> 0
A32: Internally generated funds | B32: ='C5-Capex'!C73 -> 276.9 | C32: ='C5-Capex'!D73 -> 223547374 | D32: ='C5-Capex'!E73 -> 223547374 | E32: ='C5-Capex'!F73 -> 6759126.66 | F32: ='C5-Capex'!G73 -> 6838126.66 | G32: ='C5-Capex'!H73 -> 74515844 | H32: -67677717.34 | I32: -0.9082325812 | J32: ='C5-Capex'!K73 -> 223547374
A33: Total sources of capital funds | B33: =+B29+B31+B32 -> 276.9 | C33: 299562774 | D33: 299562774 | E33: 25961306.71 | F33: 40304226.2 | G33: 99854332 | H33: -59550105.8 | I33: -0.5963697779 | J33: =+J29+J31+J32 -> 299562774
A35: Financial position
A36: Total current assets | B36: ='C6-FinPos'!C14 -> 707675462.8 | C36: ='C6-FinPos'!D14 -> 709192333 | D36: ='C6-FinPos'!E14 -> 709192333 | F36: ='C6-FinPos'!F14 -> 635375331 | J36: ='C6-FinPos'!G14 -> 709192333
A37: Total non current assets | B37: ='C6-FinPos'!C26 -> 1005315343 | C37: ='C6-FinPos'!D26 -> 1127544927 | D37: ='C6-FinPos'!E26 -> 1127544927 | F37: ='C6-FinPos'!F26 -> 1011226841 | J37: ='C6-FinPos'!G26 -> 1127544927
A38: Total current liabilities | B38: ='C6-FinPos'!C38 -> 301522808.6 | C38: ='C6-FinPos'!D38 -> 103337061 | D38: ='C6-FinPos'!E38 -> 103337061 | F38: ='C6-FinPos'!F38 -> 139519951.4 | J38: ='C6-FinPos'!G38 -> 103337061
A39: Total non current liabilities | B39: ='C6-FinPos'!C44 -> 238138.31 | C39: ='C6-FinPos'!D44 -> 7771737 | D39: ='C6-FinPos'!E44 -> 7771737 | F39: ='C6-FinPos'!F44 -> 238138.31 | J39: ='C6-FinPos'!G44 -> 7771737
A40: Community wealth/Equity | B40: ='C6-FinPos'!C51 -> 1449463957 | C40: ='C6-FinPos'!D51 -> 1425749233 | D40: ='C6-FinPos'!E51 -> 1425749233 | F40: ='C6-FinPos'!F51 -> 1519137293 | J40: ='C6-FinPos'!G51 -> 1425749233
A42: Cash flows
A43: Net cash from (used) operating | B43: ='C7-CFlow'!C18 -> 353252739.3 | C43: ='C7-CFlow'!D18 -> 542397727 | D43: ='C7-CFlow'!E18 -> 542397727 | E43: ='C7-CFlow'!F18 -> 0 | F43: ='C7-CFlow'!G18 -> -40318700.74 | G43: ='C7-CFlow'!H18 -> 180799242.4 | H43: =G43-F43 -> 221117943.1 | I43: =IF(H43=0,"",H43/G43) -> 1.223002598 | J43: ='C7-CFlow'!K18 -> 542397727
A44: Net cash from (used) investing | B44: ='C7-CFlow'!C28 -> 139499723.1 | C44: ='C7-CFlow'!D28 -> -299489064 | D44: ='C7-CFlow'!E28 -> -299489064 | E44: ='C7-CFlow'!F28 -> 0 | F44: ='C7-CFlow'!G28 -> 125157080.5 | G44: ='C7-CFlow'!H28 -> -99829688.08 | H44: =G44-F44 -> -224986768.6 | I44: =IF(H44=0,"",H44/G44) -> 2.253706016 | J44: ='C7-CFlow'!K28 -> -299489064
A45: Net cash from (used) financing | B45: ='C7-CFlow'!C37 -> 0 | C45: ='C7-CFlow'!D37 -> 60970 | D45: ='C7-CFlow'!E37 -> 60970 | E45: ='C7-CFlow'!F37 -> 0 | F45: ='C7-CFlow'!G37 -> -13000 | G45: ='C7-CFlow'!H37 -> 20323.36 | H45: =G45-F45 -> 33323.36 | I45: =IF(H45=0,"",H45/G45) -> 1.639658009 | J45: ='C7-CFlow'!K37 -> 60970
A46: Cash/cash equivalents at the month/year end | B46: ='C7-CFlow'!C41 -> 897179004 | C46: ='C7-CFlow'!D41 -> 593610733 | D46: ='C7-CFlow'!E41 -> 593610733 | E46: ='C7-CFlow'!F41 -> 0 | F46: ='C7-CFlow'!G41 -> 631537680.6 | G46: ='C7-CFlow'!H41 -> 431630977.6 | H46: =G46-F46 -> -199906702.9 | I46: =IF(H46=0,"",H46/G46) -> -0.4631426225 | J46: ='C7-CFlow'!K41 -> 789681933.8
A48: Debtors & creditors analysis | B48: ='SC3'!C3 -> 0-30 Days | C48: ='SC3'!D3 -> 31-60 Days | D48: ='SC3'!E3 -> 61-90 Days | E48: ='SC3'!F3 -> 91-120 Days | F48: ='SC3'!G3 -> 121-150 Dys | G48: ='SC3'!H3 -> 151-180 Dys | H48: ='SC3'!I3 -> 181 Dys-1 Yr | I48: ='SC3'!J3 -> Over 1Yr | J48: Total
A49: =LEFT('SC3'!A4,20) -> Debtors Age Analysis
A50: ='SC3'!A14 -> Total By Income Source | B50: ='SC3'!C14 -> 0 | C50: ='SC3'!D14 -> 0 | D50: ='SC3'!E14 -> 0 | E50: ='SC3'!F14 -> 0 | F50: ='SC3'!G14 -> 0 | G50: ='SC3'!H14 -> 0 | H50: ='SC3'!I14 -> 0 | I50: ='SC3'!J14 -> 0 | J50: ='SC3'!K14 -> 0
A51: =LEFT('SC4'!A5,22) -> Creditors Age Analysis
A52: Total Creditors | B52: ='SC4'!C15 -> 0 | C52: ='SC4'!D15 -> 0 | D52: ='SC4'!E15 -> 0 | E52: ='SC4'!F15 -> 0 | F52: ='SC4'!G15 -> 0 | G52: ='SC4'!H15 -> 0 | H52: ='SC4'!I15 -> 0 | I52: ='SC4'!J15 -> 0 | J52: ='SC4'!K15 -> 0

Sheet C2-FinPerf SC
A1: =muni& " - "&S71A& " - "&date -> LIM355 Lepelle-Nkumpi - Table C2 Monthly Budget Statement - Financial Performance (functional classification) - M04 October
A2: =desc -> Description | B2: =head27 -> Ref | C2: =Head1 -> 2022/23 | D2: =Head2 -> Budget Year 2023/24
C3: =Head5 -> Audited Outcome | D3: =Head6 -> Original Budget | E3: =Head7 -> Adjusted Budget | F3: =Head38 -> Monthly actual | G3: =Head39 -> YearTD actual | H3: =Head40 -> YearTD budget | I3: =Head41 -> YTD variance | J3: =Head41 -> YTD variance | K3: =Head8 -> Full Year Forecast
A4: R thousands | B4: 1 | J4: %
A5: Revenue - Functional
A6: Governance and administration | C6: =SUM(C7:C9) -> 425564071.5 | D6: 645501143 | E6: 645501143 | F6: 11199813.5 | G6: 166478333.2 | H6: 215167000 | I6: =G6-H6 -> -48688666.82 | J6: =IF(I6=0,"",I6/H6) -> -0.2262831513 | K6: =SUM(K7:K9) -> 645501143
A7: Executive and council | C7: ='C2C'!C7 -> 0 | D7: ='C2C'!D7 -> 0 | E7: ='C2C'!E7 -> 0 | F7: ='C2C'!F7 -> 0 | G7: ='C2C'!G7 -> 0 | H7: ='C2C'!H7 -> 0 | I7: 0 | J7: =IF(I7=0,"",I7/H7) ->  | K7: ='C2C'!K7 -> 0
A8: Finance and administration | C8: ='C2C'!C10 -> 425564071.5 | D8: ='C2C'!D10 -> 645501143 | E8: ='C2C'!E10 -> 645501143 | F8: ='C2C'!F10 -> 11199813.5 | G8: ='C2C'!G10 -> 166478333.2 | H8: ='C2C'!H10 -> 215167000 | I8: -48688666.82 | J8: -0.2262831513 | K8: ='C2C'!K10 -> 645501143
A9: Internal audit | C9: ='C2C'!C24 -> 0 | D9: ='C2C'!D24 -> 0 | E9: ='C2C'!E24 -> 0 | F9: ='C2C'!F24 -> 0 | G9: ='C2C'!G24 -> 0 | H9: ='C2C'!H24 -> 0 | I9: 0 | K9: ='C2C'!K24 -> 0
A10: Community and public safety | C10: =SUM(C11:C15) -> 756932.51 | D10: 13069850 | E10: 13069850 | F10: 18550.42 | G10: 70033.86 | H10: 4356608 | I10: -4286574.14 | J10: -0.9839246818 | K10: =SUM(K11:K15) -> 13069850
A11: Community and social services | C11: ='C2C'!C27 -> 70173.83 | D11: ='C2C'!D27 -> 374168 | E11: ='C2C'!E27 -> 374168 | F11: ='C2C'!F27 -> 9130.42 | G11: ='C2C'!G27 -> 40263.86 | H11: ='C2C'!H27 -> 124716 | I11: -84452.14 | J11: -0.6771556176 | K11: ='C2C'!K27 -> 374168
A12: Sport and recreation | C12: ='C2C'!C49 -> 0 | D12: ='C2C'!D49 -> 0 | E12: ='C2C'!E49 -> 0 | F12: ='C2C'!F49 -> 0 | G12: ='C2C'!G49 -> 0 | H12: ='C2C'!H49 -> 0 | I12: 0 | K12: ='C2C'!K49 -> 0
A13: Public safety | C13: ='C2C'!C55 -> 686758.68 | D13: ='C2C'!D55 -> 12695682 | E13: ='C2C'!E55 -> 12695682 | F13: ='C2C'!F55 -> 9420 | G13: ='C2C'!G55 -> 29770 | H13: ='C2C'!H55 -> 4231892 | I13: -4202122 | J13: -0.9929653214 | K13: ='C2C'!K55 -> 12695682
A14: Housing | C14: ='C2C'!C64 -> 0 | D14: ='C2C'!D64 -> 0 | E14: ='C2C'!E64 -> 0 | F14: ='C2C'!F64 -> 0 | G14: ='C2C'!G64 -> 0 | H14: ='C2C'!H64 -> 0 | I14: 0 | K14: ='C2C'!K64 -> 0
A15: Health | C15: ='C2C'!C67 -> 0 | D15: ='C2C'!D67 -> 0 | E15: ='C2C'!E67 -> 0 | F15: ='C2C'!F67 -> 0 | G15: ='C2C'!G67 -> 0 | H15: ='C2C'!H67 -> 0 | I15: 0 | K15: ='C2C'!K67 -> 0
A16: Economic and environmental services | C16: =SUM(C17:C19) -> 51540848.5 | D16: 94635302 | E16: 94635302 | F16: 178701.01 | G16: 20896915.22 | H16: 31545076 | I16: -10648160.78 | J16: -0.337553816 | K16: =SUM(K17:K19) -> 94635302
A17: Planning and development | C17: ='C2C'!C76 -> 45975490.57 | D17: ='C2C'!D76 -> 83936527 | E17: ='C2C'!E76 -> 83936527 | F17: ='C2C'!F76 -> 154092.35 | G17: ='C2C'!G76 -> 17147557.19 | H17: ='C2C'!H76 -> 27978820 | I17: -10831262.81 | J17: -0.387123646 | K17: ='C2C'!K76 -> 83936527
A18: Road transport | C18: ='C2C'!C87 -> 5565357.93 | D18: ='C2C'!D87 -> 10682320 | E18: ='C2C'!E87 -> 10682320 | F18: ='C2C'!F87 -> 24608.66 | G18: ='C2C'!G87 -> 3749358.03 | H18: ='C2C'!H87 -> 3560772 | I18: 188586.03 | J18: 0.05296211889 | K18: ='C2C'!K87 -> 10682320
A19: Environmental protection | C19: ='C2C'!C92 -> 0 | D19: ='C2C'!D92 -> 16455 | E19: ='C2C'!E92 -> 16455 | F19: ='C2C'!F92 -> 0 | G19: ='C2C'!G92 -> 0 | H19: ='C2C'!H92 -> 5484 | I19: -5484 | J19: -1 | K19: ='C2C'!K92 -> 16455
A20: Trading services | C20: =SUM(C21:C24) -> 8173562.62 | D20: =SUM(D21:D24) -> 24851546 | E20: 24851546 | F20: 1352902.36 | G20: 3199291.21 | H20: 8283836 | I20: -5084544.79 | J20: -0.6137910975 | K20: =SUM(K21:K24) -> 24851546
A21: Energy sources | C21: ='C2C'!C100 -> 0 | D21: ='C2C'!D100 -> 14900000 | E21: ='C2C'!E100 -> 14900000 | F21: ='C2C'!F100 -> 0 | G21: ='C2C'!G100 -> 0 | H21: ='C2C'!H100 -> 4966664 | I21: =G21-H21 -> -4966664 | J21: -1 | K21: ='C2C'!K100 -> 14900000
A22: Water management | C22: ='C2C'!C104 -> 0 | D22: ='C2C'!D104 -> 0 | E22: ='C2C'!E104 -> 0 | F22: ='C2C'!F104 -> 0 | G22: ='C2C'!G104 -> 0 | H22: ='C2C'!H104 -> 0 | I22: =G22-H22 -> 0 | K22: ='C2C'!K104 -> 0
A23: Waste water management | C23: ='C2C'!C108 -> 0 | D23: ='C2C'!D108 -> 0 | E23: ='C2C'!E108 -> 0 | F23: ='C2C'!F108 -> 0 | G23: ='C2C'!G108 -> 0 | H23: ='C2C'!H108 -> 0 | I23: =G23-H23 -> 0 | K23: ='C2C'!K108 -> 0
A24: Waste management | C24: ='C2C'!C113 -> 8173562.62 | D24: ='C2C'!D113 -> 9951546 | E24: ='C2C'!E113 -> 9951546 | F24: ='C2C'!F113 -> 1352902.36 | G24: ='C2C'!G113 -> 3199291.21 | H24: ='C2C'!H113 -> 3317172 | I24: =G24-H24 -> -117880.79 | J24: -0.03553653232 | K24: ='C2C'!K113 -> 9951546
A25: Other | B25: 4 | C25: ='C2C'!C118 -> 0 | D25: ='C2C'!D118 -> 0 | E25: ='C2C'!E118 -> 0 | F25: ='C2C'!F118 -> 0 | G25: ='C2C'!G118 -> 0 | H25: ='C2C'!H118 -> 0 | I25: =G25-H25 -> 0 | K25: ='C2C'!K118 -> 0
A26: Total Revenue - Functional | B26: 2 | C26: =C6+C10+C16+C20+C25 -> 486035415.1 | D26: =D6+D10+D16+D20+D25 -> 778057841 | E26: 778057841 | F26: 12749967.29 | G26: 190644573.5 | H26: 259352520 | I26: -68707946.53 | J26: -0.2649210678 | K26: =K6+K10+K16+K20+K25 -> 778057841
A28: Expenditure - Functional
A29: Governance and administration | C29: =SUM(C30:C32) -> 264120937.6 | D29: 313682238 | E29: 313642238 | F29: 16067381.68 | G29: 63253844.44 | H29: 104553364 | I29: =G29-H29 -> -41299519.56 | J29: =IF(I29=0,"",I29/H29) -> -0.3950089981 | K29: =SUM(K30:K32) -> 313642238
A30: Executive and council | C30: ='C2C'!C129 -> 32828999.87 | D30: ='C2C'!D129 -> 42334386 | E30: ='C2C'!E129 -> 42334386 | F30: ='C2C'!F129 -> 3159544.44 | G30: ='C2C'!G129 -> 11004190.11 | H30: ='C2C'!H129 -> 14111528 | I30: -3107337.89 | J30: =IF(I30=0,"",I30/H30) -> -0.2201985419 | K30: ='C2C'!K129 -> 42334386
A31: Finance and administration | C31: ='C2C'!C132 -> 222332941.7 | D31: ='C2C'!D132 -> 259373066 | E31: ='C2C'!E132 -> 259333066 | F31: ='C2C'!F132 -> 12054886.85 | G31: ='C2C'!G132 -> 50130067.95 | H31: ='C2C'!H132 -> 86450208 | I31: -36320140.05 | J31: -0.4201278504 | K31: ='C2C'!K132 -> 259333066
A32: Internal audit | C32: ='C2C'!C146 -> 8958996.04 | D32: ='C2C'!D146 -> 11974786 | E32: ='C2C'!E146 -> 11974786 | F32: ='C2C'!F146 -> 852950.39 | G32: ='C2C'!G146 -> 2119586.38 | H32: ='C2C'!H146 -> 3991628 | I32: -1872041.62 | J32: -0.4689920053 | K32: ='C2C'!K146 -> 11974786
A33: Community and public safety | C33: =SUM(C34:C38) -> 23155111.4 | D33: 34278467 | E33: 34278467 | F33: 1767658.69 | G33: 7141783.88 | H33: 11426280 | I33: -4284496.12 | J33: -0.3749685917 | K33: =SUM(K34:K38) -> 34278467
A34: Community and social services | C34: ='C2C'!C149 -> 10175774.81 | D34: ='C2C'!D149 -> 17231907 | E34: ='C2C'!E149 -> 17231907 | F34: ='C2C'!F149 -> 936870.41 | G34: ='C2C'!G149 -> 3938485.1 | H34: ='C2C'!H149 -> 5744032 | I34: -1805546.9 | J34: -0.3143344083 | K34: ='C2C'!K149 -> 17231907
A35: Sport and recreation | C35: ='C2C'!C171 -> 0 | D35: ='C2C'!D171 -> 0 | E35: ='C2C'!E171 -> 0 | F35: ='C2C'!F171 -> 0 | G35: ='C2C'!G171 -> 0 | H35: ='C2C'!H171 -> 0 | I35: 0 | K35: ='C2C'!K171 -> 0
A36: Public safety | C36: ='C2C'!C177 -> 12979336.59 | D36: ='C2C'!D177 -> 17046560 | E36: ='C2C'!E177 -> 17046560 | F36: ='C2C'!F177 -> 830788.28 | G36: ='C2C'!G177 -> 3203298.78 | H36: ='C2C'!H177 -> 5682248 | I36: -2478949.22 | J36: -0.4362620604 | K36: ='C2C'!K177 -> 17046560
A37: Housing | C37: ='C2C'!C186 -> 0 | D37: ='C2C'!D186 -> 0 | E37: ='C2C'!E186 -> 0 | F37: ='C2C'!F186 -> 0 | G37: ='C2C'!G186 -> 0 | H37: ='C2C'!H186 -> 0 | I37: 0 | K37: ='C2C'!K186 -> 0
A38: Health | C38: ='C2C'!C189 -> 0 | D38: ='C2C'!D189 -> 0 | E38: ='C2C'!E189 -> 0 | F38: ='C2C'!F189 -> 0 | G38: ='C2C'!G189 -> 0 | H38: ='C2C'!H189 -> 0 | I38: 0 | K38: ='C2C'!K189 -> 0
A39: Economic and environmental services | C39: =SUM(C40:C42) -> 50322425.66 | D39: 86905436 | E39: 86945436 | F39: 3545200.79 | G39: 13941799.5 | H39: 28976648 | I39: -15034848.5 | J39: -0.51886086 | K39: =SUM(K40:K42) -> 86945436
A40: Planning and development | C40: ='C2C'!C198 -> 15478813.13 | D40: ='C2C'!D198 -> 17805508 | E40: ='C2C'!E198 -> 17845508 | F40: ='C2C'!F198 -> 759941.71 | G40: ='C2C'!G198 -> 4181735.07 | H40: ='C2C'!H198 -> 5943264 | I40: -1761528.93 | J40: -0.2963908267 | K40: ='C2C'!K198 -> 17845508
A41: Road transport | C41: ='C2C'!C209 -> 33433558.01 | D41: ='C2C'!D209 -> 68124547 | E41: ='C2C'!E209 -> 68124547 | F41: ='C2C'!F209 -> 2731279.78 | G41: ='C2C'!G209 -> 9544461.63 | H41: ='C2C'!H209 -> 22708240 | I41: -13163778.37 | J41: -0.5796917053 | K41: ='C2C'!K209 -> 68124547
A42: Environmental protection | C42: ='C2C'!C214 -> 1410054.52 | D42: ='C2C'!D214 -> 975381 | E42: ='C2C'!E214 -> 975381 | F42: ='C2C'!F214 -> 53979.3 | G42: ='C2C'!G214 -> 215602.8 | H42: ='C2C'!H214 -> 325144 | I42: -109541.2 | J42: -0.3369005733 | K42: ='C2C'!K214 -> 975381
A43: Trading services | C43: =SUM(C44:C47) -> 34767925.77 | D43: =SUM(D44:D47) -> 43312471 | E43: 43312471 | F43: 2287046.06 | G43: 9319220.81 | H43: 14437556 | I43: -5118335.19 | J43: -0.354515348 | K43: =SUM(K44:K47) -> 43312471
A44: Energy sources | C44: ='C2C'!C222 -> 12640736.45 | D44: ='C2C'!D222 -> 13597671 | E44: ='C2C'!E222 -> 13597671 | F44: ='C2C'!F222 -> 565909.35 | G44: ='C2C'!G222 -> 3600351.85 | H44: ='C2C'!H222 -> 4532584 | I44: -932232.15 | J44: -0.2056734415 | K44: ='C2C'!K222 -> 13597671
A45: Water management | C45: ='C2C'!C226 -> 0 | D45: ='C2C'!D226 -> 0 | E45: ='C2C'!E226 -> 0 | F45: ='C2C'!F226 -> 0 | G45: ='C2C'!G226 -> 0 | H45: ='C2C'!H226 -> 0 | I45: 0 | K45: ='C2C'!K226 -> 0
A46: Waste water management | C46: ='C2C'!C230 -> 0 | D46: ='C2C'!D230 -> 0 | E46: ='C2C'!E230 -> 0 | F46: ='C2C'!F230 -> 0 | G46: ='C2C'!G230 -> 0 | H46: ='C2C'!H230 -> 0 | I46: 0 | K46: ='C2C'!K230 -> 0
A47: Waste management | C47: ='C2C'!C235 -> 22127189.32 | D47: ='C2C'!D235 -> 29714800 | E47: ='C2C'!E235 -> 29714800 | F47: ='C2C'!F235 -> 1721136.71 | G47: ='C2C'!G235 -> 5718868.96 | H47: ='C2C'!H235 -> 9904972 | I47: -4186103.04 | J47: -0.4226264385 | K47: ='C2C'!K235 -> 29714800
A48: Other | C48: ='C2C'!C240 -> 0 | D48: ='C2C'!D240 -> 0 | E48: ='C2C'!E240 -> 0 | F48: ='C2C'!F240 -> 0 | G48: ='C2C'!G240 -> 0 | H48: ='C2C'!H240 -> 0 | I48: 0 | K48: ='C2C'!K240 -> 0
A49: Total Expenditure - Functional | B49: 3 | C49: =C29+C33+C39+C43+C48 -> 372366400.4 | D49: =D29+D33+D39+D43+D48 -> 478178612 | E49: 478178612 | F49: 23667287.22 | G49: 93656648.63 | H49: 159393848 | I49: -65737199.37 | J49: -0.4124199283 | K49: =K29+K33+K39+K43+K48 -> 478178612
A50: Surplus/ (Deficit) for the year | C50: =C26-C49 -> 113669014.7 | D50: 299879229 | E50: 299879229 | F50: -10917319.93 | G50: 96987924.84 | H50: 99958672 | I50: =I26-I49 -> -2970747.16 | J50: =IF(I50=0,"",I50/H50) -> -0.02971975418 | K50: =K26-K49 -> 299879229
A51: =head27a -> References
A52: 1. Government Finance Statistics Functions and Sub-functions are standardised to assist the compilation of national and international accounts for comparison purposes
A53: 2. Total Revenue by functional classification must reconcile to Total Operating Revenue shown in the Financial Performance Statement
A54: 3. Total Expenditure by functional classification must reconcile to total operating expenditure shown in 'Financial Performance Statement'
A55: 4. All amounts must be classified under a functional classification (modified GFS). The GFS function 'Other' is only for Abbatoirs, Air Transport, Licensing and Regulation, Markets and Tourism - and if used must be supported by footnotes. Nothing else may be placed under 'Other'. Assign associate share to relevant classification

Sheet C2C
A1: =muni& " - "&S71A& " - "&date -> LIM355 Lepelle-Nkumpi - Table C2 Monthly Budget Statement - Financial Performance (functional classification) - M04 October
A2: =desc -> Description | B2: =head27 -> Ref | C2: =Head1 -> 2022/23 | D2: =Head2 -> Budget Year 2023/24
C3: =Head5 -> Audited Outcome | D3: =Head6 -> Original Budget | E3: =Head7 -> Adjusted Budget | F3: =Head38 -> Monthly actual | G3: =Head39 -> YearTD actual | H3: =Head40 -> YearTD budget | I3: =Head41 -> YTD variance | J3: =Head41 -> YTD variance | K3: =Head8 -> Full Year Forecast
A4: R thousands | B4: 1 | J4: %
A5: Revenue - Functional
A6: Municipal governance and administration | C6: =C7+C10+C24 -> 425564071.5 | D6: 645501143 | E6: 645501143 | F6: 11199813.5 | G6: 166478333.2 | H6: 215167000 | I6: =G6-H6 -> -48688666.82 | J6: =IF(I6=0,"",I6/H6) -> -0.2262831513 | K6: =K7+K10+K24 -> 645501143
A7: Executive and council | C7: =SUM(C8:C9) -> 0 | D7: =SUM(D8:D9) -> 0 | E7: 0 | F7: 0 | G7: 0 | H7: 0 | I7: =G7-H7 -> 0 | J7: =IF(I7=0,"",I7/H7) ->  | K7: 0
A8: Mayor and Council | I8: 0
A9: Municipal Manager, Town Secretary and Chief Executive | I9: 0
A10: Finance and administration | C10: =SUM(C11:C23) -> 425564071.5 | D10: 645501143 | E10: 645501143 | F10: 11199813.5 | G10: 166478333.2 | H10: 215167000 | I10: -48688666.82 | J10: -0.2262831513 | K10: =SUM(K11:K23) -> 645501143
A11: Administrative and Corporate Support | C11: 93426.65 | D11: 197675 | E11: 197675 | F11: 8156.52 | G11: 27930.42 | H11: 65888 | I11: -37957.58 | J11: -0.5760924599 | K11: 197675
A12: Asset Management | C12: 85698.97 | D12: 46472 | E12: 46472 | F12: 0 | G12: 11159.6 | H12: 15488 | I12: -4328.4 | J12: -0.2794679752 | K12: 46472
A13: Finance | C13: 385644771.4 | D13: 604593739 | E13: 604593739 | F13: 7552324.35 | G13: 151882048.4 | H13: 201531228 | I13: -49649179.57 | J13: -0.2463597332 | K13: 604593739
A14: Fleet Management | I14: 0
A15: Human Resources | C15: 189823.96 | D15: 487560 | E15: 487560 | F15: 0 | G15: 15451.57 | H15: 162520 | I15: -147068.43 | J15: -0.9049251169 | K15: 487560
A16: Information Technology | C16: 327097.66 | D16: 239636 | E16: 239636 | F16: 15191.16 | G16: 58938.55 | H16: 79876 | I16: -20937.45 | J16: -0.2621244178 | K16: 239636
A17: Legal Services | I17: 0
A18: Marketing, Customer Relations, Publicity and Media Co-ordination | C18: 0 | D18: 0 | E18: 0 | F18: 0 | G18: 0 | H18: 0 | I18: 0 | K18: 0
A19: Property Services | C19: 39223252.83 | D19: 39862351 | E19: 39862351 | F19: 3624141.47 | G19: 14482804.61 | H19: 13287432 | I19: 1195372.61 | J19: 0.08996265117 | K19: 39862351
A20: Risk Management | I20: 0
A21: Security Services | C21: 0 | D21: 73710 | E21: 73710 | F21: 0 | G21: 0 | H21: 24568 | I21: -24568 | J21: -1 | K21: 73710
A22: Supply Chain Management | C22: 0 | D22: 0 | E22: 0 | F22: 0 | G22: 0 | H22: 0 | I22: 0 | K22: 0
A23: Valuation Service | I23: 0
A24: Internal audit | C24: =SUM(C25:C25) -> 0 | D24: 0 | E24: 0 | F24: 0 | G24: 0 | H24: 0 | I24: 0 | K24: =SUM(K25:K25) -> 0
A25: Governance Function | I25: 0
A26: Community and public safety | C26: =C27+C49+C55+C64+C67 -> 756932.51 | D26: =D27+D49+D55+D64+D67 -> 13069850 | E26: 13069850 | F26: 18550.42 | G26: 70033.86 | H26: 4356608 | I26: -4286574.14 | J26: -0.9839246818 | K26: 13069850
A27: Community and social services | C27: =SUM(C28:C48) -> 70173.83 | D27: 374168 | E27: 374168 | F27: 9130.42 | G27: 40263.86 | H27: 124716 | I27: -84452.14 | J27: -0.6771556176 | K27: =SUM(K28:K48) -> 374168
A28: Aged Care | I28: 0
A29: Agricultural | I29: 0
A30: Animal Care and Diseases | I30: 0
A31: Cemeteries, Funeral Parlours and Crematoriums | I31: 0
A32: Child Care Facilities | I32: 0
A33: Community Halls and Facilities | C33: 70173.83 | D33: 373021 | E33: 373021 | F33: 9130.42 | G33: 40173.86 | H33: 124336 | I33: -84162.14 | J33: -0.6768927744 | K33: 373021
A34: Consumer Protection | I34: 0
A35: Cultural Matters | I35: 0
A36: Disaster Management | C36: 0 | D36: 0 | E36: 0 | F36: 0 | G36: 0 | H36: 0 | I36: 0 | K36: 0
A37: Education | I37: 0
A38: Indigenous and Customary Law | I38: 0
A39: Industrial Promotion | I39: 0
A40: Language Policy | I40: 0
A41: Libraries and Archives | C41: 0 | D41: 1147 | E41: 1147 | F41: 0 | G41: 90 | H41: 380 | I41: -290 | J41: -0.7631578947 | K41: 1147
A42: Literacy Programmes | I42: 0
A43: Media Services | I43: 0
A44: Museums and Art Galleries | I44: 0
A45: Population Development | I45: 0
A46: Provincial Cultural Matters | I46: 0
A47: Theatres | I47: 0
A48: Zoo's | I48: 0
A49: Sport and recreation | C49: =SUM(C50:C54) -> 0 | D49: =SUM(D50:D54) -> 0 | E49: 0 | F49: 0 | G49: 0 | H49: 0 | I49: 0 | K49: 0
A50: Beaches and Jetties | I50: 0
A51: Casinos, Racing, Gambling, Wagering | I51: 0
A52: Community Parks (including Nurseries) | I52: 0
A53: Recreational Facilities | I53: 0
A54: Sports Grounds and Stadiums | I54: 0
A55: Public safety | C55: =SUM(C56:C63) -> 686758.68 | D55: =SUM(D56:D63) -> 12695682 | E55: 12695682 | F55: 9420 | G55: 29770 | H55: 4231892 | I55: -4202122 | J55: -0.9929653214 | K55: 12695682
A56: Civil Defence | I56: 0
A57: Cleansing | I57: 0
A58: Control of Public Nuisances | I58: =G58-H58 -> 0 | J58: =IF(I58=0,"",I58/H58) -> 
A59: Fencing and Fences | I59: 0
A60: Fire Fighting and Protection | I60: 0
A61: Licensing and Control of Animals | I61: =G61-H61 -> 0 | J61: =IF(I61=0,"",I61/H61) -> 
A62: Police Forces, Traffic and Street Parking Control | C62: 649950 | D62: 12690756 | E62: 12690756 | F62: 9420 | G62: 29770 | H62: 4230252 | I62: =G62-H62 -> -4200482 | J62: =IF(I62=0,"",I62/H62) -> -0.9929625942 | K62: 12690756
A63: Pounds | C63: 36808.68 | D63: 4926 | E63: 4926 | F63: 0 | G63: 0 | H63: 1640 | I63: -1640 | J63: -1 | K63: 4926
A64: Housing | C64: =SUM(C65:C66) -> 0 | D64: 0 | E64: 0 | F64: 0 | G64: 0 | H64: 0 | I64: =G64-H64 -> 0 | J64: =IF(I64=0,"",I64/H64) ->  | K64: =SUM(K65:K66) -> 0
A65: Housing | I65: =G65-H65 -> 0 | J65: =IF(I65=0,"",I65/H65) -> 
A66: Informal Settlements | I66: =G66-H66 -> 0 | J66: =IF(I66=0,"",I66/H66) -> 
A67: Health | C67: =SUM(C68:C74) -> 0 | D67: 0 | E67: 0 | F67: 0 | G67: 0 | H67: 0 | I67: 0 | K67: =SUM(K68:K74) -> 0
A68: Ambulance | I68: 0
A69: Health Services | I69: 0
A70: Laboratory Services | I70: =G70-H70 -> 0 | J70: =IF(I70=0,"",I70/H70) -> 
A71: Food Control | I71: =G71-H71 -> 0 | J71: =IF(I71=0,"",I71/H71) -> 
A72: Health Surveillance and Prevention of Communicable Diseases including immunizations | I72: 0
A73: Vector Control | I73: 0
A74: Chemical Safety | I74: 0
A75: Economic and environmental services | C75: =C76+C87+C92 -> 51540848.5 | D75: 94635302 | E75: 94635302 | F75: 178701.01 | G75: 20896915.22 | H75: 31545076 | I75: -10648160.78 | J75: -0.337553816 | K75: =K76+K87+K92 -> 94635302
A76: Planning and development | C76: =SUM(C77:C86) -> 45975490.57 | D76: 83936527 | E76: 83936527 | F76: 154092.35 | G76: 17147557.19 | H76: 27978820 | I76: -10831262.81 | J76: -0.387123646 | K76: =SUM(K77:K86) -> 83936527
A77: Billboards | I77: =G77-H77 -> 0 | J77: =IF(I77=0,"",I77/H77) -> 
A78: Corporate Wide Strategic Planning (IDPs, LEDs) | C78: 0 | D78: 377308 | E78: 377308 | F78: 0 | G78: 0 | H78: 125768 | I78: -125768 | J78: -1 | K78: 377308
A79: Central City Improvement District | I79: 0
A80: Development Facilitation | I80: =G80-H80 -> 0 | J80: =IF(I80=0,"",I80/H80) -> 
A81: Economic Development/Planning | C81: 919900.1 | D81: 7191 | E81: 7191 | F81: 600 | G81: 600 | H81: 2392 | I81: =G81-H81 -> -1792 | J81: =IF(I81=0,"",I81/H81) -> -0.7491638796 | K81: 7191
A82: Regional Planning and Development | I82: =G82-H82 -> 0 | J82: =IF(I82=0,"",I82/H82) -> 
A83: Town Planning, Building Regulations and Enforcement, and City Engineer | C83: 1462520.91 | D83: 19220028 | E83: 19220028 | F83: 43497.55 | G83: 394765.36 | H83: 6406660 | I83: =G83-H83 -> -6011894.64 | J83: =IF(I83=0,"",I83/H83) -> -0.9383820337 | K83: 19220028
A84: Project Management Unit | C84: 43593069.56 | D84: 64332000 | E84: 64332000 | F84: 109994.8 | G84: 16752191.83 | H84: 21444000 | I84: -4691808.17 | J84: -0.2187935166 | K84: 64332000
A85: Provincial Planning | I85: 0
A86: Support to Local Municipalities | I86: 0
A87: Road transport | C87: =SUM(C88:C91) -> 5565357.93 | D87: 10682320 | E87: 10682320 | F87: 24608.66 | G87: 3749358.03 | H87: 3560772 | I87: 188586.03 | J87: 0.05296211889 | K87: =SUM(K88:K91) -> 10682320
A88: Public Transport | I88: 0
A89: Road and Traffic Regulation | C89: 5565014.36 | D89: 10682320 | E89: 10682320 | F89: 24608.66 | G89: 3749358.03 | H89: 3560772 | I89: 188586.03 | J89: 0.05296211889 | K89: 10682320
A90: Roads | C90: 343.57 | D90: 0 | E90: 0 | F90: 0 | G90: 0 | H90: 0 | I90: 0 | K90: 0
A91: Taxi Ranks | I91: 0
A92: Environmental protection | C92: =SUM(C93:C98) -> 0 | D92: =SUM(D93:D98) -> 16455 | E92: 16455 | F92: 0 | G92: 0 | H92: 5484 | I92: -5484 | J92: -1 | K92: 16455
A93: Biodiversity and Landscape | I93: 0
A94: Coastal Protection | I94: 0
A95: Indigenous Forests | I95: =G95-H95 -> 0 | J95: =IF(I95=0,"",I95/H95) -> 
A96: Nature Conservation | I96: =G96-H96 -> 0 | J96: =IF(I96=0,"",I96/H96) -> 
A97: Pollution Control | C97: 0 | D97: 16455 | E97: 16455 | F97: 0 | G97: 0 | H97: 5484 | I97: -5484 | J97: -1 | K97: 16455
A98: Soil Conservation | I98: 0
A99: Trading services | C99: =C100+C104+C108+C113 -> 8173562.62 | D99: =D100+D104+D108+D113 -> 24851546 | E99: 24851546 | F99: 1352902.36 | G99: 3199291.21 | H99: 8283836 | I99: -5084544.79 | J99: -0.6137910975 | K99: =K100+K104+K108+K113 -> 24851546
A100: Energy sources | C100: =SUM(C101:C103) -> 0 | D100: =SUM(D101:D103) -> 14900000 | E100: 14900000 | F100: 0 | G100: 0 | H100: 4966664 | I100: -4966664 | J100: -1 | K100: 14900000
A101: Electricity | C101: 0 | D101: 14900000 | E101: 14900000 | F101: 0 | G101: 0 | H101: 4966664 | I101: -4966664 | J101: -1 | K101: 14900000
A102: Street Lighting and Signal Systems | I102: =G102-H102 -> 0 | J102: =IF(I102=0,"",I102/H102) -> 
A103: Nonelectric Energy | I103: 0
A104: Water management | C104: =SUM(C105:C107) -> 0 | D104: =SUM(D105:D107) -> 0 | E104: 0 | F104: 0 | G104: 0 | H104: 0 | I104: 0 | K104: 0
A105: Water Treatment | I105: 0
A106: Water Distribution | I106: =G106-H106 -> 0 | J106: =IF(I106=0,"",I106/H106) -> 
A107: Water Storage | I107: 0
A108: Waste water management | C108: =SUM(C109:C112) -> 0 | D108: =SUM(D109:D112) -> 0 | E108: 0 | F108: 0 | G108: 0 | H108: 0 | I108: 0 | K108: 0
A109: Public Toilets | I109: 0
A110: Sewerage | I110: 0
A111: Storm Water Management | I111: =G111-H111 -> 0 | J111: =IF(I111=0,"",I111/H111) -> 
A112: Waste Water Treatment | I112: 0
A113: Waste management | C113: =SUM(C114:C117) -> 8173562.62 | D113: 9951546 | E113: 9951546 | F113: 1352902.36 | G113: 3199291.21 | H113: 3317172 | I113: -117880.79 | J113: -0.03553653232 | K113: =SUM(K114:K117) -> 9951546
A114: Recycling | I114: =G114-H114 -> 0 | J114: =IF(I114=0,"",I114/H114) -> 
A115: Solid Waste Disposal (Landfill Sites) | I115: =G115-H115 -> 0 | J115: =IF(I115=0,"",I115/H115) -> 
A116: Solid Waste Removal | C116: 8173562.62 | D116: 9951546 | E116: 9951546 | F116: 1352902.36 | G116: 3199291.21 | H116: 3317172 | I116: -117880.79 | J116: -0.03553653232 | K116: 9951546
A117: Street Cleaning | I117: =G117-H117 -> 0 | J117: =IF(I117=0,"",I117/H117) -> 
A118: Other | C118: =SUM(C119:C124) -> 0 | D118: =SUM(D119:D124) -> 0 | E118: 0 | F118: 0 | G118: 0 | H118: 0 | I118: 0 | K118: 0
A119: Abattoirs | I119: 0
A120: Air Transport | I120: 0
A121: Forestry | I121: =G121-H121 -> 0 | J121: =IF(I121=0,"",I121/H121) -> 
A122: Licensing and Regulation | I122: 0
A123: Markets | I123: 0
A124: Tourism | I124: =G124-H124 -> 0 | J124: =IF(I124=0,"",I124/H124) -> 
A125: ="Total "&A5 -> Total Revenue - Functional | B125: 2 | C125: =C6+C26+C75+C99+C118 -> 486035415.1 | D125: 778057841 | E125: 778057841 | F125: 12749967.29 | G125: 190644573.5 | H125: 259352520 | I125: =G125-H125 -> -68707946.53 | J125: =IF(I125=0,"",I125/H125) -> -0.2649210678 | K125: =K6+K26+K75+K99+K118 -> 778057841
A127: Expenditure - Functional
A128: =A6 -> Municipal governance and administration | C128: =C129+C132+C146 -> 264120937.6 | D128: 313682238 | E128: 313642238 | F128: 16067381.68 | G128: 63253844.44 | H128: 104553364 | I128: =G128-H128 -> -41299519.56 | J128: =IF(I128=0,"",I128/H128) -> -0.3950089981 | K128: =K129+K132+K146 -> 313642238
A129: Executive and council | C129: =SUM(C130:C131) -> 32828999.87 | D129: 42334386 | E129: 42334386 | F129: 3159544.44 | G129: 11004190.11 | H129: 14111528 | I129: -3107337.89 | J129: -0.2201985419 | K129: 42334386
A130: Mayor and Council | C130: 31805293.25 | D130: 40931683 | E130: 40931683 | F130: 3049637.33 | G130: 10559208.67 | H130: 13643952 | I130: -3084743.33 | J130: -0.226088697 | K130: 40931683
A131: Municipal Manager, Town Secretary and Chief Executive | C131: 1023706.62 | D131: 1402703 | E131: 1402703 | F131: 109907.11 | G131: 444981.44 | H131: 467576 | I131: -22594.56 | J131: -0.04832275395 | K131: 1402703
A132: Finance and administration | C132: =SUM(C133:C145) -> 222332941.7 | D132: 259373066 | E132: 259333066 | F132: 12054886.85 | G132: 50130067.95 | H132: 86450208 | I132: -36320140.05 | J132: -0.4201278504 | K132: =SUM(K133:K145) -> 259333066
A133: Administrative and Corporate Support | C133: 29894647.42 | D133: 44603147 | E133: 44603147 | F133: 2602024.61 | G133: 10252429.48 | H133: 14867868 | I133: -4615438.52 | J133: -0.3104304208 | K133: 44603147
A134: Asset Management | C134: 6724052.86 | D134: 8484234 | E134: 8484234 | F134: 2460806.92 | G134: 4377446.25 | H134: 2828108 | I134: 1549338.25 | J134: 0.5478356025 | K134: 8484234
A135: Finance | C135: 115481052.3 | D135: 108229705 | E135: 108229705 | F135: 2255930.38 | G135: 16715149.06 | H135: 36076652 | I135: -19361502.94 | J135: -0.5366768219 | K135: 108229705
A136: Fleet Management | C136: 17281513.68 | D136: 16338057 | E136: 16338057 | F136: 1531228.57 | G136: 6183328.63 | H136: 5446044 | I136: 737284.63 | J136: 0.1353798519 | K136: 16338057
A137: Human Resources | C137: 7744545.53 | D137: 18382494 | E137: 18382494 | F137: 288688.44 | G137: 2876664.69 | H137: 6127552 | I137: -3250887.31 | J137: -0.5305360624 | K137: 18382494
A138: Information Technology | C138: 6742658.59 | D138: 8610651 | E138: 8610651 | F138: 824658.51 | G138: 2745885.91 | H138: 2870256 | I138: -124370.09 | J138: -0.0433306611 | K138: 8610651
A139: Legal Services | C139: 10545305.64 | D139: 11319982 | E139: 11319982 | F139: 111875 | G139: 338747.04 | H139: 3773348 | I139: -3434600.96 | J139: -0.9102263984 | K139: 11319982
A140: Marketing, Customer Relations, Publicity and Media Co-ordination | C140: 2132270.67 | D140: 4523036 | E140: 4523036 | F140: 162161.44 | G140: 653498.76 | H140: 1507716 | I140: -854217.24 | J140: -0.566563756 | K140: 4523036
A141: Property Services | C141: 6840856.49 | D141: 12722927 | E141: 12682927 | F141: 360253.33 | G141: 1495517.39 | H141: 4232992 | I141: -2737474.61 | J141: -0.646699689 | K141: 12682927
A142: Risk Management | C142: 1200099.62 | D142: 4195023 | E142: 4195023 | F142: 70798.27 | G142: 262957 | H142: 1398364 | I142: -1135407 | J142: -0.811953826 | K142: 4195023
A143: Security Services | C143: 16366810.43 | D143: 17602892 | E143: 17602892 | F143: 1301734.09 | G143: 3906492.49 | H143: 5867648 | I143: -1961155.51 | J143: -0.3342319631 | K143: 17602892
A144: Supply Chain Management | C144: 1379128.48 | D144: 4360918 | E144: 4360918 | F144: 84727.29 | G144: 321951.25 | H144: 1453660 | I144: -1131708.75 | J144: -0.7785236919 | K144: 4360918
A145: Valuation Service | I145: 0
A146: Internal audit | C146: =SUM(C147:C147) -> 8958996.04 | D146: 11974786 | E146: 11974786 | F146: 852950.39 | G146: 2119586.38 | H146: 3991628 | I146: -1872041.62 | J146: -0.4689920053 | K146: =SUM(K147:K147) -> 11974786
A147: Governance Function | C147: 8958996.04 | D147: 11974786 | E147: 11974786 | F147: 852950.39 | G147: 2119586.38 | H147: 3991628 | I147: -1872041.62 | J147: -0.4689920053 | K147: 11974786
A148: Community and public safety | C148: =C149+C171+C177+C186+C189 -> 23155111.4 | D148: 34278467 | E148: 34278467 | F148: 1767658.69 | G148: 7141783.88 | H148: 11426280 | I148: -4284496.12 | J148: -0.3749685917 | K148: =K149+K171+K177+K186+K189 -> 34278467
A149: Community and social services | C149: =SUM(C150:C170) -> 10175774.81 | D149: 17231907 | E149: 17231907 | F149: 936870.41 | G149: 3938485.1 | H149: 5744032 | I149: -1805546.9 | J149: -0.3143344083 | K149: =SUM(K150:K170) -> 17231907
A150: Aged Care | I150: 0
A151: Agricultural | I151: 0
A152: Animal Care and Diseases | I152: 0
A153: Cemeteries, Funeral Parlours and Crematoriums | I153: 0
A154: Child Care Facilities | I154: 0
A155: Community Halls and Facilities | C155: 8512187.53 | D155: 14654164 | E155: 14654164 | F155: 746437.6 | G155: 3186328.03 | H155: 4884744 | I155: -1698415.97 | J155: -0.3476980513 | K155: 14654164
A156: Consumer Protection | I156: 0
A157: Cultural Matters | I157: =G157-H157 -> 0 | J157: =IF(I157=0,"",I157/H157) -> 
A158: Disaster Management | C158: 833352.85 | D158: 1205698 | E158: 1205698 | F158: 121246.61 | G158: 467575.16 | H158: 401924 | I158: =G158-H158 -> 65651.16 | J158: =IF(I158=0,"",I158/H158) -> 0.1633422239 | K158: 1205698
A159: Education | I159: =G159-H159 -> 0 | J159: =IF(I159=0,"",I159/H159) -> 
A160: Indigenous and Customary Law | I160: 0
A161: Industrial Promotion | I161: 0
A162: Language Policy | I162: 0
A163: Libraries and Archives | C163: 830234.43 | D163: 1372045 | E163: 1372045 | F163: 69186.2 | G163: 284581.91 | H163: 457364 | I163: -172782.09 | J163: -0.3777780717 | K163: 1372045
A164: Literacy Programmes | I164: 0
A165: Media Services | I165: 0
A166: Museums and Art Galleries | I166: 0
A167: Population Development | I167: 0
A168: Provincial Cultural Matters | I168: 0
A169: Theatres | I169: 0
A170: Zoo's | I170: 0
A171: Sport and recreation | C171: =SUM(C172:C176) -> 0 | D171: 0 | E171: 0 | F171: 0 | G171: 0 | H171: 0 | I171: 0 | K171: 0
A172: Beaches and Jetties | I172: 0
A173: Casinos, Racing, Gambling, Wagering | I173: 0
A174: Community Parks (including Nurseries) | I174: 0
A175: Recreational Facilities | I175: 0
A176: Sports Grounds and Stadiums | I176: 0
A177: Public safety | C177: =SUM(C178:C185) -> 12979336.59 | D177: 17046560 | E177: 17046560 | F177: 830788.28 | G177: 3203298.78 | H177: 5682248 | I177: -2478949.22 | J177: -0.4362620604 | K177: 17046560
A178: Civil Defence | I178: 0
A179: Cleansing | I179: 0
A180: Control of Public Nuisances | I180: =G180-H180 -> 0 | J180: =IF(I180=0,"",I180/H180) -> 
A181: Fencing and Fences | I181: 0
A182: Fire Fighting and Protection | I182: 0
A183: Licensing and Control of Animals | I183: =G183-H183 -> 0 | J183: =IF(I183=0,"",I183/H183) -> 
A184: Police Forces, Traffic and Street Parking Control | C184: 12388136.84 | D184: 15978048 | E184: 15978048 | F184: 802963.8 | G184: 3028522.31 | H184: 5326060 | I184: =G184-H184 -> -2297537.69 | J184: =IF(I184=0,"",I184/H184) -> -0.4313766067 | K184: 15978048
A185: Pounds | C185: 591199.75 | D185: 1068512 | E185: 1068512 | F185: 27824.48 | G185: 174776.47 | H185: 356188 | I185: -181411.53 | J185: -0.5093139859 | K185: 1068512
A186: Housing | C186: =SUM(C187:C188) -> 0 | D186: 0 | E186: 0 | F186: 0 | G186: 0 | H186: 0 | I186: =G186-H186 -> 0 | J186: =IF(I186=0,"",I186/H186) ->  | K186: =SUM(K187:K188) -> 0
A187: Housing | I187: =G187-H187 -> 0 | J187: =IF(I187=0,"",I187/H187) -> 
A188: Informal Settlements | I188: =G188-H188 -> 0 | J188: =IF(I188=0,"",I188/H188) -> 
A189: Health | C189: =SUM(C190:C196) -> 0 | D189: 0 | E189: 0 | F189: 0 | G189: 0 | H189: 0 | I189: 0 | K189: 0
A190: Ambulance | I190: 0
A191: Health Services | I191: 0
A192: =A70 -> Laboratory Services | I192: 0
A193: Food Control | I193: =G193-H193 -> 0 | J193: =IF(I193=0,"",I193/H193) -> 
A194: Health Surveillance and Prevention of Communicable Diseases including immunizations | I194: =G194-H194 -> 0 | J194: =IF(I194=0,"",I194/H194) -> 
A195: Vector Control | I195: 0
A196: Chemical Safety | I196: 0
A197: Economic and environmental services | C197: =C198+C209+C214 -> 50322425.66 | D197: 86905436 | E197: 86945436 | F197: 3545200.79 | G197: 13941799.5 | H197: 28976648 | I197: -15034848.5 | J197: -0.51886086 | K197: =K198+K209+K214 -> 86945436
A198: Planning and development | C198: =SUM(C199:C208) -> 15478813.13 | D198: 17805508 | E198: 17845508 | F198: 759941.71 | G198: 4181735.07 | H198: 5943264 | I198: -1761528.93 | J198: -0.2963908267 | K198: 17845508
A199: Billboards | I199: 0
A200: Corporate Wide Strategic Planning (IDPs, LEDs) | C200: 4042362.91 | D200: 5440923 | E200: 5440923 | F200: 184436.46 | G200: 805376.92 | H200: 1813676 | I200: -1008299.08 | J200: -0.55594223 | K200: 5440923
A201: Central City Improvement District | I201: 0
... 54 more rows

Sheet C3-FinPerf V
A1: =muni& " - "&S71C& " - "&date -> LIM355 Lepelle-Nkumpi - Table C3 Monthly Budget Statement - Financial Performance (revenue and expenditure by municipal vote) - M04 October
A2: =Vdesc -> Vote Description | B2: =head27 -> Ref | C2: =Head1 -> 2022/23 | D2: =Head2 -> Budget Year 2023/24
C3: =Head5 -> Audited Outcome | D3: =Head6 -> Original Budget | E3: =Head7 -> Adjusted Budget | F3: =Head38 -> Monthly actual | G3: =Head39 -> YearTD actual | H3: =Head40 -> YearTD budget | I3: =Head41 -> YTD variance | J3: =Head41 -> YTD variance | K3: =Head8 -> Full Year Forecast
A4: R thousands | J4: %
A5: Revenue by Vote | B5: 1
A6: ='Org structure'!A2 -> Vote 01 - Executive And Council | C6: ='C3C'!C6 -> 0 | D6: ='C3C'!D6 -> 0 | E6: ='C3C'!E6 -> 0 | F6: ='C3C'!F6 -> 0 | G6: ='C3C'!G6 -> 0 | H6: ='C3C'!H6 -> 0 | I6: =G6-H6 -> 0 | J6: =IF(I6=0,"",I6/H6) ->  | K6: ='C3C'!K6 -> 0
A7: ='Org structure'!A3 -> Vote 02 - Municipal Manager | C7: ='C3C'!C11 -> 0 | D7: ='C3C'!D11 -> 0 | E7: ='C3C'!E11 -> 0 | F7: ='C3C'!F11 -> 0 | G7: ='C3C'!G11 -> 0 | H7: ='C3C'!H11 -> 0 | I7: 0 | K7: ='C3C'!K11 -> 0
A8: ='Org structure'!A4 -> Vote 03 - Corporate Services | C8: ='C3C'!C18 -> 519808.85 | D8: ='C3C'!D18 -> 800906 | E8: ='C3C'!E18 -> 800906 | F8: ='C3C'!F18 -> 15191.16 | G8: ='C3C'!G18 -> 74390.12 | H8: ='C3C'!H18 -> 266964 | I8: -192573.88 | J8: -0.7213477473 | K8: ='C3C'!K18 -> 800906
A9: ='Org structure'!A5 -> Vote 04 - Budget And Treasury | C9: ='C3C'!C26 -> 385730470.4 | D9: ='C3C'!D26 -> 604640211 | E9: ='C3C'!E26 -> 604640211 | F9: ='C3C'!F26 -> 7552324.35 | G9: ='C3C'!G26 -> 151893208 | H9: ='C3C'!H26 -> 201546716 | I9: -49653507.97 | J9: -0.2463622775 | K9: ='C3C'!K26 -> 604640211
A10: ='Org structure'!A6 -> Vote 05 - Community Services | C10: ='C3C'!C33 -> 14586048.91 | D10: ='C3C'!D33 -> 33917846 | E10: ='C3C'!E33 -> 33917846 | F10: ='C3C'!F33 -> 1404217.96 | G10: ='C3C'!G33 -> 7046613.52 | H10: ='C3C'!H33 -> 11305924 | I10: -4259310.48 | J10: -0.3767326297 | K10: ='C3C'!K33 -> 33917846
A11: ='Org structure'!A7 -> Vote 06 - Planning And Development | C11: ='C3C'!C44 -> 41605673.84 | D11: ='C3C'!D44 -> 59466878 | E11: ='C3C'!E44 -> 59466878 | F11: ='C3C'!F44 -> 3668239.02 | G11: ='C3C'!G44 -> 14878169.97 | H11: ='C3C'!H44 -> 19822252 | I11: -4944082.03 | J11: -0.249420804 | K11: ='C3C'!K44 -> 59466878
A12: ='Org structure'!A8 -> Vote 07 - Infrastructure Development | C12: ='C3C'!C52 -> 43593413.13 | D12: ='C3C'!D52 -> 79232000 | E12: ='C3C'!E52 -> 79232000 | F12: ='C3C'!F52 -> 109994.8 | G12: ='C3C'!G52 -> 16752191.83 | H12: ='C3C'!H52 -> 26410664 | I12: -9658472.17 | J12: -0.3657034965 | K12: ='C3C'!K52 -> 79232000
A13: ='Org structure'!A9 -> Vote 08 - | C13: ='C3C'!C63 -> 0 | D13: ='C3C'!D63 -> 0 | E13: ='C3C'!E63 -> 0 | F13: ='C3C'!F63 -> 0 | G13: ='C3C'!G63 -> 0 | H13: ='C3C'!H63 -> 0 | I13: =G13-H13 -> 0 | J13: =IF(I13=0,"",I13/H13) ->  | K13: ='C3C'!K63 -> 0
A14: ='Org structure'!A10 -> Vote 09 - | C14: ='C3C'!C64 -> 0 | D14: ='C3C'!D64 -> 0 | E14: ='C3C'!E64 -> 0 | F14: ='C3C'!F64 -> 0 | G14: ='C3C'!G64 -> 0 | H14: ='C3C'!H64 -> 0 | I14: 0 | K14: ='C3C'!K64 -> 0
A15: ='Org structure'!A11 -> Vote 10 - | C15: ='C3C'!C65 -> 0 | D15: ='C3C'!D65 -> 0 | E15: ='C3C'!E65 -> 0 | F15: ='C3C'!F65 -> 0 | G15: ='C3C'!G65 -> 0 | H15: ='C3C'!H65 -> 0 | I15: 0 | K15: ='C3C'!K65 -> 0
A16: ='Org structure'!A12 -> Vote 11 - | C16: ='C3C'!C66 -> 0 | D16: ='C3C'!D66 -> 0 | E16: ='C3C'!E66 -> 0 | F16: ='C3C'!F66 -> 0 | G16: ='C3C'!G66 -> 0 | H16: ='C3C'!H66 -> 0 | I16: 0 | K16: ='C3C'!K66 -> 0
A17: ='Org structure'!A13 -> Vote 12 - | C17: ='C3C'!C67 -> 0 | D17: ='C3C'!D67 -> 0 | E17: ='C3C'!E67 -> 0 | F17: ='C3C'!F67 -> 0 | G17: ='C3C'!G67 -> 0 | H17: ='C3C'!H67 -> 0 | I17: 0 | K17: ='C3C'!K67 -> 0
A18: ='Org structure'!A14 -> Vote 13 - | C18: ='C3C'!C68 -> 0 | D18: ='C3C'!D68 -> 0 | E18: ='C3C'!E68 -> 0 | F18: ='C3C'!F68 -> 0 | G18: ='C3C'!G68 -> 0 | H18: ='C3C'!H68 -> 0 | I18: 0 | K18: ='C3C'!K68 -> 0
A19: ='Org structure'!A15 -> Vote 14 - | C19: ='C3C'!C69 -> 0 | D19: ='C3C'!D69 -> 0 | E19: ='C3C'!E69 -> 0 | F19: ='C3C'!F69 -> 0 | G19: ='C3C'!G69 -> 0 | H19: ='C3C'!H69 -> 0 | I19: 0 | K19: ='C3C'!K69 -> 0
A20: ='Org structure'!A16 -> Vote 15 - Other | C20: ='C3C'!C70 -> 0 | D20: ='C3C'!D70 -> 0 | E20: ='C3C'!E70 -> 0 | F20: ='C3C'!F70 -> 0 | G20: ='C3C'!G70 -> 0 | H20: ='C3C'!H70 -> 0 | I20: 0 | K20: ='C3C'!K70 -> 0
A21: Total Revenue by Vote | B21: 2 | C21: =SUM(C6:C20) -> 486035415.1 | D21: =SUM(D6:D20) -> 778057841 | E21: 778057841 | F21: 12749967.29 | G21: 190644573.5 | H21: 259352520 | I21: -68707946.53 | J21: -0.2649210678 | K21: =SUM(K6:K20) -> 778057841
A23: Expenditure by Vote | B23: 1
A24: ='Org structure'!A2 -> Vote 01 - Executive And Council | C24: ='C3C'!C74 -> 39705424.97 | D24: ='C3C'!D74 -> 57292591 | E24: ='C3C'!E74 -> 57292591 | F24: ='C3C'!F74 -> 4200622.04 | G24: ='C3C'!G74 -> 15256395.24 | H24: ='C3C'!H74 -> 19097648 | I24: =G24-H24 -> -3841252.76 | J24: =IF(I24=0,"",I24/H24) -> -0.2011374783 | K24: ='C3C'!K74 -> 57292591
A25: ='Org structure'!A3 -> Vote 02 - Municipal Manager | C25: ='C3C'!C79 -> 13718420.19 | D25: ='C3C'!D79 -> 23863767 | E25: ='C3C'!E79 -> 23863767 | F25: ='C3C'!F79 -> 1228911.05 | G25: ='C3C'!G79 -> 3653624.54 | H25: ='C3C'!H79 -> 7954708 | I25: -4301083.46 | J25: -0.5406965862 | K25: ='C3C'!K79 -> 23863767
A26: ='Org structure'!A4 -> Vote 03 - Corporate Services | C26: ='C3C'!C86 -> 75136198.54 | D26: ='C3C'!D86 -> 89885845 | E26: ='C3C'!E86 -> 89885845 | F26: ='C3C'!F86 -> 5037890.24 | G26: ='C3C'!G86 -> 19804250.86 | H26: ='C3C'!H86 -> 29962140 | I26: -10157889.14 | J26: -0.3390241531 | K26: ='C3C'!K86 -> 89885845
A27: ='Org structure'!A5 -> Vote 04 - Budget And Treasury | C27: ='C3C'!C94 -> 123584233.6 | D27: ='C3C'!D94 -> 121074857 | E27: ='C3C'!E94 -> 121074857 | F27: ='C3C'!F94 -> 4801464.59 | G27: ='C3C'!G94 -> 21414546.56 | H27: ='C3C'!H94 -> 40358420 | I27: -18943873.44 | J27: -0.4693908592 | K27: ='C3C'!K94 -> 121074857
A28: ='Org structure'!A6 -> Vote 05 - Community Services | C28: ='C3C'!C101 -> 58106662.64 | D28: ='C3C'!D101 -> 79060060 | E28: ='C3C'!E101 -> 79060060 | F28: ='C3C'!F101 -> 4506262.32 | G28: ='C3C'!G101 -> 16973372.52 | H28: ='C3C'!H101 -> 26353580 | I28: -9380207.48 | J28: -0.3559367448 | K28: ='C3C'!K101 -> 79060060
A29: ='Org structure'!A7 -> Vote 06 - Planning And Development | C29: ='C3C'!C112 -> 18068031.44 | D29: ='C3C'!D112 -> 30761383 | E29: ='C3C'!E112 -> 30761383 | F29: ='C3C'!F112 -> 1124725.08 | G29: ='C3C'!G112 -> 5791702.37 | H29: ='C3C'!H112 -> 10253916 | I29: -4462213.63 | J29: -0.4351716583 | K29: ='C3C'!K112 -> 30761383
A30: ='Org structure'!A8 -> Vote 07 - Infrastructure Development | C30: ='C3C'!C120 -> 44047429.03 | D30: ='C3C'!D120 -> 76240109 | E30: ='C3C'!E120 -> 76240109 | F30: ='C3C'!F120 -> 2767411.9 | G30: ='C3C'!G120 -> 10762756.54 | H30: ='C3C'!H120 -> 25413436 | I30: -14650679.46 | J30: -0.5764934525 | K30: ='C3C'!K120 -> 76240109
A31: ='Org structure'!A9 -> Vote 08 - | C31: ='C3C'!C131 -> 0 | D31: ='C3C'!D131 -> 0 | E31: ='C3C'!E131 -> 0 | F31: ='C3C'!F131 -> 0 | G31: ='C3C'!G131 -> 0 | H31: ='C3C'!H131 -> 0 | I31: =G31-H31 -> 0 | J31: =IF(I31=0,"",I31/H31) ->  | K31: ='C3C'!K131 -> 0
A32: ='Org structure'!A10 -> Vote 09 - | C32: ='C3C'!C132 -> 0 | D32: ='C3C'!D132 -> 0 | E32: ='C3C'!E132 -> 0 | F32: ='C3C'!F132 -> 0 | G32: ='C3C'!G132 -> 0 | H32: ='C3C'!H132 -> 0 | I32: 0 | K32: ='C3C'!K132 -> 0
A33: ='Org structure'!A11 -> Vote 10 - | C33: ='C3C'!C133 -> 0 | D33: ='C3C'!D133 -> 0 | E33: ='C3C'!E133 -> 0 | F33: ='C3C'!F133 -> 0 | G33: ='C3C'!G133 -> 0 | H33: ='C3C'!H133 -> 0 | I33: 0 | J33: =IF(I33=0,"",I33/H33) ->  | K33: ='C3C'!K133 -> 0
A34: ='Org structure'!A12 -> Vote 11 - | C34: ='C3C'!C134 -> 0 | D34: ='C3C'!D134 -> 0 | E34: ='C3C'!E134 -> 0 | F34: ='C3C'!F134 -> 0 | G34: ='C3C'!G134 -> 0 | H34: ='C3C'!H134 -> 0 | I34: 0 | J34: =IF(I34=0,"",I34/H34) ->  | K34: ='C3C'!K134 -> 0
A35: ='Org structure'!A13 -> Vote 12 - | C35: ='C3C'!C135 -> 0 | D35: ='C3C'!D135 -> 0 | E35: ='C3C'!E135 -> 0 | F35: ='C3C'!F135 -> 0 | G35: ='C3C'!G135 -> 0 | H35: ='C3C'!H135 -> 0 | I35: 0 | J35: =IF(I35=0,"",I35/H35) ->  | K35: ='C3C'!K135 -> 0
A36: ='Org structure'!A14 -> Vote 13 - | C36: ='C3C'!C136 -> 0 | D36: ='C3C'!D136 -> 0 | E36: ='C3C'!E136 -> 0 | F36: ='C3C'!F136 -> 0 | G36: ='C3C'!G136 -> 0 | H36: ='C3C'!H136 -> 0 | I36: 0 | J36: =IF(I36=0,"",I36/H36) ->  | K36: ='C3C'!K136 -> 0
A37: ='Org structure'!A15 -> Vote 14 - | C37: ='C3C'!C137 -> 0 | D37: ='C3C'!D137 -> 0 | E37: ='C3C'!E137 -> 0 | F37: ='C3C'!F137 -> 0 | G37: ='C3C'!G137 -> 0 | H37: ='C3C'!H137 -> 0 | I37: 0 | J37: =IF(I37=0,"",I37/H37) ->  | K37: ='C3C'!K137 -> 0
A38: ='Org structure'!A16 -> Vote 15 - Other | C38: ='C3C'!C138 -> 0 | D38: ='C3C'!D138 -> 0 | E38: ='C3C'!E138 -> 0 | F38: ='C3C'!F138 -> 0 | G38: ='C3C'!G138 -> 0 | H38: ='C3C'!H138 -> 0 | I38: 0 | K38: ='C3C'!K138 -> 0
A39: Total Expenditure by Vote | B39: 2 | C39: =SUM(C24:C38) -> 372366400.4 | D39: =SUM(D24:D38) -> 478178612 | E39: 478178612 | F39: 23667287.22 | G39: 93656648.63 | H39: 159393848 | I39: -65737199.37 | J39: =IF(I39=0,"",I39/H39) -> -0.4124199283 | K39: =SUM(K24:K38) -> 478178612
A40: =result -> Surplus/ (Deficit) for the year | B40: 2 | C40: =C21-C39 -> 113669014.7 | D40: 299879229 | E40: 299879229 | F40: -10917319.93 | G40: 96987924.84 | H40: 99958672 | I40: =I21-I39 -> -2970747.16 | J40: =IF(I40=0,"",I40/H40) -> -0.02971975418 | K40: =K21-K39 -> 299879229
A41: =head27a -> References
A42: 1. Insert 'Vote'; e.g. Department, if different to standard classification structure
A43: 2. Must reconcile to Monthly Budget Statement - Financial Performance Statement (standard classification)

Sheet C3C
A1: =muni& " - "&S71C& " - "&"A"& " - "&date -> LIM355 Lepelle-Nkumpi - Table C3 Monthly Budget Statement - Financial Performance (revenue and expenditure by municipal vote) - A - M04 October
A2: =Vdesc -> Vote Description | B2: =head27 -> Ref | C2: =Head1 -> 2022/23 | D2: =Head2 -> Budget Year 2023/24 | L2: =Head4 -> 
A3: R thousand | C3: =Head5 -> Audited Outcome | D3: =Head6 -> Original Budget | E3: =Head7 -> Adjusted Budget | F3: =Head38 -> Monthly actual | G3: =Head39 -> YearTD actual | H3: =Head40 -> YearTD budget | I3: =Head41 -> YTD variance | J3: =Head41 -> YTD variance | K3: =Head8 -> Full Year Forecast | L3: =Head12 -> Forecast 2010/11 | M3: =Head13 -> Forecast 2011/12 | N3: =Head14 -> Forecast 2012/13 | O3: =Head15 -> Forecast 2013/14 | P3: =Head16 -> Forecast 2014/15 | Q3: =Head17 -> Forecast 2015/16 | R3: =Head18 -> Forecast 2016/17 | S3: =Head19 -> Forecast 2017/18 | T3: =Head20 -> Forecast 2018/19 | U3: =Head21 -> Forecast 2019/20 | V3: =Head22 -> Forecast 2020/21 | W3: =Head23 -> Forecast 2021/22
J4: %
A5: Revenue by Vote | B5: 1
A6: ='Org structure'!A2 -> Vote 01 - Executive And Council | C6: =SUM(C7:C10) -> 0 | D6: 0 | E6: 0 | F6: 0 | G6: 0 | H6: 0 | I6: =G6-H6 -> 0 | J6: =IF(I6=0,"",I6/H6) ->  | K6: =SUM(K7:K10) -> 0
A7: ='Org structure'!E3 -> 01.1 - Mayor & Councillors | C7: 0 | D7: 0 | E7: 0 | F7: 0 | G7: 0 | H7: 0 | I7: =G7-H7 -> 0 | J7: =IF(I7=0,"",I7/H7) ->  | K7: 0
A8: ='Org structure'!E4 -> 01.2 - Board General Mayor | C8: 0 | D8: 0 | E8: 0 | F8: 0 | G8: 0 | H8: 0 | I8: =G8-H8 -> 0 | J8: =IF(I8=0,"",I8/H8) ->  | K8: 0
A9: ='Org structure'!E5 -> 01.3 - Mayor & Council Support | C9: 0 | D9: 0 | E9: 0 | F9: 0 | G9: 0 | H9: 0 | I9: =G9-H9 -> 0 | J9: =IF(I9=0,"",I9/H9) ->  | K9: 0
A10: ='Org structure'!E6 -> 01.4 - Board General Speaker | C10: 0 | D10: 0 | E10: 0 | F10: 0 | G10: 0 | H10: 0 | I10: =G10-H10 -> 0 | J10: =IF(I10=0,"",I10/H10) ->  | K10: 0
A11: ='Org structure'!A3 -> Vote 02 - Municipal Manager | C11: =SUM(C12:C17) -> 0 | D11: 0 | E11: 0 | F11: 0 | G11: 0 | H11: 0 | I11: 0 | K11: =SUM(K12:K17) -> 0
A12: ='Org structure'!E8 -> 02.1 - Municipal Manager Administration | C12: 0 | D12: 0 | E12: 0 | F12: 0 | G12: 0 | H12: 0 | I12: =G12-H12 -> 0 | J12: =IF(I12=0,"",I12/H12) ->  | K12: 0
A13: ='Org structure'!E9 -> 02.2 - Municipal Manager | C13: 0 | D13: 0 | E13: 0 | F13: 0 | G13: 0 | H13: 0 | I13: 0 | K13: 0
A14: ='Org structure'!E10 -> 02.3 - Municipal Manager Support | C14: 0 | D14: 0 | E14: 0 | F14: 0 | G14: 0 | H14: 0 | I14: 0 | K14: 0
A15: ='Org structure'!E11 -> 02.4 - Internal Audit | C15: 0 | D15: 0 | E15: 0 | F15: 0 | G15: 0 | H15: 0 | I15: 0 | K15: 0
A16: ='Org structure'!E12 -> 02.5 - Communications | C16: 0 | D16: 0 | E16: 0 | F16: 0 | G16: 0 | H16: 0 | I16: 0 | K16: 0
A17: ='Org structure'!E13 -> 02.6 - Risk Management | C17: 0 | D17: 0 | E17: 0 | F17: 0 | G17: 0 | H17: 0 | I17: 0 | K17: 0
A18: ='Org structure'!A4 -> Vote 03 - Corporate Services | C18: =SUM(C19:C25) -> 519808.85 | D18: 800906 | E18: 800906 | F18: 15191.16 | G18: 74390.12 | H18: 266964 | I18: -192573.88 | J18: -0.7213477473 | K18: =SUM(K19:K25) -> 800906
A19: ='Org structure'!E15 -> 03.1 - Executive Manager: Corporate Services | C19: 0 | D19: 0 | E19: 0 | F19: 0 | G19: 0 | H19: 0 | I19: =G19-H19 -> 0 | J19: =IF(I19=0,"",I19/H19) ->  | K19: 0
A20: ='Org structure'!E16 -> 03.2 - Human Resource Management & Development | C20: 189823.96 | D20: 487560 | E20: 487560 | F20: 0 | G20: 15451.57 | H20: 162520 | I20: -147068.43 | J20: -0.9049251169 | K20: 487560
A21: ='Org structure'!E17 -> 03.3 - Information Technology | C21: 327097.66 | D21: 239636 | E21: 239636 | F21: 15191.16 | G21: 58938.55 | H21: 79876 | I21: -20937.45 | J21: -0.2621244178 | K21: 239636
A22: ='Org structure'!E18 -> 03.4 - Legal Services | C22: 0 | D22: 0 | E22: 0 | F22: 0 | G22: 0 | H22: 0 | I22: 0 | K22: 0
A23: ='Org structure'!E19 -> 03.5 - Gen Adm_Sec_Fleet: General Administrat | C23: 2887.23 | D23: 0 | E23: 0 | F23: 0 | G23: 0 | H23: 0 | I23: 0 | K23: 0
A24: ='Org structure'!E20 -> 03.6 - Gen Adm_Sec_Fleet: Security Services | C24: 0 | D24: 73710 | E24: 73710 | F24: 0 | G24: 0 | H24: 24568 | I24: -24568 | J24: -1 | K24: 73710
A25: ='Org structure'!E21 -> 03.7 - Gen Adm_Sec_Fleet: Fleet Management | C25: 0 | D25: 0 | E25: 0 | F25: 0 | G25: 0 | H25: 0 | I25: 0 | K25: 0
A26: ='Org structure'!A5 -> Vote 04 - Budget And Treasury | C26: =SUM(C27:C32) -> 385730470.4 | D26: 604640211 | E26: 604640211 | F26: 7552324.35 | G26: 151893208 | H26: 201546716 | I26: -49653507.97 | J26: -0.2463622775 | K26: =SUM(K27:K32) -> 604640211
A27: ='Org structure'!E23 -> 04.1 - Chief Financial Officer | C27: 0 | D27: 0 | E27: 0 | F27: 0 | G27: 0 | H27: 0 | I27: =G27-H27 -> 0 | J27: =IF(I27=0,"",I27/H27) ->  | K27: 0
A28: ='Org structure'!E24 -> 04.2 - Budget Planning & Management | C28: 302958836.6 | D28: 321605000 | E28: 321605000 | F28: 558590.92 | G28: 133802590.9 | H28: 107201664 | I28: 26600926.89 | J28: 0.248139123 | K28: 321605000
A29: ='Org structure'!E25 -> 04.3 - Expenditure Management | C29: 3595.34 | D29: 0 | E29: 0 | F29: 0 | G29: 188312.5 | H29: 0 | I29: 188312.5 | K29: 0
A30: ='Org structure'!E26 -> 04.4 - Revenue Management | C30: 82682339.46 | D30: 282988739 | E30: 282988739 | F30: 6993733.43 | G30: 17891145.04 | H30: 94329564 | I30: -76438418.96 | J30: -0.81033364 | K30: 282988739
A31: ='Org structure'!E27 -> 04.5 - Asset Management | C31: 85698.97 | D31: 46472 | E31: 46472 | F31: 0 | G31: 11159.6 | H31: 15488 | I31: -4328.4 | J31: -0.2794679752 | K31: 46472
A32: ='Org structure'!E28 -> 04.6 - Supply Chain Management | C32: 0 | D32: 0 | E32: 0 | F32: 0 | G32: 0 | H32: 0 | I32: 0 | K32: 0
A33: ='Org structure'!A6 -> Vote 05 - Community Services | C33: =SUM(C34:C43) -> 14586048.91 | D33: 33917846 | E33: 33917846 | F33: 1404217.96 | G33: 7046613.52 | H33: 11305924 | I33: -4259310.48 | J33: -0.3767326297 | K33: =SUM(K34:K43) -> 33917846
A34: ='Org structure'!E30 -> 05.1 - Executive Manager: Community Services | C34: 0 | D34: 0 | E34: 0 | F34: 0 | G34: 0 | H34: 0 | I34: =G34-H34 -> 0 | J34: =IF(I34=0,"",I34/H34) ->  | K34: 0
A35: ='Org structure'!E31 -> 05.2 - Waste Management Services | C35: 8173562.62 | D35: 9951546 | E35: 9951546 | F35: 1352902.36 | G35: 3199291.21 | H35: 3317172 | I35: -117880.79 | J35: -0.03553653232 | K35: 9951546
A36: ='Org structure'!E32 -> 05.3 - Environmental Management Services | C36: 0 | D36: 16455 | E36: 16455 | F36: 0 | G36: 0 | H36: 5484 | I36: -5484 | J36: -1 | K36: 16455
A37: ='Org structure'!E33 -> 05.4 - Road Traffic & Law Enforce: Traffic Serv | C37: 649950 | D37: 12690756 | E37: 12690756 | F37: 9420 | G37: 29770 | H37: 4230252 | I37: -4200482 | J37: -0.9929625942 | K37: 12690756
A38: ='Org structure'!E34 -> 05.5 - Road Traffic&Law Enforce: Licencing Serv | C38: 5565014.36 | D38: 10682320 | E38: 10682320 | F38: 24608.66 | G38: 3749358.03 | H38: 3560772 | I38: 188586.03 | J38: 0.05296211889 | K38: 10682320
A39: ='Org structure'!E35 -> 05.6 - Road Traffic&Law Enforce: Pound | C39: 36808.68 | D39: 4926 | E39: 4926 | F39: 0 | G39: 0 | H39: 1640 | I39: -1640 | J39: -1 | K39: 4926
A40: ='Org structure'!E36 -> 05.7 - Institutional & Social Dev Management | C40: 90539.42 | D40: 197675 | E40: 197675 | F40: 8156.52 | G40: 27930.42 | H40: 65888 | I40: -37957.58 | J40: -0.5760924599 | K40: 197675
A41: ='Org structure'!E37 -> 05.8 - Libraries And Archives | C41: 0 | D41: 1147 | E41: 1147 | F41: 0 | G41: 90 | H41: 380 | I41: -290 | J41: -0.7631578947 | K41: 1147
A42: ='Org structure'!E38 -> 05.9 - Community Halls And Facilities | C42: 70173.83 | D42: 373021 | E42: 373021 | F42: 9130.42 | G42: 40173.86 | H42: 124336 | I42: -84162.14 | J42: -0.6768927744 | K42: 373021
A43: ='Org structure'!E39 -> 05.10 - Disaster Management | C43: 0 | D43: 0 | E43: 0 | F43: 0 | G43: 0 | H43: 0 | I43: 0 | K43: 0
A44: ='Org structure'!A7 -> Vote 06 - Planning And Development | C44: =SUM(C45:C51) -> 41605673.84 | D44: 59466878 | E44: 59466878 | F44: 3668239.02 | G44: 14878169.97 | H44: 19822252 | I44: -4944082.03 | J44: -0.249420804 | K44: =SUM(K45:K51) -> 59466878
A45: ='Org structure'!E41 -> 06.1 - Executive Manager:Planning & Development | C45: 0 | D45: 0 | E45: 0 | F45: 0 | G45: 0 | H45: 0 | I45: =G45-H45 -> 0 | J45: =IF(I45=0,"",I45/H45) ->  | K45: 0
A46: ='Org structure'!E42 -> 06.2 - Economic Development & Planning | C46: 919900.1 | D46: 7191 | E46: 7191 | F46: 600 | G46: 600 | H46: 2392 | I46: -1792 | J46: -0.7491638796 | K46: 7191
A47: ='Org structure'!E43 -> 06.3 - Development & Town Planning | C47: 1462520.91 | D47: 19220028 | E47: 19220028 | F47: 43497.55 | G47: 394765.36 | H47: 6406660 | I47: -6011894.64 | J47: -0.9383820337 | K47: 19220028
A48: ='Org structure'!E44 -> 06.4 - Property Management & Housing | C48: 39223252.83 | D48: 39862351 | E48: 39862351 | F48: 3624141.47 | G48: 14482804.61 | H48: 13287432 | I48: 1195372.61 | J48: 0.08996265117 | K48: 39862351
A49: ='Org structure'!E45 -> 06.5 - Integrated Development Planning | C49: 0 | D49: 377308 | E49: 377308 | F49: 0 | G49: 0 | H49: 125768 | I49: -125768 | J49: -1 | K49: 377308
A50: ='Org structure'!E46 -> 06.6 - Performance Management | C50: 0 | D50: 0 | E50: 0 | F50: 0 | G50: 0 | H50: 0 | I50: 0 | K50: 0
A51: ='Org structure'!E47 -> 06.7 - Local Economic Development | C51: 0 | D51: 0 | E51: 0 | F51: 0 | G51: 0 | H51: 0 | I51: 0 | K51: 0
A52: ='Org structure'!A8 -> Vote 07 - Infrastructure Development | C52: =SUM(C53:C62) -> 43593413.13 | D52: 79232000 | E52: 79232000 | F52: 109994.8 | G52: 16752191.83 | H52: 26410664 | I52: =G52-H52 -> -9658472.17 | J52: =IF(I52=0,"",I52/H52) -> -0.3657034965 | K52: =SUM(K53:K62) -> 79232000
A53: ='Org structure'!E49 -> 07.1 - Technical Services Administration | C53: 0 | D53: 0 | E53: 0 | F53: 0 | G53: 0 | H53: 0 | I53: =G53-H53 -> 0 | J53: =IF(I53=0,"",I53/H53) ->  | K53: 0
A54: ='Org structure'!E50 -> 07.2 - Roads | C54: 0 | D54: 0 | E54: 0 | F54: 0 | G54: 0 | H54: 0 | I54: 0 | K54: 0
A55: ='Org structure'!E51 -> 07.3 - Workshop | C55: 0 | D55: 0 | E55: 0 | F55: 0 | G55: 0 | H55: 0 | I55: 0 | K55: 0
A56: ='Org structure'!E52 -> 07.4 - Sewerage Network | C56: 0 | D56: 0 | E56: 0 | F56: 0 | G56: 0 | H56: 0 | I56: 0 | K56: 0
A57: ='Org structure'!E53 -> 07.5 - Sewerage Purification | C57: 0 | D57: 0 | E57: 0 | F57: 0 | G57: 0 | H57: 0 | I57: 0 | K57: 0
A58: ='Org structure'!E54 -> 07.6 - Irrigation | C58: 0 | D58: 0 | E58: 0 | F58: 0 | G58: 0 | H58: 0 | I58: 0 | K58: 0
A59: ='Org structure'!E55 -> 07.7 - Executive Manager: Infrastructure Dev | C59: 0 | D59: 0 | E59: 0 | F59: 0 | G59: 0 | H59: 0 | I59: 0 | K59: 0
A60: ='Org structure'!E56 -> 07.8 - Road Construction & Maintenance | C60: 343.57 | D60: 0 | E60: 0 | F60: 0 | G60: 0 | H60: 0 | I60: 0 | K60: 0
A61: ='Org structure'!E57 -> 07.9 - Electrical & Mechanical Works | C61: 0 | D61: 14900000 | E61: 14900000 | F61: 0 | G61: 0 | H61: 4966664 | I61: -4966664 | J61: -1 | K61: 14900000
A62: ='Org structure'!E58 -> 07.10 - Project Management | C62: 43593069.56 | D62: 64332000 | E62: 64332000 | F62: 109994.8 | G62: 16752191.83 | H62: 21444000 | I62: -4691808.17 | J62: -0.2187935166 | K62: 64332000
A63: ='Org structure'!A9 -> Vote 08 - | C63: 0 | D63: 0 | E63: 0 | F63: 0 | G63: 0 | H63: 0 | I63: 0 | K63: 0
A64: ='Org structure'!A10 -> Vote 09 - | C64: 0 | D64: 0 | E64: 0 | F64: 0 | G64: 0 | H64: 0 | I64: 0 | K64: 0
A65: ='Org structure'!A11 -> Vote 10 - | C65: 0 | D65: 0 | E65: 0 | F65: 0 | G65: 0 | H65: 0 | I65: 0 | K65: 0
A66: ='Org structure'!A12 -> Vote 11 - | C66: 0 | D66: 0 | E66: 0 | F66: 0 | G66: 0 | H66: 0 | I66: 0 | K66: 0
A67: ='Org structure'!A13 -> Vote 12 - | C67: 0 | D67: 0 | E67: 0 | F67: 0 | G67: 0 | H67: 0 | I67: 0 | K67: 0
A68: ='Org structure'!A14 -> Vote 13 - | C68: 0 | D68: 0 | E68: 0 | F68: 0 | G68: 0 | H68: 0 | I68: =G68-H68 -> 0 | J68: =IF(I68=0,"",I68/H68) ->  | K68: 0
A69: ='Org structure'!A15 -> Vote 14 - | C69: 0 | D69: 0 | E69: 0 | F69: 0 | G69: 0 | H69: 0 | I69: 0 | K69: 0
A70: ='Org structure'!A16 -> Vote 15 - Other | C70: 0 | D70: 0 | E70: 0 | F70: 0 | G70: 0 | H70: 0 | I70: 0 | K70: 0
A71: Total Revenue by Vote | B71: 2 | C71: =C6+C11+C18+C26+C33+C44+C52+C63+C64+C65+C66+C67+C68+C69+C70 -> 486035415.1 | D71: 778057841 | E71: 778057841 | F71: 12749967.29 | G71: 190644573.5 | H71: 259352520 | I71: -68707946.53 | J71: -0.2649210678 | K71: =K6+K11+K18+K26+K33+K44+K52+K63+K64+K65+K66+K67+K68+K69+K70 -> 778057841
I72: 0
A73: Expenditure by Vote | B73: 1 | I73: 0
A74: ='Org structure'!A2 -> Vote 01 - Executive And Council | C74: =SUM(C75:C78) -> 39705424.97 | D74: 57292591 | E74: 57292591 | F74: 4200622.04 | G74: 15256395.24 | H74: 19097648 | I74: -3841252.76 | J74: -0.2011374783 | K74: =SUM(K75:K78) -> 57292591
A75: ='Org structure'!E3 -> 01.1 - Mayor & Councillors | C75: 31805293.25 | D75: 40931683 | E75: 40931683 | F75: 3049637.33 | G75: 10559208.67 | H75: 13643952 | I75: =G75-H75 -> -3084743.33 | J75: =IF(I75=0,"",I75/H75) -> -0.226088697 | K75: 40931683
A76: ='Org structure'!E4 -> 01.2 - Board General Mayor | C76: 0 | D76: 0 | E76: 0 | F76: 0 | G76: 0 | H76: 0 | I76: =G76-H76 -> 0 | J76: =IF(I76=0,"",I76/H76) ->  | K76: 0
A77: ='Org structure'!E5 -> 01.3 - Mayor & Council Support | C77: 7900131.72 | D77: 16360908 | E77: 16360908 | F77: 1150984.71 | G77: 4697186.57 | H77: 5453696 | I77: =G77-H77 -> -756509.43 | J77: =IF(I77=0,"",I77/H77) -> -0.138714998 | K77: 16360908
A78: ='Org structure'!E6 -> 01.4 - Board General Speaker | C78: 0 | D78: 0 | E78: 0 | F78: 0 | G78: 0 | H78: 0 | I78: =G78-H78 -> 0 | J78: =IF(I78=0,"",I78/H78) ->  | K78: 0
A79: ='Org structure'!A3 -> Vote 02 - Municipal Manager | C79: =SUM(C80:C85) -> 13718420.19 | D79: 23863767 | E79: 23863767 | F79: 1228911.05 | G79: 3653624.54 | H79: 7954708 | I79: -4301083.46 | J79: -0.5406965862 | K79: =SUM(K80:K85) -> 23863767
A80: ='Org structure'!E8 -> 02.1 - Municipal Manager Administration | C80: 0 | D80: 0 | E80: 0 | F80: 0 | G80: 0 | H80: 0 | I80: =G80-H80 -> 0 | J80: =IF(I80=0,"",I80/H80) ->  | K80: 0
A81: ='Org structure'!E9 -> 02.2 - Municipal Manager | C81: 1023706.62 | D81: 1402703 | E81: 1402703 | F81: 109907.11 | G81: 444981.44 | H81: 467576 | I81: -22594.56 | J81: -0.04832275395 | K81: 1402703
A82: ='Org structure'!E10 -> 02.3 - Municipal Manager Support | C82: 403347.24 | D82: 1768219 | E82: 1768219 | F82: 33093.84 | G82: 172600.96 | H82: 589424 | I82: -416823.04 | J82: -0.7071701186 | K82: 1768219
A83: ='Org structure'!E11 -> 02.4 - Internal Audit | C83: 8958996.04 | D83: 11974786 | E83: 11974786 | F83: 852950.39 | G83: 2119586.38 | H83: 3991628 | I83: -1872041.62 | J83: -0.4689920053 | K83: 11974786
A84: ='Org structure'!E12 -> 02.5 - Communications | C84: 2132270.67 | D84: 4523036 | E84: 4523036 | F84: 162161.44 | G84: 653498.76 | H84: 1507716 | I84: -854217.24 | J84: -0.566563756 | K84: 4523036
A85: ='Org structure'!E13 -> 02.6 - Risk Management | C85: 1200099.62 | D85: 4195023 | E85: 4195023 | F85: 70798.27 | G85: 262957 | H85: 1398364 | I85: -1135407 | J85: -0.811953826 | K85: 4195023
A86: ='Org structure'!A4 -> Vote 03 - Corporate Services | C86: =SUM(C87:C93) -> 75136198.54 | D86: 89885845 | E86: 89885845 | F86: 5037890.24 | G86: 19804250.86 | H86: 29962140 | I86: -10157889.14 | J86: -0.3390241531 | K86: =SUM(K87:K93) -> 89885845
A87: ='Org structure'!E15 -> 03.1 - Executive Manager: Corporate Services | C87: 769420.64 | D87: 1140550 | E87: 1140550 | F87: 0 | G87: 0 | H87: 380184 | I87: =G87-H87 -> -380184 | J87: =IF(I87=0,"",I87/H87) -> -1 | K87: 1140550
A88: ='Org structure'!E16 -> 03.2 - Human Resource Management & Development | C88: 7744545.53 | D88: 18382494 | E88: 18382494 | F88: 288688.44 | G88: 2876664.69 | H88: 6127552 | I88: -3250887.31 | J88: -0.5305360624 | K88: 18382494
A89: ='Org structure'!E17 -> 03.3 - Information Technology | C89: 6742658.59 | D89: 8610651 | E89: 8610651 | F89: 824658.51 | G89: 2745885.91 | H89: 2870256 | I89: -124370.09 | J89: -0.0433306611 | K89: 8610651
A90: ='Org structure'!E18 -> 03.4 - Legal Services | C90: 10545305.64 | D90: 11319982 | E90: 11319982 | F90: 111875 | G90: 338747.04 | H90: 3773348 | I90: -3434600.96 | J90: -0.9102263984 | K90: 11319982
A91: ='Org structure'!E19 -> 03.5 - Gen Adm_Sec_Fleet: General Administrat | C91: 15685944.03 | D91: 16491219 | E91: 16491219 | F91: 979705.63 | G91: 3753132.1 | H91: 5497108 | I91: -1743975.9 | J91: -0.3172533448 | K91: 16491219
A92: ='Org structure'!E20 -> 03.6 - Gen Adm_Sec_Fleet: Security Services | C92: 16366810.43 | D92: 17602892 | E92: 17602892 | F92: 1301734.09 | G92: 3906492.49 | H92: 5867648 | I92: -1961155.51 | J92: -0.3342319631 | K92: 17602892
A93: ='Org structure'!E21 -> 03.7 - Gen Adm_Sec_Fleet: Fleet Management | C93: 17281513.68 | D93: 16338057 | E93: 16338057 | F93: 1531228.57 | G93: 6183328.63 | H93: 5446044 | I93: 737284.63 | J93: 0.1353798519 | K93: 16338057
A94: ='Org structure'!A5 -> Vote 04 - Budget And Treasury | C94: =SUM(C95:C100) -> 123584233.6 | D94: 121074857 | E94: 121074857 | F94: 4801464.59 | G94: 21414546.56 | H94: 40358420 | I94: =G94-H94 -> -18943873.44 | J94: =IF(I94=0,"",I94/H94) -> -0.4693908592 | K94: =SUM(K95:K100) -> 121074857
A95: ='Org structure'!E23 -> 04.1 - Chief Financial Officer | C95: 743902.5 | D95: 1133158 | E95: 1133158 | F95: 0 | G95: 0 | H95: 377724 | I95: =G95-H95 -> -377724 | J95: =IF(I95=0,"",I95/H95) -> -1 | K95: 1133158
A96: ='Org structure'!E24 -> 04.2 - Budget Planning & Management | C96: 14473990.85 | D96: 21682576 | E96: 21682576 | F96: 1253724.39 | G96: 4661889.34 | H96: 7227552 | I96: -2565662.66 | J96: -0.3549836321 | K96: 21682576
A97: ='Org structure'!E25 -> 04.3 - Expenditure Management | C97: 4785553.81 | D97: 4318514 | E97: 4318514 | F97: 304831.69 | G97: 1249221.38 | H97: 1439524 | I97: -190302.62 | J97: -0.1321982961 | K97: 4318514
A98: ='Org structure'!E26 -> 04.4 - Revenue Management | C98: 95477605.13 | D98: 81095457 | E98: 81095457 | F98: 697374.3 | G98: 10804038.34 | H98: 27031852 | I98: -16227813.66 | J98: -0.6003219335 | K98: 81095457
A99: ='Org structure'!E27 -> 04.5 - Asset Management | C99: 6724052.86 | D99: 8484234 | E99: 8484234 | F99: 2460806.92 | G99: 4377446.25 | H99: 2828108 | I99: 1549338.25 | J99: 0.5478356025 | K99: 8484234
A100: ='Org structure'!E28 -> 04.6 - Supply Chain Management | C100: 1379128.48 | D100: 4360918 | E100: 4360918 | F100: 84727.29 | G100: 321951.25 | H100: 1453660 | I100: -1131708.75 | J100: -0.7785236919 | K100: 4360918
A101: ='Org structure'!A6 -> Vote 05 - Community Services | C101: =SUM(C102:C111) -> 58106662.64 | D101: 79060060 | E101: 79060060 | F101: 4506262.32 | G101: 16973372.52 | H101: 26353580 | I101: -9380207.48 | J101: -0.3559367448 | K101: =SUM(K102:K111) -> 79060060
A102: ='Org structure'!E30 -> 05.1 - Executive Manager: Community Services | C102: 0 | D102: 1140550 | E102: 1140550 | F102: 0 | G102: 0 | H102: 380184 | I102: =G102-H102 -> -380184 | J102: =IF(I102=0,"",I102/H102) -> -1 | K102: 1140550
A103: ='Org structure'!E31 -> 05.2 - Waste Management Services | C103: 22127189.32 | D103: 29714800 | E103: 29714800 | F103: 1721136.71 | G103: 5718868.96 | H103: 9904972 | I103: -4186103.04 | J103: -0.4226264385 | K103: 29714800
A104: ='Org structure'!E32 -> 05.3 - Environmental Management Services | C104: 1410054.52 | D104: 975381 | E104: 975381 | F104: 53979.3 | G104: 215602.8 | H104: 325144 | I104: -109541.2 | J104: -0.3369005733 | K104: 975381
A105: ='Org structure'!E33 -> 05.4 - Road Traffic & Law Enforce: Traffic Serv | C105: 12388136.84 | D105: 15978048 | E105: 15978048 | F105: 802963.8 | G105: 3028522.31 | H105: 5326060 | I105: -2297537.69 | J105: -0.4313766067 | K105: 15978048
A106: ='Org structure'!E34 -> 05.5 - Road Traffic&Law Enforce: Licencing Serv | C106: 7802708.58 | D106: 9839259 | E106: 9839259 | F106: 639772.03 | G106: 2730741.35 | H106: 3279780 | I106: -549038.65 | J106: -0.1674010604 | K106: 9839259
A107: ='Org structure'!E35 -> 05.6 - Road Traffic&Law Enforce: Pound | C107: 591199.75 | D107: 1068512 | E107: 1068512 | F107: 27824.48 | G107: 174776.47 | H107: 356188 | I107: -181411.53 | J107: -0.5093139859 | K107: 1068512
A108: ='Org structure'!E36 -> 05.7 - Institutional & Social Dev Management | C108: 3611598.82 | D108: 3111603 | E108: 3111603 | F108: 323715.59 | G108: 1166375.53 | H108: 1037220 | I108: 129155.53 | J108: 0.1245208635 | K108: 3111603
A109: ='Org structure'!E37 -> 05.8 - Libraries And Archives | C109: 830234.43 | D109: 1372045 | E109: 1372045 | F109: 69186.2 | G109: 284581.91 | H109: 457364 | I109: -172782.09 | J109: -0.3777780717 | K109: 1372045
A110: ='Org structure'!E38 -> 05.9 - Community Halls And Facilities | C110: 8512187.53 | D110: 14654164 | E110: 14654164 | F110: 746437.6 | G110: 3186328.03 | H110: 4884744 | I110: -1698415.97 | J110: -0.3476980513 | K110: 14654164
A111: ='Org structure'!E39 -> 05.10 - Disaster Management | C111: 833352.85 | D111: 1205698 | E111: 1205698 | F111: 121246.61 | G111: 467575.16 | H111: 401924 | I111: 65651.16 | J111: 0.1633422239 | K111: 1205698
A112: ='Org structure'!A7 -> Vote 06 - Planning And Development | C112: =SUM(C113:C119) -> 18068031.44 | D112: 30761383 | E112: 30761383 | F112: 1124725.08 | G112: 5791702.37 | H112: 10253916 | I112: -4462213.63 | J112: -0.4351716583 | K112: =SUM(K113:K119) -> 30761383
A113: ='Org structure'!E41 -> 06.1 - Executive Manager:Planning & Development | C113: 125890.27 | D113: 1219525 | E113: 1219525 | F113: 0 | G113: 0 | H113: 406512 | I113: =G113-H113 -> -406512 | J113: =IF(I113=0,"",I113/H113) -> -1 | K113: 1219525
A114: ='Org structure'!E42 -> 06.2 - Economic Development & Planning | C114: 2634516.74 | D114: 4285320 | E114: 4285320 | F114: 218166.22 | G114: 918096.7 | H114: 1428468 | I114: -510371.3 | J114: -0.3572857775 | K114: 4285320
A115: ='Org structure'!E43 -> 06.3 - Development & Town Planning | C115: 3026090.33 | D115: 4862665 | E115: 4902665 | F115: 247344.23 | G115: 2109577.04 | H115: 1628912 | I115: 480665.04 | J115: 0.2950834913 | K115: 4902665
A116: ='Org structure'!E44 -> 06.4 - Property Management & Housing | C116: 6840856.49 | D116: 12722927 | E116: 12682927 | F116: 360253.33 | G116: 1495517.39 | H116: 4232992 | I116: -2737474.61 | J116: -0.646699689 | K116: 12682927
A117: ='Org structure'!E45 -> 06.5 - Integrated Development Planning | C117: 4042362.91 | D117: 5440923 | E117: 5440923 | F117: 184436.46 | G117: 805376.92 | H117: 1813676 | I117: -1008299.08 | J117: -0.55594223 | K117: 5440923
A118: ='Org structure'!E46 -> 06.6 - Performance Management | C118: 1398314.7 | D118: 2230023 | E118: 2230023 | F118: 114524.84 | G118: 463134.32 | H118: 743356 | I118: -280221.68 | J118: -0.3769683436 | K118: 2230023
A119: ='Org structure'!E47 -> 06.7 - Local Economic Development | C119: 0 | D119: 0 | E119: 0 | F119: 0 | G119: 0 | H119: 0 | I119: 0 | K119: 0
A120: ='Org structure'!A8 -> Vote 07 - Infrastructure Development | C120: =SUM(C121:C130) -> 44047429.03 | D120: 76240109 | E120: 76240109 | F120: 2767411.9 | G120: 10762756.54 | H120: 25413436 | I120: -14650679.46 | J120: -0.5764934525 | K120: =SUM(K121:K130) -> 76240109
A121: ='Org structure'!E49 -> 07.1 - Technical Services Administration | C121: 0 | D121: 0 | E121: 0 | F121: 0 | G121: 0 | H121: 0 | I121: =G121-H121 -> 0 | J121: =IF(I121=0,"",I121/H121) ->  | K121: 0
A122: ='Org structure'!E50 -> 07.2 - Roads | C122: 0 | D122: 0 | E122: 0 | F122: 0 | G122: 0 | H122: 0 | I122: 0 | K122: 0
A123: ='Org structure'!E51 -> 07.3 - Workshop | C123: 0 | D123: 0 | E123: 0 | F123: 0 | G123: 0 | H123: 0 | I123: 0 | K123: 0
A124: ='Org structure'!E52 -> 07.4 - Sewerage Network | C124: 0 | D124: 0 | E124: 0 | F124: 0 | G124: 0 | H124: 0 | I124: 0 | K124: 0
A125: ='Org structure'!E53 -> 07.5 - Sewerage Purification | C125: 0 | D125: 0 | E125: 0 | F125: 0 | G125: 0 | H125: 0 | I125: 0 | K125: 0
A126: ='Org structure'!E54 -> 07.6 - Irrigation | C126: 0 | D126: 0 | E126: 0 | F126: 0 | G126: 0 | H126: 0 | I126: 0 | K126: 0
A127: ='Org structure'!E55 -> 07.7 - Executive Manager: Infrastructure Dev | C127: 0 | D127: 1140550 | E127: 1140550 | F127: 0 | G127: 0 | H127: 380184 | I127: -380184 | J127: -1 | K127: 1140550
A128: ='Org structure'!E56 -> 07.8 - Road Construction & Maintenance | C128: 25630849.43 | D128: 58285288 | E128: 58285288 | F128: 2091507.75 | G128: 6813720.28 | H128: 19428460 | I128: -12614739.72 | J128: -0.6492917977 | K128: 58285288
A129: ='Org structure'!E57 -> 07.9 - Electrical & Mechanical Works | C129: 12640736.45 | D129: 13597671 | E129: 13597671 | F129: 565909.35 | G129: 3600351.85 | H129: 4532584 | I129: -932232.15 | J129: -0.2056734415 | K129: 13597671
A130: ='Org structure'!E58 -> 07.10 - Project Management | C130: 5775843.15 | D130: 3216600 | E130: 3216600 | F130: 109994.8 | G130: 348684.41 | H130: 1072208 | I130: -723523.59 | J130: -0.6747977911 | K130: 3216600
A131: ='Org structure'!A9 -> Vote 08 - | C131: 0 | D131: 0 | E131: 0 | F131: 0 | G131: 0 | H131: 0 | I131: 0 | K131: 0
A132: ='Org structure'!A10 -> Vote 09 - | C132: 0 | D132: 0 | E132: 0 | F132: 0 | G132: 0 | H132: 0 | I132: =G132-H132 -> 0 | J132: =IF(I132=0,"",I132/H132) ->  | K132: 0
A133: ='Org structure'!A11 -> Vote 10 - | C133: 0 | D133: 0 | E133: 0 | F133: 0 | G133: 0 | H133: 0 | I133: 0 | K133: 0
A134: ='Org structure'!A12 -> Vote 11 - | C134: 0 | D134: 0 | E134: 0 | F134: 0 | G134: 0 | H134: 0 | I134: 0 | K134: 0
A135: ='Org structure'!A13 -> Vote 12 - | C135: 0 | D135: 0 | E135: 0 | F135: 0 | G135: 0 | H135: 0 | I135: 0 | K135: 0
A136: ='Org structure'!A14 -> Vote 13 - | C136: 0 | D136: 0 | E136: 0 | F136: 0 | G136: 0 | H136: 0 | I136: 0 | K136: 0
A137: ='Org structure'!A15 -> Vote 14 - | C137: 0 | D137: 0 | E137: 0 | F137: 0 | G137: 0 | H137: 0 | I137: 0 | K137: 0
A138: ='Org structure'!A16 -> Vote 15 - Other | C138: 0 | D138: 0 | E138: 0 | F138: 0 | G138: 0 | H138: 0 | I138: =G138-H138 -> 0 | J138: =IF(I138=0,"",I138/H138) ->  | K138: 0
A139: Total Expenditure by Vote | B139: 2 | C139: =C74+C79+C86+C94+C101+C112+C120+C131+C132+C133+C134+C135+C136+C137+C138 -> 372366400.4 | D139: 478178612 | E139: 478178612 | F139: 23667287.22 | G139: 93656648.63 | H139: 159393848 | I139: -65737199.37 | J139: -0.4124199283 | K139: =K74+K79+K86+K94+K101+K112+K120+K131+K132+K133+K134+K135+K136+K137+K138 -> 478178612
I140: 0 | L140: =#REF!-#REF! ->  | M140: =#REF!-#REF! ->  | N140: =#REF!-#REF! ->  | O140: =#REF!-#REF! ->  | P140: =#REF!-#REF! ->  | Q140: =#REF!-#REF! ->  | R140: =#REF!-#REF! ->  | S140: =#REF!-#REF! ->  | T140: =#REF!-#REF! ->  | U140: =#REF!-#REF! ->  | V140: =#REF!-#REF! ->  | W140: =#REF!-#REF! -> 
A141: =result -> Surplus/ (Deficit) for the year | B141: 2 | C141: =C71-C139 -> 113669014.7 | D141: 299879229 | E141: 299879229 | F141: -10917319.93 | G141: 96987924.84 | H141: 99958672 | I141: -2970747.16 | J141: -0.02971975418 | K141: =K71-K139 -> 299879229
A142: =head27a -> References
A143: 1. Insert 'Vote'; e.g. Department, if different to standard structure
A144: 2. Must reconcile to Financial Performance ('Revenue and Expenditure by Standard Classification' and 'Revenue and Expenditure')
A145: 3. Assign share in 'associate' to relevant Vote
A147: check revenue
A148: check expenditure

Sheet C4-FinPerf RE
A1: =muni& " - "&S71B& " - "&date -> LIM355 Lepelle-Nkumpi - Table C4 Monthly Budget Statement - Financial Performance (revenue and expenditure) - M04 October
A2: =desc -> Description | B2: =head27 -> Ref | C2: =Head1 -> 2022/23 | D2: =Head2 -> Budget Year 2023/24
C3: =Head5 -> Audited Outcome | D3: =Head6 -> Original Budget | E3: =Head7 -> Adjusted Budget | F3: =Head38 -> Monthly actual | G3: =Head39 -> YearTD actual | H3: =Head40 -> YearTD budget | I3: =Head41 -> YTD variance | J3: =Head41 -> YTD variance | K3: =Head8 -> Full Year Forecast
A4: R thousands | J4: %
A5: Revenue
A6: Exchange Revenue
A7: Service charges - Electricity | I7: =G7-H7 -> 0 | J7: =IF(I7=0,"",I7/H7) -> 
A8: Service charges - Water | C8: 343.57 | D8: 0 | E8: 0 | F8: 0 | G8: 0 | H8: 0 | I8: 0 | K8: 0
A9: Service charges - Waste Water Management | C9: 0 | D9: 0 | E9: 0 | F9: 0 | G9: 0 | H9: 0 | I9: 0 | K9: 0
A10: Service charges - Waste management | C10: 6802698.62 | D10: 7500107 | E10: 7500107 | F10: 616282.36 | G10: 2462671.21 | H10: 2500032 | I10: -37360.79 | J10: -0.01494412472 | K10: 7500107
A11: Sale of Goods and Rendering of Services | C11: 407315.12 | D11: 199931548 | E11: 199931548 | F11: 29819.27 | G11: 147515.39 | H11: 66643820 | I11: =G11-H11 -> -66496304.61 | J11: =IF(I11=0,"",I11/H11) -> -0.9977865106 | K11: 199931548
A12: Agency services | C12: 40804913.63 | D12: 47097552 | E12: 47097552 | F12: 24110.66 | G12: 3748860.03 | H12: 15699184 | I12: -11950323.97 | J12: -0.7612066952 | K12: 47097552
A13: Interest | I13: 0
A14: Interest earned from Receivables | C14: 4410929.22 | D14: 4072138 | E14: 4072138 | F14: 399680.77 | G14: 1579672.37 | H14: 1357376 | I14: 222296.37 | J14: 0.1637691914 | K14: 4072138
A15: Interest from Current and Non Current Assets | C15: 25809993.18 | D15: 27556714 | E15: 27556714 | F15: 5176175.35 | G15: 10580351.91 | H15: 9185568 | K15: 27556714
A16: Dividends | C16: 0 | D16: 0 | E16: 0 | F16: 0 | G16: 0 | H16: 0 | I16: 0 | K16: 0
A17: Rent on Land | I17: 0
A18: Rental from Fixed Assets | C18: 397271.49 | D18: 351708 | E18: 351708 | F18: 24321.58 | G18: 99112.41 | H18: 117232 | I18: -18119.59 | J18: -0.1545618091 | K18: 351708
A19: Licence and permits | C19: 0 | D19: 4984 | E19: 4984 | F19: 600 | G19: 600 | H19: 1660 | I19: -1060 | J19: -0.6385542169 | K19: 4984
A20: Operational Revenue | C20: 2874133.3 | D20: 20007982 | E20: 20007982 | F20: 76564.61 | G20: 515995.2 | H20: 6669312 | I20: -6153316.8 | J20: -0.9226314199 | K20: 20007982
A21: Non-Exchange Revenue | I21: 0
A22: Property rates | C22: 38965081.3 | D22: 39459996 | E22: 39459996 | F22: 3603666.69 | G22: 14382008.86 | H22: 13153320 | I22: 1228688.86 | J22: =IF(I22=0,"",I22/H22) -> 0.09341283113 | K22: 39459996
A23: Surcharges and Taxes | I23: 0
A24: Fines, penalties and forfeits | C24: 686758.68 | D24: 12703188 | E24: 12703188 | F24: 9420 | G24: 29770 | H24: 4234392 | I24: -4204622 | K24: 12703188
A25: Licence and permits | C25: 592 | D25: 1720 | E25: 1720 | F25: 498 | G25: 498 | H25: 572 | I25: -74 | K25: 1720
A26: Transfers and subsidies - Operational | C26: 304329700.6 | D26: 339638763 | E26: 339638763 | F26: 1295210.92 | G26: 134539210.9 | H26: 113212908 | I26: 21326302.89 | K26: 339638763
A27: Interest | C27: 16946132.26 | D27: 15325731 | E27: 15325731 | F27: 1383622.28 | G27: 5617802.87 | H27: 5108576 | I27: 509226.87 | K27: 15325731
A28: Fuel Levy | I28: 0
A29: Operational Revenue | I29: 0
A30: Gains on disposal of Assets | C30: 3912033.05 | D30: 73710 | E30: 73710 | F30: 0 | G30: 0 | H30: 24568 | I30: -24568 | K30: 73710
A31: Other Gains | C31: 3595.34 | D31: 0 | E31: 0 | F31: 0 | G31: 188312.5 | H31: 0 | I31: 188312.5 | K31: 0
A32: Discontinued Operations | I32: 0
A33: Total Revenue (excluding capital transfers and contributions) | C33: =SUM(C7:C20)+SUM(C22:C32) -> 446351491.4 | D33: =SUM(D7:D20)+SUM(D22:D32) -> 713725841 | E33: 713725841 | F33: 12639972.49 | G33: 173892381.6 | H33: 237908520 | I33: -64016138.36 | J33: -0.269078797 | K33: =SUM(K7:K20)+SUM(K22:K32) -> 713725841
A34: Expenditure By Type
A35: Employee related costs | C35: 99656346.07 | D35: 142196313 | E35: 142196313 | F35: 8226855.21 | G35: 31897307 | H35: 47399336 | I35: -15502029 | J35: =IF(I35=0,"",I35/H35) -> -0.3270516068 | K35: 142196313
A36: Remuneration of councillors | C36: 23103442.24 | D36: 23603450 | E36: 23603450 | F36: 2267278.48 | G36: 8057248.09 | H36: 7867844 | I36: 189404.09 | J36: 0.02407318828 | K36: 23603450
A37: Bulk purchases - electricity | I37: 0
A38: Inventory consumed | C38: 1892655.88 | D38: 9346042 | E38: 9346042 | F38: 280581.76 | G38: 681761.77 | H38: 3115372 | I38: -2433610.23 | K38: 9346042
A39: Debt impairment | C39: 0 | D39: 0 | E39: 0 | F39: 0 | G39: 0 | H39: 0 | I39: 0 | K39: 0
A40: Depreciation and amortisation | C40: 30575537.34 | D40: 39698037 | E40: 39698037 | F40: 2607895.44 | G40: 9438808.4 | H40: 13232716 | I40: -3793907.6 | J40: -0.2867066444 | K40: 39698037
A41: Interest | C41: 0 | D41: 52650 | E41: 52650 | F41: 0 | G41: 0 | H41: 17552 | I41: -17552 | J41: -1 | K41: 52650
A42: Contracted services | C42: 56854981.94 | D42: 110885238 | E42: 110887338 | F42: 3757581.94 | G42: 13309398.87 | H42: 36962448.7 | I42: -23653049.83 | J42: -0.6399210729 | K42: 110887338
A43: Transfers and subsidies | I43: 0
A44: Irrecoverable debts written off | C44: 95848296.89 | D44: 87043801 | E44: 87043801 | F44: 270169.35 | G44: 9287240.52 | H44: 29014612 | I44: -19727371.48 | K44: 87043801
A45: Operational costs | C45: 58039895.39 | D45: 65353081 | E45: 65350981 | F45: 6256925.04 | G45: 20984883.97 | H45: 21783967.3 | I45: -799083.33 | J45: -0.03668217635 | K45: 65350981
A46: Losses on Disposal of Assets | C46: 5544864.69 | D46: 0 | E46: 0 | F46: 0 | G46: 0.01 | H46: 0 | I46: 0.01 | K46: 0
A47: Other Losses | C47: 850380 | D47: 0 | E47: 0 | F47: 0 | G47: 0 | H47: 0 | I47: 0 | K47: 0
A48: Total Expenditure | C48: =SUM(C35:C47) -> 372366400.4 | D48: =SUM(D35:D47) -> 478178612 | E48: 478178612 | F48: 23667287.22 | G48: 93656648.63 | H48: 159393848 | I48: =G48-H48 -> -65737199.37 | J48: -0.4124199283 | K48: =SUM(K35:K47) -> 478178612
A49: Surplus/(Deficit) | C49: =C33-C48 -> 73985090.94 | D49: 235547229 | E49: 235547229 | F49: -11027314.73 | G49: 80235733.01 | H49: 78514672 | I49: 1721061.01 | J49: 0.02192024708 | K49: =K33-K48 -> 235547229
A50: Transfers and subsidies - capital (monetary allocations) | C50: 39683923.74 | D50: 64332000 | E50: 64332000 | F50: 109994.8 | G50: 16752191.83 | H50: 21444000 | I50: =G50-H50 -> -4691808.17 | J50: -0.2187935166 | K50: 64332000
A51: Transfers and subsidies - capital (in-kind) | I51: =G51-H51 -> 0
A52: Surplus/(Deficit) after capital transfers & contributions | C52: =C49+SUM(C50:C51) -> 113669014.7 | D52: 299879229 | E52: 299879229 | F52: -10917319.93 | G52: 96987924.84 | H52: 99958672 | K52: =K49+SUM(K50:K51) -> 299879229
A53: Income Tax | J53: =IF(I53=0,"",I53/H53) -> 
A54: Surplus/(Deficit) after income tax | C54: =C52-C53 -> 113669014.7 | D54: 299879229 | E54: 299879229 | F54: -10917319.93 | G54: 96987924.84 | H54: 99958672 | K54: =K52-K53 -> 299879229
A55: Share of Surplus/Deficit attributable to Joint Venture
A56: Share of Surplus/Deficit attributable to Minorities
A57: Surplus/(Deficit) attributable to municipality | C57: =SUM(C54:C55) -> 113669014.7 | D57: 299879229 | E57: 299879229 | F57: -10917319.93 | G57: 96987924.84 | H57: 99958672 | K57: =SUM(K54:K55) -> 299879229
A58: Share of Surplus/Deficit attributable to Associate
A59: Intercompany/Parent subsidiary transactions
A60: Surplus/ (Deficit) for the year | C60: =C57+C59 -> 113669014.7 | D60: 299879229 | E60: 299879229 | F60: -10917319.93 | G60: 96987924.84 | H60: 99958672 | K60: =K57+K59 -> 299879229
A61: =head27a -> References
A62: 1. Material variances to be explained on Table SC1
A65: =A33&" including capital transfers/contributions etc" -> Total Revenue (excluding capital transfers and contributions) including capital transfers/contributions etc | C65: =C33+SUM(C50:C51) -> 486035415.1 | D65: 778057841 | E65: 778057841 | F65: 12749967.29 | G65: 190644573.5 | H65: 259352520 | K65: =K33+SUM(K50:K51) -> 778057841

Sheet C5-Capex
A1: =muni& " - "&S71D& " - "&date -> LIM355 Lepelle-Nkumpi - Table C5 Monthly Budget Statement - Capital Expenditure (municipal vote, functional classification and funding) - M04 October
A2: =Vdesc -> Vote Description | B2: =head27 -> Ref | C2: =Head1 -> 2022/23 | D2: =Head2 -> Budget Year 2023/24
C3: =Head5 -> Audited Outcome | D3: =Head6 -> Original Budget | E3: =Head7 -> Adjusted Budget | F3: =Head38 -> Monthly actual | G3: =Head39 -> YearTD actual | H3: =Head40 -> YearTD budget | I3: =Head41 -> YTD variance | J3: =Head41 -> YTD variance | K3: =Head8 -> Full Year Forecast
A4: R thousands | B4: 1 | J4: %
A5: Multi-Year expenditure appropriation | B5: 2
A6: ='Org structure'!A2 -> Vote 01 - Executive And Council | C6: ='C5C'!C7 -> 0 | D6: ='C5C'!D7 -> 0 | E6: ='C5C'!E7 -> 0 | F6: ='C5C'!F7 -> 0 | G6: ='C5C'!G7 -> 0 | H6: ='C5C'!H7 -> 0 | I6: =G6-H6 -> 0 | J6: =IF(I6=0,"",I6/H6) ->  | K6: ='C5C'!K7 -> 0
A7: ='Org structure'!A3 -> Vote 02 - Municipal Manager | C7: ='C5C'!C12 -> 0 | D7: ='C5C'!D12 -> 0 | E7: ='C5C'!E12 -> 0 | F7: ='C5C'!F12 -> 0 | G7: ='C5C'!G12 -> 0 | H7: ='C5C'!H12 -> 0 | I7: 0 | K7: ='C5C'!K12 -> 0
A8: ='Org structure'!A4 -> Vote 03 - Corporate Services | C8: ='C5C'!C19 -> 0 | D8: ='C5C'!D19 -> 0 | E8: ='C5C'!E19 -> 0 | F8: ='C5C'!F19 -> 0 | G8: ='C5C'!G19 -> 0 | H8: ='C5C'!H19 -> 0 | I8: 0 | K8: ='C5C'!K19 -> 0
A9: ='Org structure'!A5 -> Vote 04 - Budget And Treasury | C9: ='C5C'!C27 -> 0 | D9: ='C5C'!D27 -> 0 | E9: ='C5C'!E27 -> 0 | F9: ='C5C'!F27 -> 0 | G9: ='C5C'!G27 -> 0 | H9: ='C5C'!H27 -> 0 | I9: 0 | K9: ='C5C'!K27 -> 0
A10: ='Org structure'!A6 -> Vote 05 - Community Services | C10: ='C5C'!C34 -> 0 | D10: ='C5C'!D34 -> 0 | E10: ='C5C'!E34 -> 0 | F10: ='C5C'!F34 -> 0 | G10: ='C5C'!G34 -> 0 | H10: ='C5C'!H34 -> 0 | I10: 0 | K10: ='C5C'!K34 -> 0
A11: ='Org structure'!A7 -> Vote 06 - Planning And Development | C11: ='C5C'!C45 -> 0 | D11: ='C5C'!D45 -> 0 | E11: ='C5C'!E45 -> 0 | F11: ='C5C'!F45 -> 0 | G11: ='C5C'!G45 -> 0 | H11: ='C5C'!H45 -> 0 | I11: 0 | K11: ='C5C'!K45 -> 0
A12: ='Org structure'!A8 -> Vote 07 - Infrastructure Development | C12: ='C5C'!C53 -> 0 | D12: ='C5C'!D53 -> 0 | E12: ='C5C'!E53 -> 0 | F12: ='C5C'!F53 -> 0 | G12: ='C5C'!G53 -> 0 | H12: ='C5C'!H53 -> 0 | I12: 0 | K12: ='C5C'!K53 -> 0
A13: ='Org structure'!A9 -> Vote 08 - | C13: ='C5C'!C64 -> 0 | D13: ='C5C'!D64 -> 0 | E13: ='C5C'!E64 -> 0 | F13: ='C5C'!F64 -> 0 | G13: ='C5C'!G64 -> 0 | H13: ='C5C'!H64 -> 0 | I13: =G13-H13 -> 0 | J13: =IF(I13=0,"",I13/H13) ->  | K13: ='C5C'!K64 -> 0
A14: ='Org structure'!A10 -> Vote 09 - | C14: ='C5C'!C65 -> 0 | D14: ='C5C'!D65 -> 0 | E14: ='C5C'!E65 -> 0 | F14: ='C5C'!F65 -> 0 | G14: ='C5C'!G65 -> 0 | H14: ='C5C'!H65 -> 0 | I14: 0 | K14: ='C5C'!K65 -> 0
A15: ='Org structure'!A11 -> Vote 10 - | C15: ='C5C'!C66 -> 0 | D15: ='C5C'!D66 -> 0 | E15: ='C5C'!E66 -> 0 | F15: ='C5C'!F66 -> 0 | G15: ='C5C'!G66 -> 0 | H15: ='C5C'!H66 -> 0 | I15: 0 | K15: ='C5C'!K66 -> 0
A16: ='Org structure'!A12 -> Vote 11 - | C16: ='C5C'!C67 -> 0 | D16: ='C5C'!D67 -> 0 | E16: ='C5C'!E67 -> 0 | F16: ='C5C'!F67 -> 0 | G16: ='C5C'!G67 -> 0 | H16: ='C5C'!H67 -> 0 | I16: 0 | K16: ='C5C'!K67 -> 0
A17: ='Org structure'!A13 -> Vote 12 - | C17: ='C5C'!C68 -> 0 | D17: ='C5C'!D68 -> 0 | E17: ='C5C'!E68 -> 0 | F17: ='C5C'!F68 -> 0 | G17: ='C5C'!G68 -> 0 | H17: ='C5C'!H68 -> 0 | I17: 0 | K17: ='C5C'!K68 -> 0
A18: ='Org structure'!A14 -> Vote 13 - | C18: ='C5C'!C69 -> 0 | D18: ='C5C'!D69 -> 0 | E18: ='C5C'!E69 -> 0 | F18: ='C5C'!F69 -> 0 | G18: ='C5C'!G69 -> 0 | H18: ='C5C'!H69 -> 0 | I18: =G18-H18 -> 0 | J18: =IF(I18=0,"",I18/H18) ->  | K18: ='C5C'!K69 -> 0
A19: ='Org structure'!A15 -> Vote 14 - | C19: ='C5C'!C70 -> 0 | D19: ='C5C'!D70 -> 0 | E19: ='C5C'!E70 -> 0 | F19: ='C5C'!F70 -> 0 | G19: ='C5C'!G70 -> 0 | H19: ='C5C'!H70 -> 0 | I19: =G19-H19 -> 0 | J19: =IF(I19=0,"",I19/H19) ->  | K19: ='C5C'!K70 -> 0
A20: ='Org structure'!A16 -> Vote 15 - Other | C20: ='C5C'!C71 -> 0 | D20: ='C5C'!D71 -> 0 | E20: ='C5C'!E71 -> 0 | F20: ='C5C'!F71 -> 0 | G20: ='C5C'!G71 -> 0 | H20: ='C5C'!H71 -> 0 | I20: =G20-H20 -> 0 | J20: =IF(I20=0,"",I20/H20) ->  | K20: ='C5C'!K71 -> 0
A21: Total Capital Multi-year expenditure | B21: 4,7 | C21: =SUM(C6:C20) -> 0 | D21: =SUM(D6:D20) -> 0 | E21: 0 | F21: 0 | G21: 0 | H21: 0 | I21: 0 | J21: =IF(I21=0,"",I21/H21) ->  | K21: =SUM(K6:K20) -> 0
A23: Single Year expenditure appropriation | B23: 2
A24: ='C5C'!A76 -> Vote 01 - Executive And Council | C24: ='C5C'!C76 -> 0 | D24: ='C5C'!D76 -> 0 | E24: ='C5C'!E76 -> 0 | F24: ='C5C'!F76 -> 0 | G24: ='C5C'!G76 -> 0 | H24: ='C5C'!H76 -> 0 | I24: =G24-H24 -> 0 | J24: =IF(I24=0,"",I24/H24) ->  | K24: ='C5C'!K76 -> 0
A25: ='C5C'!A81 -> Vote 02 - Municipal Manager | C25: ='C5C'!C81 -> 0 | D25: ='C5C'!D81 -> 1800000 | E25: ='C5C'!E81 -> 1800000 | F25: ='C5C'!F81 -> 0 | G25: ='C5C'!G81 -> 0 | H25: ='C5C'!H81 -> 600000 | I25: -600000 | J25: -1 | K25: ='C5C'!K81 -> 1800000
A26: ='C5C'!A88 -> Vote 03 - Corporate Services | C26: ='C5C'!C88 -> 276.9 | D26: ='C5C'!D88 -> 11580920 | E26: ='C5C'!E88 -> 11580920 | F26: ='C5C'!F88 -> 369015 | G26: ='C5C'!G88 -> 448015 | H26: ='C5C'!H88 -> 3860316 | I26: -3412301 | J26: -0.8839434388 | K26: ='C5C'!K88 -> 11580920
A27: ='C5C'!A96 -> Vote 04 - Budget And Treasury | C27: ='C5C'!C96 -> 0 | D27: ='C5C'!D96 -> 0 | E27: ='C5C'!E96 -> 0 | F27: ='C5C'!F96 -> 0 | G27: ='C5C'!G96 -> 0 | H27: ='C5C'!H96 -> 0 | I27: 0 | K27: ='C5C'!K96 -> 0
A28: ='C5C'!A103 -> Vote 05 - Community Services | C28: ='C5C'!C103 -> 0 | D28: ='C5C'!D103 -> 33516600 | E28: ='C5C'!E103 -> 33516600 | F28: ='C5C'!F103 -> 264965.96 | G28: ='C5C'!G103 -> 264965.96 | H28: ='C5C'!H103 -> 11172212 | I28: -10907246.04 | J28: -0.9762834826 | K28: ='C5C'!K103 -> 33516600
A29: ='C5C'!A114 -> Vote 06 - Planning And Development | C29: ='C5C'!C114 -> 0 | D29: ='C5C'!D114 -> 12396000 | E29: ='C5C'!E114 -> 12396000 | F29: ='C5C'!F114 -> 0 | G29: ='C5C'!G114 -> 0 | H29: ='C5C'!H114 -> 4132000 | I29: -4132000 | J29: -1 | K29: ='C5C'!K114 -> 12396000
A30: ='C5C'!A122 -> Vote 07 - Infrastructure Development | C30: ='C5C'!C122 -> 0 | D30: ='C5C'!D122 -> 240269254 | E30: ='C5C'!E122 -> 240269254 | F30: ='C5C'!F122 -> 25327325.75 | G30: ='C5C'!G122 -> 39591245.24 | H30: ='C5C'!H122 -> 80089804 | I30: -40498558.76 | J30: -0.505664351 | K30: ='C5C'!K122 -> 240269254
A31: ='Org structure'!A9 -> Vote 08 - | C31: ='C5C'!C133 -> 0 | D31: ='C5C'!D133 -> 0 | E31: ='C5C'!E133 -> 0 | F31: ='C5C'!F133 -> 0 | G31: ='C5C'!G133 -> 0 | H31: ='C5C'!H133 -> 0 | I31: ='C5C'!I133 -> 0 | J31: =IF(I31=0,"",I31/H31) ->  | K31: ='C5C'!K133 -> 0
A32: ='Org structure'!A10 -> Vote 09 - | C32: ='C5C'!C134 -> 0 | D32: ='C5C'!D134 -> 0 | E32: ='C5C'!E134 -> 0 | F32: ='C5C'!F134 -> 0 | G32: ='C5C'!G134 -> 0 | H32: ='C5C'!H134 -> 0 | I32: ='C5C'!I134 -> 0 | K32: ='C5C'!K134 -> 0
A33: ='Org structure'!A11 -> Vote 10 - | C33: ='C5C'!C135 -> 0 | D33: ='C5C'!D135 -> 0 | E33: ='C5C'!E135 -> 0 | F33: ='C5C'!F135 -> 0 | G33: ='C5C'!G135 -> 0 | H33: ='C5C'!H135 -> 0 | I33: ='C5C'!I135 -> 0 | K33: ='C5C'!K135 -> 0
A34: ='Org structure'!A12 -> Vote 11 - | C34: ='C5C'!C136 -> 0 | D34: ='C5C'!D136 -> 0 | E34: ='C5C'!E136 -> 0 | F34: ='C5C'!F136 -> 0 | G34: ='C5C'!G136 -> 0 | H34: ='C5C'!H136 -> 0 | I34: ='C5C'!I136 -> 0 | K34: ='C5C'!K136 -> 0
A35: ='Org structure'!A13 -> Vote 12 - | C35: ='C5C'!C137 -> 0 | D35: ='C5C'!D137 -> 0 | E35: ='C5C'!E137 -> 0 | F35: ='C5C'!F137 -> 0 | G35: ='C5C'!G137 -> 0 | H35: ='C5C'!H137 -> 0 | I35: ='C5C'!I137 -> 0 | K35: ='C5C'!K137 -> 0
A36: ='Org structure'!A14 -> Vote 13 - | C36: ='C5C'!C138 -> 0 | D36: ='C5C'!D138 -> 0 | E36: ='C5C'!E138 -> 0 | F36: ='C5C'!F138 -> 0 | G36: ='C5C'!G138 -> 0 | H36: ='C5C'!H138 -> 0 | I36: ='C5C'!I138 -> 0 | K36: ='C5C'!K138 -> 0
A37: ='Org structure'!A15 -> Vote 14 - | C37: ='C5C'!C139 -> 0 | D37: ='C5C'!D139 -> 0 | E37: ='C5C'!E139 -> 0 | F37: ='C5C'!F139 -> 0 | G37: ='C5C'!G139 -> 0 | H37: ='C5C'!H139 -> 0 | I37: ='C5C'!I139 -> 0 | K37: ='C5C'!K139 -> 0
A38: ='Org structure'!A16 -> Vote 15 - Other | C38: ='C5C'!C140 -> 0 | D38: ='C5C'!D140 -> 0 | E38: ='C5C'!E140 -> 0 | F38: ='C5C'!F140 -> 0 | G38: ='C5C'!G140 -> 0 | H38: ='C5C'!H140 -> 0 | I38: ='C5C'!I140 -> 0 | K38: ='C5C'!K140 -> 0
A39: Total Capital single-year expenditure | B39: 4 | C39: =SUM(C24:C38) -> 276.9 | D39: 299562774 | E39: 299562774 | F39: 25961306.71 | G39: 40304226.2 | H39: 99854332 | I39: -59550105.8 | J39: -0.5963697779 | K39: =SUM(K24:K38) -> 299562774
A40: Total Capital Expenditure | C40: =C39+C21 -> 276.9 | D40: 299562774 | E40: 299562774 | F40: 25961306.71 | G40: 40304226.2 | H40: 99854332 | I40: -59550105.8 | J40: =IF(I40=0,"",I40/H40) -> -0.5963697779 | K40: =K39+K21 -> 299562774
A42: Capital Expenditure - Functional Classification
A43: Governance and administration | C43: =SUM(C44:C46) -> 276.9 | D43: 13380920 | E43: 13380920 | F43: 369015 | G43: 448015 | H43: 4460316 | I43: =G43-H43 -> -4012301 | J43: =IF(I43=0,"",I43/H43) -> -0.899555323 | K43: =SUM(K44:K46) -> 13380920
A44: Executive and council | I44: 0 | J44: =IF(I44=0,"",I44/H44) -> 
A45: Finance and administration | C45: 276.9 | D45: 13380920 | E45: 13380920 | F45: 369015 | G45: 448015 | H45: 4460316 | I45: -4012301 | J45: -0.899555323 | K45: 13380920
A46: Internal audit | I46: 0
A47: Community and public safety | C47: =SUM(C48:C52) -> 0 | D47: 18216600 | E47: 18216600 | F47: 264965.96 | G47: 264965.96 | H47: 6072208 | I47: -5807242.04 | J47: -0.9563641496 | K47: =SUM(K48:K52) -> 18216600
A48: Community and social services | C48: 0 | D48: 18216600 | E48: 18216600 | F48: 264965.96 | G48: 264965.96 | H48: 6072208 | I48: -5807242.04 | J48: -0.9563641496 | K48: 18216600
A49: Sport and recreation | I49: 0
A50: Public safety | C50: 0 | D50: 0 | E50: 0 | F50: 0 | G50: 0 | H50: 0 | I50: 0 | K50: 0
A51: Housing | I51: 0
A52: Health | I52: 0
A53: Economic and environmental services | C53: =SUM(C54:C56) -> 0 | D53: 180831254 | E53: 180831254 | F53: 24403388.63 | G53: 38667308.12 | H53: 60277116 | I53: -21609807.88 | J53: -0.3585076612 | K53: =SUM(K54:K56) -> 180831254
A54: Planning and development | C54: 0 | D54: 73511400 | E54: 73511400 | F54: 19202180.05 | G54: 33466099.54 | H54: 24503812 | I54: 8962287.54 | J54: 0.3657507469 | K54: 73511400
A55: Road transport | C55: 0 | D55: 106819854 | E55: 106819854 | F55: 5201208.58 | G55: 5201208.58 | H55: 35606636 | I55: -30405427.42 | J55: -0.8539258643 | K55: 106819854
A56: Environmental protection | C56: 0 | D56: 500000 | E56: 500000 | F56: 0 | G56: 0 | H56: 166668 | I56: -166668 | J56: -1 | K56: 500000
A57: Trading services | C57: =SUM(C58:C61) -> 0 | D57: 87134000 | E57: 87134000 | F57: 923937.12 | G57: 923937.12 | H57: 29044692 | I57: -28120754.88 | J57: -0.9681891232 | K57: =SUM(K58:K61) -> 87134000
A58: Energy sources | C58: 0 | D58: 78334000 | E58: 78334000 | F58: 923937.12 | G58: 923937.12 | H58: 26111356 | I58: -25187418.88 | J58: -0.964615506 | K58: 78334000
A59: Water management | I59: 0
A60: Waste water management | I60: 0
A61: Waste management | C61: 0 | D61: 8800000 | E61: 8800000 | F61: 0 | G61: 0 | H61: 2933336 | I61: -2933336 | J61: -1 | K61: 8800000
A62: Other | I62: 0
A63: Total Capital Expenditure - Functional Classification | B63: 3 | C63: =C43+C47+C53+C57+C62 -> 276.9 | D63: =D43+D47+D53+D57+D62 -> 299562774 | E63: 299562774 | F63: 25961306.71 | G63: 40304226.2 | H63: 99854332 | I63: -59550105.8 | J63: -0.5963697779 | K63: =K43+K47+K53+K57+K62 -> 299562774
A65: Funded by:
A66: National Government | C66: 0 | D66: 76015400 | E66: 76015400 | F66: 19202180.05 | G66: 33466099.54 | H66: 25338488 | I66: =G66-H66 -> 8127611.54 | J66: =IF(I66=0,"",I66/H66) -> 0.3207615048 | K66: 76015400
A67: Provincial Government | C67: 0 | D67: 0 | E67: 0 | F67: 0 | G67: 0 | H67: 0 | I67: 0 | K67: 0
A68: District Municipality | I68: 0
A69: Transfers and subsidies - capital (monetary allocations) (Nat / Prov Departm Agencies, Households, Non-profit Institutions, Private Enterprises, Public Corporatons, Higher Educ Institutions) | I69: 0
A70: Transfers recognised - capital | C70: =SUM(C66:C69) -> 0 | D70: 76015400 | E70: 76015400 | F70: 19202180.05 | G70: 33466099.54 | H70: 25338488 | I70: 8127611.54 | J70: 0.3207615048 | K70: =SUM(K66:K69) -> 76015400
A72: Borrowing | B72: 6 | I72: 0
A73: Internally generated funds | C73: 276.9 | D73: 223547374 | E73: 223547374 | F73: 6759126.66 | G73: 6838126.66 | H73: 74515844 | I73: -67677717.34 | J73: -0.9082325812 | K73: 223547374
A74: Total Capital Funding | C74: =+C70+C72+C73 -> 276.9 | D74: 299562774 | E74: 299562774 | F74: 25961306.71 | G74: 40304226.2 | H74: 99854332 | I74: -59550105.8 | J74: -0.5963697779 | K74: =+K70+K72+K73 -> 299562774
A75: =head27a -> References
A76: 1. Municipalities may choose to appropriate for capital expenditure for three years or for one year (if one year appropriation projected expenditure required for yr2 and yr3).
A77: 2. Include capital component of PPP unitary payment
A78: 3. Capital expenditure by functional classification must reconcile to the total of multi-year and single year appropriations
A79: 4. Include expenditure on investment property, intangible and biological assets
A81: 6. Include finance leases and PPP capital funding component of unitary payment - total borrowing/repayments to reconcile to changes in Table SA17
A82: 7. Total Capital Funding must balance with Total Capital Expenditure
A86: check balance | C86: =C40-C74 -> 0 | D86: =D40-D74 -> 0 | E86: 0 | F86: 0 | G86: 0 | H86: 0 | K86: 0

Sheet C5C
A1: =muni& " - "&S71D& " - "&"A"& " - "&date -> LIM355 Lepelle-Nkumpi - Table C5 Monthly Budget Statement - Capital Expenditure (municipal vote, functional classification and funding) - A - M04 October
A2: =Vdesc -> Vote Description | B2: =head27 -> Ref | C2: =Head1 -> 2022/23 | D2: =Head2 -> Budget Year 2023/24 | L2: =Head4 -> 
A3: R thousand | C3: =Head5 -> Audited Outcome | D3: =Head6 -> Original Budget | E3: =Head7 -> Adjusted Budget | F3: =Head38 -> Monthly actual | G3: =Head39 -> YearTD actual | H3: =Head40 -> YearTD budget | I3: =Head41 -> YTD variance | J3: =Head41 -> YTD variance | K3: =Head8 -> Full Year Forecast | L3: =Head12 -> Forecast 2010/11 | M3: =Head13 -> Forecast 2011/12 | N3: =Head14 -> Forecast 2012/13 | O3: =Head15 -> Forecast 2013/14 | P3: =Head16 -> Forecast 2014/15 | Q3: =Head17 -> Forecast 2015/16 | R3: =Head18 -> Forecast 2016/17 | S3: =Head19 -> Forecast 2017/18 | T3: =Head20 -> Forecast 2018/19 | U3: =Head21 -> Forecast 2019/20 | V3: =Head22 -> Forecast 2020/21 | W3: =Head23 -> Forecast 2021/22
J4: %
A5: Capital expenditure - Municipal Vote
A6: Expenditure of multi-year capital appropriation | B6: 1
A7: ='Org structure'!A2 -> Vote 01 - Executive And Council | C7: =SUM(C8:C11) -> 0 | D7: 0 | E7: 0 | F7: 0 | G7: 0 | H7: 0 | I7: =G7-H7 -> 0 | J7: =IF(I7=0,"",I7/H7) ->  | K7: =SUM(K8:K11) -> 0
A8: ='Org structure'!E3 -> 01.1 - Mayor & Councillors | I8: =G8-H8 -> 0 | J8: =IF(I8=0,"",I8/H8) ->  | K8: 0
A9: ='Org structure'!E4 -> 01.2 - Board General Mayor | I9: =G9-H9 -> 0 | J9: =IF(I9=0,"",I9/H9) ->  | K9: 0
A10: ='Org structure'!E5 -> 01.3 - Mayor & Council Support | I10: =G10-H10 -> 0 | J10: =IF(I10=0,"",I10/H10) ->  | K10: 0
A11: ='Org structure'!E6 -> 01.4 - Board General Speaker | I11: =G11-H11 -> 0 | J11: =IF(I11=0,"",I11/H11) ->  | K11: 0
A12: ='Org structure'!A3 -> Vote 02 - Municipal Manager | C12: =SUM(C13:C18) -> 0 | D12: 0 | E12: 0 | F12: 0 | G12: 0 | H12: 0 | I12: 0 | K12: =SUM(K13:K18) -> 0
A13: ='Org structure'!E8 -> 02.1 - Municipal Manager Administration | I13: =G13-H13 -> 0 | J13: =IF(I13=0,"",I13/H13) ->  | K13: 0
A14: ='Org structure'!E9 -> 02.2 - Municipal Manager | I14: 0 | K14: 0
A15: ='Org structure'!E10 -> 02.3 - Municipal Manager Support | I15: 0 | K15: 0
A16: ='Org structure'!E11 -> 02.4 - Internal Audit | I16: 0 | K16: 0
A17: ='Org structure'!E12 -> 02.5 - Communications | I17: 0 | K17: 0
A18: ='Org structure'!E13 -> 02.6 - Risk Management | I18: 0 | K18: 0
A19: ='Org structure'!A4 -> Vote 03 - Corporate Services | C19: =SUM(C20:C26) -> 0 | D19: 0 | E19: 0 | F19: 0 | G19: 0 | H19: 0 | I19: 0 | K19: =SUM(K20:K26) -> 0
A20: ='Org structure'!E15 -> 03.1 - Executive Manager: Corporate Services | I20: =G20-H20 -> 0 | J20: =IF(I20=0,"",I20/H20) ->  | K20: 0
A21: ='Org structure'!E16 -> 03.2 - Human Resource Management & Development | I21: 0 | K21: 0
A22: ='Org structure'!E17 -> 03.3 - Information Technology | I22: 0 | K22: 0
A23: ='Org structure'!E18 -> 03.4 - Legal Services | I23: 0 | K23: 0
A24: ='Org structure'!E19 -> 03.5 - Gen Adm_Sec_Fleet: General Administrat | I24: 0 | K24: 0
A25: ='Org structure'!E20 -> 03.6 - Gen Adm_Sec_Fleet: Security Services | I25: 0 | K25: 0
A26: ='Org structure'!E21 -> 03.7 - Gen Adm_Sec_Fleet: Fleet Management | I26: 0 | K26: 0
A27: ='Org structure'!A5 -> Vote 04 - Budget And Treasury | C27: =SUM(C28:C33) -> 0 | D27: 0 | E27: 0 | F27: 0 | G27: 0 | H27: 0 | I27: 0 | K27: =SUM(K28:K33) -> 0
A28: ='Org structure'!E23 -> 04.1 - Chief Financial Officer | I28: =G28-H28 -> 0 | J28: =IF(I28=0,"",I28/H28) ->  | K28: 0
A29: ='Org structure'!E24 -> 04.2 - Budget Planning & Management | I29: 0 | K29: 0
A30: ='Org structure'!E25 -> 04.3 - Expenditure Management | I30: 0 | K30: 0
A31: ='Org structure'!E26 -> 04.4 - Revenue Management | I31: 0 | K31: 0
A32: ='Org structure'!E27 -> 04.5 - Asset Management | I32: 0 | K32: 0
A33: ='Org structure'!E28 -> 04.6 - Supply Chain Management | I33: 0 | K33: 0
A34: ='Org structure'!A6 -> Vote 05 - Community Services | C34: =SUM(C35:C44) -> 0 | D34: 0 | E34: 0 | F34: 0 | G34: 0 | H34: 0 | I34: 0 | K34: =SUM(K35:K44) -> 0
A35: ='Org structure'!E30 -> 05.1 - Executive Manager: Community Services | I35: =G35-H35 -> 0 | J35: =IF(I35=0,"",I35/H35) ->  | K35: 0
A36: ='Org structure'!E31 -> 05.2 - Waste Management Services | I36: 0 | K36: 0
A37: ='Org structure'!E32 -> 05.3 - Environmental Management Services | I37: 0 | K37: 0
A38: ='Org structure'!E33 -> 05.4 - Road Traffic & Law Enforce: Traffic Serv | I38: 0 | K38: 0
A39: ='Org structure'!E34 -> 05.5 - Road Traffic&Law Enforce: Licencing Serv | I39: 0 | K39: 0
A40: ='Org structure'!E35 -> 05.6 - Road Traffic&Law Enforce: Pound | I40: 0 | K40: 0
A41: ='Org structure'!E36 -> 05.7 - Institutional & Social Dev Management | I41: 0 | K41: 0
A42: ='Org structure'!E37 -> 05.8 - Libraries And Archives | I42: 0 | K42: 0
A43: ='Org structure'!E38 -> 05.9 - Community Halls And Facilities | I43: 0 | K43: 0
A44: ='Org structure'!E39 -> 05.10 - Disaster Management | I44: 0 | K44: 0
A45: ='Org structure'!A7 -> Vote 06 - Planning And Development | C45: =SUM(C46:C52) -> 0 | D45: 0 | E45: 0 | F45: 0 | G45: 0 | H45: 0 | I45: 0 | K45: =SUM(K46:K52) -> 0
A46: ='Org structure'!E41 -> 06.1 - Executive Manager:Planning & Development | I46: =G46-H46 -> 0 | J46: =IF(I46=0,"",I46/H46) ->  | K46: 0
A47: ='Org structure'!E42 -> 06.2 - Economic Development & Planning | I47: 0 | K47: 0
A48: ='Org structure'!E43 -> 06.3 - Development & Town Planning | I48: 0 | K48: 0
A49: ='Org structure'!E44 -> 06.4 - Property Management & Housing | I49: 0 | K49: 0
A50: ='Org structure'!E45 -> 06.5 - Integrated Development Planning | I50: 0 | K50: 0
A51: ='Org structure'!E46 -> 06.6 - Performance Management | I51: 0 | K51: 0
A52: ='Org structure'!E47 -> 06.7 - Local Economic Development | I52: 0 | K52: 0
A53: ='Org structure'!A8 -> Vote 07 - Infrastructure Development | C53: =SUM(C54:C63) -> 0 | D53: 0 | E53: 0 | F53: 0 | G53: 0 | H53: 0 | I53: =G53-H53 -> 0 | J53: =IF(I53=0,"",I53/H53) ->  | K53: =SUM(K54:K63) -> 0
A54: ='Org structure'!E49 -> 07.1 - Technical Services Administration | I54: =G54-H54 -> 0 | J54: =IF(I54=0,"",I54/H54) ->  | K54: 0
A55: ='Org structure'!E50 -> 07.2 - Roads | I55: 0 | K55: 0
A56: ='Org structure'!E51 -> 07.3 - Workshop | I56: 0 | K56: 0
A57: ='Org structure'!E52 -> 07.4 - Sewerage Network | I57: 0 | K57: 0
A58: ='Org structure'!E53 -> 07.5 - Sewerage Purification | I58: 0 | K58: 0
A59: ='Org structure'!E54 -> 07.6 - Irrigation | I59: 0 | K59: 0
A60: ='Org structure'!E55 -> 07.7 - Executive Manager: Infrastructure Dev | I60: 0 | K60: 0
A61: ='Org structure'!E56 -> 07.8 - Road Construction & Maintenance | I61: 0 | K61: 0
A62: ='Org structure'!E57 -> 07.9 - Electrical & Mechanical Works | I62: 0 | K62: 0
A63: ='Org structure'!E58 -> 07.10 - Project Management | I63: 0 | K63: 0
A64: ='Org structure'!A9 -> Vote 08 - | C64: 0 | D64: 0 | E64: 0 | F64: 0 | G64: 0 | H64: 0 | I64: 0 | K64: 0
A65: ='Org structure'!A10 -> Vote 09 - | C65: 0 | D65: 0 | E65: 0 | F65: 0 | G65: 0 | H65: 0 | I65: 0 | K65: 0
A66: ='Org structure'!A11 -> Vote 10 - | C66: 0 | D66: 0 | E66: 0 | F66: 0 | G66: 0 | H66: 0 | I66: 0 | K66: 0
A67: ='Org structure'!A12 -> Vote 11 - | C67: 0 | D67: 0 | E67: 0 | F67: 0 | G67: 0 | H67: 0 | I67: 0 | K67: 0
A68: ='Org structure'!A13 -> Vote 12 - | C68: 0 | D68: 0 | E68: 0 | F68: 0 | G68: 0 | H68: 0 | I68: 0 | K68: 0
A69: ='Org structure'!A14 -> Vote 13 - | C69: 0 | D69: 0 | E69: 0 | F69: 0 | G69: 0 | H69: 0 | I69: =G69-H69 -> 0 | J69: =IF(I69=0,"",I69/H69) ->  | K69: 0
A70: ='Org structure'!A15 -> Vote 14 - | C70: 0 | D70: 0 | E70: 0 | F70: 0 | G70: 0 | H70: 0 | I70: 0 | K70: 0
A71: ='Org structure'!A16 -> Vote 15 - Other | C71: 0 | D71: 0 | E71: 0 | F71: 0 | G71: 0 | H71: 0 | I71: 0 | K71: 0
A72: Total multi-year capital expenditure | C72: =C7+C12+C19+C27+C34+C45+C53+C64+C65+C66+C67+C68+C69+C70+C71 -> 0 | D72: 0 | E72: 0 | F72: 0 | G72: 0 | H72: 0 | I72: 0 | K72: =K7+K12+K19+K27+K34+K45+K53+K64+K65+K66+K67+K68+K69+K70+K71 -> 0
I73: 0
A74: Capital expenditure - Municipal Vote
A75: Expenditue of single-year capital appropriation | B75: 1 | I75: 0
A76: ='Org structure'!A2 -> Vote 01 - Executive And Council | C76: =SUM(C77:C80) -> 0 | D76: 0 | E76: 0 | F76: 0 | G76: 0 | H76: 0 | I76: 0 | K76: =SUM(K77:K80) -> 0
A77: ='Org structure'!E3 -> 01.1 - Mayor & Councillors | C77: 0 | D77: 0 | E77: 0 | F77: 0 | G77: 0 | H77: 0 | I77: 0 | K77: 0
A78: ='Org structure'!E4 -> 01.2 - Board General Mayor | C78: 0 | D78: 0 | E78: 0 | F78: 0 | G78: 0 | H78: 0 | I78: 0 | K78: 0
A79: ='Org structure'!E5 -> 01.3 - Mayor & Council Support | C79: 0 | D79: 0 | E79: 0 | F79: 0 | G79: 0 | H79: 0 | I79: 0 | K79: 0
A80: ='Org structure'!E6 -> 01.4 - Board General Speaker | C80: 0 | D80: 0 | E80: 0 | F80: 0 | G80: 0 | H80: 0 | I80: 0 | K80: 0
A81: ='Org structure'!A3 -> Vote 02 - Municipal Manager | C81: =SUM(C82:C87) -> 0 | D81: 1800000 | E81: 1800000 | F81: 0 | G81: 0 | H81: 600000 | I81: -600000 | J81: -1 | K81: =SUM(K82:K87) -> 1800000
A82: ='Org structure'!E8 -> 02.1 - Municipal Manager Administration | C82: 0 | D82: 0 | E82: 0 | F82: 0 | G82: 0 | H82: 0 | I82: 0 | K82: 0
A83: ='Org structure'!E9 -> 02.2 - Municipal Manager | C83: 0 | D83: 0 | E83: 0 | F83: 0 | G83: 0 | H83: 0 | I83: 0 | K83: 0
A84: ='Org structure'!E10 -> 02.3 - Municipal Manager Support | C84: 0 | D84: 0 | E84: 0 | F84: 0 | G84: 0 | H84: 0 | I84: 0 | K84: 0
A85: ='Org structure'!E11 -> 02.4 - Internal Audit | C85: 0 | D85: 0 | E85: 0 | F85: 0 | G85: 0 | H85: 0 | I85: 0 | K85: 0
A86: ='Org structure'!E12 -> 02.5 - Communications | C86: 0 | D86: 1800000 | E86: 1800000 | F86: 0 | G86: 0 | H86: 600000 | I86: -600000 | J86: -1 | K86: 1800000
A87: ='Org structure'!E13 -> 02.6 - Risk Management | C87: 0 | D87: 0 | E87: 0 | F87: 0 | G87: 0 | H87: 0 | I87: 0 | K87: 0
A88: ='Org structure'!A4 -> Vote 03 - Corporate Services | C88: =SUM(C89:C95) -> 276.9 | D88: 11580920 | E88: 11580920 | F88: 369015 | G88: 448015 | H88: 3860316 | I88: -3412301 | J88: -0.8839434388 | K88: =SUM(K89:K95) -> 11580920
A89: ='Org structure'!E15 -> 03.1 - Executive Manager: Corporate Services | C89: 0 | D89: 0 | E89: 0 | F89: 0 | G89: 0 | H89: 0 | I89: 0 | K89: 0
A90: ='Org structure'!E16 -> 03.2 - Human Resource Management & Development | C90: 0 | D90: 0 | E90: 0 | F90: 0 | G90: 0 | H90: 0 | I90: =G90-H90 -> 0 | J90: =IF(I90=0,"",I90/H90) ->  | K90: 0
A91: ='Org structure'!E17 -> 03.3 - Information Technology | C91: 0 | D91: 2000000 | E91: 2000000 | F91: 0 | G91: 0 | H91: 666668 | I91: -666668 | J91: -1 | K91: 2000000
A92: ='Org structure'!E18 -> 03.4 - Legal Services | C92: 0 | D92: 0 | E92: 0 | F92: 0 | G92: 0 | H92: 0 | I92: 0 | K92: 0
A93: ='Org structure'!E19 -> 03.5 - Gen Adm_Sec_Fleet: General Administrat | C93: 276.9 | D93: 8080920 | E93: 8080920 | F93: 369015 | G93: 448015 | H93: 2693648 | I93: -2245633 | J93: -0.8336772288 | K93: 8080920
A94: ='Org structure'!E20 -> 03.6 - Gen Adm_Sec_Fleet: Security Services | C94: 0 | D94: 1500000 | E94: 1500000 | F94: 0 | G94: 0 | H94: 500000 | I94: -500000 | J94: -1 | K94: 1500000
A95: ='Org structure'!E21 -> 03.7 - Gen Adm_Sec_Fleet: Fleet Management | C95: 0 | D95: 0 | E95: 0 | F95: 0 | G95: 0 | H95: 0 | I95: 0 | K95: 0
A96: ='Org structure'!A5 -> Vote 04 - Budget And Treasury | C96: =SUM(C97:C102) -> 0 | D96: 0 | E96: 0 | F96: 0 | G96: 0 | H96: 0 | I96: 0 | K96: =SUM(K97:K102) -> 0
A97: ='Org structure'!E23 -> 04.1 - Chief Financial Officer | C97: 0 | D97: 0 | E97: 0 | F97: 0 | G97: 0 | H97: 0 | I97: 0 | K97: 0
A98: ='Org structure'!E24 -> 04.2 - Budget Planning & Management | C98: 0 | D98: 0 | E98: 0 | F98: 0 | G98: 0 | H98: 0 | I98: 0 | K98: 0
A99: ='Org structure'!E25 -> 04.3 - Expenditure Management | C99: 0 | D99: 0 | E99: 0 | F99: 0 | G99: 0 | H99: 0 | I99: 0 | K99: 0
A100: ='Org structure'!E26 -> 04.4 - Revenue Management | C100: 0 | D100: 0 | E100: 0 | F100: 0 | G100: 0 | H100: 0 | I100: 0 | K100: 0
A101: ='Org structure'!E27 -> 04.5 - Asset Management | C101: 0 | D101: 0 | E101: 0 | F101: 0 | G101: 0 | H101: 0 | I101: 0 | K101: 0
A102: ='Org structure'!E28 -> 04.6 - Supply Chain Management | C102: 0 | D102: 0 | E102: 0 | F102: 0 | G102: 0 | H102: 0 | I102: 0 | K102: 0
A103: ='Org structure'!A6 -> Vote 05 - Community Services | C103: =SUM(C104:C113) -> 0 | D103: 33516600 | E103: 33516600 | F103: 264965.96 | G103: 264965.96 | H103: 11172212 | I103: -10907246.04 | J103: -0.9762834826 | K103: =SUM(K104:K113) -> 33516600
A104: ='Org structure'!E30 -> 05.1 - Executive Manager: Community Services | C104: 0 | D104: 0 | E104: 0 | F104: 0 | G104: 0 | H104: 0 | I104: 0 | K104: 0
A105: ='Org structure'!E31 -> 05.2 - Waste Management Services | C105: 0 | D105: 8800000 | E105: 8800000 | F105: 0 | G105: 0 | H105: 2933336 | I105: -2933336 | J105: -1 | K105: 8800000
A106: ='Org structure'!E32 -> 05.3 - Environmental Management Services | C106: 0 | D106: 500000 | E106: 500000 | F106: 0 | G106: 0 | H106: 166668 | I106: -166668 | J106: -1 | K106: 500000
A107: ='Org structure'!E33 -> 05.4 - Road Traffic & Law Enforce: Traffic Serv | C107: 0 | D107: 0 | E107: 0 | F107: 0 | G107: 0 | H107: 0 | I107: 0 | K107: 0
A108: ='Org structure'!E34 -> 05.5 - Road Traffic&Law Enforce: Licencing Serv | C108: 0 | D108: 6000000 | E108: 6000000 | F108: 0 | G108: 0 | H108: 2000000 | I108: -2000000 | J108: -1 | K108: 6000000
A109: ='Org structure'!E35 -> 05.6 - Road Traffic&Law Enforce: Pound | C109: 0 | D109: 0 | E109: 0 | F109: 0 | G109: 0 | H109: 0 | I109: 0 | K109: 0
A110: ='Org structure'!E36 -> 05.7 - Institutional & Social Dev Management | C110: 0 | D110: 0 | E110: 0 | F110: 0 | G110: 0 | H110: 0 | I110: 0 | K110: 0
A111: ='Org structure'!E37 -> 05.8 - Libraries And Archives | C111: 0 | D111: 0 | E111: 0 | F111: 0 | G111: 0 | H111: 0 | I111: 0 | K111: 0
A112: ='Org structure'!E38 -> 05.9 - Community Halls And Facilities | C112: 0 | D112: 18216600 | E112: 18216600 | F112: 264965.96 | G112: 264965.96 | H112: 6072208 | I112: -5807242.04 | J112: -0.9563641496 | K112: 18216600
A113: ='Org structure'!E39 -> 05.10 - Disaster Management | C113: 0 | D113: 0 | E113: 0 | F113: 0 | G113: 0 | H113: 0 | K113: 0
A114: ='Org structure'!A7 -> Vote 06 - Planning And Development | C114: =SUM(C115:C121) -> 0 | D114: 12396000 | E114: 12396000 | F114: 0 | G114: 0 | H114: 4132000 | I114: -4132000 | J114: -1 | K114: =SUM(K115:K121) -> 12396000
A115: ='Org structure'!E41 -> 06.1 - Executive Manager:Planning & Development | C115: 0 | D115: 0 | E115: 0 | F115: 0 | G115: 0 | H115: 0 | I115: 0 | K115: 0
A116: ='Org structure'!E42 -> 06.2 - Economic Development & Planning | C116: 0 | D116: 0 | E116: 0 | F116: 0 | G116: 0 | H116: 0 | I116: 0 | K116: 0
A117: ='Org structure'!E43 -> 06.3 - Development & Town Planning | C117: 0 | D117: 12396000 | E117: 12396000 | F117: 0 | G117: 0 | H117: 4132000 | I117: -4132000 | J117: -1 | K117: 12396000
A118: ='Org structure'!E44 -> 06.4 - Property Management & Housing | C118: 0 | D118: 0 | E118: 0 | F118: 0 | G118: 0 | H118: 0 | I118: 0 | K118: 0
A119: ='Org structure'!E45 -> 06.5 - Integrated Development Planning | C119: 0 | D119: 0 | E119: 0 | F119: 0 | G119: 0 | H119: 0 | I119: 0 | K119: 0
A120: ='Org structure'!E46 -> 06.6 - Performance Management | C120: 0 | D120: 0 | E120: 0 | F120: 0 | G120: 0 | H120: 0 | I120: 0 | K120: 0
A121: ='Org structure'!E47 -> 06.7 - Local Economic Development | C121: 0 | D121: 0 | E121: 0 | F121: 0 | G121: 0 | H121: 0 | I121: 0 | K121: 0
A122: ='Org structure'!A8 -> Vote 07 - Infrastructure Development | C122: =SUM(C123:C132) -> 0 | D122: 240269254 | E122: 240269254 | F122: 25327325.75 | G122: 39591245.24 | H122: 80089804 | I122: -40498558.76 | J122: -0.505664351 | K122: =SUM(K123:K132) -> 240269254
A123: ='Org structure'!E49 -> 07.1 - Technical Services Administration | C123: 0 | D123: 0 | E123: 0 | F123: 0 | G123: 0 | H123: 0 | I123: 0 | K123: 0
A124: ='Org structure'!E50 -> 07.2 - Roads | C124: 0 | D124: 0 | E124: 0 | F124: 0 | G124: 0 | H124: 0 | I124: 0 | K124: 0
A125: ='Org structure'!E51 -> 07.3 - Workshop | C125: 0 | D125: 0 | E125: 0 | F125: 0 | G125: 0 | H125: 0 | I125: 0 | K125: 0
A126: ='Org structure'!E52 -> 07.4 - Sewerage Network | C126: 0 | D126: 0 | E126: 0 | F126: 0 | G126: 0 | H126: 0 | I126: 0 | K126: 0
A127: ='Org structure'!E53 -> 07.5 - Sewerage Purification | C127: 0 | D127: 0 | E127: 0 | F127: 0 | G127: 0 | H127: 0 | I127: 0 | K127: 0
A128: ='Org structure'!E54 -> 07.6 - Irrigation | C128: 0 | D128: 0 | E128: 0 | F128: 0 | G128: 0 | H128: 0 | I128: 0 | K128: 0
A129: ='Org structure'!E55 -> 07.7 - Executive Manager: Infrastructure Dev | C129: 0 | D129: 0 | E129: 0 | F129: 0 | G129: 0 | H129: 0 | I129: 0 | K129: 0
A130: ='Org structure'!E56 -> 07.8 - Road Construction & Maintenance | C130: 0 | D130: 100819854 | E130: 100819854 | F130: 5201208.58 | G130: 5201208.58 | H130: 33606636 | I130: -28405427.42 | J130: -0.8452326921 | K130: 100819854
A131: ='Org structure'!E57 -> 07.9 - Electrical & Mechanical Works | C131: 0 | D131: 78334000 | E131: 78334000 | F131: 923937.12 | G131: 923937.12 | H131: 26111356 | I131: -25187418.88 | J131: -0.964615506 | K131: 78334000
A132: ='Org structure'!E58 -> 07.10 - Project Management | C132: 0 | D132: 61115400 | E132: 61115400 | F132: 19202180.05 | G132: 33466099.54 | H132: 20371812 | K132: 61115400
A133: ='Org structure'!A9 -> Vote 08 - | C133: 0 | D133: 0 | E133: 0 | F133: 0 | G133: 0 | H133: 0 | I133: 0 | K133: 0
A134: ='Org structure'!A10 -> Vote 09 - | C134: 0 | D134: 0 | E134: 0 | F134: 0 | G134: 0 | H134: 0 | I134: =G134-H134 -> 0 | J134: =IF(I134=0,"",I134/H134) ->  | K134: 0
A135: ='Org structure'!A11 -> Vote 10 - | C135: 0 | D135: 0 | E135: 0 | F135: 0 | G135: 0 | H135: 0 | I135: 0 | K135: 0
A136: ='Org structure'!A12 -> Vote 11 - | C136: 0 | D136: 0 | E136: 0 | F136: 0 | G136: 0 | H136: 0 | I136: 0 | K136: 0
A137: ='Org structure'!A13 -> Vote 12 - | C137: 0 | D137: 0 | E137: 0 | F137: 0 | G137: 0 | H137: 0 | I137: 0 | K137: 0
A138: ='Org structure'!A14 -> Vote 13 - | C138: 0 | D138: 0 | E138: 0 | F138: 0 | G138: 0 | H138: 0 | I138: 0 | K138: 0
A139: ='Org structure'!A15 -> Vote 14 - | C139: 0 | D139: 0 | E139: 0 | F139: 0 | G139: 0 | H139: 0 | I139: 0 | K139: 0
A140: ='Org structure'!A16 -> Vote 15 - Other | C140: 0 | D140: 0 | E140: 0 | F140: 0 | G140: 0 | H140: 0 | I140: =G140-H140 -> 0 | J140: =IF(I140=0,"",I140/H140) ->  | K140: 0
A141: Total single-year capital expenditure | C141: =C76+C81+C88+C96+C103+C114+C122+C133+C134+C135+C136+C137+C138+C139+C140 -> 276.9 | D141: 299562774 | E141: 299562774 | F141: 25961306.71 | G141: 40304226.2 | H141: 99854332 | I141: -59550105.8 | J141: -0.5963697779 | K141: =K76+K81+K88+K96+K103+K114+K122+K133+K134+K135+K136+K137+K138+K139+K140 -> 299562774
A142: Total Capital Expenditure | C142: =C72+C141 -> 276.9 | D142: 299562774 | E142: 299562774 | F142: 25961306.71 | G142: 40304226.2 | H142: 99854332 | I142: -59550105.8 | J142: -0.5963697779 | K142: =K72+K141 -> 299562774
A143: =head27a -> References
A144: 1. Insert 'Vote'; e.g. Department, if different to standard structure

Sheet C6-FinPos
A1: =muni& " - "&S71E& " - "&date -> LIM355 Lepelle-Nkumpi - Table C6 Monthly Budget Statement - Financial Position - M04 October
A2: =desc -> Description | B2: =head27 -> Ref | C2: =Head1 -> 2022/23 | D2: =Head2 -> Budget Year 2023/24
C3: =Head5 -> Audited Outcome | D3: =Head6 -> Original Budget | E3: =Head7 -> Adjusted Budget | F3: =Head39 -> YearTD actual | G3: =Head8 -> Full Year Forecast
A4: R thousands | B4: 1
A5: ASSETS
A6: Current assets
A7: Cash and cash equivalents | C7: 546712300.8 | D7: 512724149 | E7: 512724149 | F7: 464984779.4 | G7: 512724149
A8: Trade and other receivables from exchange transactions | C8: 20454901.92 | D8: 29000000 | E8: 29000000 | F8: 14885008.64 | G8: 29000000
A9: Receivables from non-exchange transactions | C9: 8969637.36 | D9: 35139398 | E9: 35139398 | F9: 18398586.57 | G9: 35139398
A10: Current portion of non-current receivables
A11: Inventory | C11: 106259835 | D11: 122395456 | E11: 122395456 | F11: 106432443.8 | G11: 122395456
A12: VAT | C12: 21768623.09 | D12: 9933330 | E12: 9933330 | F12: 27716106.13 | G12: 9933330
A13: Other current assets | C13: 3510164.63 | D13: 0 | E13: 0 | F13: 2958406.45 | G13: 0
A14: Total current assets | C14: =SUM(C7:C13) -> 707675462.8 | D14: =SUM(D7:D13) -> 709192333 | E14: =SUM(E7:E13) -> 709192333 | F14: =SUM(F7:F13) -> 635375331 | G14: =SUM(G7:G13) -> 709192333
A15: Non current assets
A16: Investments | C16: 139500000 | D16: 0 | E16: 0 | F16: 139500000 | G16: 0
A17: Investment property | C17: 112361815 | D17: 119014500 | E17: 119014500 | F17: 112361815 | G17: 119014500
A18: Property, plant and equipment | C18: 753258790.1 | D18: 1002691989 | E18: 1002691989 | F18: 759170287.8 | G18: 1002691989
A19: Biological assets
A20: Living and non-living resources
A21: Heritage assets | C21: 183684.33 | D21: 183684 | E21: 183684 | F21: 183684.33 | G21: 183684
A22: Intangible assets | C22: 11053.87 | D22: 5654754 | E22: 5654754 | F22: 11053.87 | G22: 5654754
A23: Trade and other receivables from exchange transactions
A24: Non-current receivables from non-exchange transactions | C24: 0 | D24: 0 | E24: 0 | F24: 0 | G24: 0
A25: Other non-current assets
A26: Total non current assets | C26: =SUM(C16:C25) -> 1005315343 | D26: =SUM(D16:D25) -> 1127544927 | E26: =SUM(E16:E25) -> 1127544927 | F26: =SUM(F16:F25) -> 1011226841 | G26: =SUM(G16:G25) -> 1127544927
A27: TOTAL ASSETS | C27: =C14+C26 -> 1712990806 | D27: =D14+D26 -> 1836737260 | E27: =E14+E26 -> 1836737260 | F27: =F14+F26 -> 1646602172 | G27: =G14+G26 -> 1836737260
A28: LIABILITIES
A29: Current liabilities
A30: Bank overdraft | C30: 0 | D30: 0 | E30: 0 | F30: 0 | G30: 0
A31: Financial liabilities | C31: -238137.84 | D31: 0 | E31: 0 | F31: -238137.84 | G31: 0
A32: Consumer deposits | C32: 2251090.18 | D32: 2307738 | E32: 2307738 | F32: 2283590.18 | G32: 2307738
A33: Trade and other payables from exchange transactions | C33: 232849923.3 | D33: 76059825 | E33: 76059825 | F33: 61394326.62 | G33: 76059825
A34: Trade and other payables from non-exchange transactions | C34: 32191494.42 | D34: 24469498 | E34: 24469498 | F34: 29789091.7 | G34: 24469498
A35: Provision | C35: 17784545.56 | D35: 500000 | E35: 500000 | F35: 18570521.56 | G35: 500000
A36: VAT | C36: 16683892.91 | D36: 0 | E36: 0 | F36: 27720559.2 | G36: 0
A37: Other current liabilities | C37: 0 | D37: 0 | E37: 0 | F37: 0 | G37: 0
A38: Total current liabilities | C38: =SUM(C30:C37) -> 301522808.6 | D38: =SUM(D30:D37) -> 103337061 | E38: =SUM(E30:E37) -> 103337061 | F38: =SUM(F30:F37) -> 139519951.4 | G38: =SUM(G30:G37) -> 103337061
A39: Non current liabilities
A40: Financial liabilities | C40: 238138.31 | D40: 0 | E40: 0 | F40: 238138.31 | G40: 0
A41: Provision | C41: 0 | D41: 7771737 | E41: 7771737 | F41: 0 | G41: 7771737
A42: Long term portion of trade payables | C42: 0 | D42: 0 | E42: 0 | F42: 0 | G42: 0
A43: Other non-current liabilities | C43: 0 | D43: 0 | E43: 0 | F43: 0 | G43: 0
A44: Total non current liabilities | C44: =SUM(C40:C43) -> 238138.31 | D44: =SUM(D40:D43) -> 7771737 | E44: =SUM(E40:E43) -> 7771737 | F44: =SUM(F40:F43) -> 238138.31 | G44: =SUM(G40:G43) -> 7771737
A45: TOTAL LIABILITIES | C45: =C38+C44 -> 301760946.9 | D45: =D38+D44 -> 111108798 | E45: =E38+E44 -> 111108798 | F45: =F38+F44 -> 139758089.7 | G45: =G38+G44 -> 111108798
A46: NET ASSETS | B46: 2 | C46: =C27-C45 -> 1411229859 | D46: =D27-D45 -> 1725628462 | E46: =E27-E45 -> 1725628462 | F46: =F27-F45 -> 1506844082 | G46: =G27-G45 -> 1725628462
A47: COMMUNITY WEALTH/EQUITY
A48: Accumulated surplus/(deficit) | C48: 1449463957 | D48: 1625749233 | E48: 1625749233 | F48: 1519137293 | G48: 1625749233
A49: Reserves and funds | C49: 0 | D49: -200000000 | E49: -200000000 | F49: 0 | G49: -200000000
A50: Other | C50: 0 | D50: 0 | E50: 0 | F50: 0 | G50: 0
A51: TOTAL COMMUNITY WEALTH/EQUITY | B51: 2 | C51: =SUM(C48:C50) -> 1449463957 | D51: =SUM(D48:D50) -> 1425749233 | E51: =SUM(E48:E50) -> 1425749233 | F51: =SUM(F48:F50) -> 1519137293 | G51: =SUM(G48:G50) -> 1425749233
A52: =head27a -> References
A53: 1. Material variances to be explained in Table SC1
A54: 2. Net assets must balance with Total Community Wealth/Equity
A57: check balance | C57: =C46-C51 -> -38234097.47 | D57: =D46-D51 -> 299879229 | E57: =E46-E51 -> 299879229 | F57: =F46-F51 -> -12293210.34 | G57: =G46-G51 -> 299879229

Sheet C7-CFlow
A1: =muni& " - "&S71F& " - "&date -> LIM355 Lepelle-Nkumpi - Table C7 Monthly Budget Statement - Cash Flow - M04 October
A2: =desc -> Description | B2: =head27 -> Ref | C2: =Head1 -> 2022/23 | D2: =Head2 -> Budget Year 2023/24
C3: =Head5 -> Audited Outcome | D3: =Head6 -> Original Budget | E3: =Head7 -> Adjusted Budget | F3: =Head38 -> Monthly actual | G3: =Head39 -> YearTD actual | H3: =Head40 -> YearTD budget | I3: =Head41 -> YTD variance | J3: =Head41 -> YTD variance | K3: =Head8 -> Full Year Forecast
A4: R thousands | B4: 1 | J4: %
A5: CASH FLOW FROM OPERATING ACTIVITIES
A6: Receipts
A7: Property rates | C7: 9574653.92 | D7: 13560677 | E7: 13560677 | F7: 0 | G7: 3085109.08 | H7: 4520225.68 | I7: =G7-H7 -> -1435116.6 | J7: =IF(I7=0,"",I7/H7) -> -0.3174878207 | K7: 13560677
A8: Service charges | C8: 3064293.7 | D8: 3057017 | E8: 3057017 | F8: 0 | G8: 5956295.43 | H8: 1019005.68 | I8: 4937289.75 | J8: =IF(I8=0,"",I8/H8) -> 4.845203365 | K8: 3057017
A9: Other revenue | C9: 39120982.08 | D9: 206676834 | E9: 206676834 | F9: 0 | G9: 178298251.7 | H9: 68892278 | I9: 109405973.7 | J9: =IF(I9=0,"",I9/H9) -> 1.588073104 | K9: 206676834
A10: Transfers and Subsidies - Operational | C10: 308618198.8 | D10: 324045000 | E10: 324045000 | F10: 0 | G10: 2311000 | H10: 108015000 | I10: -105704000 | J10: =IF(I10=0,"",I10/H10) -> -0.9786048234 | K10: 324045000
A11: Transfers and Subsidies - Capital | C11: 70235000 | D11: 79232000 | E11: 79232000 | F11: 0 | G11: 13409000 | H11: 26410666.68 | I11: -13001666.68 | J11: =IF(I11=0,"",I11/H11) -> -0.4922884696 | K11: 79232000
A12: Interest | C12: 25809993.18 | D12: 27556714 | E12: 27556714 | F12: 0 | G12: 5404176.56 | H12: 9185571.32 | I12: -3781394.76 | J12: -0.4116668009 | K12: 27556714
A13: Dividends | C13: 0 | D13: 0 | E13: 0 | F13: 0 | G13: 0 | H13: 0 | I13: 0 | K13: 0
A14: Payments
A15: Suppliers and employees | C15: -103170382.4 | D15: -111730515 | E15: -111730515 | F15: 0 | G15: -248782533.6 | H15: -37243505 | I15: =H15-G15 -> 211539028.6 | J15: -5.679890455 | K15: -111730515
A16: Interest | I16: =H16-G16 -> 0
A17: Transfers and Subsidies | I17: =H17-G17 -> 0
A18: NET CASH FROM/(USED) OPERATING ACTIVITIES | C18: =SUM(C7:C13)+SUM(C15:C17) -> 353252739.3 | D18: 542397727 | E18: 542397727 | F18: 0 | G18: -40318700.74 | H18: 180799242.4 | I18: =H18-G18 -> 221117943.1 | J18: 1.223002598 | K18: =SUM(K7:K13)+SUM(K15:K17) -> 542397727
A20: CASH FLOWS FROM INVESTING ACTIVITIES
A21: Receipts
A22: Proceeds on disposal of PPE | C22: 0 | D22: 73710 | E22: 73710 | F22: 0 | G22: 0 | H22: 24570 | I22: =G22-H22 -> -24570 | J22: =IF(I22=0,"",I22/H22) -> -1 | K22: 73710
A24: Decrease (increase) in non-current receivables | C24: 0 | D24: 0 | E24: 0 | F24: 0 | G24: 0 | H24: 0 | I24: =G24-H24 -> 0 | K24: 0
A25: Decrease (increase) in non-current investments | C25: 139500000 | D25: 0 | E25: 0 | F25: 0 | G25: 139500000 | H25: 0 | I25: =G25-H25 -> 139500000 | K25: 0
A26: Payments
A27: Capital assets | C27: -276.9 | D27: -299562774 | E27: -299562774 | F27: 0 | G27: -14342919.49 | H27: -99854258.08 | I27: =H27-G27 -> -85511338.59 | J27: 0.8563614635 | K27: -299562774
A28: NET CASH FROM/(USED) INVESTING ACTIVITIES | C28: =SUM(C22:C25)+C27 -> 139499723.1 | D28: =SUM(D22:D25)+D27 -> -299489064 | E28: -299489064 | F28: 0 | G28: 125157080.5 | H28: -99829688.08 | I28: =H28-G28 -> -224986768.6 | J28: 2.253706016 | K28: =SUM(K22:K25)+K27 -> -299489064
A30: CASH FLOWS FROM FINANCING ACTIVITIES
A31: Receipts
A32: Short term loans | I32: =G32-H32 -> 0 | J32: =IF(I32=0,"",I32/H32) -> 
A33: Borrowing long term/refinancing | I33: =G33-H33 -> 0
A34: Increase (decrease) in consumer deposits | C34: 0 | D34: 60970 | E34: 60970 | F34: 0 | G34: -13000 | H34: 20323.36 | I34: =G34-H34 -> -33323.36 | J34: -1.639658009 | K34: 60970
A35: Payments
A36: Repayment of borrowing | C36: 0 | D36: 0 | E36: 0 | F36: 0 | G36: 0 | H36: 0 | I36: =H36-G36 -> 0 | K36: 0
A37: NET CASH FROM/(USED) FINANCING ACTIVITIES | C37: =SUM(C32:C34)+C36 -> 0 | D37: 60970 | E37: 60970 | F37: 0 | G37: -13000 | H37: 20323.36 | I37: =H37-G37 -> 33323.36 | J37: 1.639658009 | K37: =SUM(K32:K34)+K36 -> 60970
A39: NET INCREASE/ (DECREASE) IN CASH HELD | C39: =C18+C28+C37 -> 492752462.4 | D39: 242969633 | E39: 242969633 | F39: 0 | G39: 84825379.77 | H39: 80989877.64 | K39: =K18+K28+K37 -> 242969633
A40: Cash/cash equivalents at beginning: | C40: 404426541.7 | D40: 350641100 | E40: 350641100 | F40: -13005257.5 | G40: 546712300.8 | H40: =IF(E40=0, D40, E40) -> 350641100 | K40: =G40 -> 546712300.8
A41: Cash/cash equivalents at month/year end: | C41: =C39+C40 -> 897179004 | D41: =D39+D40 -> 593610733 | E41: =E39+E40 -> 593610733 | G41: =G39+G40 -> 631537680.6 | H41: =H39+H40 -> 431630977.6 | K41: =K39+K40 -> 789681933.8
A42: References
A43: 1. Material variances to be explained in Table SC1

Sheet SC1
A1: =muni& " - "&S71G& " - "&date -> LIM355 Lepelle-Nkumpi - Supporting Table SC1 Material variance explanations - M04 October
A2: =head27 -> Ref | B2: =desc -> Description
C3: Variance | D3: Reasons for material deviations | E3: Remedial or corrective steps/remarks
B4: R thousands
A5: 1 | B5: ='C4-FinPerf RE'!A5 -> Revenue
B6: Client elected Not to populate this sheet
A10: 2 | B10: ='C4-FinPerf RE'!A34 -> Expenditure By Type
B11: Client elected Not to populate this sheet
A15: 3 | B15: =RIGHT('C5-Capex'!A40,19) -> Capital Expenditure
B16: Client elected Not to populate this sheet
A20: 4 | B20: Financial Position
B21: Client elected Not to populate this sheet
A25: 5 | B25: Cash Flow
B26: Client elected Not to populate this sheet
A30: 6 | B30: Measureable performance
B31: Client elected Not to populate this sheet
A35: 7 | B35: Municipal Entities
B36: Client elected Not to populate this sheet
A41: =head27a -> References
A42: 1. Revenue for each source, vote and standard classification
A43: 2. Expenditure for each type, vote and standard classification
A44: 3. Capital expenditure for each vote and standard classification
A45: 4. Explain any material variances between the annual budget and the expected financial position based on current trends
A46: 5. Cash receipts by source and cash payments by type where not explained under revenue and expenditure
A47: 6. For Sept, Dec, Mar and Jun statements explain any material variances in achievement of measurable performance objectives

Sheet SC2
A1: =muni& " - "&S71H& " - "&Head57 -> LIM355 Lepelle-Nkumpi - Supporting Table SC2 Monthly Budget Statement - performance indicators - M04 October
A2: Description of financial indicator | B2: Basis of calculation | C2: =head27 -> Ref | D2: =Head1 -> 2022/23 | E2: =Head2 -> Budget Year 2023/24
D3: =Head5 -> Audited Outcome | E3: =Head6 -> Original Budget | F3: =Head7 -> Adjusted Budget | G3: =Head39 -> YearTD actual | H3: =Head8 -> Full Year Forecast
A5: Borrowing Management
A7: Capital Charges to Operating Expenditure | B7: Interest & principal paid/Operating Expenditure | D7: =IF(ISERROR((D42-D43)/D45),0,((D42-D43)/D45)) -> 0 | E7: =IF(ISERROR((E42+E44)/E45),0,((E42+E44)/E45)) -> 0.0831293705 | F7: =IF(ISERROR((F42+F44)/F45),0,((F42+F44)/F45)) -> 0.0831293705 | G7: =IF(ISERROR((G42+G44)/G45),0,((G42+G44)/G45)) -> 0 | H7: =IF(ISERROR((H42+H44)/H45),0,((H42+H44)/H45)) -> 0.04947126326
A8: Borrowed funding of 'own' capital expenditure | B8: Borrowings/Capital expenditure excl. transfers and grants | D8: =IF(ISERROR(D47/D46),0,(D47/D46)) -> 0 | E8: =IF(ISERROR(E47/E46),0,(E47/E46)) -> 0 | F8: =IF(ISERROR(F47/F46),0,(F47/F46)) -> 0 | G8: =IF(ISERROR(G47/G46),0,(G47/G46)) -> 0 | H8: =IF(ISERROR(H47/H46),0,(H47/H46)) -> 0
A9: Safety of Capital
A10: Debt to Equity | B10: Loans, Accounts Payable, Overdraft & Tax Provision/ Funds & Reserves | D10: =IF(ISERROR(D48/D49),0,(D48/D49)) -> 0.1828547837 | E10: =IF(ISERROR(E48/E49),0,(E48/E49)) -> 0.07050982085 | F10: =IF(ISERROR(F48/F49),0,(F48/F49)) -> 0.07050982085 | G10: =IF(ISERROR(G48/G49),0,(G48/G49)) -> 0.06002315869 | H10: =IF(ISERROR(H48/H49),0,(H48/H49)) -> 0.07050982085
A11: Gearing | B11: Long Term Borrowing/ Funds & Reserves | D11: =IF(ISERROR(D51/D50),0,(D51/D50)) -> 0 | E11: =IF(ISERROR(E51/E50),0,(E51/E50)) -> 0 | F11: =IF(ISERROR(F51/F50),0,(F51/F50)) -> 0 | G11: =IF(ISERROR(G51/G50),0,(G51/G50)) -> 0 | H11: =IF(ISERROR(H51/H50),0,(H51/H50)) -> 0
A12: Liquidity
A13: Current Ratio | B13: Current assets/current liabilities | C13: 1 | D13: =IF(ISERROR(D52/D53),0,(D52/D53)) -> 2.347004746 | E13: =IF(ISERROR(E52/E53),0,(E52/E53)) -> 6.862904036 | F13: =IF(ISERROR(F52/F53),0,(F52/F53)) -> 6.862904036 | G13: =IF(ISERROR(G52/G53),0,(G52/G53)) -> 4.554010552 | H13: =IF(ISERROR(H52/H53),0,(H52/H53)) -> 6.862904036
A14: Liquidity Ratio | B14: Monetary Assets/Current Liabilities | D14: =IF(ISERROR(D54/D53),0,(D54/D53)) -> 1.81317063 | E14: =IF(ISERROR(E54/E53),0,(E54/E53)) -> 4.961667615 | F14: =IF(ISERROR(F54/F53),0,(F54/F53)) -> 4.961667615 | G14: =IF(ISERROR(G54/G53),0,(G54/G53)) -> 3.332747572 | H14: =IF(ISERROR(H54/H53),0,(H54/H53)) -> 4.961667615
A15: Revenue Management
A16: Annual Debtors Collection Rate (Payment Level %) | B16: Last 12 Mths Receipts/ Last 12 Mths Billing
A17: Outstanding Debtors to Revenue | B17: Total Outstanding Debtors to Annual Revenue | D17: =IF(ISERROR(D59/D55),0,(D59/D55)) -> 0.07378647668 | E17: =IF(ISERROR(E59/E55),0,(E59/E55)) -> 0 | F17: =IF(ISERROR(F59/F55),0,(F59/F55)) -> 0 | G17: =IF(ISERROR(G59/G55),0,(G59/G55)) -> 0 | H17: =IF(ISERROR(H59/H55),0,(H59/H55)) -> 0
A18: Longstanding Debtors Recovered | B18: Debtors > 12 Mths Recovered/Total Debtors > 12 Months Old | D18: =IF(ISERROR(D64/D63),0,(D64/D63)) -> 0 | E18: =IF(ISERROR(E64/E63),0,(E64/E63)) -> 0 | F18: =IF(ISERROR(F64/F63),0,(F64/F63)) -> 0 | G18: =IF(ISERROR(G64/G63),0,(G64/G63)) -> 0 | H18: =IF(ISERROR(H64/H63),0,(H64/H63)) -> 0
A19: Creditors Management
A20: Creditors System Efficiency | B20: % of Creditors Paid Within Terms (within MFMA s 65(e))
A21: Funding of Provisions
A22: Percentage Of Provisions Not Funded | B22: Unfunded Provisions/Total Provisions
A23: Other Indicators
A24: Electricity Distribution Losses | B24: % Volume (units purchased and generated less units sold)/units purchased and generated | C24: 2 | D24: 0 | E24: 0 | F24: 0 | G24: 0 | H24: 0
A25: Water Distribution Losses | B25: % Volume (units purchased and own source less units sold)/Total units purchased and own source | C25: 2 | D25: 0 | E25: 0 | F25: 0 | G25: 0 | H25: 0
A26: Employee costs | B26: Employee costs/Total Revenue - capital revenue | D26: =IF(ISERROR(D40/D55),0,(D40/D55)) -> 0.2232687646 | E26: =IF(ISERROR(E40/E55),0,(E40/E55)) -> 0.199231 | F26: =IF(ISERROR(F40/F55),0,(F40/F55)) -> 0.199231 | G26: =IF(ISERROR(G40/G55),0,(G40/G55)) -> 0.1834313079 | H26: =IF(ISERROR(H40/H55),0,(H40/H55)) -> 0.199231
A27: Repairs & Maintenance | B27: R&M/Total Revenue - capital revenue | D27: =IF(ISERROR(D41/D55),0,(D41/D55)) -> 0.03823681549 | E27: =IF(ISERROR(E41/E55),0,(E41/E55)) -> 0.1137625897 | F27: =IF(ISERROR(F41/F55),0,(F41/F55)) -> 0.1137625897 | G27: =IF(ISERROR(G41/G55),0,(G41/G55)) -> 0.005768170236 | H27: =IF(ISERROR(H41/H55),0,(H41/H55)) -> 0.1137625897
A28: Interest & Depreciation | B28: I&D/Total Revenue - capital revenue | D28: =IF(ISERROR((D42+D44)/D55),0,((D42+D44)/D55)) -> 0.06850103098 | E28: =IF(ISERROR((E42+E44)/E55),0,((E42+E44)/E55)) -> 0.0556946165 | F28: =IF(ISERROR((F42+F44)/F55),0,((F42+F44)/F55)) -> 0.0556946165 | G28: =IF(ISERROR((G42+G44)/G55),0,((G42+G44)/G55)) -> 0 | H28: =IF(ISERROR((H42+H44)/H55),0,((H42+H44)/H55)) -> 0.03314451942
A29: IDP regulation financial viability indicators
A30: i. Debt coverage | B30: (Total Operating Revenue - Operating Grants)/Debt service payments due within financial year)
A31: ii. O/S Service Debtors to Revenue | B31: Total outstanding service debtors/annual revenue received for services
A32: iii. Cost coverage | B32: (Available cash + Investments)/monthly fixed operational expenditure
A33: References
A34: 1. Consumer debtors > 12 months old are excluded from current assets.
A35: 2. Material variances to be explained.
A37: Calculations
A38: ='C6-FinPos'!A40 -> Financial liabilities | D38: ='C6-FinPos'!C40 -> 238138.31 | E38: ='C6-FinPos'!D40 -> 0 | F38: ='C6-FinPos'!E40 -> 0 | G38: ='C6-FinPos'!F40 -> 238138.31 | H38: 0
A39: Total Assets | D39: ='C6-FinPos'!C27 -> 1712990806 | E39: ='C6-FinPos'!D27 -> 1836737260 | F39: ='C6-FinPos'!E27 -> 1836737260 | G39: ='C6-FinPos'!F27 -> 1646602172 | H39: ='C6-FinPos'!G27 -> 1836737260
A40: ='C4-FinPerf RE'!A35 -> Employee related costs | D40: ='C4-FinPerf RE'!C35 -> 99656346.07 | E40: ='C4-FinPerf RE'!D35 -> 142196313 | F40: ='C4-FinPerf RE'!E35 -> 142196313 | G40: ='C4-FinPerf RE'!G35 -> 31897307 | H40: ='C4-FinPerf RE'!K35 -> 142196313
A41: =A27 -> Repairs & Maintenance | D41: 17067059.62 | E41: 81195300 | F41: 81195300 | G41: 1003040.86 | H41: 81195300
A42: Interest (finance charges) | D42: ='C4-FinPerf RE'!C41 -> 0 | E42: ='C4-FinPerf RE'!D41 -> 52650 | F42: ='C4-FinPerf RE'!E41 -> 52650 | G42: ='C4-FinPerf RE'!G41 -> 0 | H42: ='C4-FinPerf RE'!K41 -> 52650
A43: Principal paid | D43: =-'C7-CFlow'!C36 -> 0 | E43: =-'C7-CFlow'!D36 -> 0 | F43: =-'C7-CFlow'!E36 -> 0 | G43: =-'C7-CFlow'!G36 -> 0 | H43: =-'C7-CFlow'!K36 -> 0
A44: Depreciation | D44: ='C4-FinPerf RE'!C40 -> 30575537.34 | E44: ='C4-FinPerf RE'!D40 -> 39698037 | F44: ='C4-FinPerf RE'!E40 -> 39698037 | H44: ='C4-FinPerf RE'!K36 -> 23603450
A45: Operating expenditure | D45: ='C4-FinPerf RE'!C48 -> 372366400.4 | E45: ='C4-FinPerf RE'!D48 -> 478178612 | F45: ='C4-FinPerf RE'!E48 -> 478178612 | G45: ='C4-FinPerf RE'!G48 -> 93656648.63 | H45: ='C4-FinPerf RE'!K48 -> 478178612
A46: ='C5-Capex'!A40 -> Total Capital Expenditure | D46: ='C5-Capex'!C63 -> 276.9 | E46: ='C5-Capex'!D63 -> 299562774 | F46: ='C5-Capex'!E63 -> 299562774 | G46: ='C5-Capex'!F63 -> 25961306.71 | H46: ='C5-Capex'!G63 -> 40304226.2
A47: Borrowed funding for capital | D47: ='C5-Capex'!C72 -> 0 | E47: ='C5-Capex'!D72 -> 0 | F47: ='C5-Capex'!E72 -> 0 | G47: ='C5-Capex'!G72 -> 0 | H47: ='C5-Capex'!K72 -> 0
A48: Debt | D48: ='C6-FinPos'!C30+'C6-FinPos'!C31+'C6-FinPos'!C33+'C6-FinPos'!C34+'C6-FinPos'!C40+'C6-FinPos'!C43 -> 265041418.2 | E48: ='C6-FinPos'!D30+'C6-FinPos'!D31+'C6-FinPos'!D33+'C6-FinPos'!D34+'C6-FinPos'!D40+'C6-FinPos'!D43 -> 100529323 | F48: ='C6-FinPos'!E30+'C6-FinPos'!E31+'C6-FinPos'!E33+'C6-FinPos'!E34+'C6-FinPos'!E40+'C6-FinPos'!E43 -> 100529323 | G48: ='C6-FinPos'!F30+'C6-FinPos'!F31+'C6-FinPos'!F33+'C6-FinPos'!F34+'C6-FinPos'!F40+'C6-FinPos'!F43 -> 91183418.79 | H48: ='C6-FinPos'!G30+'C6-FinPos'!G31+'C6-FinPos'!G33+'C6-FinPos'!G34+'C6-FinPos'!G40+'C6-FinPos'!G43 -> 100529323
A49: Equity | D49: ='C6-FinPos'!C51 -> 1449463957 | E49: ='C6-FinPos'!D51 -> 1425749233 | F49: ='C6-FinPos'!E51 -> 1425749233 | G49: ='C6-FinPos'!F51 -> 1519137293 | H49: ='C6-FinPos'!G51 -> 1425749233
A50: ='C6-FinPos'!A49 -> Reserves and funds | D50: ='C6-FinPos'!C50 -> 0 | E50: ='C6-FinPos'!D50 -> 0 | F50: ='C6-FinPos'!E50 -> 0 | G50: ='C6-FinPos'!F50 -> 0 | H50: ='C6-FinPos'!G50 -> 0
A51: Borrowing | D51: ='C6-FinPos'!C40 -> 238138.31 | E51: ='C6-FinPos'!D40 -> 0 | F51: ='C6-FinPos'!E40 -> 0 | G51: ='C6-FinPos'!F40 -> 238138.31 | H51: ='C6-FinPos'!G40 -> 0
A52: ='C6-FinPos'!A6 -> Current assets | D52: ='C6-FinPos'!C14 -> 707675462.8 | E52: ='C6-FinPos'!D14 -> 709192333 | F52: ='C6-FinPos'!E14 -> 709192333 | G52: ='C6-FinPos'!F14 -> 635375331 | H52: ='C6-FinPos'!G14 -> 709192333
A53: ='C6-FinPos'!A29 -> Current liabilities | D53: ='C6-FinPos'!C38 -> 301522808.6 | E53: ='C6-FinPos'!D38 -> 103337061 | F53: ='C6-FinPos'!E38 -> 103337061 | G53: ='C6-FinPos'!F38 -> 139519951.4 | H53: ='C6-FinPos'!G38 -> 103337061
A54: Monetary assets | D54: ='C6-FinPos'!C7 -> 546712300.8 | E54: ='C6-FinPos'!D7 -> 512724149 | F54: ='C6-FinPos'!E7 -> 512724149 | G54: ='C6-FinPos'!F7 -> 464984779.4 | H54: ='C6-FinPos'!G7 -> 512724149
A55: ='C4-FinPerf RE'!A33 -> Total Revenue (excluding capital transfers and contributions) | D55: ='C4-FinPerf RE'!C33 -> 446351491.4 | E55: ='C4-FinPerf RE'!D33 -> 713725841 | F55: ='C4-FinPerf RE'!E33 -> 713725841 | G55: ='C4-FinPerf RE'!G33 -> 173892381.6 | H55: ='C4-FinPerf RE'!K33 -> 713725841
A56: ='C4-FinPerf RE'!A26 -> Transfers and subsidies - Operational | D56: ='C4-FinPerf RE'!C26 -> 304329700.6 | E56: ='C4-FinPerf RE'!D28 -> 0 | F56: ='C4-FinPerf RE'!E28 -> 0 | G56: ='C4-FinPerf RE'!G28 -> 0 | H56: ='C4-FinPerf RE'!K28 -> 0
A57: ='C4-FinPerf RE'!A50 -> Transfers and subsidies - capital (monetary allocations) | D57: ='C4-FinPerf RE'!C50 -> 39683923.74 | E57: ='C4-FinPerf RE'!D50 -> 64332000 | F57: ='C4-FinPerf RE'!E50 -> 64332000 | G57: ='C4-FinPerf RE'!G50 -> 16752191.83 | H57: ='C4-FinPerf RE'!K50 -> 64332000
A58: Debt service payments | D58: ='C7-CFlow'!C12+'C7-CFlow'!C36 -> 25809993.18 | E58: ='C7-CFlow'!D12+'C7-CFlow'!D36 -> 27556714 | F58: ='C7-CFlow'!E12+'C7-CFlow'!E36 -> 27556714 | G58: ='C7-CFlow'!G16+'C7-CFlow'!G36 -> 0 | H58: ='C7-CFlow'!K16+'C7-CFlow'!K36 -> 0
A59: Outstanding debtors (receivables) | D59: ='C6-FinPos'!C8+'C6-FinPos'!C9+'C6-FinPos'!C10+'C6-FinPos'!C13+'C6-FinPos'!C23+'C6-FinPos'!C24 -> 32934703.91 | E59: 0 | F59: 0 | G59: 0 | H59: 0
A60: Annual services revenue | D60: ='C4-FinPerf RE'!C7+'C4-FinPerf RE'!C8+'C4-FinPerf RE'!C9+'C4-FinPerf RE'!C10+'C4-FinPerf RE'!C22 -> 45768123.49 | E60: ='C4-FinPerf RE'!D7+'C4-FinPerf RE'!D8+'C4-FinPerf RE'!D9+'C4-FinPerf RE'!D10+'C4-FinPerf RE'!D22 -> 46960103 | F60: ='C4-FinPerf RE'!E7+'C4-FinPerf RE'!E8+'C4-FinPerf RE'!E9+'C4-FinPerf RE'!E10+'C4-FinPerf RE'!E22 -> 46960103 | G60: ='C4-FinPerf RE'!F7+'C4-FinPerf RE'!F8+'C4-FinPerf RE'!F9+'C4-FinPerf RE'!F10+'C4-FinPerf RE'!F22 -> 4219949.05 | H60: ='C4-FinPerf RE'!G7+'C4-FinPerf RE'!G8+'C4-FinPerf RE'!G9+'C4-FinPerf RE'!G10+'C4-FinPerf RE'!G22 -> 16844680.07
A61: Cash + investments | B61: Including LT investments | D61: ='C6-FinPos'!C7+'C6-FinPos'!C16-'C6-FinPos'!C30 -> 686212300.8 | E61: ='C6-FinPos'!D7+'C6-FinPos'!D16-'C6-FinPos'!D30 -> 512724149 | F61: ='C6-FinPos'!E7+'C6-FinPos'!E16-'C6-FinPos'!E30 -> 512724149 | G61: ='C6-FinPos'!F7+'C6-FinPos'!F16-'C6-FinPos'!F30 -> 604484779.4 | H61: ='C6-FinPos'!G7+'C6-FinPos'!G16-'C6-FinPos'!G30 -> 512724149
A62: Fixed operational expend. (monthly)
A63: Longstanding debtors outstanding | D63: ='C6-FinPos'!C23+'C6-FinPos'!C24 -> 0 | E63: ='C6-FinPos'!D23+'C6-FinPos'!D24 -> 0 | F63: ='C6-FinPos'!E23+'C6-FinPos'!E24 -> 0 | G63: ='C6-FinPos'!F23+'C6-FinPos'!F24 -> 0 | H63: ='C6-FinPos'!G23+'C6-FinPos'!G24 -> 0
A64: Longstanding debtors recovered
A65: Attorney collections

Sheet SC3
A1: =muni& " - "&S71I& " - "&Head57 -> LIM355 Lepelle-Nkumpi - Supporting Table SC3 Monthly Budget Statement - aged debtors - M04 October
A2: =desc -> Description | C2: =Head2 -> Budget Year 2023/24
A3: R thousands | B3: NT Code | C3: 0-30 Days | D3: 31-60 Days | E3: 61-90 Days | F3: 91-120 Days | G3: 121-150 Dys | H3: 151-180 Dys | I3: 181 Dys-1 Yr | J3: Over 1Yr | K3: Total | L3: Total over 90 days | M3: Actual Bad Debts Written Off against Debtors | N3: Impairment - Bad Debts i.t.o Council Policy
A4: Debtors Age Analysis By Income Source
A5: Trade and Other Receivables from Exchange Transactions - Water | B5: 1200 | K5: =SUM(C5:J5) -> 0 | L5: =SUM(F5:J5) -> 0
A6: Trade and Other Receivables from Exchange Transactions - Electricity | B6: 1300 | K6: =SUM(C6:J6) -> 0 | L6: =SUM(F6:J6) -> 0
A7: Receivables from Non-exchange Transactions - Property Rates | B7: 1400 | K7: =SUM(C7:J7) -> 0 | L7: 0
A8: Receivables from Exchange Transactions - Waste Water Management | B8: 1500 | K8: 0 | L8: 0
A9: Receivables from Exchange Transactions - Waste Management | B9: 1600 | K9: 0 | L9: =SUM(F9:J9) -> 0
A10: Receivables from Exchange Transactions - Property Rental Debtors | B10: 1700 | K10: 0 | L10: =SUM(F10:J10) -> 0
A11: Interest on Arrear Debtor Accounts | B11: 1810 | K11: 0 | L11: 0
A12: Recoverable unauthorised, irregular, fruitless and wasteful expenditure | B12: 1820 | K12: 0 | L12: 0
A13: Other | B13: 1900 | K13: 0 | L13: =SUM(F13:J13) -> 0
A14: Total By Income Source | B14: 2000 | C14: =SUM(C5:C13) -> 0 | D14: 0 | E14: 0 | F14: 0 | G14: 0 | H14: 0 | I14: 0 | J14: 0 | K14: 0 | L14: =SUM(L5:L13) -> 0 | M14: 0 | N14: 0
A15: =Head1&" - totals only" -> 2022/23 - totals only | K15: =SUM(C15:J15) -> 0 | L15: =SUM(F15:J15) -> 0
A16: Debtors Age Analysis By Customer Group
A17: Organs of State | B17: 2200 | K17: =SUM(C17:J17) -> 0 | L17: =SUM(F17:J17) -> 0
A18: Commercial | B18: 2300 | K18: =SUM(C18:J18) -> 0 | L18: =SUM(F18:J18) -> 0
A19: Households | B19: 2400 | K19: =SUM(C19:J19) -> 0 | L19: =SUM(F19:J19) -> 0
A20: Other | B20: 2500 | K20: =SUM(C20:J20) -> 0 | L20: =SUM(F20:J20) -> 0
A21: Total By Customer Group | B21: 2600 | C21: =SUM(C17:C20) -> 0 | D21: 0 | E21: 0 | F21: 0 | G21: 0 | H21: 0 | I21: 0 | J21: =SUM(J17:J20) -> 0 | K21: =SUM(K17:K20) -> 0 | L21: =SUM(L17:L20) -> 0 | M21: =SUM(M17:M20) -> 0 | N21: =SUM(N17:N20) -> 0
A22: Notes
A23: Material increases in value of debtors' categories compared to previous month to be explained
A24: Bad debts = amounts actually written off in the month
A25: Total by Income Source must reconcile with Total by Customer Group
C26: =C14-C21 -> 0 | D26: =D14-D21 -> 0 | E26: =E14-E21 -> 0 | F26: 0 | G26: 0 | H26: 0 | I26: 0 | J26: =J14-J21 -> 0 | K26: 0
C27: =IF(C26=0,"","MUST AGREE") ->  | D27: =IF(D26=0,"","MUST AGREE") -> 

Sheet SC4
A1: =muni& " - "&S71J& " - "&Head57 -> LIM355 Lepelle-Nkumpi - Supporting Table SC4 Monthly Budget Statement - aged creditors - M04 October
A2: =desc -> Description | B2: NT Code | C2: =Head2 -> Budget Year 2023/24 | L2: Prior year totals for chart (same period)
C3: 0 - 30 Days | D3: 31 - 60 Days | E3: 61 - 90 Days | F3: 91 - 120 Days | G3: 121 - 150 Days | H3: 151 - 180 Days | I3: 181 Days - 1 Year | J3: Over 1 Year | K3: Total
A4: R thousands
A5: Creditors Age Analysis By Customer Type
A6: Bulk Electricity | B6: 0100 | K6: =SUM(C6:J6) -> 0
A7: Bulk Water | B7: 0200 | K7: =SUM(C7:J7) -> 0
A8: PAYE deductions | B8: 0300 | K8: 0
A9: VAT (output less input) | B9: 0400 | K9: 0
A10: Pensions / Retirement deductions | B10: 0500 | K10: 0
A11: Loan repayments | B11: 0600 | K11: 0
A12: Trade Creditors | B12: 0700 | K12: 0
A13: Auditor General | B13: 0800 | K13: 0
A14: Other | B14: 0900 | K14: =SUM(C14:J14) -> 0
A15: Total By Customer Type | B15: 1000 | C15: =SUM(C6:C14) -> 0 | D15: =SUM(D6:D14) -> 0 | E15: 0 | F15: 0 | G15: 0 | H15: 0 | I15: 0 | J15: 0 | K15: =SUM(K6:K14) -> 0 | L15: =SUM(L6:L14) -> 0
A16: Notes
A17: Material increases in value of creditors' categories compared to previous month to be explained

Sheet SC5
A1: =muni& " - "&S71K& " - "&Head57 -> LIM355 Lepelle-Nkumpi - Supporting Table SC5 Monthly Budget Statement - investment portfolio - M04 October
A2: Investments by maturity Name of institution & investment ID | B2: Ref | C2: Period of Investment | D2: Type of Investment | E2: Capital Guarantee (Yes/ No) | F2: Variable or Fixed interest rate | G2: Interest Rate ᶟ | H2: Commission Paid (Rands) | I2: Commission Recipient | J2: Expiry date of investment | K2: Opening balance | L2: Interest to be realised | M2: Partial / Premature Withdrawal (4) | N2: Investment Top Up | O2: Closing Balance
A3: R thousands | C3: Yrs/Months
A4: Municipality
A5: Nedbank Bank | C5: Months | D5: Nedbank | E5: Yes | F5: Variable | G5: 4.26 | H5: 0 | I5: 0 | J5: 2021-06-30 | K5: 52411226 | L5: 0 | M5: 0 | N5: 0 | O5: =SUM(K5:N5) -> 52411226
A6: Standard Bank | C6: Months | D6: STANDARD BANK | E6: Yes | F6: Variable | G6: 4.2 | H6: 0 | I6: 0 | J6: 2021-06-30 | K6: 52309937 | L6: 0 | M6: 0 | N6: 0 | O6: 52309937
A7: Absa Bank | C7: Months | D7: ABSA | E7: Yes | F7: Variable | G7: 4.25 | H7: 0 | I7: 0 | J7: 2021-06-30 | K7: 51609092 | L7: 0 | M7: 0 | N7: 0 | O7: 51609092
A8: Municipality sub-total | K8: =SUM(K5:K7) -> 156330255 | M8: =SUM(M5:M7) -> 0 | N8: =SUM(N5:N7) -> 0 | O8: =SUM(O5:O7) -> 156330255
A10: Entities
O11: =SUM(K11:N11) -> 0
O12: 0
O13: 0
O14: 0
O15: 0
O16: 0
O17: 0
A18: Entities sub-total | K18: =SUM(K11:K17) -> 0 | M18: =SUM(M11:M17) -> 0 | N18: =SUM(N11:N17) -> 0 | O18: =SUM(O11:O17) -> 0
A20: TOTAL INVESTMENTS AND INTEREST | B20: 2 | K20: =K8+K18 -> 156330255 | M20: =M8+M18 -> 0 | N20: =N8+N18 -> 0 | O20: =O8+O18 -> 156330255
A21: =head27a -> References
A22: 2. List investments in expiry date order
A23: 3. If 'variable' is selected in column F, input interest rate range
A24: 4. Withdrawals to be entered as negative

Sheet SC6
A1: =muni& " - "&S71L& " - "&Head57 -> LIM355 Lepelle-Nkumpi - Supporting Table SC6 Monthly Budget Statement - transfers and grant receipts - M04 October
A2: =desc -> Description | B2: =head27 -> Ref | C2: =Head1 -> 2022/23 | D2: =Head2 -> Budget Year 2023/24
C3: =Head5 -> Audited Outcome | D3: =Head6 -> Original Budget | E3: =Head7 -> Adjusted Budget | F3: =Head38 -> Monthly actual | G3: =Head39 -> YearTD actual | H3: =Head40 -> YearTD budget | I3: =Head41 -> YTD variance | J3: =Head41 -> YTD variance | K3: =Head8 -> Full Year Forecast
A4: R thousands | J4: %
A5: RECEIPTS: | B5: 1,2
A7: Operating Transfers and Grants
A8: National Government: | C8: =SUM(C9:C14) -> 304329700.6 | D8: 338945000 | E8: 338945000 | F8: 1295210.92 | G8: 134539210.9 | H8: 112981660 | I8: =G8-H8 -> 21557550.89 | J8: =IF(H8=0,"",I8/H8) -> 0.1908057546 | K8: =SUM(K9:K14) -> 338945000
A9: Equitable Share | C9: 301329053 | D9: 319605000 | E9: 319605000 | F9: 0 | G9: 133169000 | H9: 106535000 | I9: 26634000 | J9: 0.2500023466 | K9: 319605000
A10: Expanded Public Works Programme Integrated Grant | C10: 1370864 | D10: 2440000 | E10: 2440000 | F10: 736620 | G10: 736620 | H10: 813332 | I10: -76712 | J10: -0.09431818741 | K10: 2440000
A11: Integrated National Electrification Programme Grant | C11: 0 | D11: 14900000 | E11: 14900000 | F11: 0 | G11: 0 | H11: 4966664 | I11: -4966664 | J11: -1 | K11: 14900000
A12: Local Government Financial Management Grant | C12: 1629783.62 | D12: 2000000 | E12: 2000000 | F12: 558590.92 | G12: 633590.89 | H12: 666664 | I12: -33073.11 | J12: -0.04960986344 | K12: 2000000
A13: Municipal Disaster Relief Grant | C13: 0 | D13: 0 | E13: 0 | F13: 0 | G13: 0 | H13: 0 | I13: 0 | K13: 0
A14: Municipal Infrastructure Grant | B14: 3 | C14: 0 | D14: 0 | E14: 0 | F14: 0 | G14: 0 | H14: 0 | I14: 0 | K14: 0
A15: Other transfers and grants [insert description] | I15: =G15-H15 -> 0 | J15: =IF(I15=0,"",I15/H15) -> 
A16: Provincial Government: | C16: =SUM(C17:C17) -> 0 | D16: 699898 | E16: 699898 | F16: 0 | G16: 0 | H16: 233296 | I16: =G16-H16 -> -233296 | J16: =IF(H16=0,"",I16/H16) -> -1 | K16: =SUM(K17:K17) -> 699898
A17: Capacity Building and Other Grants | C17: 0 | D17: 699898 | E17: 699898 | F17: 0 | G17: 0 | H17: 233296 | I17: =G17-H17 -> -233296 | J17: =IF(H17=0,"",I17/H17) -> -1 | K17: 699898
A18: Other transfers and grants [insert description] | I18: =G18-H18 -> 0
A19: District Municipality: | C19: =SUM(C20:C20) -> 0 | D19: -6135 | E19: -6135 | F19: 0 | G19: 0 | H19: -2048 | I19: =G19-H19 -> 2048 | J19: =IF(H19=0,"",I19/H19) -> -1 | K19: =SUM(K20:K20) -> -6135
A20: Specify (Add grant description) | C20: 0 | D20: -6135 | E20: -6135 | F20: 0 | G20: 0 | H20: -2048 | I20: =G20-H20 -> 2048 | J20: =IF(H20=0,"",I20/H20) -> -1 | K20: -6135
A21: Other grant providers: | C21: =SUM(C22:C23) -> 0 | D21: 0 | E21: 0 | F21: 0 | G21: 0 | H21: 0 | I21: =G21-H21 -> 0 | J21: =IF(H21=0,"",I21/H21) ->  | K21: =SUM(K22:K23) -> 0
A22: Library Donations | C22: 0 | D22: 0 | E22: 0 | F22: 0 | G22: 0 | H22: 0 | I22: =G22-H22 -> 0 | J22: =IF(H22=0,"",I22/H22) ->  | K22: 0
A23: Local Government Water and Related Service SETA | C23: 0 | D23: 0 | E23: 0 | F23: 0 | G23: 0 | H23: 0 | I23: =G23-H23 -> 0 | J23: =IF(H23=0,"",I23/H23) ->  | K23: 0
A24: Total Operating Transfers and Grants | B24: 5 | C24: =C8+C16+C19+C21 -> 304329700.6 | D24: 339638763 | E24: 339638763 | F24: 1295210.92 | G24: 134539210.9 | H24: 113212908 | I24: 21326302.89 | J24: 0.188373422 | K24: =K8+K16+K19+K21 -> 339638763
A26: Capital Transfers and Grants
A27: =A8 -> National Government: | C27: =SUM(C28:C30) -> 39683923.74 | D27: 64332000 | E27: 64332000 | F27: 109994.8 | G27: 16752191.83 | H27: 21444000 | I27: =G27-H27 -> -4691808.17 | J27: =IF(H27=0,"",I27/H27) -> -0.2187935166 | K27: =SUM(K28:K30) -> 64332000
A28: Integrated National Electrification Programme Grant | C28: 0 | D28: 0 | E28: 0 | F28: 0 | G28: 0 | H28: 0 | I28: 0 | K28: 0
A29: Municipal Disaster Relief Grant | C29: 0 | D29: 0 | E29: 0 | F29: 0 | G29: 0 | H29: 0 | I29: 0 | K29: 0
A30: Municipal Infrastructure Grant | C30: 39683923.74 | D30: 64332000 | E30: 64332000 | F30: 109994.8 | G30: 16752191.83 | H30: 21444000 | I30: -4691808.17 | J30: -0.2187935166 | K30: 64332000
A31: =A16 -> Provincial Government: | C31: =SUM(C32:C32) -> 0 | D31: 0 | E31: 0 | F31: 0 | G31: 0 | H31: 0 | I31: 0 | K31: =SUM(K32:K32) -> 0
A32: Infrastructure Grant | C32: 0 | D32: 0 | E32: 0 | F32: 0 | G32: 0 | H32: 0 | I32: 0 | K32: 0
A33: =A19 -> District Municipality: | C33: =SUM(C34:C34) -> 0 | D33: 0 | E33: 0 | F33: 0 | G33: 0 | H33: 0 | I33: =G33-H33 -> 0 | J33: =IF(I33=0,"",I33/H33) ->  | K33: =SUM(K34:K34) -> 0
A34: [insert description] | I34: 0
A35: =A21 -> Other grant providers: | C35: =SUM(C36:C36) -> 0 | D35: 0 | E35: 0 | F35: 0 | G35: 0 | H35: 0 | I35: 0 | K35: =SUM(K36:K36) -> 0
A36: [insert description] | I36: 0 | J36: =IF(I36=0,"",I36/H36) -> 
A37: Total Capital Transfers and Grants | B37: 5 | C37: =C27+C31+C33+C35 -> 39683923.74 | D37: 64332000 | E37: 64332000 | F37: 109994.8 | G37: 16752191.83 | H37: 21444000 | I37: -4691808.17 | J37: -0.2187935166 | K37: =K27+K31+K33+K35 -> 64332000
A39: TOTAL RECEIPTS OF TRANSFERS & GRANTS | B39: 5 | C39: =C24+C37 -> 344013624.4 | D39: 403970763 | E39: 403970763 | F39: 1405205.72 | G39: 151291402.7 | H39: 134656908 | I39: 16634494.72 | J39: 0.1235324275 | K39: =K24+K37 -> 403970763
A40: =head27a -> References
A41: 1. Each grant is listed by name as gazetted together with the name of the transferring department or municipality, donor or other organisation
A42: 2. Grant expenditure must be separately listed for each grant received
A43: 3. Replacement of RSC levies
A44: 4. Housing subsidies for housing where ownership transferred
A45: 5. Total recurrent/capital grants and subsidies must reconcile to the 'Financial Performance' Statement

Sheet SC7(1)
A1: =muni& " - "&S71M& " - "&Head57 -> LIM355 Lepelle-Nkumpi - Supporting Table SC7(1) Monthly Budget Statement - transfers and grant expenditure - M04 October
A2: =desc -> Description | B2: =head27 -> Ref | C2: =Head1 -> 2022/23 | D2: =Head2 -> Budget Year 2023/24
C3: =Head5 -> Audited Outcome | D3: =Head6 -> Original Budget | E3: =Head7 -> Adjusted Budget | F3: =Head38 -> Monthly actual | G3: =Head39 -> YearTD actual | H3: =Head40 -> YearTD budget | I3: =Head41 -> YTD variance | J3: =Head41 -> YTD variance | K3: =Head8 -> Full Year Forecast
A4: R thousands | J4: %
A5: EXPENDITURE
A7: Operating expenditure of Transfers and Grants
A8: ='SC6'!A8 -> National Government: | C8: =SUM(C9:C14) -> 335287105.7 | D8: 327261594 | E8: 327261594 | F8: 19674143.66 | G8: 83713685.49 | H8: 109088144 | I8: -25374458.51 | J8: =IF(I8=0,"",I8/H8) -> -0.2326050988 | K8: =SUM(K9:K14) -> 327261594
I9: =G9-H9 -> 0
A10: Equitable Share | C10: 331449883.9 | D10: 319604994 | E10: 319604994 | F10: 18674433.87 | G10: 82106829.49 | H10: 106535924 | I10: =G10-H10 -> -24429094.51 | J10: =IF(H10=0,"",I10/H10) -> -0.2293038216 | K10: 319604994
A11: Expanded Public Works Programme Integrated Grant | C11: 1332925.22 | D11: 2440000 | E11: 2440000 | F11: 408020 | G11: 693759.13 | H11: 813336 | I11: =G11-H11 -> -119576.87 | J11: =IF(H11=0,"",I11/H11) -> -0.1470202598 | K11: 2440000
A12: Integrated National Electrification Programme Grant | C12: 0 | D12: 0 | E12: 0 | F12: 0 | G12: 0 | H12: 0 | I12: =G12-H12 -> 0 | J12: =IF(H12=0,"",I12/H12) ->  | K12: 0
A13: Local Government Financial Management Grant | C13: 1510682.03 | D13: 2000000 | E13: 2000000 | F13: 481694.99 | G13: 564412.46 | H13: 666676 | I13: =G13-H13 -> -102263.54 | J13: =IF(H13=0,"",I13/H13) -> -0.1533931625 | K13: 2000000
A14: Municipal Infrastructure Grant | C14: 993614.56 | D14: 3216600 | E14: 3216600 | F14: 109994.8 | G14: 348684.41 | H14: 1072208 | I14: =G14-H14 -> -723523.59 | J14: =IF(H14=0,"",I14/H14) -> -0.6747977911 | K14: 3216600
A15: ='SC6'!A16 -> Provincial Government: | C15: =SUM(C16:C17) -> 0 | D15: 397305 | E15: 397305 | F15: 0 | G15: 0 | H15: 132436 | I15: -132436 | J15: -1 | K15: =SUM(K16:K17) -> 397305
I16: =G16-H16 -> 0
A17: Capacity Building and Other Grants | C17: 0 | D17: 397305 | E17: 397305 | F17: 0 | G17: 0 | H17: 132436 | I17: =G17-H17 -> -132436 | J17: =IF(H17=0,"",I17/H17) -> -1 | K17: 397305
A18: ='SC6'!A19 -> District Municipality: | C18: =SUM(C19:C19) -> 0 | D18: 0 | E18: 0 | F18: 0 | G18: 0 | H18: 0 | I18: 0 | K18: =SUM(K19:K19) -> 0
A19: Specify (Add grant description) | C19: 0 | D19: 0 | E19: 0 | F19: 0 | G19: 0 | H19: 0 | I19: =G19-H19 -> 0 | J19: =IF(H19=0,"",I19/H19) ->  | K19: 0
A20: ='SC6'!A21 -> Other grant providers: | C20: =SUM(C21:C21) -> 0 | D20: 0 | E20: 0 | F20: 0 | G20: 0 | H20: 0 | I20: 0 | K20: =SUM(K21:K21) -> 0
I21: 0
A22: Total operating expenditure of Transfers and Grants: | C22: =C8+C15+C18+C20 -> 335287105.7 | D22: 327658899 | E22: 327658899 | F22: 19674143.66 | G22: 83713685.49 | H22: 109220580 | I22: -25506894.51 | J22: -0.2335356076 | K22: =K8+K15+K18+K20 -> 327658899
A24: Capital expenditure of Transfers and Grants
A25: ='SC6'!A27 -> National Government: | C25: =SUM(C26:C28) -> 0 | D25: 76015400 | E25: 76015400 | F25: 19202180.05 | G25: 33466099.54 | H25: 25338488 | I25: 8127611.54 | J25: =IF(I25=0,"",I25/H25) -> 0.3207615048 | K25: =SUM(K26:K28) -> 76015400
A26: Integrated National Electrification Programme Grant | C26: 0 | D26: 14900000 | E26: 14900000 | F26: 0 | G26: 0 | H26: 4966676 | I26: =G26-H26 -> -4966676 | J26: =IF(H26=0,"",I26/H26) -> -1 | K26: 14900000
A27: Municipal Disaster Relief Grant | C27: 0 | D27: 0 | E27: 0 | F27: 0 | G27: 0 | H27: 0 | I27: =G27-H27 -> 0 | J27: =IF(H27=0,"",I27/H27) ->  | K27: 0
A28: Municipal Infrastructure Grant | C28: 0 | D28: 61115400 | E28: 61115400 | F28: 19202180.05 | G28: 33466099.54 | H28: 20371812 | I28: =G28-H28 -> 13094287.54 | J28: =IF(H28=0,"",I28/H28) -> 0.6427649902 | K28: 61115400
A29: ='SC6'!A31 -> Provincial Government: | C29: =SUM(C30:C30) -> 0 | D29: 0 | E29: 0 | F29: 0 | G29: 0 | H29: 0 | I29: =G29-H29 -> 0 | K29: =SUM(K30:K30) -> 0
A30: Infrastructure Grant | C30: 0 | D30: 0 | E30: 0 | F30: 0 | G30: 0 | H30: 0 | I30: =G30-H30 -> 0 | J30: =IF(H30=0,"",I30/H30) ->  | K30: 0
A31: ='SC6'!A33 -> District Municipality: | C31: =SUM(C32:C32) -> 0 | D31: 0 | E31: 0 | F31: 0 | G31: 0 | H31: 0 | I31: 0 | K31: =SUM(K32:K32) -> 0
I32: 0
A33: ='SC6'!A35 -> Other grant providers: | C33: =SUM(C34:C34) -> 0 | D33: 0 | E33: 0 | F33: 0 | G33: 0 | H33: 0 | I33: 0 | K33: =SUM(K34:K34) -> 0
I34: 0
A35: Total capital expenditure of Transfers and Grants | C35: =C25+C29+C31+C33 -> 0 | D35: 76015400 | E35: 76015400 | F35: 19202180.05 | G35: 33466099.54 | H35: 25338488 | I35: 8127611.54 | J35: =IF(I35=0,"",I35/H35) -> 0.3207615048 | K35: =K25+K29+K31+K33 -> 76015400
A37: TOTAL EXPENDITURE OF TRANSFERS AND GRANTS | C37: =C22+C35 -> 335287105.7 | D37: 403674299 | E37: 403674299 | F37: 38876323.71 | G37: 117179785 | H37: 134559068 | I37: -17379282.97 | J37: =IF(I37=0,"",I37/H37) -> -0.1291572781 | K37: =K22+K35 -> 403674299
A38: =head27a -> References

Sheet SC7(2)
A1: =muni& " - "&S71T& " - "&Head57 -> LIM355 Lepelle-Nkumpi - Supporting Table SC7(2) Monthly Budget Statement - Expenditure against approved rollovers - M04 October
A2: =desc -> Description | B2: =head27 -> Ref | C2: =Head2 -> Budget Year 2023/24
C3: ="Approved Rollover " &Head1 -> Approved Rollover 2022/23 | D3: =Head38 -> Monthly actual | E3: =Head39 -> YearTD actual | F3: =Head41 -> YTD variance | G3: =Head41 -> YTD variance
A4: R thousands | G4: %
A5: EXPENDITURE
A7: Operating expenditure of Approved Roll-overs
A8: ='SC6'!A8 -> National Government: | C8: =SUM(C9:C9) -> 0 | D8: =SUM(D9:D9) -> 0 | E8: =SUM(E9:E9) -> 0 | F8: =C8-E8 -> 0 | G8: =IF(F8=0,"",F8/C8) -> 
F9: =C9-E9 -> 0 | G9: =IF(F9=0,"",F9/C9) -> 
A10: ='SC6'!A16 -> Provincial Government: | C10: =SUM(C11:C11) -> 0 | D10: =SUM(D11:D11) -> 0 | E10: =SUM(E11:E11) -> 0 | F10: =C10-E10 -> 0
F11: 0
A12: ='SC6'!A19 -> District Municipality: | C12: =SUM(C13:C13) -> 0 | D12: =SUM(D13:D13) -> 0 | E12: =SUM(E13:E13) -> 0 | F12: 0
F13: 0
A14: ='SC6'!A21 -> Other grant providers: | C14: =SUM(C15:C15) -> 0 | D14: =SUM(D15:D15) -> 0 | E14: =SUM(E15:E15) -> 0 | F14: 0
F15: 0
A16: Total operating expenditure of Approved Roll-overs | C16: =C8+C10+C12+C14 -> 0 | D16: =D8+D10+D12+D14 -> 0 | E16: =E8+E10+E12+E14 -> 0 | F16: =F8+F10+F12+F14 -> 0
A18: Capital expenditure of Approved Roll-overs
A19: ='SC6'!A27 -> National Government: | C19: =SUM(C20:C20) -> 0 | D19: =SUM(D20:D20) -> 0 | E19: =SUM(E20:E20) -> 0 | F19: =SUM(F20:F20) -> 0
F20: =C20-E20 -> 0
A21: ='SC6'!A31 -> Provincial Government: | C21: =SUM(C22:C22) -> 0 | D21: =SUM(D22:D22) -> 0 | E21: =SUM(E22:E22) -> 0 | F21: 0
F22: =C22-E22 -> 0
A23: ='SC6'!A33 -> District Municipality: | C23: =SUM(C24:C24) -> 0 | D23: =SUM(D24:D24) -> 0 | E23: =SUM(E24:E24) -> 0 | F23: 0
F24: 0
A25: ='SC6'!A35 -> Other grant providers: | C25: =SUM(C26:C26) -> 0 | D25: =SUM(D26:D26) -> 0 | E25: =SUM(E26:E26) -> 0 | F25: 0
F26: 0
A27: Total capital expenditure of Approved Roll-overs | C27: =C19+C21+C23+C25 -> 0 | D27: =D19+D21+D23+D25 -> 0 | E27: =E19+E21+E23+E25 -> 0 | F27: =F19+F21+F23+F25 -> 0
A29: TOTAL EXPENDITURE OF APPROVED ROLL-OVERS | C29: =C16+C27 -> 0 | D29: =D16+D27 -> 0 | E29: =E16+E27 -> 0 | F29: =F16+F27 -> 0
A30: =head27a -> References

Sheet SC8
A1: =muni& " - "&S71N& " - "&Head57 -> LIM355 Lepelle-Nkumpi - Supporting Table SC8 Monthly Budget Statement - councillor and staff benefits - M04 October
A2: Summary of Employee and Councillor remuneration | B2: =head27 -> Ref | C2: =Head1 -> 2022/23 | D2: =Head2 -> Budget Year 2023/24
C3: =Head5 -> Audited Outcome | D3: =Head6 -> Original Budget | E3: =Head7 -> Adjusted Budget | F3: =Head38 -> Monthly actual | G3: =Head39 -> YearTD actual | H3: =Head40 -> YearTD budget | I3: =Head41 -> YTD variance | J3: =Head41 -> YTD variance | K3: =Head8 -> Full Year Forecast
A4: R thousands | J4: %
B5: 1 | C5: A | D5: B | E5: C | K5: D
A6: Councillors (Political Office Bearers plus Other)
A7: Basic Salaries and Wages | C7: 18173684.3 | D7: 20523304 | E7: 20523304 | F7: 1971251.15 | G7: 6881012.56 | H7: 6841112 | I7: =G7-H7 -> 39900.56 | J7: =IF(I7=0,"",I7/H7) -> 0.005832467002 | K7: 20523304
A8: Pension and UIF Contributions | C8: 0 | D8: 0 | E8: 0 | F8: 0 | G8: 0 | H8: 0 | I8: 0 | K8: 0
A9: Medical Aid Contributions | C9: 0 | D9: 0 | E9: 0 | F9: 0 | G9: 0 | H9: 0 | I9: 0 | K9: 0
A10: Motor Vehicle Allowance | C10: 0 | D10: 266599 | E10: 266599 | F10: 21879.33 | G10: 42957.68 | H10: 88868 | I10: =G10-H10 -> -45910.32 | J10: =IF(I10=0,"",I10/H10) -> -0.5166125039 | K10: 266599
A11: Cellphone Allowance | C11: 2668709.1 | D11: 2813547 | E11: 2813547 | F11: 274080 | G11: 944789.1 | H11: 937864 | I11: =G11-H11 -> 6925.1 | J11: =IF(I11=0,"",I11/H11) -> 0.007383906409 | K11: 2813547
A12: Housing Allowances | C12: 0 | D12: 0 | E12: 0 | F12: 68 | G12: 68 | H12: 0 | I12: =G12-H12 -> 68 | J12: =IF(I12=0,"",I12/H12) ->  | K12: 0
A13: Other benefits and allowances | C13: 2261048.84 | D13: 0 | E13: 0 | F13: 0 | G13: 188420.75 | H13: 0 | I13: 188420.75 | K13: 0
A14: Sub Total - Councillors | C14: =SUM(C7:C13) -> 23103442.24 | D14: 23603450 | E14: 23603450 | F14: 2267278.48 | G14: 8057248.09 | H14: 7867844 | I14: 189404.09 | J14: 0.02407318828 | K14: 23603450
A15: % increase | B15: 4 | D15: =IF(D14=0,"",(D14/C14)-1) -> 0.02164213258 | E15: =IF(E14=0,"",(E14/C14)-1) -> 0.02164213258 | K15: =IF(K14=0,"",(K14/C14)-1) -> 0.02164213258
A17: Senior Managers of the Municipality | B17: 3
A18: Basic Salaries and Wages | C18: 2571032.33 | D18: 6738754 | E18: 6738754 | F18: 106907.11 | G18: 429323.44 | H18: 2246260 | I18: =G18-H18 -> -1816936.56 | J18: =IF(I18=0,"",I18/H18) -> -0.8088718848 | K18: 6738754
A19: Pension and UIF Contributions | C19: 0 | D19: 0 | E19: 0 | F19: 0 | G19: 0 | H19: 0 | I19: 0 | K19: 0
A20: Medical Aid Contributions | C20: 0 | D20: 0 | E20: 0 | F20: 0 | G20: 0 | H20: 0 | I20: 0 | K20: 0
A21: Overtime | C21: 0 | D21: 0 | E21: 0 | F21: 0 | G21: 0 | H21: 0 | I21: 0 | K21: 0
A22: Performance Bonus | C22: 0 | D22: 0 | E22: 0 | F22: 0 | G22: 0 | H22: 0 | I22: =G22-H22 -> 0 | J22: =IF(I22=0,"",I22/H22) ->  | K22: 0
A23: Motor Vehicle Allowance | C23: 0 | D23: 0 | E23: 0 | F23: 0 | G23: 0 | H23: 0 | I23: =G23-H23 -> 0 | J23: =IF(I23=0,"",I23/H23) ->  | K23: 0
A24: Cellphone Allowance | C24: 70000 | D24: 288000 | E24: 288000 | F24: 3000 | G24: 12000 | H24: 96000 | I24: =G24-H24 -> -84000 | J24: =IF(I24=0,"",I24/H24) -> -0.875 | K24: 288000
A25: Housing Allowances | C25: 0 | D25: 0 | E25: 0 | F25: 0 | G25: 0 | H25: 0 | I25: =G25-H25 -> 0 | J25: =IF(I25=0,"",I25/H25) ->  | K25: 0
A26: Other benefits and allowances | C26: 0 | D26: 0 | E26: 0 | F26: 0 | G26: 0 | H26: 0 | I26: 0 | K26: 0
A27: Payments in lieu of leave | C27: 0 | D27: 0 | E27: 0 | F27: 0 | G27: 0 | H27: 0 | I27: 0 | K27: 0
A28: Long service awards | C28: 0 | D28: 0 | E28: 0 | F28: 0 | G28: 0 | H28: 0 | I28: 0 | K28: 0
A29: Post-retirement benefit obligations | B29: 2 | I29: 0
A30: Entertainment | C30: 0 | D30: 0 | E30: 0 | F30: 0 | G30: 0 | H30: 0 | K30: 0
A31: Scarcity | C31: 0 | D31: 0 | E31: 0 | F31: 0 | G31: 0 | H31: 0 | K31: 0
A32: Acting and post related allowance | C32: 0 | D32: 0 | E32: 0 | F32: 0 | G32: 0 | H32: 0 | K32: 0
A33: In kind benefits | C33: 0 | D33: 0 | E33: 0 | F33: 0 | G33: 0 | H33: 0 | K33: 0
A34: Sub Total - Senior Managers of Municipality | C34: =SUM(C18:C33) -> 2641032.33 | D34: =SUM(D18:D33) -> 7026754 | E34: 7026754 | F34: 109907.11 | G34: 441323.44 | H34: 2342260 | I34: -1900936.56 | J34: =IF(I34=0,"",I34/H34) -> -0.8115822155 | K34: =SUM(K18:K33) -> 7026754
A35: % increase | B35: 4 | D35: =IF(D34=0,"",(D34/C34)-1) -> 1.660608854 | E35: =IF(E34=0,"",(E34/C34)-1) -> 1.660608854 | K35: =IF(K34=0,"",(K34/C34)-1) -> 1.660608854
A37: Other Municipal Staff
A38: Basic Salaries and Wages | C38: 59932284.52 | D38: 84606165 | E38: 84606165 | F38: 5266156.68 | G38: 19870965.83 | H38: 28202124 | I38: =G38-H38 -> -8331158.17 | J38: =IF(I38=0,"",I38/H38) -> -0.2954088908 | K38: 84606165
A39: Pension and UIF Contributions | C39: 12342540.18 | D39: 17302351 | E39: 17302351 | F39: 1050236.45 | G39: 4143265.44 | H39: 5767576 | I39: -1624310.56 | J39: -0.2816279421 | K39: 17302351
A40: Medical Aid Contributions | C40: 3779829.36 | D40: 5413387 | E40: 5413387 | F40: 323634.36 | G40: 1282409.76 | H40: 1804492 | I40: -522082.24 | J40: -0.2893236656 | K40: 5413387
A41: Overtime | C41: 1765049.35 | D41: 994774 | E41: 994774 | F41: 108879.04 | G41: 332631.58 | H41: 331616 | I41: 1015.58 | J41: 0.003062518093 | K41: 994774
A42: Performance Bonus | C42: 4910451.4 | D42: 5062539 | E42: 5062539 | F42: 420232.92 | G42: 1729946.05 | H42: 1687572 | I42: 42374.05 | J42: 0.02510947681 | K42: 5062539
A43: Motor Vehicle Allowance | C43: 7489493.67 | D43: 9919834 | E43: 9919834 | F43: 645063.34 | G43: 2514119.87 | H43: 3306660 | I43: =G43-H43 -> -792540.13 | J43: =IF(I43=0,"",I43/H43) -> -0.239679958 | K43: 9919834
A44: Cellphone Allowance | C44: 1893615 | D44: 2451000 | E44: 2451000 | F44: 150870 | G44: 607080 | H44: 817000 | I44: =G44-H44 -> -209920 | J44: =IF(I44=0,"",I44/H44) -> -0.2569400245 | K44: 2451000
A45: Housing Allowances | C45: 279248.52 | D45: 358315 | E45: 358315 | F45: 24527.43 | G45: 94910.49 | H45: 119472 | I45: =G45-H45 -> -24561.51 | J45: =IF(I45=0,"",I45/H45) -> -0.2055838188 | K45: 358315
A46: Other benefits and allowances | C46: 145607.39 | D46: 206549 | E46: 206549 | F46: 16996.92 | G46: 48997.27 | H46: 68900 | I46: -19902.73 | J46: -0.2888640058 | K46: 206549
A47: Payments in lieu of leave | C47: 618137.86 | D47: 3523370 | E47: 3523370 | F47: 0 | G47: 73937.68 | H47: 1174512 | I47: -1100574.32 | J47: -0.9370481698 | K47: 3523370
A48: Long service awards | C48: 988966 | D48: 1058980 | E48: 1058980 | F48: 0 | G48: 114951.9 | H48: 353036 | I48: -238084.1 | J48: -0.6743904304 | K48: 1058980
A49: Post-retirement benefit obligations | B49: 2 | C49: 219222 | D49: 0 | E49: 0 | F49: -219222 | G49: -219222 | H49: 0 | I49: -219222 | K49: 0
A50: Entertainment | C50: 0 | D50: 0 | E50: 0 | F50: 0 | G50: 0 | H50: 0 | I50: 0 | K50: 0
A51: Scarcity | C51: 965414.97 | D51: 2377029 | E51: 2377029 | F51: 109994.8 | G51: 348684.41 | H51: 792344 | I51: -443659.59 | J51: -0.5599330468 | K51: 2377029
A52: Acting and post related allowance | C52: 1685453.52 | D52: 1895266 | E52: 1895266 | F52: 219578.16 | G52: 513305.28 | H52: 631772 | I52: -118466.72 | J52: -0.1875149896 | K52: 1895266
A53: In kind benefits | C53: 0 | D53: 0 | E53: 0 | F53: 0 | G53: 0 | H53: 0 | I53: 0 | K53: 0
A54: Sub Total - Other Municipal Staff | C54: =SUM(C38:C53) -> 97015313.74 | D54: 135169559 | E54: 135169559 | F54: 8116948.1 | G54: 31455983.56 | H54: 45057076 | I54: -13601092.44 | J54: =IF(I54=0,"",I54/H54) -> -0.3018636283 | K54: =SUM(K38:K53) -> 135169559
A55: % increase | B55: 4 | D55: =IF(D54=0,"",(D54/C54)-1) -> 0.393280646 | E55: =IF(E54=0,"",(E54/C54)-1) -> 0.393280646 | K55: =IF(K54=0,"",(K54/C54)-1) -> 0.393280646
A56: Total Parent Municipality | C56: =C14+C34+C54 -> 122759788.3 | D56: 165799763 | E56: 165799763 | F56: 10494133.69 | G56: 39954555.09 | H56: 55267180 | I56: =G56-H56 -> -15312624.91 | J56: =IF(I56=0,"",I56/H56) -> -0.2770654285 | K56: =K14+K34+K54 -> 165799763
D57: =IF(D56=0,"",(D56/C56)-1) -> 0.3506032006 | E57: =IF(E56=0,"",(E56/C56)-1) -> 0.3506032006 | K57: =IF(K56=0,"",(K56/C56)-1) -> 0.3506032006
A58: Unpaid salary, allowances & benefits in arrears:
A60: Board Members of Entities
A61: Basic Salaries and Wages | I61: =G61-H61 -> 0 | J61: =IF(I61=0,"",I61/H61) -> 
A62: Pension and UIF Contributions | I62: 0
A63: Medical Aid Contributions | I63: 0
A64: Overtime | I64: 0 | J64: =IF(I64=0,"",I64/H64) -> 
A65: Performance Bonus | I65: 0 | J65: =IF(I65=0,"",I65/H65) -> 
A66: Motor Vehicle Allowance | I66: 0 | J66: =IF(I66=0,"",I66/H66) -> 
A67: Cellphone Allowance | I67: 0 | J67: =IF(I67=0,"",I67/H67) -> 
A68: Housing Allowances | I68: 0 | J68: =IF(I68=0,"",I68/H68) -> 
A69: Other benefits and allowances | I69: 0
A70: Board Fees | B70: 5 | I70: 0 | J70: =IF(I70=0,"",I70/H70) -> 
A71: Payments in lieu of leave | I71: 0
A72: Long service awards | I72: 0
A73: Post-retirement benefit obligations | I73: 0
A74: Entertainment
A75: Scarcity
A76: Acting and post related allowance
A77: In kind benefits
A78: Sub Total - Executive members Board | B78: 2 | C78: =SUM(C61:C77) -> 0 | D78: 0 | E78: 0 | F78: 0 | G78: 0 | H78: 0 | I78: =G78-H78 -> 0 | J78: =IF(I78=0,"",I78/H78) ->  | K78: =SUM(K61:K77) -> 0
A79: % increase | B79: 4 | D79: =IF(D78=0,"",(D78/C78)-1) ->  | E79: =IF(E78=0,"",(E78/C78)-1) ->  | K79: =IF(K78=0,"",(K78/C78)-1) -> 
A81: Senior Managers of Entities
A82: Basic Salaries and Wages | I82: =G82-H82 -> 0 | J82: =IF(I82=0,"",I82/H82) -> 
A83: Pension and UIF Contributions | I83: 0
A84: Medical Aid Contributions | I84: 0
A85: Overtime | I85: 0
A86: Performance Bonus | I86: =G86-H86 -> 0 | J86: =IF(I86=0,"",I86/H86) -> 
A87: Motor Vehicle Allowance | I87: =G87-H87 -> 0 | J87: =IF(I87=0,"",I87/H87) -> 
A88: Cellphone Allowance | I88: =G88-H88 -> 0 | J88: =IF(I88=0,"",I88/H88) -> 
A89: Housing Allowances | I89: =G89-H89 -> 0 | J89: =IF(I89=0,"",I89/H89) -> 
A90: Other benefits and allowances | I90: 0
A91: Payments in lieu of leave | I91: 0
A92: Long service awards | I92: 0
A93: Post-retirement benefit obligations | B93: 2 | I93: 0
A94: Entertainment
A95: Scarcity
A96: Acting and post related allowance
A97: In kind benefits
A98: Sub Total - Senior Managers of Entities | C98: =SUM(C82:C97) -> 0 | D98: 0 | E98: 0 | F98: 0 | G98: 0 | H98: 0 | I98: 0 | J98: =IF(I98=0,"",I98/H98) ->  | K98: =SUM(K82:K97) -> 0
A99: % increase | B99: 4 | D99: =IF(D98=0,"",(D98/C98)-1) ->  | E99: =IF(E98=0,"",(E98/C98)-1) ->  | K99: =IF(K98=0,"",(K98/C98)-1) -> 
A101: Other Staff of Entities
A102: Basic Salaries and Wages | I102: =G102-H102 -> 0 | J102: =IF(I102=0,"",I102/H102) -> 
A103: Pension and UIF Contributions | I103: 0
A104: Medical Aid Contributions | I104: =G104-H104 -> 0 | J104: =IF(I104=0,"",I104/H104) -> 
A105: Overtime | I105: =G105-H105 -> 0 | J105: =IF(I105=0,"",I105/H105) -> 
A106: Performance Bonus | I106: =G106-H106 -> 0 | J106: =IF(I106=0,"",I106/H106) -> 
A107: Motor Vehicle Allowance | I107: =G107-H107 -> 0 | J107: =IF(I107=0,"",I107/H107) -> 
A108: Cellphone Allowance | I108: 0
A109: Housing Allowances | I109: 0
A110: Other benefits and allowances | I110: 0
A111: Payments in lieu of leave | I111: 0
A112: Long service awards | I112: 0
A113: Post-retirement benefit obligations | I113: 0
A114: Entertainment
A115: Scarcity
A116: Acting and post related allowance
A117: In kind benefits
A118: Sub Total - Other Staff of Entities | C118: =SUM(C102:C117) -> 0 | D118: 0 | E118: 0 | F118: 0 | G118: 0 | H118: 0 | I118: 0 | J118: =IF(I118=0,"",I118/H118) ->  | K118: =SUM(K102:K117) -> 0
A119: % increase | B119: 4 | D119: =IF(D118=0,"",(D118/C118)-1) ->  | E119: =IF(E118=0,"",(E118/C118)-1) ->  | K119: =IF(K118=0,"",(K118/C118)-1) -> 
A120: Total Municipal Entities | C120: =C78+C98+C118 -> 0 | D120: 0 | E120: 0 | F120: 0 | G120: 0 | H120: 0 | I120: =G120-H120 -> 0 | J120: =IF(I120=0,"",I120/H120) ->  | K120: =K78+K98+K118 -> 0
A121: TOTAL SALARY, ALLOWANCES & BENEFITS | C121: =C56+C120 -> 122759788.3 | D121: 165799763 | E121: 165799763 | F121: 10494133.69 | G121: 39954555.09 | H121: 55267180 | I121: =G121-H121 -> -15312624.91 | J121: =IF(I121=0,"",I121/H121) -> -0.2770654285 | K121: =K56+K120 -> 165799763
A122: % increase | B122: 4 | D122: =IF(D121=0,"",(D121/C121)-1) -> 0.3506032006 | E122: =IF(E121=0,"",(E121/C121)-1) -> 0.3506032006 | K122: =IF(K121=0,"",(K121/C121)-1) -> 0.3506032006
A123: TOTAL MANAGERS AND STAFF | C123: =C34+C54+C98+C118 -> 99656346.07 | D123: 142196313 | E123: 142196313 | F123: 8226855.21 | G123: 31897307 | H123: 47399336 | I123: -15502029 | J123: =IF(I123=0,"",I123/H123) -> -0.3270516068 | K123: =K34+K54+K98+K118 -> 142196313
A124: =head27a -> References
A125: 1. Include 'Loans and advances' where applicable if any reportable amounts until phased compliance with s164 of MFMA achieved
A126: 2. If benefits in kind are provided (e.g. provision of living quarters) the full market value must be shown as the cost to the municipality
A127: 3. s57 of the Systems Act
A128: 4. B/A, C/A, D/A
A129: 5. Included in Contracted services
A130: Column Definitions:
A131: A. Audited actual 2022/23 (audited financial statements). If audited amounts unavailable, unaudited amounts must be provided with a note stating these are unaudited
A132: B. The original budget approved by council for the 2023/24 budget year.
A133: C. The budget for 2023/24 budget year as adjusted by council resolution in terms of section 28 of the MFMA.
A134: D. An estimate of final actual amounts (pre audit - 2006/07 budget year) at the time of preparing the budget for the 2007/08 budget year. This may differ from C.

Sheet SC9
A1: =muni& " - "&S71O& " - "&Head57 -> LIM355 Lepelle-Nkumpi - Supporting Table SC9 Monthly Budget Statement - actuals and revised targets for cash receipts - M04 October
A2: =desc -> Description | B2: =head27 -> Ref | C2: =Head2 -> Budget Year 2023/24 | O2: ='Template names'!B5 -> 2023/24 Medium Term Revenue & Expenditure Framework
C3: July | D3: August | E3: Sept | F3: October | G3: Nov | H3: Dec | I3: January | J3: Feb | K3: March | L3: April | M3: May | N3: June | O3: =Head9 -> Budget Year 2023/24 | P3: =Head10 -> Budget Year +1 2024/25 | Q3: =Head11 -> Budget Year +2 2025/26
A4: R thousands | B4: 1 | C4: Outcome | D4: Outcome | E4: Outcome | F4: Outcome | G4: Budget | H4: Budget | I4: Budget | J4: Budget | K4: Budget | L4: Budget | M4: Budget | N4: Budget
A5: Cash Receipts By Source
A6: Property rates | C6: 1161791.27 | D6: 821379.46 | E6: 1101938.35 | F6: 0 | G6: 1130056.42 | H6: 1130056.42 | I6: 1130056.42 | J6: 1130056.42 | K6: 1130056.42 | L6: 1130056.42 | M6: 1130056.42 | N6: =O6-SUM(C6:M6) -> 2565172.98 | O6: 13560677 | P6: 14198028 | Q6: 14893732
A7: Service charges - Electricity revenue | N7: 0
A8: Service charges - Water revenue | C8: 1790834.51 | D8: 1405703.38 | E8: 1471804.1 | F8: 0 | G8: 0 | H8: 0 | I8: 0 | J8: 0 | K8: 0 | L8: 0 | M8: 0 | N8: -4668341.99 | O8: 0 | P8: 0 | Q8: 0
A9: Service charges - Waste Water Management | C9: 195881.93 | D9: 126462.66 | E9: 104504.32 | F9: 0 | G9: 0 | H9: 0 | I9: 0 | J9: 0 | K9: 0 | L9: 0 | M9: 0 | N9: -426848.91 | O9: 0 | P9: 0 | Q9: 0
A10: Service charges - Waste Mangement | C10: 353831.15 | D10: 291894.16 | E10: 215379.22 | F10: 0 | G10: 254751.42 | H10: 254751.42 | I10: 254751.42 | J10: 254751.42 | K10: 254751.42 | L10: 254751.42 | M10: 254751.42 | N10: 412652.53 | O10: 3057017 | P10: 3200705 | Q10: 3357531
N11: 0
A12: Rental of facilities and equipment | C12: 33365.05 | D12: 22408.54 | E12: 19017.24 | F12: 0 | G12: 29309 | H12: 29309 | I12: 29309 | J12: 29309 | K12: 29309 | L12: 29309 | M12: 29309 | N12: 71754.17 | O12: 351708 | P12: 368942 | Q12: 386283
A13: Interest earned - external investments | C13: 0 | D13: 3345388.6 | E13: 2058787.96 | F13: 0 | G13: 2296392.83 | H13: 2296392.83 | I13: 2296392.83 | J13: 2296392.83 | K13: 2296392.83 | L13: 2296392.83 | M13: 2296392.83 | N13: 6077787.63 | O13: 27556714 | P13: 28906994 | Q13: 30265623
A14: Interest earned - outstanding debtors | N14: 0
A15: Dividends received | C15: 0 | D15: 0 | E15: 0 | F15: 0 | G15: 0 | H15: 0 | I15: 0 | J15: 0 | K15: 0 | L15: 0 | M15: 0 | N15: 0 | O15: 0 | P15: 0 | Q15: 0
A16: Fines, penalties and forfeits | C16: 0 | D16: 0 | E16: 0 | F16: 0 | G16: 1036 | H16: 1036 | I16: 1036 | J16: 1036 | K16: 1036 | L16: 1036 | M16: 1036 | N16: 5180 | O16: 12432 | P16: 13041 | Q16: 13654
A17: Licences and permits | C17: 0 | D17: 0 | E17: 0 | F17: 0 | G17: 558.67 | H17: 558.67 | I17: 558.67 | J17: 558.67 | K17: 558.67 | L17: 558.67 | M17: 558.67 | N17: 2793.31 | O17: 6704 | P17: 7033 | Q17: 7363
A18: Agency services | C18: 288337.5 | D18: 2740827.33 | E18: 695584.54 | F18: 0 | G18: 3924796 | H18: 3924796 | I18: 3924796 | J18: 3924796 | K18: 3924796 | L18: 3924796 | M18: 3924796 | N18: 15899230.63 | O18: 47097552 | P18: 49405332 | Q18: 51727383
A19: Transfers and Subsidies - Operational | C19: 0 | D19: 2311000 | E19: 0 | F19: 0 | G19: 27003750 | H19: 27003750 | I19: 27003750 | J19: 27003750 | K19: 27003750 | L19: 27003750 | M19: 27003750 | N19: 132707750 | O19: 324045000 | P19: 341313000 | Q19: 328758000
A20: Other revenue | C20: -1815197.88 | D20: 160931561.7 | E20: 15382347.71 | F20: 0 | G20: 13267369.83 | H20: 13267369.83 | I20: 13267369.83 | J20: 13267369.83 | K20: 13267369.83 | L20: 13267369.83 | M20: 13267369.83 | N20: -108161862.4 | O20: 159208438 | P20: 186480014 | Q20: 195544852
A21: Cash Receipts by Source | C21: =SUM(C6:C10)+SUM(C15:C20) -> 1975478.48 | D21: 168628828.7 | E21: 18971558.24 | F21: 0 | G21: 45582318.34 | H21: 45582318.34 | I21: 45582318.34 | J21: 45582318.34 | K21: 45582318.34 | L21: 45582318.34 | M21: 45582318.34 | N21: 38335726.2 | O21: 546987820 | P21: 594617153 | Q21: 594302515
A22: Other Cash Flows by Source | N22: =O22-SUM(C22:M22) -> 0
A23: Transfers and subsidies - capital (monetary allocations) (National / Provincial and District) | C23: 0 | D23: 13409000 | E23: 0 | F23: 0 | G23: 6602666.67 | H23: 6602666.67 | I23: 6602666.67 | J23: 6602666.67 | K23: 6602666.67 | L23: 6602666.67 | M23: 6602666.67 | N23: 19604333.31 | O23: 79232000 | P23: 76613000 | Q23: 80033000
A24: Transfers and subsidies - capital (monetary allocations) (Nat / Prov Departm Agencies, Households, Non-profit Institutions, Private Enterprises, Public Corporatons, Higher Educ Institutions) | N24: 0
A25: Proceeds on Disposal of Fixed and Intangible Assets | C25: 3909145.82 | D25: -3909145.82 | E25: 0 | F25: 0 | G25: 6142.5 | H25: 6142.5 | I25: 6142.5 | J25: 6142.5 | K25: 6142.5 | L25: 6142.5 | M25: 6142.5 | N25: 30712.5 | O25: 73710 | P25: 77322 | Q25: 80956
A26: Short term loans | N26: 0
A27: Borrowing long term/refinancing | N27: 0
A28: Increase (decrease) in consumer deposits | C28: 0 | D28: -7500 | E28: -5500 | F28: 0 | G28: 5080.84 | H28: 5080.84 | I28: 5080.84 | J28: 5080.84 | K28: 5080.84 | L28: 5080.84 | M28: 5080.84 | N28: 38404.12 | O28: 60970 | P28: 63836 | Q28: 66964
A30: Decrease (increase) in non-current receivables | C30: 0 | D30: 0 | E30: 0 | F30: 0 | G30: 0 | H30: 0 | I30: 0 | J30: 0 | K30: 0 | L30: 0 | M30: 0 | N30: 0 | O30: 0 | P30: 0 | Q30: 0
A31: Decrease (increase) in non-current investments | C31: 0 | D31: 0 | E31: 0 | F31: 0 | G31: 0 | H31: 0 | I31: 0 | J31: 0 | K31: 0 | L31: 0 | M31: 0 | N31: 0 | O31: 0 | P31: 0 | Q31: 0
A32: Total Cash Receipts by Source | C32: =SUM(C21:C28)+SUM(C30:C31) -> 5884624.3 | D32: 178121182.9 | E32: 18966058.24 | F32: 0 | G32: 52196208.35 | H32: 52196208.35 | I32: 52196208.35 | J32: 52196208.35 | K32: 52196208.35 | L32: 52196208.35 | M32: 52196208.35 | N32: 58009176.13 | O32: 626354500 | P32: 671371311 | Q32: 674483435
A33: Cash Payments by Type | N33: =O33-SUM(C33:M33) -> 0
A34: Employee related costs | C34: -10241452.56 | D34: -11212841.89 | E34: -10618725.85 | F34: 0 | G34: 11944448.58 | H34: 11944448.58 | I34: 11944448.58 | J34: 11944448.58 | K34: 11944448.58 | L34: 11944448.58 | M34: 11944448.58 | N34: 91795263.24 | O34: 143333383 | P34: 146107614 | Q34: 152943180
A35: Remuneration of councillors | C35: 0 | D35: 0 | E35: 0 | F35: 0 | G35: 1965088.25 | H35: 1965088.25 | I35: 1965088.25 | J35: 1965088.25 | K35: 1965088.25 | L35: 1965088.25 | M35: 1965088.25 | N35: 9825441.25 | O35: 23581059 | P35: 24736532 | Q35: 25899150
A36: Interest | N36: 0
A37: Bulk purchases - Electricity | N37: 0
A38: Acquisitions - water & other inventory | N38: 0
A40: Contracted services | C40: 0 | D40: 0 | E40: 0 | F40: 0 | G40: -18231798 | H40: -18231798 | I40: -18231798 | J40: -18231798 | K40: -18231798 | L40: -18231798 | M40: -18231798 | N40: -91158990 | O40: -218781576 | P40: -168229633 | Q40: -135927784
A41: Transfers and subsidies - other municipalities | N41: 0
A42: Transfers and subsidies - other | N42: 0
A43: Other expenditure | C43: 18203868.09 | D43: -124538070.8 | E43: 387189756.5 | F43: 0 | G43: 13633137.42 | H43: 13633137.42 | I43: 13633137.42 | J43: 13633137.42 | K43: 13633137.42 | L43: 13633137.42 | M43: 13633137.42 | N43: -212689866.8 | O43: 163597649 | P43: 171286739 | Q43: 179679789
A44: Cash Payments by Type | B44: =SUM(B34:B43) -> 0 | C44: =SUM(C34:C43) -> 7962415.53 | D44: =SUM(D34:D43) -> -135750912.6 | E44: 376571030.7 | F44: 0 | G44: 9310876.25 | H44: 9310876.25 | I44: 9310876.25 | J44: 9310876.25 | K44: 9310876.25 | L44: 9310876.25 | M44: 9310876.25 | N44: -202228152.3 | O44: 111730515 | P44: 173901252 | Q44: 222594335
A45: Other Cash Flows/Payments by Type
A46: Capital assets | C46: -41756317.07 | D46: 34647503.43 | E46: 21451733.13 | F46: 0 | G46: 24963564.52 | H46: 24963564.52 | I46: 24963564.52 | J46: 24963564.52 | K46: 24963564.52 | L46: 24963564.52 | M46: 24963564.52 | N46: =O46-SUM(C46:M46) -> 110474902.9 | O46: 299562774 | P46: 0 | Q46: 228794031
A47: Repayment of borrowing | C47: 0 | D47: 0 | E47: 0 | F47: 0 | G47: 0 | H47: 0 | I47: 0 | J47: 0 | K47: 0 | L47: 0 | M47: 0 | N47: =O47-SUM(C47:M47) -> 0 | O47: 0 | P47: 0 | Q47: 0
A48: Other Cash Flows/Payments | C48: 0 | D48: 0 | E48: 0 | F48: 0 | G48: 0 | H48: 0 | I48: 0 | J48: 0 | K48: 0 | L48: 0 | M48: 0 | N48: =O48-SUM(C48:M48) -> 0 | O48: 0 | P48: 0 | Q48: 0
A49: Total Cash Payments by Type | B49: =SUM(B44:B48) -> 0 | C49: -33793901.54 | D49: -101103409.2 | E49: 398022763.8 | F49: 0 | G49: 34274440.77 | H49: 34274440.77 | I49: 34274440.77 | J49: 34274440.77 | K49: 34274440.77 | L49: 34274440.77 | M49: 34274440.77 | N49: -91753249.43 | O49: 411293289 | P49: 173901252 | Q49: 451388366
A50: NET INCREASE/(DECREASE) IN CASH HELD | B50: =B32-B49 -> 0 | C50: 39678525.84 | D50: 279224592.1 | E50: -379056705.5 | F50: 0 | G50: 17921767.58 | H50: 17921767.58 | I50: 17921767.58 | J50: 17921767.58 | K50: 17921767.58 | L50: 17921767.58 | M50: 17921767.58 | N50: 149762425.6 | O50: 215061211 | P50: 497470059 | Q50: 223095069
A51: Cash/cash equivalents at the month/year beginning: | C51: 546712300.8 | D51: =C52 -> 586390826.6 | E51: =D52 -> 865615418.7 | F51: 486558713.2 | G51: 486558713.2 | H51: 504480480.8 | I51: 522402248.3 | J51: 540324015.9 | K51: 558245783.5 | L51: 576167551.1 | M51: 594089318.7 | N51: 612011086.2 | O51: =C51 -> 546712300.8 | P51: =O52 -> 761773511.8 | Q51: =P52 -> 1259243571
A52: Cash/cash equivalents at the month/year end: | C52: =C50+C51 -> 586390826.6 | D52: =D50+D51 -> 865615418.7 | E52: =E50+E51 -> 486558713.2 | F52: 486558713.2 | G52: 504480480.8 | H52: 522402248.3 | I52: 540324015.9 | J52: 558245783.5 | K52: 576167551.1 | L52: 594089318.7 | M52: 612011086.2 | N52: 761773511.8 | O52: =O50+O51 -> 761773511.8 | P52: =P50+P51 -> 1259243571 | Q52: =Q50+Q51 -> 1482338640
A53: =head27a -> References
A54: 1. Replace 'budget' heading with adjusted budget, or 'outcome' only for month/s complete
A55: 2. Total of monthly amounts must always agree to the approved or adjusted budget
A56: 3. Amend 'cash-at-beginning' when prior year actual known (as part of the adjustments budget)
E61: =E44+E60 -> 376571030.7 | F61: 0 | G61: 9310876.25 | H61: 9310876.25 | I61: 9310876.25 | J61: 9310876.25 | K61: 9310876.25 | L61: 9310876.25 | N61: =N44+N60 -> -202228152.3 | O61: =O44+O60 -> 111730515 | P61: =P44+P60 -> 173901252
E62: =E50-E60 -> -379056705.5 | F62: 0 | G62: 17921767.58 | H62: 17921767.58 | I62: 17921767.58 | J62: 17921767.58 | K62: 17921767.58 | L62: 17921767.58 | M62: =M50-M60 -> 17921767.58 | N62: =N50-N60 -> 149762425.6 | O62: 215061211 | P62: 497470059

Sheet SC10
A1: =muni& " - "&S71P& " - "&Head57 -> LIM355 Lepelle-Nkumpi - NOT REQUIRED - municipality does not have entities or this is the parent municipality's budget - M04 October
A2: =desc -> Description | B2: =head27 -> Ref | C2: =Head1 -> 2022/23 | D2: =Head2 -> Budget Year 2023/24
C3: =Head5 -> Audited Outcome | D3: =Head6 -> Original Budget | E3: =Head7 -> Adjusted Budget | F3: =Head38 -> Monthly actual | G3: =Head39 -> YearTD actual | H3: =Head40 -> YearTD budget | I3: =Head41 -> YTD variance | J3: =Head41 -> YTD variance | K3: =Head8 -> Full Year Forecast
A4: R thousands | B4: 1 | J4: %
A5: ='C4-FinPerf RE'!A5 -> Revenue
A6: Exchange Revenue
A7: Service charges - Electricity | I7: =G7-H7 -> 0 | J7: =IF(I7=0,"",I7/H7) -> 
A8: Service charges - Water | I8: 0
A9: Service charges - Waste Water Management | I9: 0
A10: Service charges - Waste management | I10: 0
A11: Sale of Goods and Rendering of Services | I11: =G11-H11 -> 0 | J11: =IF(I11=0,"",I11/H11) -> 
A12: Agency services | I12: 0
A13: Interest | I13: 0
A14: Interest earned from Receivables | I14: 0
A15: Interest earned from Current and Non Current Assets
A16: Dividends | I16: 0
A17: Rent on Land | I17: 0
A18: Rental from Fixed Assets | I18: 0
A19: Licence and permits | I19: 0
A20: Operational Revenue | I20: 0
A21: Non-Exchange Revenue | I21: 0
A22: Property rates
A23: Surcharges and Taxes
A24: Fines, penalties and forfeits | I24: 0
A25: Licences or permits
A26: Transfer and subsidies - Operational
A27: Interest
A28: Fuel Levy
A29: Operational Revenue
A30: Gains on disposal of Assets
A31: Other Gains
A32: Discontinued Operations
A33: Total Revenue (excluding capital transfers and contributions) | C33: =SUM(C7:C20)+SUM(C22:C32) -> 0 | D33: =SUM(D7:D20)+SUM(D22:D32) -> 0 | E33: 0 | F33: =SUM(F7:F20)+SUM(F22:F32) -> 0 | G33: =SUM(G7:G20)+SUM(G22:G32) -> 0 | H33: =SUM(H7:H20)+SUM(H22:H32) -> 0 | I33: =G33-H33 -> 0 | K33: =SUM(K7:K20)+SUM(K22:K32) -> 0
A34: Expenditure By Type
A35: Employee related costs | I35: =G35-H35 -> 0 | J35: =IF(I35=0,"",I35/H35) -> 
A36: Remuneration of councillors | I36: 0
A37: Bulk purchases - electricity | I37: 0
A38: Inventory consumed | I38: 0
A39: Debt impairment | I39: 0
A40: Depreciation and amortisation | I40: 0
A41: Interest | I41: 0
A42: Contracted services | I42: 0
A43: Transfers and subsidies | I43: 0
A44: Irrecoverable debts written off | I44: 0
A45: Operational costs | I45: 0
A46: Losses on disposal of Assets
A47: Other Losses
A48: Total Expenditure | C48: =SUM(C35:C47) -> 0 | D48: =SUM(D35:D47) -> 0 | E48: 0 | F48: 0 | G48: 0 | H48: 0 | I48: 0 | K48: =SUM(K35:K47) -> 0
A49: ='C4-FinPerf RE'!A49 -> Surplus/(Deficit) | C49: =C33-C48 -> 0 | D49: 0 | E49: 0 | F49: 0 | G49: 0 | H49: 0 | I49: 0 | K49: =K33-K48 -> 0
A50: ='C4-FinPerf RE'!A50 -> Transfers and subsidies - capital (monetary allocations) | I50: 0
A51: ='C4-FinPerf RE'!A51 -> Transfers and subsidies - capital (in-kind) | I51: 0
A52: ='C4-FinPerf RE'!A52 -> Surplus/(Deficit) after capital transfers & contributions | C52: =C49+SUM(C50:C51) -> 0 | D52: 0 | E52: 0 | F52: 0 | G52: 0 | H52: 0 | I52: 0 | K52: =K49+SUM(K50:K51) -> 0
A53: ='C4-FinPerf RE'!A53 -> Income Tax | I53: 0
A54: ='C4-FinPerf RE'!A54 -> Surplus/(Deficit) after income tax | C54: =C52-C53 -> 0 | D54: 0 | E54: 0 | F54: 0 | G54: 0 | H54: 0 | I54: 0 | K54: =K52-K53 -> 0
A55: =head27a -> References
A56: 1. Votes (consolidated) are revenue sources and expenditure type

Sheet SC11
A1: =muni& " - "&S71Q& " - "&Head57 -> LIM355 Lepelle-Nkumpi - NOT REQUIRED - municipality does not have entities or this is the parent municipality's budget - M04 October
A2: =desc -> Description | B2: =head27 -> Ref | C2: =Head1 -> 2022/23 | D2: =Head2 -> Budget Year 2023/24
C3: =Head5 -> Audited Outcome | D3: =Head6 -> Original Budget | E3: =Head7 -> Adjusted Budget | F3: =Head38 -> Monthly actual | G3: =Head39 -> YearTD actual | H3: =Head40 -> YearTD budget | I3: =Head41 -> YTD variance | J3: =Head41 -> YTD variance | K3: =Head8 -> Full Year Forecast
A4: R thousands | J4: %
A5: Revenue By Municipal Entity
A6: Insert name of municipal entity | I6: =G6-H6 -> 0 | J6: =IF(I6=0,"",I6/H6) -> 
I7: 0 | J7: =IF(I7=0,"",I7/H7) -> 
I8: 0
I9: 0
I10: 0
I11: 0
I12: 0
I13: 0
I14: 0
I15: 0
A16: Total Operating Revenue | B16: 1 | C16: =SUM(C6:C15) -> 0 | D16: 0 | E16: 0 | F16: 0 | G16: 0 | H16: 0 | I16: 0 | K16: =SUM(K6:K15) -> 0
A18: Expenditure By Municipal Entity
A19: =A6 -> Insert name of municipal entity | I19: 0 | J19: =IF(I19=0,"",I19/H19) -> 
A20: =IF(A7="","",A7) ->  | I20: 0
A21: =IF(A8="","",A8) ->  | I21: 0
I22: 0
I23: 0
I24: 0
I25: 0
I26: 0
I27: 0
I28: 0
A29: Total Operating Expenditure | B29: 2 | C29: =SUM(C19:C28) -> 0 | D29: 0 | E29: 0 | F29: 0 | G29: 0 | H29: 0 | I29: 0 | K29: =SUM(K19:K28) -> 0
A31: =Head42 -> Surplus/ (Deficit) for the yr/period | C31: =C16-C29 -> 0 | D31: =D16-D29 -> 0 | E31: 0 | F31: 0 | G31: 0 | H31: 0 | I31: =I16+I29 -> 0 | K31: 0
A32: Capital Expenditure By Municipal Entity
A33: =$A$6 -> Insert name of municipal entity | I33: 0
A34: =IF(A7="","",A7) ->  | I34: 0
A35: =IF(A8="","",A8) ->  | I35: 0
I36: 0
I37: 0
I38: 0
I39: 0
I40: 0
I41: 0
A43: Total Capital Expenditure | B43: 3 | C43: =SUM(C32:C42) -> 0 | D43: =SUM(D32:D42) -> 0 | E43: 0 | F43: 0 | G43: 0 | H43: =SUM(H32:H42) -> 0 | I43: =G43-H43 -> 0 | K43: 0
A44: =head27a -> References
A45: 1. Must reconcile to the sum of all municipal entity monthly revenue reports
A46: 2. Must reconcile to the sum of all municipal entity monthly expenditure reports
A47: 3. YTD = Year to date; FAV - favourable variance or unfavourable variance
A48: 4. Material variances to be explained
A49: 5. Insert additional 'Adjustment' Budget column for each Adjustment made by an entity

Sheet SC12
A1: =muni& " - "&S71R& " - "&Head57 -> LIM355 Lepelle-Nkumpi - Supporting Table SC12 Monthly Budget Statement - capital expenditure trend - M04 October
A2: Month | B2: =Head1 -> 2022/23 | C2: =Head2 -> Budget Year 2023/24
B3: =Head5 -> Audited Outcome | C3: =Head6 -> Original Budget | D3: =Head7 -> Adjusted Budget | E3: =Head38 -> Monthly actual | F3: =Head39 -> YearTD actual | G3: =Head40 -> YearTD budget | H3: =Head41 -> YTD variance | I3: =Head41 -> YTD variance | J3: % spend of Original Budget
A4: R thousands | I4: %
A5: Monthly expenditure performance trend
A6: July | B6: 0 | C6: 24963583 | D6: 24963583 | E6: -41756317.07 | F6: =IF(E6>0,E6,0) -> 0 | G6: =IF(D6>0,D6,C6) -> 24963583 | H6: =IF(F6="",0,G6-F6) -> 24963583 | I6: =IF(F6="","",IF(H6=0,"",H6/G6)) -> 1 | J6: =IF(F6="","",F6/$C$18) -> 0
A7: August | B7: 4457700.99 | C7: 24963583 | D7: 24963583 | E7: 34647503.43 | F7: 34647503.43 | G7: =IF(D7>0,D7+D6,C7+C6) -> 49927166 | H7: 15279662.57 | I7: 0.3060390524 | J7: 0.1156602437
A8: September | B8: 0 | C8: 24963583 | D8: 24963583 | E8: 21451733.13 | F8: 21451733.13 | G8: =IF(D8>0,D8+G7,C8+G7) -> 74890749 | H8: 53439015.87 | I8: 0.7135596397 | J8: 0.07161014315
A9: October | B9: 1109897.66 | C9: 24963583 | D9: 24963583 | E9: 25961306.71 | F9: 25961306.71 | G9: =IF(D9>0,D9+G8,C9+G8) -> 99854332 | H9: 73893025.29 | I9: 0.7400082081 | J9: 0.08666399487
A10: November | B10: 2539053.66 | C10: 24963583 | D10: 24963583 | E10: 0 | F10: 0 | G10: 124817915 | H10: 124817915 | I10: 1 | J10: 0
A11: December | B11: 4369386.08 | C11: 24963583 | D11: 24963583 | E11: 0 | F11: 0 | G11: 149781498 | H11: 149781498 | I11: 1 | J11: 0
A12: January | B12: 0 | C12: 24963583 | D12: 24963583 | E12: 0 | F12: 0 | G12: 174745081 | H12: 174745081 | I12: 1 | J12: 0
A13: February | B13: 2358880.57 | C13: 24963583 | D13: 24963583 | E13: 0 | F13: 0 | G13: 199708664 | H13: 199708664 | I13: 1 | J13: 0
A14: March | B14: 1769820.24 | C14: 24963583 | D14: 24963583 | E14: 0 | F14: 0 | G14: 224672247 | H14: 224672247 | I14: 1 | J14: 0
A15: April | B15: 15857962.9 | C15: 24963583 | D15: 24963583 | E15: 0 | F15: 0 | G15: 249635830 | H15: 249635830 | I15: 1 | J15: 0
A16: May | B16: 10505418.17 | C16: 24963583 | D16: 24963583 | E16: 0 | F16: =IF(E15>0,E15,0) -> 0 | G16: 274599413 | H16: 274599413 | I16: 1 | J16: 0
A17: June | B17: -42967843.37 | C17: 24963361 | D17: 24963361 | E17: 0 | F17: =IF(E17>0,E17,0) -> 0 | G17: 299562774 | H17: =IF(F17="",0,G17-F17) -> 299562774 | I17: =IF(F17="","",IF(H17=0,"",H17/G17)) -> 1 | J17: =IF(F17="","",F17/$C$18) -> 0
A18: Total Capital expenditure | B18: =SUM(B6:B17) -> 276.9 | C18: =SUM(C6:C17) -> 299562774 | D18: =SUM(D6:D17) -> 299562774 | E18: =SUM(E6:E17) -> 40304226.2

Sheet SC13a
A1: =muni& " - "&S71Sa& " - "&Head57 -> LIM355 Lepelle-Nkumpi - Supporting Table SC13a Monthly Budget Statement - capital expenditure on new assets by asset class - M04 October
A2: =desc -> Description | B2: =head27 -> Ref | C2: =Head1 -> 2022/23 | D2: =Head2 -> Budget Year 2023/24
C3: =Head5 -> Audited Outcome | D3: =Head6 -> Original Budget | E3: =Head7 -> Adjusted Budget | F3: =Head38 -> Monthly actual | G3: =Head39 -> YearTD actual | H3: =Head40 -> YearTD budget | I3: =Head41 -> YTD variance | J3: =Head41 -> YTD variance | K3: =Head8 -> Full Year Forecast
A4: R thousands | B4: 1 | J4: %
A5: Capital expenditure on new assets by Asset Class/Sub-class
A7: Infrastructure | C7: =C8+C13+C17+C27+C38+C45+C53+C63+C69 -> 0 | D7: 123521611 | E7: 123521611 | F7: 10080018.6 | G7: 23346293.36 | H7: 41173904 | I7: =H7-G7 -> 17827610.64 | J7: =IF(I7=0,"",I7/H7) -> 0.4329832469 | K7: =K8+K13+K17+K27+K38+K45+K53+K63+K69 -> 123521611
A8: Roads Infrastructure | C8: =SUM(C9:C12) -> 0 | D8: 36044070 | E8: 36044070 | F8: 9156081.48 | G8: 22422356.24 | H8: 12014696 | I8: -10407660.24 | J8: -0.8662441597 | K8: =SUM(K9:K12) -> 36044070
A9: Roads | C9: 0 | D9: 9455000 | E9: 9455000 | F9: 0 | G9: 0 | H9: 3151668 | I9: 3151668 | J9: 1 | K9: 9455000
A10: Road Structures | C10: 0 | D10: 26589070 | E10: 26589070 | F10: 9156081.48 | G10: 22422356.24 | H10: 8863028 | I10: -13559328.24 | J10: -1.52987537 | K10: 26589070
A11: Road Furniture | I11: 0
A12: Capital Spares | I12: 0
A13: Storm water Infrastructure | C13: =SUM(C14:C16) -> 0 | D13: 6018541 | E13: 6018541 | F13: 0 | G13: 0 | H13: 2006184 | I13: 2006184 | J13: 1 | K13: =SUM(K14:K16) -> 6018541
A14: Drainage Collection | C14: 0 | D14: 0 | E14: 0 | F14: 0 | G14: 0 | H14: 0 | I14: 0 | K14: 0
A15: Storm water Conveyance | C15: 0 | D15: 6018541 | E15: 6018541 | F15: 0 | G15: 0 | H15: 2006184 | I15: 2006184 | J15: 1 | K15: 6018541
A16: Attenuation | I16: 0
A17: Electrical Infrastructure | C17: =SUM(C18:C26) -> 0 | D17: 77959000 | E17: 77959000 | F17: 923937.12 | G17: 923937.12 | H17: 25986356 | I17: 25062418.88 | J17: 0.9644452989 | K17: =SUM(K18:K26) -> 77959000
A18: Power Plants | I18: 0
A19: HV Substations | I19: 0
A20: HV Switching Station | I20: 0
A21: HV Transmission Conductors | I21: 0
A22: MV Substations | I22: 0
A23: MV Switching Stations | I23: 0
A24: MV Networks | C24: 0 | D24: 77209000 | E24: 77209000 | F24: 923937.12 | G24: 923937.12 | H24: 25736356 | I24: 24812418.88 | J24: 0.9640999246 | K24: 77209000
A25: LV Networks | C25: 0 | D25: 750000 | E25: 750000 | F25: 0 | G25: 0 | H25: 250000 | I25: 250000 | J25: 1 | K25: 750000
A26: Capital Spares | I26: 0
A27: Water Supply Infrastructure | C27: =SUM(C28:C37) -> 0 | D27: 0 | E27: 0 | F27: 0 | G27: 0 | H27: 0 | I27: 0 | K27: =SUM(K28:K37) -> 0
A28: Dams and Weirs | I28: 0
A29: Boreholes | I29: 0
A30: Reservoirs | I30: 0
A31: Pump Stations | I31: 0
A32: Water Treatment Works | C32: 0 | D32: 0 | E32: 0 | F32: 0 | G32: 0 | H32: 0 | I32: 0 | K32: 0
A33: Bulk Mains | I33: 0
A34: Distribution | I34: 0
A35: Distribution Points | I35: 0
A36: PRV Stations | I36: 0
A37: Capital Spares | C37: 0 | D37: 0 | E37: 0 | F37: 0 | G37: 0 | H37: 0 | I37: 0 | K37: 0
A38: Sanitation Infrastructure | C38: =SUM(C39:C44) -> 0 | D38: 0 | E38: 0 | F38: 0 | G38: 0 | H38: 0 | I38: 0 | K38: =SUM(K39:K44) -> 0
A39: Pump Station | I39: 0
A40: Reticulation | I40: =H40-G40 -> 0 | J40: =IF(I40=0,"",I40/H40) -> 
A41: Waste Water Treatment Works | I41: =H41-G41 -> 0 | J41: =IF(I41=0,"",I41/H41) -> 
A42: Outfall Sewers | I42: =H42-G42 -> 0 | J42: =IF(I42=0,"",I42/H42) -> 
A43: Toilet Facilities | I43: 0
A44: Capital Spares | I44: 0
A45: Solid Waste Infrastructure | C45: =SUM(C46:C52) -> 0 | D45: 3500000 | E45: 3500000 | F45: 0 | G45: 0 | H45: 1166668 | I45: 1166668 | J45: 1 | K45: =SUM(K46:K52) -> 3500000
A46: Landfill Sites | I46: 0
A47: Waste Transfer Stations | I47: 0
A48: Waste Processing Facilities | I48: =H48-G48 -> 0 | J48: =IF(I48=0,"",I48/H48) -> 
A49: Waste Drop-off Points | I49: 0
A50: Waste Separation Facilities | I50: 0
A51: Electricity Generation Facilities | I51: 0
A52: Capital Spares | C52: 0 | D52: 3500000 | E52: 3500000 | F52: 0 | G52: 0 | H52: 1166668 | I52: 1166668 | J52: 1 | K52: 3500000
A53: Rail Infrastructure | C53: =SUM(C54:C62) -> 0 | D53: 0 | E53: 0 | F53: 0 | G53: 0 | H53: 0 | I53: 0 | K53: =SUM(K54:K62) -> 0
A54: Rail Lines | I54: 0
A55: Rail Structures | I55: 0
A56: Rail Furniture | I56: 0
A57: Drainage Collection | I57: 0
A58: Storm water Conveyance | I58: 0
A59: Attenuation | I59: 0
A60: MV Substations | I60: 0
A61: LV Networks | I61: 0
A62: Capital Spares | I62: 0
A63: Coastal Infrastructure | C63: =SUM(C64:C68) -> 0 | D63: 0 | E63: 0 | F63: 0 | G63: 0 | H63: 0 | I63: 0 | K63: =SUM(K64:K68) -> 0
A64: Sand Pumps | I64: 0
A65: Piers | I65: 0
A66: Revetments | I66: 0
A67: Promenades | I67: 0
A68: Capital Spares | I68: 0
A69: Information and Communication Infrastructure | C69: =SUM(C70:C73) -> 0 | D69: 0 | E69: 0 | F69: 0 | G69: 0 | H69: 0 | I69: =H69-G69 -> 0 | K69: =SUM(K70:K73) -> 0
A70: Data Centres | I70: =H70-G70 -> 0
A71: Core Layers | I71: =H71-G71 -> 0 | J71: =IF(I71=0,"",I71/H71) -> 
A72: Distribution Layers | I72: =H72-G72 -> 0
A73: Capital Spares | I73: =H73-G73 -> 0
A75: Community Assets | C75: =+C76+C99 -> 0 | D75: 49211200 | E75: 49211200 | F75: 1191751.17 | G75: 1191751.17 | H75: 16403744 | I75: =H75-G75 -> 15211992.83 | J75: 0.9273488315 | K75: =+K76+K99 -> 49211200
A76: Community Facilities | C76: =SUM(C77:C98) -> 0 | D76: 18216600 | E76: 18216600 | F76: 0 | G76: 0 | H76: 6072204 | I76: =H76-G76 -> 6072204 | J76: 1 | K76: =SUM(K77:K98) -> 18216600
A77: Halls | C77: 0 | D77: 9000000 | E77: 9000000 | F77: 0 | G77: 0 | H77: 3000004 | I77: 3000004 | J77: 1 | K77: 9000000
A78: Centres | C78: 0 | D78: 3216600 | E78: 3216600 | F78: 0 | G78: 0 | H78: 1072200 | I78: 1072200 | J78: 1 | K78: 3216600
A79: Crèches | C79: 0 | D79: 0 | E79: 0 | F79: 0 | G79: 0 | H79: 0 | I79: 0 | K79: 0
A80: Clinics/Care Centres | I80: 0
A81: Fire/Ambulance Stations | I81: 0
A82: Testing Stations | C82: 0 | D82: 6000000 | E82: 6000000 | F82: 0 | G82: 0 | H82: 2000000 | I82: 2000000 | J82: 1 | K82: 6000000
A83: Museums | I83: 0
A84: Galleries | I84: 0
A85: Theatres | I85: 0
A86: Libraries | I86: 0
A87: Cemeteries/Crematoria | I87: 0
A88: Police | I88: 0
A89: Purls | I89: 0
A90: Public Open Space | I90: 0
A91: Nature Reserves | I91: 0
A92: Public Ablution Facilities | I92: 0
A93: Markets | I93: 0
A94: Stalls | C94: 0 | D94: 0 | E94: 0 | F94: 0 | G94: 0 | H94: 0 | I94: 0 | K94: 0
A95: Abattoirs | I95: 0
A96: Airports | I96: 0
A97: Taxi Ranks/Bus Terminals | I97: 0
A98: Capital Spares | I98: 0
A99: Sport and Recreation Facilities | C99: =SUM(C100:C102) -> 0 | D99: 30994600 | E99: 30994600 | F99: 1191751.17 | G99: 1191751.17 | H99: 10331540 | I99: 9139788.83 | J99: 0.8846492227 | K99: =SUM(K100:K102) -> 30994600
A100: Indoor Facilities | C100: 0 | D100: 0 | E100: 0 | F100: 0 | G100: 0 | H100: 0 | I100: 0 | K100: 0
A101: Outdoor Facilities | C101: 0 | D101: 30994600 | E101: 30994600 | F101: 1191751.17 | G101: 1191751.17 | H101: 10331540 | I101: 9139788.83 | J101: 0.8846492227 | K101: 30994600
A102: Capital Spares | I102: 0
A103: Heritage assets | C103: =SUM(C104:C108) -> 0 | D103: 0 | E103: 0 | F103: 0 | G103: 0 | H103: 0 | I103: 0 | K103: =SUM(K104:K108) -> 0
A104: Monuments | I104: 0
A105: Historic Buildings | I105: 0
A106: Works of Art | I106: 0
A107: Conservation Areas | I107: 0
A108: Other Heritage | I108: 0
I109: 0
A110: Investment properties | C110: =+C111+C114 -> 0 | D110: 12396000 | E110: 12396000 | F110: 0 | G110: 0 | H110: 4132000 | I110: 4132000 | J110: 1 | K110: =+K111+K114 -> 12396000
A111: Revenue Generating | C111: =SUM(C112:C113) -> 0 | D111: 0 | E111: 0 | F111: 0 | G111: 0 | H111: 0 | I111: 0 | K111: =SUM(K112:K113) -> 0
A112: Improved Property | I112: 0
A113: Unimproved Property | I113: 0
A114: Non-revenue Generating | C114: =SUM(C115:C116) -> 0 | D114: 12396000 | E114: 12396000 | F114: 0 | G114: 0 | H114: 4132000 | I114: 4132000 | J114: 1 | K114: =SUM(K115:K116) -> 12396000
A115: Improved Property | I115: 0
A116: Unimproved Property | C116: 0 | D116: 12396000 | E116: 12396000 | F116: 0 | G116: 0 | H116: 4132000 | I116: 4132000 | J116: 1 | K116: 12396000
A117: Other assets | C117: =+C118+C130 -> 276.9 | D117: 2700000 | E117: 2700000 | F117: 369015 | G117: 369015 | H117: 900004 | I117: 530989 | J117: 0.5899851556 | K117: =+K118+K130 -> 2700000
A118: Operational Buildings | C118: =SUM(C119:C129) -> 276.9 | D118: 2700000 | E118: 2700000 | F118: 369015 | G118: 369015 | H118: 900004 | I118: 530989 | J118: 0.5899851556 | K118: =SUM(K119:K129) -> 2700000
A119: Municipal Offices | C119: 276.9 | D119: 2700000 | E119: 2700000 | F119: 369015 | G119: 369015 | H119: 900004 | I119: 530989 | J119: 0.5899851556 | K119: 2700000
A120: Pay/Enquiry Points | I120: 0
A121: Building Plan Offices | I121: 0
A122: Workshops | I122: 0
A123: Yards | I123: 0
A124: Stores | I124: 0
A125: Laboratories | I125: 0
A126: Training Centres | I126: 0
A127: Manufacturing Plant | I127: 0
A128: Depots | I128: 0
A129: Capital Spares | I129: 0
A130: Housing | C130: =SUM(C131:C133) -> 0 | D130: 0 | E130: 0 | F130: 0 | G130: 0 | H130: 0 | I130: 0 | K130: =SUM(K131:K133) -> 0
A131: Staff Housing | I131: 0
A132: Social Housing | I132: 0
A133: Capital Spares | I133: 0
A135: Biological or Cultivated Assets | C135: =SUM(C136:C136) -> 0 | D135: 0 | E135: 0 | F135: 0 | G135: 0 | H135: 0 | I135: =H135-G135 -> 0 | J135: =IF(I135=0,"",I135/H135) ->  | K135: =SUM(K136) -> 0
A136: Biological or Cultivated Assets | I136: =H136-G136 -> 0
A138: Intangible Assets | C138: =SUM(C139:C140) -> 0 | D138: 0 | E138: 0 | F138: 0 | G138: 0 | H138: 0 | I138: =H138-G138 -> 0 | K138: =SUM(K139:K140) -> 0
A139: Servitudes | I139: 0
A140: Licences and Rights | C140: =SUM(C141:C146) -> 0 | D140: 0 | E140: 0 | F140: 0 | G140: 0 | H140: 0 | I140: 0 | K140: =SUM(K141:K146) -> 0
A141: Water Rights | I141: 0
A142: Effluent Licenses | I142: 0
A143: Solid Waste Licenses | I143: 0
A144: Computer Software and Applications | C144: 0 | D144: 0 | E144: 0 | F144: 0 | G144: 0 | H144: 0 | I144: 0 | K144: 0
A145: Load Settlement Software Applications | I145: 0
A146: Unspecified | I146: 0
A148: Computer Equipment | C148: =SUM(C149:C149) -> 0 | D148: 2000000 | E148: 2000000 | F148: 0 | G148: 0 | H148: 666668 | I148: =H148-G148 -> 666668 | J148: =IF(I148=0,"",I148/H148) -> 1 | K148: =SUM(K149) -> 2000000
A149: Computer Equipment | C149: 0 | D149: 2000000 | E149: 2000000 | F149: 0 | G149: 0 | H149: 666668 | I149: =H149-G149 -> 666668 | J149: =IF(I149=0,"",I149/H149) -> 1 | K149: 2000000
A151: Furniture and Office Equipment | C151: =SUM(C152:C152) -> 0 | D151: 1980920 | E151: 1980920 | F151: 0 | G151: 0 | H151: 660308 | I151: =H151-G151 -> 660308 | J151: =IF(I151=0,"",I151/H151) -> 1 | K151: =SUM(K152) -> 1980920
A152: Furniture and Office Equipment | C152: 0 | D152: 1980920 | E152: 1980920 | F152: 0 | G152: 0 | H152: 660308 | I152: =H152-G152 -> 660308 | J152: =IF(I152=0,"",I152/H152) -> 1 | K152: 1980920
J153: =IF(I153=0,"",I153/H153) -> 
A154: Machinery and Equipment | C154: =SUM(C155:C155) -> 0 | D154: 19541500 | E154: 19541500 | F154: 0 | G154: 79000 | H154: 6513836 | I154: =H154-G154 -> 6434836 | J154: =IF(I154=0,"",I154/H154) -> 0.9878719698 | K154: =SUM(K155) -> 19541500
A155: Machinery and Equipment | C155: 0 | D155: 19541500 | E155: 19541500 | F155: 0 | G155: 79000 | H155: 6513836 | I155: =H155-G155 -> 6434836 | J155: =IF(I155=0,"",I155/H155) -> 0.9878719698 | K155: 19541500
A157: Transport Assets | C157: =SUM(C158:C158) -> 0 | D157: 8100000 | E157: 8100000 | F157: 0 | G157: 0 | H157: 2700004 | I157: =H157-G157 -> 2700004 | J157: =IF(I157=0,"",I157/H157) -> 1 | K157: =SUM(K158) -> 8100000
A158: Transport Assets | C158: 0 | D158: 8100000 | E158: 8100000 | F158: 0 | G158: 0 | H158: 2700004 | I158: =H158-G158 -> 2700004 | J158: =IF(I158=0,"",I158/H158) -> 1 | K158: 8100000
A160: Land | C160: =SUM(C161:C161) -> 0 | D160: 0 | E160: 0 | F160: 0 | G160: 0 | H160: 0 | I160: =H160-G160 -> 0 | J160: =IF(I160=0,"",I160/H160) ->  | K160: =SUM(K161) -> 0
A161: Land | I161: =H161-G161 -> 0 | J161: =IF(I161=0,"",I161/H161) -> 
A163: Zoo's, Marine and Non-biological Animals | C163: =SUM(C164:C164) -> 0 | D163: 0 | E163: 0 | F163: 0 | G163: 0 | H163: 0 | I163: =H163-G163 -> 0 | J163: =IF(I163=0,"",I163/H163) ->  | K163: =SUM(K164) -> 0
A164: Zoo's, Marine and Non-biological Animals | I164: =H164-G164 -> 0 | J164: =IF(I164=0,"",I164/H164) -> 
A166: Living resources | C166: =+C167+C170 -> 0 | D166: 0 | E166: 0 | F166: 0 | G166: 0 | H166: 0 | I166: =H166-G166 -> 0 | J166: =IF(I166=0,"",I166/H166) ->  | K166: 0
A167: Mature | C167: =+C168+C169 -> 0 | D167: 0 | E167: 0 | F167: 0 | G167: 0 | H167: 0 | I167: 0 | K167: 0
A168: Policing and Protection | I168: 0
A169: Zoological plants and animals | I169: 0
A170: Immature | C170: =+C171+C172 -> 0 | D170: =+D171+D172 -> 0 | E170: 0 | F170: 0 | G170: 0 | H170: 0 | I170: 0 | K170: =+K171+K172 -> 0
A171: Policing and Protection | I171: 0
A172: Zoological plants and animals | I172: 0
A173: Total Capital Expenditure on new assets | B173: 1 | C173: =C7+C75+C103+C110+C117+C135+C138+C148+C151+C154+C157+C160+C163+C166 -> 276.9 | D173: 219451231 | E173: 219451231 | F173: 11640784.77 | G173: 24986059.53 | H173: 73150468 | I173: =H173-G173 -> 48164408.47 | J173: =IF(I173=0,"",I173/H173) -> 0.6584292594 | K173: =K7+K75+K103+K110+K117+K135+K138+K148+K151+K154+K157+K160+K163+K166 -> 219451231
A175: =head27a -> References
A176: 1. Total Capital Expenditure on new assets (SC13a) plus Total Capital Expenditure on renewal of existing assets (SC13b) plus Total Capital Expenditure on upgrading of existing assets (SC13e) must reconcile to total capital expenditure in Table C5
A178: check balance | C178: =C173+SC13b!C173+SC13e!C173-'C5-Capex'!C40 -> 0 | D178: =D173+SC13b!D173+SC13e!D173-'C5-Capex'!D40 -> 0 | E178: =E173+SC13b!E173+SC13e!E173-'C5-Capex'!E40 -> 0 | F178: =F173+SC13b!F173+SC13e!F173-'C5-Capex'!F40 -> 0 | G178: =G173+SC13b!G173+SC13e!G173-'C5-Capex'!G40 -> 0 | H178: =H173+SC13b!H173+SC13e!H173-'C5-Capex'!H40 -> 0 | K178: =K173+SC13b!K173+SC13e!K173-'C5-Capex'!K40 -> 0

Sheet SC13b
A1: =muni& " - "&S71Sb& " - "&Head57 -> LIM355 Lepelle-Nkumpi - Supporting Table SC13b Monthly Budget Statement - capital expenditure on renewal of existing assets by asset class - M04 October
A2: =desc -> Description | B2: =head27 -> Ref | C2: =Head1 -> 2022/23 | D2: =Head2 -> Budget Year 2023/24
C3: =Head5 -> Audited Outcome | D3: =Head6 -> Original Budget | E3: =Head7 -> Adjusted Budget | F3: =Head38 -> Monthly actual | G3: =Head39 -> YearTD actual | H3: =Head40 -> YearTD budget | I3: =Head41 -> YTD variance | J3: =Head41 -> YTD variance | K3: =Head8 -> Full Year Forecast
A4: R thousands | B4: 1 | J4: %
A5: Capital expenditure on renewal of existing assets by Asset Class/Sub-class
A7: Infrastructure | C7: =C8+C13+C17+C27+C38+C45+C53+C63+C69 -> 0 | D7: 6311542 | E7: 6311542 | F7: 0 | G7: 0 | H7: 2103848 | I7: =H7-G7 -> 2103848 | J7: =IF(I7=0,"",I7/H7) -> 1 | K7: =K8+K13+K17+K27+K38+K45+K53+K63+K69 -> 6311542
A8: Roads Infrastructure | C8: =SUM(C9:C12) -> 0 | D8: 5936542 | E8: 5936542 | F8: 0 | G8: 0 | H8: 1978848 | I8: 1978848 | J8: 1 | K8: =SUM(K9:K12) -> 5936542
A9: Roads | C9: 0 | D9: 5936542 | E9: 5936542 | F9: 0 | G9: 0 | H9: 1978848 | I9: 1978848 | J9: 1 | K9: 5936542
A10: Road Structures | C10: 0 | D10: 0 | E10: 0 | F10: 0 | G10: 0 | H10: 0 | I10: 0 | K10: 0
A11: Road Furniture | I11: 0
A12: Capital Spares | I12: 0
A13: Storm water Infrastructure | C13: =SUM(C14:C16) -> 0 | D13: 0 | E13: 0 | F13: 0 | G13: 0 | H13: 0 | I13: 0 | K13: =SUM(K14:K16) -> 0
A14: Drainage Collection | I14: 0
A15: Storm water Conveyance | I15: 0
A16: Attenuation | I16: 0
A17: Electrical Infrastructure | C17: =SUM(C18:C26) -> 0 | D17: 375000 | E17: 375000 | F17: 0 | G17: 0 | H17: 125000 | I17: 125000 | J17: 1 | K17: =SUM(K18:K26) -> 375000
A18: Power Plants | I18: 0
A19: HV Substations | I19: 0
A20: HV Switching Station | I20: 0
A21: HV Transmission Conductors | I21: 0
A22: MV Substations | I22: 0
A23: MV Switching Stations | I23: 0
A24: MV Networks | I24: 0
A25: LV Networks | C25: 0 | D25: 375000 | E25: 375000 | F25: 0 | G25: 0 | H25: 125000 | I25: 125000 | J25: 1 | K25: 375000
A26: Capital Spares | I26: 0
A27: Water Supply Infrastructure | C27: =SUM(C28:C37) -> 0 | D27: 0 | E27: 0 | F27: 0 | G27: 0 | H27: 0 | I27: 0 | K27: =SUM(K28:K37) -> 0
A28: Dams and Weirs | I28: 0
A29: Boreholes | I29: 0
A30: Reservoirs | I30: 0
A31: Pump Stations | I31: 0
A32: Water Treatment Works | I32: 0
A33: Bulk Mains | I33: 0
A34: Distribution | I34: 0
A35: Distribution Points | I35: 0
A36: PRV Stations | I36: 0
A37: Capital Spares | I37: 0
A38: Sanitation Infrastructure | C38: =SUM(C39:C44) -> 0 | D38: 0 | E38: 0 | F38: 0 | G38: 0 | H38: 0 | I38: 0 | K38: =SUM(K39:K44) -> 0
A39: Pump Station | I39: 0
A40: Reticulation | I40: 0
A41: Waste Water Treatment Works | C41: 0 | D41: 0 | E41: 0 | F41: 0 | G41: 0 | H41: 0 | I41: 0 | K41: 0
A42: Outfall Sewers | I42: 0
A43: Toilet Facilities | I43: 0
A44: Capital Spares | I44: 0
A45: Solid Waste Infrastructure | C45: =SUM(C46:C52) -> 0 | D45: 0 | E45: 0 | F45: 0 | G45: 0 | H45: 0 | I45: 0 | K45: =SUM(K46:K52) -> 0
A46: Landfill Sites | I46: 0
A47: Waste Transfer Stations | I47: 0
A48: Waste Processing Facilities | I48: 0
A49: Waste Drop-off Points | I49: 0
A50: Waste Separation Facilities | I50: 0
A51: Electricity Generation Facilities | I51: 0
A52: Capital Spares | I52: 0
A53: Rail Infrastructure | C53: =SUM(C54:C62) -> 0 | D53: 0 | E53: 0 | F53: 0 | G53: 0 | H53: 0 | I53: 0 | K53: =SUM(K54:K62) -> 0
A54: Rail Lines | I54: 0
A55: Rail Structures | I55: 0
A56: Rail Furniture | I56: 0
A57: Drainage Collection | I57: 0
A58: Storm water Conveyance | I58: 0
A59: Attenuation | I59: 0
A60: MV Substations | I60: 0
A61: LV Networks | I61: 0
A62: Capital Spares | I62: 0
A63: Coastal Infrastructure | C63: =SUM(C64:C68) -> 0 | D63: 0 | E63: 0 | F63: 0 | G63: 0 | H63: 0 | I63: 0 | K63: =SUM(K64:K68) -> 0
A64: Sand Pumps | I64: 0
A65: Piers | I65: 0
A66: Revetments | I66: 0
A67: Promenades | I67: 0
A68: Capital Spares | I68: 0
A69: Information and Communication Infrastructure | C69: =SUM(C70:C73) -> 0 | D69: 0 | E69: 0 | F69: 0 | G69: 0 | H69: 0 | I69: 0 | K69: =SUM(K70:K73) -> 0
A70: Data Centres | I70: 0
A71: Core Layers | I71: 0
A72: Distribution Layers | I72: 0
A73: Capital Spares | I73: 0
A75: Community Assets | C75: =+C76+C99 -> 0 | D75: 12000001 | E75: 12000001 | F75: 264965.96 | G75: 264965.96 | H75: 4000004 | I75: 3735038.04 | J75: 0.9337585762 | K75: =+K76+K99 -> 12000001
A76: Community Facilities | C76: =SUM(C77:C98) -> 0 | D76: 8000001 | E76: 8000001 | F76: 0 | G76: 0 | H76: 2666668 | I76: 2666668 | J76: 1 | K76: =SUM(K77:K98) -> 8000001
A77: Halls | C77: 0 | D77: 0 | E77: 0 | F77: 0 | G77: 0 | H77: 0 | I77: 0 | K77: 0
A78: Centres | C78: 0 | D78: 8000001 | E78: 8000001 | F78: 0 | G78: 0 | H78: 2666668 | I78: 2666668 | J78: 1 | K78: 8000001
A79: Crèches | I79: 0
A80: Clinics/Care Centres | I80: 0
A81: Fire/Ambulance Stations | I81: 0
A82: Testing Stations | I82: 0
A83: Museums | I83: 0
A84: Galleries | I84: 0
A85: Theatres | I85: 0
A86: Libraries | I86: 0
A87: Cemeteries/Crematoria | I87: 0
A88: Police | I88: 0
A89: Purls | I89: 0
A90: Public Open Space | I90: 0
A91: Nature Reserves | I91: 0
A92: Public Ablution Facilities | I92: 0
A93: Markets | I93: 0
A94: Stalls | I94: 0
A95: Abattoirs | I95: 0
A96: Airports | I96: 0
A97: Taxi Ranks/Bus Terminals | I97: 0
A98: Capital Spares | I98: 0
A99: Sport and Recreation Facilities | C99: =SUM(C100:C102) -> 0 | D99: 4000000 | E99: 4000000 | F99: 264965.96 | G99: 264965.96 | H99: 1333336 | I99: 1068370.04 | J99: 0.8012759274 | K99: =SUM(K100:K102) -> 4000000
A100: Indoor Facilities | I100: 0
A101: Outdoor Facilities | C101: 0 | D101: 4000000 | E101: 4000000 | F101: 264965.96 | G101: 264965.96 | H101: 1333336 | I101: =H101-G101 -> 1068370.04 | J101: =IF(I101=0,"",I101/H101) -> 0.8012759274 | K101: 4000000
A102: Capital Spares | I102: 0
A103: Heritage assets | C103: =SUM(C104:C108) -> 0 | D103: 0 | E103: 0 | F103: 0 | G103: 0 | H103: 0 | I103: 0 | K103: =SUM(K104:K108) -> 0
A104: Monuments | I104: 0
A105: Historic Buildings | I105: 0
A106: Works of Art | I106: 0
A107: Conservation Areas | I107: 0
A108: Other Heritage | I108: 0
I109: 0
A110: Investment properties | C110: =+C111+C114 -> 0 | D110: 0 | E110: 0 | F110: 0 | G110: 0 | H110: 0 | I110: 0 | K110: =+K111+K114 -> 0
A111: Revenue Generating | C111: =SUM(C112:C113) -> 0 | D111: 0 | E111: 0 | F111: 0 | G111: 0 | H111: 0 | I111: 0 | K111: =SUM(K112:K113) -> 0
A112: Improved Property | I112: 0
A113: Unimproved Property | I113: 0
A114: Non-revenue Generating | C114: =SUM(C115:C116) -> 0 | D114: 0 | E114: 0 | F114: 0 | G114: 0 | H114: 0 | I114: 0 | K114: =SUM(K115:K116) -> 0
A115: Improved Property | I115: 0
A116: Unimproved Property | I116: =H116-G116 -> 0 | J116: =IF(I116=0,"",I116/H116) -> 
A117: Other assets | C117: =+C118+C130 -> 0 | D117: 0 | E117: 0 | F117: 0 | G117: 0 | H117: 0 | I117: 0 | K117: =+K118+K130 -> 0
A118: Operational Buildings | C118: =SUM(C119:C129) -> 0 | D118: 0 | E118: 0 | F118: 0 | G118: 0 | H118: 0 | I118: 0 | K118: =SUM(K119:K129) -> 0
A119: Municipal Offices | I119: 0
A120: Pay/Enquiry Points | I120: 0
A121: Building Plan Offices | I121: 0
A122: Workshops | I122: 0
A123: Yards | I123: 0
A124: Stores | I124: 0
A125: Laboratories | I125: 0
A126: Training Centres | I126: 0
A127: Manufacturing Plant | I127: 0
A128: Depots | I128: 0
A129: Capital Spares | I129: 0
A130: Housing | C130: =SUM(C131:C133) -> 0 | D130: 0 | E130: 0 | F130: 0 | G130: 0 | H130: 0 | I130: 0 | K130: =SUM(K131:K133) -> 0
A131: Staff Housing | I131: 0
A132: Social Housing | I132: 0
A133: Capital Spares | I133: 0
A135: Biological or Cultivated Assets | C135: =SUM(C136:C136) -> 0 | D135: 0 | E135: 0 | F135: 0 | G135: 0 | H135: 0 | I135: =H135-G135 -> 0 | K135: =SUM(K136) -> 0
A136: Biological or Cultivated Assets | I136: =H136-G136 -> 0
J137: =IF(I137=0,"",I137/H137) -> 
A138: Intangible Assets | C138: =SUM(C139:C140) -> 0 | D138: 0 | E138: 0 | F138: 0 | G138: 0 | H138: 0 | I138: =H138-G138 -> 0 | K138: =SUM(K139:K140) -> 0
A139: Servitudes | I139: 0
A140: Licences and Rights | C140: =SUM(C141:C146) -> 0 | D140: 0 | E140: 0 | F140: 0 | G140: 0 | H140: 0 | I140: 0 | K140: =SUM(K141:K146) -> 0
A141: Water Rights | I141: 0
A142: Effluent Licenses | I142: 0
A143: Solid Waste Licenses | I143: 0
A144: Computer Software and Applications | I144: 0
A145: Load Settlement Software Applications | I145: 0
A146: Unspecified | I146: 0
A148: Computer Equipment | C148: =SUM(C149:C149) -> 0 | D148: 0 | E148: 0 | F148: 0 | G148: 0 | H148: 0 | I148: =H148-G148 -> 0 | J148: =IF(I148=0,"",I148/H148) ->  | K148: =SUM(K149) -> 0
A149: Computer Equipment | I149: =H149-G149 -> 0 | J149: =IF(I149=0,"",I149/H149) -> 
A151: Furniture and Office Equipment | C151: =SUM(C152:C152) -> 0 | D151: 1800000 | E151: 1800000 | F151: 0 | G151: 0 | H151: 600000 | I151: =H151-G151 -> 600000 | J151: =IF(I151=0,"",I151/H151) -> 1 | K151: =SUM(K152) -> 1800000
A152: Furniture and Office Equipment | C152: 0 | D152: 1800000 | E152: 1800000 | F152: 0 | G152: 0 | H152: 600000 | I152: =H152-G152 -> 600000 | J152: =IF(I152=0,"",I152/H152) -> 1 | K152: 1800000
J153: =IF(I153=0,"",I153/H153) -> 
A154: Machinery and Equipment | C154: =SUM(C155:C155) -> 0 | D154: 0 | E154: 0 | F154: 0 | G154: 0 | H154: 0 | I154: =H154-G154 -> 0 | J154: =IF(I154=0,"",I154/H154) ->  | K154: =SUM(K155) -> 0
A155: Machinery and Equipment | C155: 0 | D155: 0 | E155: 0 | F155: 0 | G155: 0 | H155: 0 | I155: =H155-G155 -> 0 | J155: =IF(I155=0,"",I155/H155) ->  | K155: 0
A157: Transport Assets | C157: =SUM(C158:C158) -> 0 | D157: 0 | E157: 0 | F157: 0 | G157: 0 | H157: 0 | I157: =H157-G157 -> 0 | J157: =IF(I157=0,"",I157/H157) ->  | K157: =SUM(K158) -> 0
A158: Transport Assets | I158: =H158-G158 -> 0 | J158: =IF(I158=0,"",I158/H158) -> 
A160: Land | C160: =SUM(C161:C161) -> 0 | D160: 0 | E160: 0 | F160: 0 | G160: 0 | H160: 0 | I160: =H160-G160 -> 0 | J160: =IF(I160=0,"",I160/H160) ->  | K160: =SUM(K161) -> 0
A161: Land | I161: =H161-G161 -> 0 | J161: =IF(I161=0,"",I161/H161) -> 
J162: .
A163: Zoo's, Marine and Non-biological Animals | C163: =SUM(C164:C164) -> 0 | D163: 0 | E163: 0 | F163: 0 | G163: 0 | H163: 0 | I163: =H163-G163 -> 0 | J163: =IF(I163=0,"",I163/H163) ->  | K163: =SUM(K164) -> 0
A164: Zoo's, Marine and Non-biological Animals | I164: =H164-G164 -> 0 | J164: =IF(I164=0,"",I164/H164) -> 
A166: Living resources | C166: =+C167+C170 -> 0 | D166: 0 | E166: 0 | F166: 0 | G166: 0 | H166: 0 | I166: =H166-G166 -> 0 | J166: =IF(I166=0,"",I166/H166) ->  | K166: =+K167+K170 -> 0
A167: Mature | C167: =+C168+C169 -> 0 | D167: 0 | E167: 0 | F167: 0 | G167: 0 | H167: 0 | I167: 0 | K167: =+K168+K169 -> 0
A168: Policing and Protection | I168: 0
A169: Zoological plants and animals | I169: 0
A170: Immature | C170: =+C171+C172 -> 0 | D170: 0 | E170: 0 | F170: 0 | G170: 0 | H170: 0 | I170: 0 | K170: =+K171+K172 -> 0
A171: Policing and Protection | I171: 0
A172: Zoological plants and animals | I172: 0
A173: Total Capital Expenditure on renewal of existing assets | B173: 1 | C173: =C7+C75+C103+C110+C117+C135+C138+C148+C151+C154+C157+C160+C163+C166 -> 0 | D173: 20111543 | E173: 20111543 | F173: 264965.96 | G173: 264965.96 | H173: 6703852 | I173: =H173-G173 -> 6438886.04 | J173: =IF(I173=0,"",I173/H173) -> 0.9604755654 | K173: =K7+K75+K103+K110+K117+K135+K138+K148+K151+K154+K157+K160+K163+K166 -> 20111543
A175: =head27a -> References
A176: 1. Total Capital Expenditure on new assets (SC13a) plus Total Capital Expenditure on renewal of existing assets (SC13b) plus Total Capital Expenditure on upgrading of existing assets (SC13e) must reconcile to total capital expenditure in Table C5
A178: check balance | C178: =C173+SC13a!C173+SC13e!C173-'C5-Capex'!C40 -> 0 | D178: =D173+SC13a!D173+SC13e!D173-'C5-Capex'!D40 -> 0 | E178: =E173+SC13a!E173+SC13e!E173-'C5-Capex'!E40 -> 0 | F178: =F173+SC13a!F173+SC13e!F173-'C5-Capex'!F40 -> 0 | G178: =G173+SC13a!G173+SC13e!G173-'C5-Capex'!G40 -> 0 | H178: =H173+SC13a!H173+SC13e!H173-'C5-Capex'!H40 -> 0 | K178: =K173+SC13a!K173+SC13e!K173-'C5-Capex'!K40 -> 0

Sheet SC13c
A1: =muni& " - "&S71Sc& " - "&Head57 -> LIM355 Lepelle-Nkumpi - Supporting Table SC13c Monthly Budget Statement - expenditure on repairs and maintenance by asset class - M04 October
A2: =desc -> Description | B2: =head27 -> Ref | C2: =Head1 -> 2022/23 | D2: =Head2 -> Budget Year 2023/24
C3: =Head5 -> Audited Outcome | D3: =Head6 -> Original Budget | E3: =Head7 -> Adjusted Budget | F3: =Head38 -> Monthly actual | G3: =Head39 -> YearTD actual | H3: =Head40 -> YearTD budget | I3: =Head41 -> YTD variance | J3: =Head41 -> YTD variance | K3: =Head8 -> Full Year Forecast
A4: R thousands | B4: 1 | J4: %
A5: Repairs and maintenance expenditure by Asset Class/Sub-class
A7: Infrastructure | C7: =C8+C13+C17+C27+C38+C45+C53+C63+C69 -> 7228469.83 | D7: 31648246 | E7: 31648246 | F7: 192000 | G7: 208277 | H7: 10549424 | I7: =H7-G7 -> 10341147 | J7: =IF(I7=0,"",I7/H7) -> 0.9802570264 | K7: =K8+K13+K17+K27+K38+K45+K53+K63+K69 -> 31648246
A8: Roads Infrastructure | C8: =SUM(C9:C12) -> 6899125.39 | D8: 28682069 | E8: 28682069 | F8: 192000 | G8: 193717 | H8: 9560696 | I8: 9366979 | J8: 0.9797381906 | K8: =SUM(K9:K12) -> 28682069
A9: Roads | C9: 2378245.93 | D9: 25682069 | E9: 25682069 | F9: 192000 | G9: 193717 | H9: 8560696 | I9: 8366979 | J9: 0.9773713492 | K9: 25682069
A10: Road Structures | I10: 0
A11: Road Furniture | C11: 4520879.46 | D11: 3000000 | E11: 3000000 | F11: 0 | G11: 0 | H11: 1000000 | I11: 1000000 | J11: 1 | K11: 3000000
A12: Capital Spares | I12: 0
A13: Storm water Infrastructure | C13: =SUM(C14:C16) -> 0 | D13: 0 | E13: 0 | F13: 0 | G13: 0 | H13: 0 | I13: 0 | K13: =SUM(K14:K16) -> 0
A14: Drainage Collection | I14: 0
A15: Storm water Conveyance | I15: 0
A16: Attenuation | I16: 0
A17: Electrical Infrastructure | C17: =SUM(C18:C26) -> 329344.44 | D17: 2966177 | E17: 2966177 | F17: 0 | G17: 14560 | H17: 988728 | I17: 974168 | J17: 0.9852740086 | K17: =SUM(K18:K26) -> 2966177
A18: Power Plants | I18: 0
A19: HV Substations | I19: 0
A20: HV Switching Station | I20: 0
A21: HV Transmission Conductors | I21: 0
A22: MV Substations | I22: 0
A23: MV Switching Stations | I23: 0
A24: MV Networks | C24: 329344.44 | D24: 2966177 | E24: 2966177 | F24: 0 | G24: 14560 | H24: 988728 | I24: 974168 | J24: 0.9852740086 | K24: 2966177
A25: LV Networks | I25: 0
A26: Capital Spares | C26: 0 | D26: 0 | E26: 0 | F26: 0 | G26: 0 | H26: 0 | I26: 0 | K26: 0
A27: Water Supply Infrastructure | C27: =SUM(C28:C37) -> 0 | D27: 0 | E27: 0 | F27: 0 | G27: 0 | H27: 0 | I27: 0 | K27: =SUM(K28:K37) -> 0
A28: Dams and Weirs | I28: 0
A29: Boreholes | I29: 0
A30: Reservoirs | I30: 0
A31: Pump Stations | I31: 0
A32: Water Treatment Works | I32: 0
A33: Bulk Mains | I33: 0
A34: Distribution | I34: 0
A35: Distribution Points | I35: 0
A36: PRV Stations | I36: 0
A37: Capital Spares | I37: 0
A38: Sanitation Infrastructure | C38: =SUM(C39:C44) -> 0 | D38: 0 | E38: 0 | F38: 0 | G38: 0 | H38: 0 | I38: 0 | K38: =SUM(K39:K44) -> 0
A39: Pump Station | I39: 0
A40: Reticulation | I40: 0
A41: Waste Water Treatment Works | I41: 0
A42: Outfall Sewers | I42: 0
A43: Toilet Facilities | I43: 0
A44: Capital Spares | I44: 0
A45: Solid Waste Infrastructure | C45: =SUM(C46:C52) -> 0 | D45: 0 | E45: 0 | F45: 0 | G45: 0 | H45: 0 | I45: 0 | K45: =SUM(K46:K52) -> 0
A46: Landfill Sites | I46: 0
A47: Waste Transfer Stations | I47: 0
A48: Waste Processing Facilities | I48: 0
A49: Waste Drop-off Points | I49: 0
A50: Waste Separation Facilities | I50: 0
A51: Electricity Generation Facilities | I51: 0
A52: Capital Spares | I52: 0
A53: Rail Infrastructure | C53: =SUM(C54:C62) -> 0 | D53: 0 | E53: 0 | F53: 0 | G53: 0 | H53: 0 | I53: 0 | K53: =SUM(K54:K62) -> 0
A54: Rail Lines | I54: 0
A55: Rail Structures | I55: 0
A56: Rail Furniture | I56: 0
A57: Drainage Collection | I57: 0
A58: Storm water Conveyance | I58: 0
A59: Attenuation | I59: 0
A60: MV Substations | I60: 0
A61: LV Networks | I61: 0
A62: Capital Spares | I62: 0
A63: Coastal Infrastructure | C63: =SUM(C64:C68) -> 0 | D63: 0 | E63: 0 | F63: 0 | G63: 0 | H63: 0 | I63: 0 | K63: =SUM(K64:K68) -> 0
A64: Sand Pumps | I64: 0
A65: Piers | I65: 0
A66: Revetments | I66: 0
A67: Promenades | I67: 0
A68: Capital Spares | I68: 0
A69: Information and Communication Infrastructure | C69: =SUM(C70:C73) -> 0 | D69: 0 | E69: 0 | F69: 0 | G69: 0 | H69: 0 | I69: 0 | K69: =SUM(K70:K73) -> 0
A70: Data Centres | I70: 0
A71: Core Layers | I71: 0
A72: Distribution Layers | I72: 0
A73: Capital Spares | I73: 0
A75: Community Assets | C75: =+C76+C99 -> 0 | D75: 2553000 | E75: 2553000 | F75: 0 | G75: 0 | H75: 851000 | I75: 851000 | J75: 1 | K75: =+K76+K99 -> 2553000
A76: Community Facilities | C76: =SUM(C77:C98) -> 0 | D76: 2553000 | E76: 2553000 | F76: 0 | G76: 0 | H76: 851000 | I76: 851000 | J76: 1 | K76: =SUM(K77:K98) -> 2553000
A77: Halls | C77: 0 | D77: 0 | E77: 0 | F77: 0 | G77: 0 | H77: 0 | I77: 0 | K77: 0
A78: Centres | C78: 0 | D78: 2553000 | E78: 2553000 | F78: 0 | G78: 0 | H78: 851000 | I78: 851000 | J78: 1 | K78: 2553000
A79: Crèches | C79: 0 | D79: 0 | E79: 0 | F79: 0 | G79: 0 | H79: 0 | I79: 0 | K79: 0
A80: Clinics/Care Centres | I80: 0
A81: Fire/Ambulance Stations | I81: 0
A82: Testing Stations | I82: 0
A83: Museums | I83: 0
A84: Galleries | I84: 0
A85: Theatres | I85: 0
A86: Libraries | I86: 0
A87: Cemeteries/Crematoria | C87: 0 | D87: 0 | E87: 0 | F87: 0 | G87: 0 | H87: 0 | I87: 0 | K87: 0
A88: Police | I88: 0
A89: Purls | C89: 0 | D89: 0 | E89: 0 | F89: 0 | G89: 0 | H89: 0 | I89: 0 | K89: 0
A90: Public Open Space | I90: 0
A91: Nature Reserves | I91: 0
A92: Public Ablution Facilities | I92: 0
A93: Markets | I93: 0
A94: Stalls | I94: 0
A95: Abattoirs | I95: 0
A96: Airports | I96: 0
A97: Taxi Ranks/Bus Terminals | I97: 0
A98: Capital Spares | I98: 0
A99: Sport and Recreation Facilities | C99: =SUM(C100:C102) -> 0 | D99: 0 | E99: 0 | F99: 0 | G99: 0 | H99: 0 | I99: 0 | K99: =SUM(K100:K102) -> 0
A100: Indoor Facilities | I100: 0
A101: Outdoor Facilities | C101: 0 | D101: 0 | E101: 0 | F101: 0 | G101: 0 | H101: 0 | I101: =H101-G101 -> 0 | J101: =IF(I101=0,"",I101/H101) ->  | K101: 0
A102: Capital Spares | I102: 0
A103: Heritage assets | C103: =SUM(C104:C108) -> 0 | D103: 0 | E103: 0 | F103: 0 | G103: 0 | H103: 0 | I103: 0 | K103: =SUM(K104:K108) -> 0
A104: Monuments | I104: 0
A105: Historic Buildings | I105: 0
A106: Works of Art | I106: 0
A107: Conservation Areas | I107: 0
A108: Other Heritage | I108: 0
I109: 0
A110: Investment properties | C110: =+C111+C114 -> 0 | D110: 0 | E110: 0 | F110: 0 | G110: 0 | H110: 0 | I110: 0 | K110: =+K111+K114 -> 0
A111: Revenue Generating | C111: =SUM(C112:C113) -> 0 | D111: 0 | E111: 0 | F111: 0 | G111: 0 | H111: 0 | I111: 0 | K111: =SUM(K112:K113) -> 0
A112: Improved Property | I112: 0
A113: Unimproved Property | I113: 0
A114: Non-revenue Generating | C114: =SUM(C115:C116) -> 0 | D114: 0 | E114: 0 | F114: 0 | G114: 0 | H114: 0 | I114: 0 | K114: =SUM(K115:K116) -> 0
A115: Improved Property | I115: 0
A116: Unimproved Property | I116: =H116-G116 -> 0 | J116: =IF(I116=0,"",I116/H116) -> 
A117: Other assets | C117: =+C118+C130 -> 318701.34 | D117: 1710600 | E117: 1710600 | F117: 2184.78 | G117: 2184.78 | H117: 570200 | I117: 568015.22 | J117: 0.9961683971 | K117: =+K118+K130 -> 1710600
A118: Operational Buildings | C118: =SUM(C119:C129) -> 318701.34 | D118: 1710600 | E118: 1710600 | F118: 2184.78 | G118: 2184.78 | H118: 570200 | I118: 568015.22 | J118: 0.9961683971 | K118: =SUM(K119:K129) -> 1710600
A119: Municipal Offices | C119: 318701.34 | D119: 1710600 | E119: 1710600 | F119: 2184.78 | G119: 2184.78 | H119: 570200 | I119: 568015.22 | J119: 0.9961683971 | K119: 1710600
A120: Pay/Enquiry Points | I120: 0
A121: Building Plan Offices | I121: 0
A122: Workshops | I122: 0
A123: Yards | I123: 0
A124: Stores | I124: 0
A125: Laboratories | I125: 0
A126: Training Centres | I126: 0
A127: Manufacturing Plant | I127: 0
A128: Depots | I128: 0
A129: Capital Spares | I129: 0
A130: Housing | C130: =SUM(C131:C133) -> 0 | D130: 0 | E130: 0 | F130: 0 | G130: 0 | H130: 0 | I130: 0 | K130: =SUM(K131:K133) -> 0
A131: Staff Housing | I131: 0
A132: Social Housing | I132: 0
A133: Capital Spares | I133: 0
A135: Biological or Cultivated Assets | C135: =SUM(C136:C136) -> 0 | D135: 0 | E135: 0 | F135: 0 | G135: 0 | H135: 0 | I135: =H135-G135 -> 0 | K135: =SUM(K136) -> 0
A136: Biological or Cultivated Assets | I136: =H136-G136 -> 0
A138: Intangible Assets | C138: =SUM(C139:C140) -> 0 | D138: 0 | E138: 0 | F138: 0 | G138: 0 | H138: 0 | I138: =H138-G138 -> 0 | K138: =SUM(K139:K140) -> 0
A139: Servitudes | I139: 0
A140: Licences and Rights | C140: =SUM(C141:C146) -> 0 | D140: 0 | E140: 0 | F140: 0 | G140: 0 | H140: 0 | I140: 0 | K140: =SUM(K141:K146) -> 0
A141: Water Rights | I141: 0
A142: Effluent Licenses | I142: 0
A143: Solid Waste Licenses | I143: 0
A144: Computer Software and Applications | C144: 0 | D144: 0 | E144: 0 | F144: 0 | G144: 0 | H144: 0 | I144: 0 | K144: 0
A145: Load Settlement Software Applications | I145: 0
A146: Unspecified | C146: 0 | D146: 0 | E146: 0 | F146: 0 | G146: 0 | H146: 0 | I146: 0 | K146: 0
A148: Computer Equipment | C148: =SUM(C149:C149) -> 0 | D148: 0 | E148: 0 | F148: 0 | G148: 0 | H148: 0 | I148: =H148-G148 -> 0 | J148: =IF(I148=0,"",I148/H148) ->  | K148: =SUM(K149) -> 0
A149: Computer Equipment | I149: =H149-G149 -> 0 | J149: =IF(I149=0,"",I149/H149) -> 
A151: Furniture and Office Equipment | C151: =SUM(C152:C152) -> 0 | D151: 0 | E151: 0 | F151: 0 | G151: 0 | H151: 0 | I151: =H151-G151 -> 0 | J151: =IF(I151=0,"",I151/H151) ->  | K151: =SUM(K152) -> 0
A152: Furniture and Office Equipment | I152: =H152-G152 -> 0 | J152: =IF(I152=0,"",I152/H152) -> 
J153: =IF(I153=0,"",I153/H153) -> 
A154: Machinery and Equipment | C154: =SUM(C155:C155) -> 74950 | D154: 384134 | E154: 384134 | F154: 0 | G154: 0 | H154: 128048 | I154: =H154-G154 -> 128048 | J154: =IF(I154=0,"",I154/H154) -> 1 | K154: =SUM(K155) -> 384134
A155: Machinery and Equipment | C155: 74950 | D155: 384134 | E155: 384134 | F155: 0 | G155: 0 | H155: 128048 | I155: =H155-G155 -> 128048 | J155: =IF(I155=0,"",I155/H155) -> 1 | K155: 384134
A157: Transport Assets | C157: =SUM(C158:C158) -> 911408.64 | D157: 4301670 | E157: 4301670 | F157: 13850.85 | G157: 291058.65 | H157: 1433892 | I157: =H157-G157 -> 1142833.35 | J157: =IF(I157=0,"",I157/H157) -> 0.7970149425 | K157: =SUM(K158) -> 4301670
A158: Transport Assets | C158: 911408.64 | D158: 4301670 | E158: 4301670 | F158: 13850.85 | G158: 291058.65 | H158: 1433892 | I158: =H158-G158 -> 1142833.35 | J158: =IF(I158=0,"",I158/H158) -> 0.7970149425 | K158: 4301670
A160: Land | C160: =SUM(C161:C161) -> 0 | D160: 0 | E160: 0 | F160: 0 | G160: 0 | H160: 0 | I160: =H160-G160 -> 0 | J160: =IF(I160=0,"",I160/H160) ->  | K160: =SUM(K161) -> 0
A161: Land | I161: =H161-G161 -> 0 | J161: =IF(I161=0,"",I161/H161) -> 
A163: Zoo's, Marine and Non-biological Animals | C163: =SUM(C164:C164) -> 0 | D163: 0 | E163: 0 | F163: 0 | G163: 0 | H163: 0 | I163: =H163-G163 -> 0 | J163: =IF(I163=0,"",I163/H163) ->  | K163: =SUM(K164) -> 0
A164: Zoo's, Marine and Non-biological Animals | I164: =H164-G164 -> 0 | J164: =IF(I164=0,"",I164/H164) -> 
A166: Living resources | C166: =+C167+C170 -> 0 | D166: 0 | E166: 0 | F166: 0 | G166: 0 | H166: 0 | I166: =H166-G166 -> 0 | J166: =IF(I166=0,"",I166/H166) ->  | K166: =+K167+K170 -> 0
A167: Mature | C167: =+C168+C169 -> 0 | D167: 0 | E167: 0 | F167: 0 | G167: 0 | H167: 0 | I167: 0 | K167: =+K168+K169 -> 0
A168: Policing and Protection | I168: 0
A169: Zoological plants and animals | I169: 0
A170: Immature | C170: =+C171+C172 -> 0 | D170: 0 | E170: 0 | F170: 0 | G170: 0 | H170: 0 | I170: 0 | K170: =+K171+K172 -> 0
A171: Policing and Protection | I171: 0
A172: Zoological plants and animals | I172: 0
A173: Total Repairs and Maintenance Expenditure | B173: 1 | C173: =C7+C75+C103+C110+C117+C135+C138+C148+C151+C154+C157+C160+C163+C166 -> 8533529.81 | D173: 40597650 | E173: 40597650 | F173: 208035.63 | G173: 501520.43 | H173: 13532564 | I173: =H173-G173 -> 13031043.57 | J173: =IF(I173=0,"",I173/H173) -> 0.9629397334 | K173: =K7+K75+K103+K110+K117+K135+K138+K148+K151+K154+K157+K160+K163+K166 -> 40597650

Sheet SC13d
A1: =muni& " - "&S71Sd& " - "&Head57 -> LIM355 Lepelle-Nkumpi - Supporting Table SC13d Monthly Budget Statement - depreciation by asset class - M04 October
A2: =desc -> Description | B2: =head27 -> Ref | C2: =Head1 -> 2022/23 | D2: =Head2 -> Budget Year 2023/24
C3: =Head5 -> Audited Outcome | D3: =Head6 -> Original Budget | E3: =Head7 -> Adjusted Budget | F3: =Head38 -> Monthly actual | G3: =Head39 -> YearTD actual | H3: =Head40 -> YearTD budget | I3: =Head41 -> YTD variance | J3: =Head41 -> YTD variance | K3: =Head8 -> Full Year Forecast
A4: R thousands | B4: 1 | J4: %
A5: Depreciation by Asset Class/Sub-class
A7: Infrastructure | C7: =C8+C13+C17+C27+C38+C45+C53+C63+C69 -> 15983395.66 | D7: 20517637 | E7: 20517637 | F7: 1376512.43 | G7: 4694985.85 | H7: 6839220 | I7: =H7-G7 -> 2144234.15 | J7: =IF(I7=0,"",I7/H7) -> 0.3135202772 | K7: =K8+K13+K17+K27+K38+K45+K53+K63+K69 -> 20517637
A8: Roads Infrastructure | C8: =SUM(C9:C12) -> 14457202.67 | D8: 18303151 | E8: 18303151 | F8: 1252028.66 | G8: 4171650.06 | H8: 6101052 | I8: 1929401.94 | J8: 0.3162408614 | K8: =SUM(K9:K12) -> 18303151
A9: Roads | C9: 14457202.67 | D9: 18303151 | E9: 18303151 | F9: 1252028.66 | G9: 4171650.06 | H9: 6101052 | I9: 1929401.94 | J9: 0.3162408614 | K9: 18303151
A10: Road Structures | I10: 0
A11: Road Furniture | I11: 0
A12: Capital Spares | I12: 0
A13: Storm water Infrastructure | C13: =SUM(C14:C16) -> 0 | D13: 0 | E13: 0 | F13: 0 | G13: 0 | H13: 0 | I13: 0 | K13: =SUM(K14:K16) -> 0
A14: Drainage Collection | C14: 0 | D14: 0 | E14: 0 | F14: 0 | G14: 0 | H14: 0 | I14: 0 | K14: 0
A15: Storm water Conveyance | I15: 0
A16: Attenuation | I16: 0
A17: Electrical Infrastructure | C17: =SUM(C18:C26) -> 945216.85 | D17: 1508924 | E17: 1508924 | F17: 77205.84 | G17: 330965.99 | H17: 502976 | I17: 172010.01 | J17: 0.3419845281 | K17: =SUM(K18:K26) -> 1508924
A18: Power Plants | C18: 0 | D18: 0 | E18: 0 | F18: 0 | G18: 0 | H18: 0 | I18: 0 | K18: 0
A19: HV Substations | I19: 0
A20: HV Switching Station | I20: 0
A21: HV Transmission Conductors | I21: 0
A22: MV Substations | I22: 0
A23: MV Switching Stations | I23: 0
A24: MV Networks | C24: 0 | D24: 0 | E24: 0 | F24: 0 | G24: 0 | H24: 0 | I24: 0 | K24: 0
A25: LV Networks | C25: 945216.85 | D25: 1508924 | E25: 1508924 | F25: 77205.84 | G25: 330965.99 | H25: 502976 | I25: 172010.01 | J25: 0.3419845281 | K25: 1508924
A26: Capital Spares | I26: 0
A27: Water Supply Infrastructure | C27: =SUM(C28:C37) -> 0 | D27: 0 | E27: 0 | F27: 0 | G27: 0 | H27: 0 | I27: 0 | K27: =SUM(K28:K37) -> 0
A28: Dams and Weirs | C28: 0 | D28: 0 | E28: 0 | F28: 0 | G28: 0 | H28: 0 | I28: 0 | K28: 0
A29: Boreholes | I29: 0
A30: Reservoirs | I30: 0
A31: Pump Stations | I31: 0
A32: Water Treatment Works | I32: 0
A33: Bulk Mains | C33: 0 | D33: 0 | E33: 0 | F33: 0 | G33: 0 | H33: 0 | I33: 0 | K33: 0
A34: Distribution | I34: 0
A35: Distribution Points | I35: 0
A36: PRV Stations | I36: 0
A37: Capital Spares | C37: 0 | D37: 0 | E37: 0 | F37: 0 | G37: 0 | H37: 0 | I37: 0 | K37: 0
A38: Sanitation Infrastructure | C38: =SUM(C39:C44) -> 0 | D38: 0 | E38: 0 | F38: 0 | G38: 0 | H38: 0 | I38: 0 | K38: =SUM(K39:K44) -> 0
A39: Pump Station | I39: 0
A40: Reticulation | C40: 0 | D40: 0 | E40: 0 | F40: 0 | G40: 0 | H40: 0 | I40: 0 | K40: 0
A41: Waste Water Treatment Works | C41: 0 | D41: 0 | E41: 0 | F41: 0 | G41: 0 | H41: 0 | I41: 0 | K41: 0
A42: Outfall Sewers | I42: 0
A43: Toilet Facilities | I43: 0
A44: Capital Spares | I44: 0
A45: Solid Waste Infrastructure | C45: =SUM(C46:C52) -> 580976.14 | D45: 705562 | E45: 705562 | F45: 47277.93 | G45: 192369.8 | H45: 235192 | I45: 42822.2 | J45: 0.1820733698 | K45: =SUM(K46:K52) -> 705562
A46: Landfill Sites | C46: 522157.99 | D46: 595928 | E46: 595928 | F46: 42491.63 | G46: 172228.39 | H46: 198644 | I46: 26415.61 | J46: 0.132979652 | K46: 595928
A47: Waste Transfer Stations | C47: 58818.15 | D47: 109634 | E47: 109634 | F47: 4786.3 | G47: 20141.41 | H47: 36548 | I47: 16406.59 | J47: 0.4489052753 | K47: 109634
A48: Waste Processing Facilities | I48: 0
A49: Waste Drop-off Points | I49: 0
A50: Waste Separation Facilities | I50: 0
A51: Electricity Generation Facilities | I51: 0
A52: Capital Spares | I52: 0
A53: Rail Infrastructure | C53: =SUM(C54:C62) -> 0 | D53: 0 | E53: 0 | F53: 0 | G53: 0 | H53: 0 | I53: 0 | K53: =SUM(K54:K62) -> 0
A54: Rail Lines | I54: 0
A55: Rail Structures | I55: 0
A56: Rail Furniture | I56: 0
A57: Drainage Collection | I57: 0
A58: Storm water Conveyance | I58: 0
A59: Attenuation | I59: 0
A60: MV Substations | I60: 0
A61: LV Networks | I61: 0
A62: Capital Spares | I62: 0
A63: Coastal Infrastructure | C63: =SUM(C64:C68) -> 0 | D63: 0 | E63: 0 | F63: 0 | G63: 0 | H63: 0 | I63: 0 | K63: =SUM(K64:K68) -> 0
A64: Sand Pumps | I64: 0
A65: Piers | I65: 0
A66: Revetments | I66: 0
A67: Promenades | I67: 0
A68: Capital Spares | I68: 0
A69: Information and Communication Infrastructure | C69: =SUM(C70:C73) -> 0 | D69: 0 | E69: 0 | F69: 0 | G69: 0 | H69: 0 | I69: 0 | K69: =SUM(K70:K73) -> 0
A70: Data Centres | I70: 0
A71: Core Layers | I71: 0
A72: Distribution Layers | I72: 0
A73: Capital Spares | I73: 0
A75: Community Assets | C75: =+C76+C99 -> 8292982.23 | D75: 11162730 | E75: 11162730 | F75: 684105.56 | G75: 2948640.04 | H75: 3720928 | I75: 772287.96 | J75: 0.2075525138 | K75: =+K76+K99 -> 11162730
A76: Community Facilities | C76: =SUM(C77:C98) -> 7521934.21 | D76: 9546424 | E76: 9546424 | F76: 624683.46 | G76: 2619209.3 | H76: 3182156 | I76: 562946.7 | J76: 0.1769073232 | K76: =SUM(K77:K98) -> 9546424
A77: Halls | C77: 5199055.28 | D77: 6209918 | E77: 6209918 | F77: 433115.71 | G77: 1770101.52 | H77: 2069976 | I77: 299874.48 | J77: 0.1448685782 | K77: 6209918
A78: Centres | I78: 0
A79: Crèches | I79: 0
A80: Clinics/Care Centres | C80: 225117.97 | D80: 275581 | E80: 275581 | F80: 18759.83 | G80: 77298.4 | H80: 91864 | I80: 14565.6 | J80: 0.1585561264 | K80: 275581
A81: Fire/Ambulance Stations | I81: 0
A82: Testing Stations | C82: 330786.08 | D82: 356642 | E82: 356642 | F82: 27525.56 | G82: 113131.45 | H82: 118884 | I82: 5752.55 | J82: 0.04838792436 | K82: 356642
A83: Museums | I83: 0
A84: Galleries | I84: 0
A85: Theatres | I85: 0
A86: Libraries | C86: 830234.43 | D86: 948966 | E86: 948966 | F86: 69186.2 | G86: 284581.91 | H86: 316324 | I86: 31742.09 | J86: 0.1003467647 | K86: 948966
A87: Cemeteries/Crematoria | C87: 245066.98 | D87: 678260 | E87: 678260 | F87: 20109.99 | G87: 113926.98 | H87: 226088 | I87: 112161.02 | J87: 0.4960945296 | K87: 678260
A88: Police | I88: 0
A89: Purls | I89: 0
A90: Public Open Space | I90: 0
A91: Nature Reserves | I91: 0
A92: Public Ablution Facilities | I92: 0
A93: Markets | C93: 52422.55 | D93: 89471 | E93: 89471 | F93: 4368.55 | G93: 20520.4 | H93: 29824 | I93: 9303.6 | J93: 0.3119501073 | K93: 89471
A94: Stalls | I94: 0
A95: Abattoirs | I95: 0
A96: Airports | I96: 0
A97: Taxi Ranks/Bus Terminals | C97: 639250.92 | D97: 987586 | E97: 987586 | F97: 51617.62 | G97: 239648.64 | H97: 329196 | I97: 89547.36 | J97: 0.272018372 | K97: 987586
A98: Capital Spares | I98: 0
A99: Sport and Recreation Facilities | C99: =SUM(C100:C102) -> 771048.02 | D99: 1616306 | E99: 1616306 | F99: 59422.1 | G99: 329430.74 | H99: 538772 | I99: 209341.26 | J99: 0.3885525974 | K99: =SUM(K100:K102) -> 1616306
A100: Indoor Facilities | I100: 0
A101: Outdoor Facilities | C101: 771048.02 | D101: 1616306 | E101: 1616306 | F101: 59422.1 | G101: 329430.74 | H101: 538772 | I101: =H101-G101 -> 209341.26 | J101: =IF(I101=0,"",I101/H101) -> 0.3885525974 | K101: 1616306
A102: Capital Spares | I102: 0
A103: Heritage assets | C103: =SUM(C104:C108) -> 0 | D103: 0 | E103: 0 | F103: 0 | G103: 0 | H103: 0 | I103: 0 | K103: =SUM(K104:K108) -> 0
A104: Monuments | I104: 0
A105: Historic Buildings | I105: 0
A106: Works of Art | I106: 0
A107: Conservation Areas | I107: 0
A108: Other Heritage | I108: 0
I109: 0
A110: Investment properties | C110: =+C111+C114 -> 0 | D110: 0 | E110: 0 | F110: 0 | G110: 0 | H110: 0 | I110: 0 | K110: =+K111+K114 -> 0
A111: Revenue Generating | C111: =SUM(C112:C113) -> 0 | D111: 0 | E111: 0 | F111: 0 | G111: 0 | H111: 0 | I111: 0 | K111: =SUM(K112:K113) -> 0
A112: Improved Property | C112: 0 | D112: 0 | E112: 0 | F112: 0 | G112: 0 | H112: 0 | I112: 0 | K112: 0
A113: Unimproved Property | C113: 0 | D113: 0 | E113: 0 | F113: 0 | G113: 0 | H113: 0 | I113: 0 | K113: 0
A114: Non-revenue Generating | C114: =SUM(C115:C116) -> 0 | D114: 0 | E114: 0 | F114: 0 | G114: 0 | H114: 0 | I114: 0 | K114: =SUM(K115:K116) -> 0
A115: Improved Property | I115: 0
A116: Unimproved Property | I116: =H116-G116 -> 0 | J116: =IF(I116=0,"",I116/H116) -> 
A117: Other assets | C117: =+C118+C130 -> 2486331.3 | D117: 3546584 | E117: 3546584 | F117: 206609.47 | G117: 821445.68 | H117: 1182196 | I117: 360750.32 | J117: 0.3051527158 | K117: =+K118+K130 -> 3546584
A118: Operational Buildings | C118: =SUM(C119:C129) -> 2486331.3 | D118: 3546584 | E118: 3546584 | F118: 206609.47 | G118: 821445.68 | H118: 1182196 | I118: 360750.32 | J118: 0.3051527158 | K118: =SUM(K119:K129) -> 3546584
A119: Municipal Offices | C119: 2486331.3 | D119: 3546584 | E119: 3546584 | F119: 206609.47 | G119: 821445.68 | H119: 1182196 | I119: 360750.32 | J119: 0.3051527158 | K119: 3546584
A120: Pay/Enquiry Points | I120: 0
A121: Building Plan Offices | I121: 0
A122: Workshops | I122: 0
A123: Yards | I123: 0
A124: Stores | I124: 0
A125: Laboratories | I125: 0
A126: Training Centres | I126: 0
A127: Manufacturing Plant | I127: 0
A128: Depots | I128: 0
A129: Capital Spares | I129: 0
A130: Housing | C130: =SUM(C131:C133) -> 0 | D130: 0 | E130: 0 | F130: 0 | G130: 0 | H130: 0 | I130: 0 | K130: =SUM(K131:K133) -> 0
A131: Staff Housing | I131: 0
A132: Social Housing | I132: 0
A133: Capital Spares | I133: 0
A135: Biological or Cultivated Assets | C135: =SUM(C136:C136) -> 0 | D135: 0 | E135: 0 | F135: 0 | G135: 0 | H135: 0 | I135: =H135-G135 -> 0 | K135: =SUM(K136) -> 0
A136: Biological or Cultivated Assets | I136: =H136-G136 -> 0
A138: Intangible Assets | C138: =SUM(C139:C140) -> 0 | D138: 0 | E138: 0 | F138: 0 | G138: 0 | H138: 0 | I138: =H138-G138 -> 0 | K138: =SUM(K139:K140) -> 0
A139: Servitudes | I139: 0
A140: Licences and Rights | C140: =SUM(C141:C146) -> 0 | D140: 0 | E140: 0 | F140: 0 | G140: 0 | H140: 0 | I140: 0 | K140: =SUM(K141:K146) -> 0
A141: Water Rights | I141: 0
A142: Effluent Licenses | I142: 0
A143: Solid Waste Licenses | I143: 0
A144: Computer Software and Applications | C144: 0 | D144: 0 | E144: 0 | F144: 0 | G144: 0 | H144: 0 | I144: 0 | K144: 0
A145: Load Settlement Software Applications | I145: 0
A146: Unspecified | C146: 0 | D146: 0 | E146: 0 | F146: 0 | G146: 0 | H146: 0 | I146: 0 | K146: 0
A148: Computer Equipment | C148: =SUM(C149:C149) -> 613550.88 | D148: 356893 | E148: 356893 | F148: 69503.9 | G148: 200308.79 | H148: 118968 | I148: =H148-G148 -> -81340.79 | J148: =IF(I148=0,"",I148/H148) -> -0.6837199079 | K148: =SUM(K149) -> 356893
A149: Computer Equipment | C149: 613550.88 | D149: 356893 | E149: 356893 | F149: 69503.9 | G149: 200308.79 | H149: 118968 | I149: =H149-G149 -> -81340.79 | J149: =IF(I149=0,"",I149/H149) -> -0.6837199079 | K149: 356893
A151: Furniture and Office Equipment | C151: =SUM(C152:C152) -> 255134.32 | D151: 362342 | E151: 362342 | F151: 25378.91 | G151: 64097.99 | H151: 120784 | I151: =H151-G151 -> 56686.01 | J151: =IF(I151=0,"",I151/H151) -> 0.4693172109 | K151: =SUM(K152) -> 362342
A152: Furniture and Office Equipment | C152: 255134.32 | D152: 362342 | E152: 362342 | F152: 25378.91 | G152: 64097.99 | H152: 120784 | I152: =H152-G152 -> 56686.01 | J152: =IF(I152=0,"",I152/H152) -> 0.4693172109 | K152: 362342
J153: =IF(I153=0,"",I153/H153) -> 
A154: Machinery and Equipment | C154: =SUM(C155:C155) -> 145081.66 | D154: 157950 | E154: 157950 | F154: 12850.76 | G154: 37163.78 | H154: 52652 | I154: =H154-G154 -> 15488.22 | J154: =IF(I154=0,"",I154/H154) -> 0.2941620451 | K154: =SUM(K155) -> 157950
A155: Machinery and Equipment | C155: 145081.66 | D155: 157950 | E155: 157950 | F155: 12850.76 | G155: 37163.78 | H155: 52652 | I155: =H155-G155 -> 15488.22 | J155: =IF(I155=0,"",I155/H155) -> 0.2941620451 | K155: 157950
A157: Transport Assets | C157: =SUM(C158:C158) -> 2799061.29 | D157: 3593901 | E157: 3593901 | F157: 232934.41 | G157: 672166.27 | H157: 1197968 | I157: =H157-G157 -> 525801.73 | J157: =IF(I157=0,"",I157/H157) -> 0.4389113315 | K157: =SUM(K158) -> 3593901
A158: Transport Assets | C158: 2799061.29 | D158: 3593901 | E158: 3593901 | F158: 232934.41 | G158: 672166.27 | H158: 1197968 | I158: =H158-G158 -> 525801.73 | J158: =IF(I158=0,"",I158/H158) -> 0.4389113315 | K158: 3593901
A160: Land | C160: =SUM(C161:C161) -> 0 | D160: 0 | E160: 0 | F160: 0 | G160: 0 | H160: 0 | I160: =H160-G160 -> 0 | J160: =IF(I160=0,"",I160/H160) ->  | K160: =SUM(K161) -> 0
A161: Land | I161: =H161-G161 -> 0 | J161: =IF(I161=0,"",I161/H161) -> 
A163: Zoo's, Marine and Non-biological Animals | C163: =SUM(C164:C164) -> 0 | D163: 0 | E163: 0 | F163: 0 | G163: 0 | H163: 0 | I163: =H163-G163 -> 0 | J163: =IF(I163=0,"",I163/H163) ->  | K163: =SUM(K164) -> 0
A164: Zoo's, Marine and Non-biological Animals | I164: =H164-G164 -> 0 | J164: =IF(I164=0,"",I164/H164) -> 
J165: =IF(I165=0,"",I165/H165) -> 
A166: Living resources | C166: =+C167+C170 -> 0 | D166: 0 | E166: 0 | F166: 0 | G166: 0 | H166: 0 | I166: =H166-G166 -> 0 | K166: =+K167+K170 -> 0
A167: Mature | C167: =+C168+C169 -> 0 | D167: 0 | E167: 0 | F167: 0 | G167: 0 | H167: 0 | I167: 0 | K167: =+K168+K169 -> 0
A168: Policing and Protection | I168: 0
A169: Zoological plants and animals | I169: 0
A170: Immature | C170: =+C171+C172 -> 0 | D170: 0 | E170: 0 | F170: 0 | G170: 0 | H170: 0 | I170: 0 | K170: =+K171+K172 -> 0
A171: Policing and Protection | I171: 0
A172: Zoological plants and animals | I172: 0
A173: Total Depreciation | B173: 1 | C173: =C7+C75+C103+C110+C117+C135+C138+C148+C151+C154+C157+C160+C163+C166 -> 30575537.34 | D173: 39698037 | E173: 39698037 | F173: 2607895.44 | G173: 9438808.4 | H173: 13232716 | I173: =H173-G173 -> 3793907.6 | J173: =IF(I173=0,"",I173/H173) -> 0.2867066444 | K173: =K7+K75+K103+K110+K117+K135+K138+K148+K151+K154+K157+K160+K163+K166 -> 39698037

Sheet SC13e
A1: =muni& " - "&S71Se& " - "&Head57 -> LIM355 Lepelle-Nkumpi - Supporting Table SC13e Monthly Budget Statement - capital expenditure on upgrading of existing assets by asset class - M04 October
A2: =desc -> Description | B2: =head27 -> Ref | C2: =Head1 -> 2022/23 | D2: =Head2 -> Budget Year 2023/24
C3: =Head5 -> Audited Outcome | D3: =Head6 -> Original Budget | E3: =Head7 -> Adjusted Budget | F3: =Head38 -> Monthly actual | G3: =Head39 -> YearTD actual | H3: =Head40 -> YearTD budget | I3: =Head41 -> YTD variance | J3: =Head41 -> YTD variance | K3: =Head8 -> Full Year Forecast
A4: R thousands | B4: 1 | J4: %
A5: Capital expenditure on upgrading of existing assets by Asset Class/Sub-class
A7: Infrastructure | C7: =C8+C13+C17+C27+C38+C45+C53+C63+C69 -> 0 | D7: 60000000 | E7: 60000000 | F7: 14055555.98 | G7: 15053200.71 | H7: 20000012 | I7: =H7-G7 -> 4946811.29 | J7: =IF(I7=0,"",I7/H7) -> 0.2473404161 | K7: =K8+K13+K17+K27+K38+K45+K53+K63+K69 -> 60000000
A8: Roads Infrastructure | C8: =SUM(C9:C12) -> 0 | D8: 58500000 | E8: 58500000 | F8: 14055555.98 | G8: 15053200.71 | H8: 19500012 | I8: 4446811.29 | J8: 0.2280414643 | K8: =SUM(K9:K12) -> 58500000
A9: Roads | C9: 0 | D9: 0 | E9: 0 | F9: 6551351.77 | G9: 6551351.77 | H9: 0 | I9: -6551351.77 | K9: 0
A10: Road Structures | C10: 0 | D10: 44000000 | E10: 44000000 | F10: 7504204.21 | G10: 8501848.94 | H10: 14666676 | I10: 6164827.06 | J10: 0.4203288502 | K10: 44000000
A11: Road Furniture | C11: 0 | D11: 14500000 | E11: 14500000 | F11: 0 | G11: 0 | H11: 4833336 | I11: 4833336 | J11: 1 | K11: 14500000
A12: Capital Spares | I12: 0
A13: Storm water Infrastructure | C13: =SUM(C14:C16) -> 0 | D13: 1500000 | E13: 1500000 | F13: 0 | G13: 0 | H13: 500000 | I13: 500000 | J13: 1 | K13: =SUM(K14:K16) -> 1500000
A14: Drainage Collection | I14: 0
A15: Storm water Conveyance | C15: 0 | D15: 1500000 | E15: 1500000 | F15: 0 | G15: 0 | H15: 500000 | I15: 500000 | J15: 1 | K15: 1500000
A16: Attenuation | I16: 0
A17: Electrical Infrastructure | C17: =SUM(C18:C26) -> 0 | D17: 0 | E17: 0 | F17: 0 | G17: 0 | H17: 0 | I17: 0 | K17: =SUM(K18:K26) -> 0
A18: Power Plants | I18: 0
A19: HV Substations | I19: 0
A20: HV Switching Station | I20: 0
A21: HV Transmission Conductors | I21: 0
A22: MV Substations | I22: 0
A23: MV Switching Stations | I23: 0
A24: MV Networks | C24: 0 | D24: 0 | E24: 0 | F24: 0 | G24: 0 | H24: 0 | I24: 0 | K24: 0
A25: LV Networks | I25: 0
A26: Capital Spares | I26: 0
A27: Water Supply Infrastructure | C27: =SUM(C28:C37) -> 0 | D27: 0 | E27: 0 | F27: 0 | G27: 0 | H27: 0 | I27: 0 | K27: =SUM(K28:K37) -> 0
A28: Dams and Weirs | I28: 0
A29: Boreholes | I29: 0
A30: Reservoirs | I30: 0
A31: Pump Stations | I31: 0
A32: Water Treatment Works | I32: 0
A33: Bulk Mains | I33: 0
A34: Distribution | I34: 0
A35: Distribution Points | I35: 0
A36: PRV Stations | I36: 0
A37: Capital Spares | I37: 0
A38: Sanitation Infrastructure | C38: =SUM(C39:C44) -> 0 | D38: 0 | E38: 0 | F38: 0 | G38: 0 | H38: 0 | I38: 0 | K38: =SUM(K39:K44) -> 0
A39: Pump Station | I39: 0
A40: Reticulation | I40: 0
A41: Waste Water Treatment Works | I41: 0
A42: Outfall Sewers | I42: 0
A43: Toilet Facilities | I43: 0
A44: Capital Spares | I44: 0
A45: Solid Waste Infrastructure | C45: =SUM(C46:C52) -> 0 | D45: 0 | E45: 0 | F45: 0 | G45: 0 | H45: 0 | I45: 0 | K45: =SUM(K46:K52) -> 0
A46: Landfill Sites | I46: 0
A47: Waste Transfer Stations | I47: 0
A48: Waste Processing Facilities | I48: 0
A49: Waste Drop-off Points | I49: 0
A50: Waste Separation Facilities | I50: 0
A51: Electricity Generation Facilities | I51: 0
A52: Capital Spares | I52: 0
A53: Rail Infrastructure | C53: =SUM(C54:C62) -> 0 | D53: 0 | E53: 0 | F53: 0 | G53: 0 | H53: 0 | I53: 0 | K53: =SUM(K54:K62) -> 0
A54: Rail Lines | I54: 0
A55: Rail Structures | I55: 0
A56: Rail Furniture | I56: 0
A57: Drainage Collection | I57: 0
A58: Storm water Conveyance | I58: 0
A59: Attenuation | I59: 0
A60: MV Substations | I60: 0
A61: LV Networks | I61: 0
A62: Capital Spares | I62: 0
A63: Coastal Infrastructure | C63: =SUM(C64:C68) -> 0 | D63: 0 | E63: 0 | F63: 0 | G63: 0 | H63: 0 | I63: 0 | K63: =SUM(K64:K68) -> 0
A64: Sand Pumps | I64: 0
A65: Piers | I65: 0
A66: Revetments | I66: 0
A67: Promenades | I67: 0
A68: Capital Spares | I68: 0
A69: Information and Communication Infrastructure | C69: =SUM(C70:C73) -> 0 | D69: 0 | E69: 0 | F69: 0 | G69: 0 | H69: 0 | I69: 0 | K69: =SUM(K70:K73) -> 0
A70: Data Centres | I70: 0
A71: Core Layers | I71: 0
A72: Distribution Layers | I72: 0
A73: Capital Spares | I73: 0
A75: Community Assets | C75: =+C76+C99 -> 0 | D75: 0 | E75: 0 | F75: 0 | G75: 0 | H75: 0 | I75: 0 | K75: =+K76+K99 -> 0
A76: Community Facilities | C76: =SUM(C77:C98) -> 0 | D76: 0 | E76: 0 | F76: 0 | G76: 0 | H76: 0 | I76: 0 | K76: =SUM(K77:K98) -> 0
A77: Halls | I77: 0
A78: Centres | I78: 0
A79: Crèches | I79: 0
A80: Clinics/Care Centres | I80: 0
A81: Fire/Ambulance Stations | I81: 0
A82: Testing Stations | I82: 0
A83: Museums | I83: 0
A84: Galleries | I84: 0
A85: Theatres | I85: 0
A86: Libraries | I86: 0
A87: Cemeteries/Crematoria | I87: 0
A88: Police | I88: 0
A89: Purls | C89: 0 | D89: 0 | E89: 0 | F89: 0 | G89: 0 | H89: 0 | I89: 0 | K89: 0
A90: Public Open Space | I90: 0
A91: Nature Reserves | I91: 0
A92: Public Ablution Facilities | I92: 0
A93: Markets | I93: 0
A94: Stalls | I94: 0
A95: Abattoirs | I95: 0
A96: Airports | I96: 0
A97: Taxi Ranks/Bus Terminals | I97: 0
A98: Capital Spares | I98: 0
A99: Sport and Recreation Facilities | C99: =SUM(C100:C102) -> 0 | D99: 0 | E99: 0 | F99: 0 | G99: 0 | H99: 0 | I99: 0 | K99: =SUM(K100:K102) -> 0
A100: Indoor Facilities | I100: 0
